Workbook

Sheet Lịch biểu Khoản vay
B1: LỊCH BIỂU THANH TOÁN KHOẢN VAY
C2: NHẬP GIÁ TRỊ | G2: TÓM TẮT KHOẢN VAY
C3: Số tiền vay | E3: 5,000.00 ₫ | G3: Thanh toán theo lịch | I3: =IF(Khoản_vay_Tốt,-PMT(Lãi_Suất/Thanh_toán_Mỗi_Năm,Số_lần_Thanh_toán_theo_Lịch,Số_tiền_Vay),"") -> 425.75 ₫
C4: Lãi suất hàng năm | E4: 4.00% | G4: Số lần thanh toán theo lịch | I4: =IF(Khoản_vay_Tốt,Thời_gian_Vay*Thanh_toán_Mỗi_Năm,"") -> 12
C5: Thời gian vay tính theo năm | E5: 1 | G5: Số lần thanh toán thực tế | I5: =Số_lần_Thanh_toán_Thực_tế -> 10
C6: Số lần thanh toán mỗi năm | E6: 12 | G6: Tổng thanh toán sớm | I6: =Tổng_Thanh_toán_Sớm -> 900.00 ₫
C7: Ngày bắt đầu khoản vay | E7: =TODAY() -> 2020-04-16 | G7: Tổng lãi | I7: =Tổng_lãi -> 89.62 ₫
C9: Thanh toán bổ sung tùy chọn | E9: 100.00 ₫ | G9: TÊN BÊN CHO VAY | H9: Ngân hàng Woodgrove
B11: SỐ THANH TOÁN | C11: NGÀY THANH TOÁN | D11: SỐ DƯ ĐẦU | E11: THANH TOÁN THEO LỊCH | F11: THANH TOÁN BỔ SUNG | G11: TỔNG THANH TOÁN | H11: GỐC | I11: LÃI | J11: SỐ DƯ CUỐI | K11: TIỀN LÃI LŨY TÍCH
B12: =IF(Khoản_vay_Tốt,IF(ROW()-ROW(Lịch_biểu_Thanh_toán[[#Headers],[SỐ THANH TOÁN]])>Số_lần_Thanh_toán_theo_Lịch,"",ROW()-ROW(Lịch_biểu_Thanh_toán[[#Headers],[SỐ THANH TOÁN]])),"") -> 1 | C12: =IF(Lịch_biểu_Thanh_toán[[#This Row],[SỐ THANH TOÁN]]<>"",EOMONTH(Ngày_Bắt_đầu_Khoản_vay,ROW(Lịch_biểu_Thanh_toán[[#This Row],[SỐ THANH TOÁN]])-ROW(Lịch_biểu_Thanh_toán[[#Headers],[SỐ THANH TOÁN]])-2)+DAY(Ngày_Bắt_đầu_Khoản_vay),"") -> 2020-04-16 | D12: =IF(Lịch_biểu_Thanh_toán[[#This Row],[SỐ THANH TOÁN]]<>"",IF(ROW()-ROW(Lịch_biểu_Thanh_toán[[#Headers],[SỐ DƯ ĐẦU]])=1,Số_tiền_Vay,INDEX(Lịch_biểu_Thanh_toán[SỐ DƯ CUỐI],ROW()-ROW(Lịch_biểu_Thanh_toán[[#Headers],[SỐ DƯ ĐẦU]])-1)),"") -> 5,000.00 ₫ | E12: =IF(Lịch_biểu_Thanh_toán[[#This Row],[SỐ THANH TOÁN]]<>"",Thanh_toán_theo_Lịch,"") -> 425.75 ₫ | F12: =IF(Lịch_biểu_Thanh_toán[[#This Row],[SỐ THANH TOÁN]]<>"",IF(Lịch_biểu_Thanh_toán[[#This Row],[THANH TOÁN THEO LỊCH]]+Thanh_Toán_Bổ_sung<Lịch_biểu_Thanh_toán[[#This Row],[SỐ DƯ ĐẦU]],Thanh_Toán_Bổ_sung,IF(Lịch_biểu_Thanh_toán[[#This Row],[SỐ DƯ ĐẦU]]-Lịch_biểu_Thanh_toán[[#This Row],[THANH TOÁN THEO LỊCH]]>0,Lịch_biểu_Thanh_toán[[#This Row],[SỐ DƯ ĐẦU]]-Lịch_biểu_Thanh_toán[[#This Row],[THANH TOÁN THEO LỊCH]],0)),"") -> 100.00 ₫ | G12: =IF(Lịch_biểu_Thanh_toán[[#This Row],[SỐ THANH TOÁN]]<>"",IF(Lịch_biểu_Thanh_toán[[#This Row],[THANH TOÁN THEO LỊCH]]+Lịch_biểu_Thanh_toán[[#This Row],[THANH TOÁN BỔ SUNG]]<=Lịch_biểu_Thanh_toán[[#This Row],[SỐ DƯ ĐẦU]],Lịch_biểu_Thanh_toán[[#This Row],[THANH TOÁN THEO LỊCH]]+Lịch_biểu_Thanh_toán[[#This Row],[THANH TOÁN BỔ SUNG]],Lịch_biểu_Thanh_toán[[#This Row],[SỐ DƯ ĐẦU]]),"") -> 525.75 ₫ | H12: =IF(Lịch_biểu_Thanh_toán[[#This Row],[SỐ THANH TOÁN]]<>"",Lịch_biểu_Thanh_toán[[#This Row],[TỔNG THANH TOÁN]]-Lịch_biểu_Thanh_toán[[#This Row],[LÃI]],"") -> 509.08 ₫ | I12: =IF(Lịch_biểu_Thanh_toán[[#This Row],[SỐ THANH TOÁN]]<>"",Lịch_biểu_Thanh_toán[[#This Row],[SỐ DƯ ĐẦU]]*(Lãi_Suất/Thanh_toán_Mỗi_Năm),"") -> 16.67 ₫ | J12: =IF(Lịch_biểu_Thanh_toán[[#This Row],[SỐ THANH TOÁN]]<>"",IF(Lịch_biểu_Thanh_toán[[#This Row],[THANH TOÁN THEO LỊCH]]+Lịch_biểu_Thanh_toán[[#This Row],[THANH TOÁN BỔ SUNG]]<=Lịch_biểu_Thanh_toán[[#This Row],[SỐ DƯ ĐẦU]],Lịch_biểu_Thanh_toán[[#This Row],[SỐ DƯ ĐẦU]]-Lịch_biểu_Thanh_toán[[#This Row],[GỐC]],0),"") -> 4,490.92 ₫ | K12: =IF(Lịch_biểu_Thanh_toán[[#This Row],[SỐ THANH TOÁN]]<>"",SUM(INDEX(Lịch_biểu_Thanh_toán[LÃI],1,1):Lịch_biểu_Thanh_toán[[#This Row],[LÃI]]),"") -> 16.67 ₫
B13: =IF(Khoản_vay_Tốt,IF(ROW()-ROW(Lịch_biểu_Thanh_toán[[#Headers],[SỐ THANH TOÁN]])>Số_lần_Thanh_toán_theo_Lịch,"",ROW()-ROW(Lịch_biểu_Thanh_toán[[#Headers],[SỐ THANH TOÁN]])),"") -> 2 | C13: =IF(Lịch_biểu_Thanh_toán[[#This Row],[SỐ THANH TOÁN]]<>"",EOMONTH(Ngày_Bắt_đầu_Khoản_vay,ROW(Lịch_biểu_Thanh_toán[[#This Row],[SỐ THANH TOÁN]])-ROW(Lịch_biểu_Thanh_toán[[#Headers],[SỐ THANH TOÁN]])-2)+DAY(Ngày_Bắt_đầu_Khoản_vay),"") -> 2020-05-16 | D13: =IF(Lịch_biểu_Thanh_toán[[#This Row],[SỐ THANH TOÁN]]<>"",IF(ROW()-ROW(Lịch_biểu_Thanh_toán[[#Headers],[SỐ DƯ ĐẦU]])=1,Số_tiền_Vay,INDEX(Lịch_biểu_Thanh_toán[SỐ DƯ CUỐI],ROW()-ROW(Lịch_biểu_Thanh_toán[[#Headers],[SỐ DƯ ĐẦU]])-1)),"") -> 4,490.92 ₫ | E13: =IF(Lịch_biểu_Thanh_toán[[#This Row],[SỐ THANH TOÁN]]<>"",Thanh_toán_theo_Lịch,"") -> 425.75 ₫ | F13: =IF(Lịch_biểu_Thanh_toán[[#This Row],[SỐ THANH TOÁN]]<>"",IF(Lịch_biểu_Thanh_toán[[#This Row],[THANH TOÁN THEO LỊCH]]+Thanh_Toán_Bổ_sung<Lịch_biểu_Thanh_toán[[#This Row],[SỐ DƯ ĐẦU]],Thanh_Toán_Bổ_sung,IF(Lịch_biểu_Thanh_toán[[#This Row],[SỐ DƯ ĐẦU]]-Lịch_biểu_Thanh_toán[[#This Row],[THANH TOÁN THEO LỊCH]]>0,Lịch_biểu_Thanh_toán[[#This Row],[SỐ DƯ ĐẦU]]-Lịch_biểu_Thanh_toán[[#This Row],[THANH TOÁN THEO LỊCH]],0)),"") -> 100.00 ₫ | G13: =IF(Lịch_biểu_Thanh_toán[[#This Row],[SỐ THANH TOÁN]]<>"",IF(Lịch_biểu_Thanh_toán[[#This Row],[THANH TOÁN THEO LỊCH]]+Lịch_biểu_Thanh_toán[[#This Row],[THANH TOÁN BỔ SUNG]]<=Lịch_biểu_Thanh_toán[[#This Row],[SỐ DƯ ĐẦU]],Lịch_biểu_Thanh_toán[[#This Row],[THANH TOÁN THEO LỊCH]]+Lịch_biểu_Thanh_toán[[#This Row],[THANH TOÁN BỔ SUNG]],Lịch_biểu_Thanh_toán[[#This Row],[SỐ DƯ ĐẦU]]),"") -> 525.75 ₫ | H13: =IF(Lịch_biểu_Thanh_toán[[#This Row],[SỐ THANH TOÁN]]<>"",Lịch_biểu_Thanh_toán[[#This Row],[TỔNG THANH TOÁN]]-Lịch_biểu_Thanh_toán[[#This Row],[LÃI]],"") -> 510.78 ₫ | I13: =IF(Lịch_biểu_Thanh_toán[[#This Row],[SỐ THANH TOÁN]]<>"",Lịch_biểu_Thanh_toán[[#This Row],[SỐ DƯ ĐẦU]]*(Lãi_Suất/Thanh_toán_Mỗi_Năm),"") -> 14.97 ₫ | J13: =IF(Lịch_biểu_Thanh_toán[[#This Row],[SỐ THANH TOÁN]]<>"",IF(Lịch_biểu_Thanh_toán[[#This Row],[THANH TOÁN THEO LỊCH]]+Lịch_biểu_Thanh_toán[[#This Row],[THANH TOÁN BỔ SUNG]]<=Lịch_biểu_Thanh_toán[[#This Row],[SỐ DƯ ĐẦU]],Lịch_biểu_Thanh_toán[[#This Row],[SỐ DƯ ĐẦU]]-Lịch_biểu_Thanh_toán[[#This Row],[GỐC]],0),"") -> 3,980.14 ₫ | K13: =IF(Lịch_biểu_Thanh_toán[[#This Row],[SỐ THANH TOÁN]]<>"",SUM(INDEX(Lịch_biểu_Thanh_toán[LÃI],1,1):Lịch_biểu_Thanh_toán[[#This Row],[LÃI]]),"") -> 31.64 ₫
B14: =IF(Khoản_vay_Tốt,IF(ROW()-ROW(Lịch_biểu_Thanh_toán[[#Headers],[SỐ THANH TOÁN]])>Số_lần_Thanh_toán_theo_Lịch,"",ROW()-ROW(Lịch_biểu_Thanh_toán[[#Headers],[SỐ THANH TOÁN]])),"") -> 3 | C14: =IF(Lịch_biểu_Thanh_toán[[#This Row],[SỐ THANH TOÁN]]<>"",EOMONTH(Ngày_Bắt_đầu_Khoản_vay,ROW(Lịch_biểu_Thanh_toán[[#This Row],[SỐ THANH TOÁN]])-ROW(Lịch_biểu_Thanh_toán[[#Headers],[SỐ THANH TOÁN]])-2)+DAY(Ngày_Bắt_đầu_Khoản_vay),"") -> 2020-06-16 | D14: =IF(Lịch_biểu_Thanh_toán[[#This Row],[SỐ THANH TOÁN]]<>"",IF(ROW()-ROW(Lịch_biểu_Thanh_toán[[#Headers],[SỐ DƯ ĐẦU]])=1,Số_tiền_Vay,INDEX(Lịch_biểu_Thanh_toán[SỐ DƯ CUỐI],ROW()-ROW(Lịch_biểu_Thanh_toán[[#Headers],[SỐ DƯ ĐẦU]])-1)),"") -> 3,980.14 ₫ | E14: =IF(Lịch_biểu_Thanh_toán[[#This Row],[SỐ THANH TOÁN]]<>"",Thanh_toán_theo_Lịch,"") -> 425.75 ₫ | F14: =IF(Lịch_biểu_Thanh_toán[[#This Row],[SỐ THANH TOÁN]]<>"",IF(Lịch_biểu_Thanh_toán[[#This Row],[THANH TOÁN THEO LỊCH]]+Thanh_Toán_Bổ_sung<Lịch_biểu_Thanh_toán[[#This Row],[SỐ DƯ ĐẦU]],Thanh_Toán_Bổ_sung,IF(Lịch_biểu_Thanh_toán[[#This Row],[SỐ DƯ ĐẦU]]-Lịch_biểu_Thanh_toán[[#This Row],[THANH TOÁN THEO LỊCH]]>0,Lịch_biểu_Thanh_toán[[#This Row],[SỐ DƯ ĐẦU]]-Lịch_biểu_Thanh_toán[[#This Row],[THANH TOÁN THEO LỊCH]],0)),"") -> 100.00 ₫ | G14: =IF(Lịch_biểu_Thanh_toán[[#This Row],[SỐ THANH TOÁN]]<>"",IF(Lịch_biểu_Thanh_toán[[#This Row],[THANH TOÁN THEO LỊCH]]+Lịch_biểu_Thanh_toán[[#This Row],[THANH TOÁN BỔ SUNG]]<=Lịch_biểu_Thanh_toán[[#This Row],[SỐ DƯ ĐẦU]],Lịch_biểu_Thanh_toán[[#This Row],[THANH TOÁN THEO LỊCH]]+Lịch_biểu_Thanh_toán[[#This Row],[THANH TOÁN BỔ SUNG]],Lịch_biểu_Thanh_toán[[#This Row],[SỐ DƯ ĐẦU]]),"") -> 525.75 ₫ | H14: =IF(Lịch_biểu_Thanh_toán[[#This Row],[SỐ THANH TOÁN]]<>"",Lịch_biểu_Thanh_toán[[#This Row],[TỔNG THANH TOÁN]]-Lịch_biểu_Thanh_toán[[#This Row],[LÃI]],"") -> 512.48 ₫ | I14: =IF(Lịch_biểu_Thanh_toán[[#This Row],[SỐ THANH TOÁN]]<>"",Lịch_biểu_Thanh_toán[[#This Row],[SỐ DƯ ĐẦU]]*(Lãi_Suất/Thanh_toán_Mỗi_Năm),"") -> 13.27 ₫ | J14: =IF(Lịch_biểu_Thanh_toán[[#This Row],[SỐ THANH TOÁN]]<>"",IF(Lịch_biểu_Thanh_toán[[#This Row],[THANH TOÁN THEO LỊCH]]+Lịch_biểu_Thanh_toán[[#This Row],[THANH TOÁN BỔ SUNG]]<=Lịch_biểu_Thanh_toán[[#This Row],[SỐ DƯ ĐẦU]],Lịch_biểu_Thanh_toán[[#This Row],[SỐ DƯ ĐẦU]]-Lịch_biểu_Thanh_toán[[#This Row],[GỐC]],0),"") -> 3,467.65 ₫ | K14: =IF(Lịch_biểu_Thanh_toán[[#This Row],[SỐ THANH TOÁN]]<>"",SUM(INDEX(Lịch_biểu_Thanh_toán[LÃI],1,1):Lịch_biểu_Thanh_toán[[#This Row],[LÃI]]),"") -> 44.90 ₫
B15: =IF(Khoản_vay_Tốt,IF(ROW()-ROW(Lịch_biểu_Thanh_toán[[#Headers],[SỐ THANH TOÁN]])>Số_lần_Thanh_toán_theo_Lịch,"",ROW()-ROW(Lịch_biểu_Thanh_toán[[#Headers],[SỐ THANH TOÁN]])),"") -> 4 | C15: =IF(Lịch_biểu_Thanh_toán[[#This Row],[SỐ THANH TOÁN]]<>"",EOMONTH(Ngày_Bắt_đầu_Khoản_vay,ROW(Lịch_biểu_Thanh_toán[[#This Row],[SỐ THANH TOÁN]])-ROW(Lịch_biểu_Thanh_toán[[#Headers],[SỐ THANH TOÁN]])-2)+DAY(Ngày_Bắt_đầu_Khoản_vay),"") -> 2020-07-16 | D15: =IF(Lịch_biểu_Thanh_toán[[#This Row],[SỐ THANH TOÁN]]<>"",IF(ROW()-ROW(Lịch_biểu_Thanh_toán[[#Headers],[SỐ DƯ ĐẦU]])=1,Số_tiền_Vay,INDEX(Lịch_biểu_Thanh_toán[SỐ DƯ CUỐI],ROW()-ROW(Lịch_biểu_Thanh_toán[[#Headers],[SỐ DƯ ĐẦU]])-1)),"") -> 3,467.65 ₫ | E15: =IF(Lịch_biểu_Thanh_toán[[#This Row],[SỐ THANH TOÁN]]<>"",Thanh_toán_theo_Lịch,"") -> 425.75 ₫ | F15: =IF(Lịch_biểu_Thanh_toán[[#This Row],[SỐ THANH TOÁN]]<>"",IF(Lịch_biểu_Thanh_toán[[#This Row],[THANH TOÁN THEO LỊCH]]+Thanh_Toán_Bổ_sung<Lịch_biểu_Thanh_toán[[#This Row],[SỐ DƯ ĐẦU]],Thanh_Toán_Bổ_sung,IF(Lịch_biểu_Thanh_toán[[#This Row],[SỐ DƯ ĐẦU]]-Lịch_biểu_Thanh_toán[[#This Row],[THANH TOÁN THEO LỊCH]]>0,Lịch_biểu_Thanh_toán[[#This Row],[SỐ DƯ ĐẦU]]-Lịch_biểu_Thanh_toán[[#This Row],[THANH TOÁN THEO LỊCH]],0)),"") -> 100.00 ₫ | G15: =IF(Lịch_biểu_Thanh_toán[[#This Row],[SỐ THANH TOÁN]]<>"",IF(Lịch_biểu_Thanh_toán[[#This Row],[THANH TOÁN THEO LỊCH]]+Lịch_biểu_Thanh_toán[[#This Row],[THANH TOÁN BỔ SUNG]]<=Lịch_biểu_Thanh_toán[[#This Row],[SỐ DƯ ĐẦU]],Lịch_biểu_Thanh_toán[[#This Row],[THANH TOÁN THEO LỊCH]]+Lịch_biểu_Thanh_toán[[#This Row],[THANH TOÁN BỔ SUNG]],Lịch_biểu_Thanh_toán[[#This Row],[SỐ DƯ ĐẦU]]),"") -> 525.75 ₫ | H15: =IF(Lịch_biểu_Thanh_toán[[#This Row],[SỐ THANH TOÁN]]<>"",Lịch_biểu_Thanh_toán[[#This Row],[TỔNG THANH TOÁN]]-Lịch_biểu_Thanh_toán[[#This Row],[LÃI]],"") -> 514.19 ₫ | I15: =IF(Lịch_biểu_Thanh_toán[[#This Row],[SỐ THANH TOÁN]]<>"",Lịch_biểu_Thanh_toán[[#This Row],[SỐ DƯ ĐẦU]]*(Lãi_Suất/Thanh_toán_Mỗi_Năm),"") -> 11.56 ₫ | J15: =IF(Lịch_biểu_Thanh_toán[[#This Row],[SỐ THANH TOÁN]]<>"",IF(Lịch_biểu_Thanh_toán[[#This Row],[THANH TOÁN THEO LỊCH]]+Lịch_biểu_Thanh_toán[[#This Row],[THANH TOÁN BỔ SUNG]]<=Lịch_biểu_Thanh_toán[[#This Row],[SỐ DƯ ĐẦU]],Lịch_biểu_Thanh_toán[[#This Row],[SỐ DƯ ĐẦU]]-Lịch_biểu_Thanh_toán[[#This Row],[GỐC]],0),"") -> 2,953.46 ₫ | K15: =IF(Lịch_biểu_Thanh_toán[[#This Row],[SỐ THANH TOÁN]]<>"",SUM(INDEX(Lịch_biểu_Thanh_toán[LÃI],1,1):Lịch_biểu_Thanh_toán[[#This Row],[LÃI]]),"") -> 56.46 ₫
B16: =IF(Khoản_vay_Tốt,IF(ROW()-ROW(Lịch_biểu_Thanh_toán[[#Headers],[SỐ THANH TOÁN]])>Số_lần_Thanh_toán_theo_Lịch,"",ROW()-ROW(Lịch_biểu_Thanh_toán[[#Headers],[SỐ THANH TOÁN]])),"") -> 5 | C16: =IF(Lịch_biểu_Thanh_toán[[#This Row],[SỐ THANH TOÁN]]<>"",EOMONTH(Ngày_Bắt_đầu_Khoản_vay,ROW(Lịch_biểu_Thanh_toán[[#This Row],[SỐ THANH TOÁN]])-ROW(Lịch_biểu_Thanh_toán[[#Headers],[SỐ THANH TOÁN]])-2)+DAY(Ngày_Bắt_đầu_Khoản_vay),"") -> 2020-08-16 | D16: =IF(Lịch_biểu_Thanh_toán[[#This Row],[SỐ THANH TOÁN]]<>"",IF(ROW()-ROW(Lịch_biểu_Thanh_toán[[#Headers],[SỐ DƯ ĐẦU]])=1,Số_tiền_Vay,INDEX(Lịch_biểu_Thanh_toán[SỐ DƯ CUỐI],ROW()-ROW(Lịch_biểu_Thanh_toán[[#Headers],[SỐ DƯ ĐẦU]])-1)),"") -> 2,953.46 ₫ | E16: =IF(Lịch_biểu_Thanh_toán[[#This Row],[SỐ THANH TOÁN]]<>"",Thanh_toán_theo_Lịch,"") -> 425.75 ₫ | F16: =IF(Lịch_biểu_Thanh_toán[[#This Row],[SỐ THANH TOÁN]]<>"",IF(Lịch_biểu_Thanh_toán[[#This Row],[THANH TOÁN THEO LỊCH]]+Thanh_Toán_Bổ_sung<Lịch_biểu_Thanh_toán[[#This Row],[SỐ DƯ ĐẦU]],Thanh_Toán_Bổ_sung,IF(Lịch_biểu_Thanh_toán[[#This Row],[SỐ DƯ ĐẦU]]-Lịch_biểu_Thanh_toán[[#This Row],[THANH TOÁN THEO LỊCH]]>0,Lịch_biểu_Thanh_toán[[#This Row],[SỐ DƯ ĐẦU]]-Lịch_biểu_Thanh_toán[[#This Row],[THANH TOÁN THEO LỊCH]],0)),"") -> 100.00 ₫ | G16: =IF(Lịch_biểu_Thanh_toán[[#This Row],[SỐ THANH TOÁN]]<>"",IF(Lịch_biểu_Thanh_toán[[#This Row],[THANH TOÁN THEO LỊCH]]+Lịch_biểu_Thanh_toán[[#This Row],[THANH TOÁN BỔ SUNG]]<=Lịch_biểu_Thanh_toán[[#This Row],[SỐ DƯ ĐẦU]],Lịch_biểu_Thanh_toán[[#This Row],[THANH TOÁN THEO LỊCH]]+Lịch_biểu_Thanh_toán[[#This Row],[THANH TOÁN BỔ SUNG]],Lịch_biểu_Thanh_toán[[#This Row],[SỐ DƯ ĐẦU]]),"") -> 525.75 ₫ | H16: =IF(Lịch_biểu_Thanh_toán[[#This Row],[SỐ THANH TOÁN]]<>"",Lịch_biểu_Thanh_toán[[#This Row],[TỔNG THANH TOÁN]]-Lịch_biểu_Thanh_toán[[#This Row],[LÃI]],"") -> 515.90 ₫ | I16: =IF(Lịch_biểu_Thanh_toán[[#This Row],[SỐ THANH TOÁN]]<>"",Lịch_biểu_Thanh_toán[[#This Row],[SỐ DƯ ĐẦU]]*(Lãi_Suất/Thanh_toán_Mỗi_Năm),"") -> 9.84 ₫ | J16: =IF(Lịch_biểu_Thanh_toán[[#This Row],[SỐ THANH TOÁN]]<>"",IF(Lịch_biểu_Thanh_toán[[#This Row],[THANH TOÁN THEO LỊCH]]+Lịch_biểu_Thanh_toán[[#This Row],[THANH TOÁN BỔ SUNG]]<=Lịch_biểu_Thanh_toán[[#This Row],[SỐ DƯ ĐẦU]],Lịch_biểu_Thanh_toán[[#This Row],[SỐ DƯ ĐẦU]]-Lịch_biểu_Thanh_toán[[#This Row],[GỐC]],0),"") -> 2,437.56 ₫ | K16: =IF(Lịch_biểu_Thanh_toán[[#This Row],[SỐ THANH TOÁN]]<>"",SUM(INDEX(Lịch_biểu_Thanh_toán[LÃI],1,1):Lịch_biểu_Thanh_toán[[#This Row],[LÃI]]),"") -> 66.31 ₫
B17: =IF(Khoản_vay_Tốt,IF(ROW()-ROW(Lịch_biểu_Thanh_toán[[#Headers],[SỐ THANH TOÁN]])>Số_lần_Thanh_toán_theo_Lịch,"",ROW()-ROW(Lịch_biểu_Thanh_toán[[#Headers],[SỐ THANH TOÁN]])),"") -> 6 | C17: =IF(Lịch_biểu_Thanh_toán[[#This Row],[SỐ THANH TOÁN]]<>"",EOMONTH(Ngày_Bắt_đầu_Khoản_vay,ROW(Lịch_biểu_Thanh_toán[[#This Row],[SỐ THANH TOÁN]])-ROW(Lịch_biểu_Thanh_toán[[#Headers],[SỐ THANH TOÁN]])-2)+DAY(Ngày_Bắt_đầu_Khoản_vay),"") -> 2020-09-16 | D17: =IF(Lịch_biểu_Thanh_toán[[#This Row],[SỐ THANH TOÁN]]<>"",IF(ROW()-ROW(Lịch_biểu_Thanh_toán[[#Headers],[SỐ DƯ ĐẦU]])=1,Số_tiền_Vay,INDEX(Lịch_biểu_Thanh_toán[SỐ DƯ CUỐI],ROW()-ROW(Lịch_biểu_Thanh_toán[[#Headers],[SỐ DƯ ĐẦU]])-1)),"") -> 2,437.56 ₫ | E17: =IF(Lịch_biểu_Thanh_toán[[#This Row],[SỐ THANH TOÁN]]<>"",Thanh_toán_theo_Lịch,"") -> 425.75 ₫ | F17: =IF(Lịch_biểu_Thanh_toán[[#This Row],[SỐ THANH TOÁN]]<>"",IF(Lịch_biểu_Thanh_toán[[#This Row],[THANH TOÁN THEO LỊCH]]+Thanh_Toán_Bổ_sung<Lịch_biểu_Thanh_toán[[#This Row],[SỐ DƯ ĐẦU]],Thanh_Toán_Bổ_sung,IF(Lịch_biểu_Thanh_toán[[#This Row],[SỐ DƯ ĐẦU]]-Lịch_biểu_Thanh_toán[[#This Row],[THANH TOÁN THEO LỊCH]]>0,Lịch_biểu_Thanh_toán[[#This Row],[SỐ DƯ ĐẦU]]-Lịch_biểu_Thanh_toán[[#This Row],[THANH TOÁN THEO LỊCH]],0)),"") -> 100.00 ₫ | G17: =IF(Lịch_biểu_Thanh_toán[[#This Row],[SỐ THANH TOÁN]]<>"",IF(Lịch_biểu_Thanh_toán[[#This Row],[THANH TOÁN THEO LỊCH]]+Lịch_biểu_Thanh_toán[[#This Row],[THANH TOÁN BỔ SUNG]]<=Lịch_biểu_Thanh_toán[[#This Row],[SỐ DƯ ĐẦU]],Lịch_biểu_Thanh_toán[[#This Row],[THANH TOÁN THEO LỊCH]]+Lịch_biểu_Thanh_toán[[#This Row],[THANH TOÁN BỔ SUNG]],Lịch_biểu_Thanh_toán[[#This Row],[SỐ DƯ ĐẦU]]),"") -> 525.75 ₫ | H17: =IF(Lịch_biểu_Thanh_toán[[#This Row],[SỐ THANH TOÁN]]<>"",Lịch_biểu_Thanh_toán[[#This Row],[TỔNG THANH TOÁN]]-Lịch_biểu_Thanh_toán[[#This Row],[LÃI]],"") -> 517.62 ₫ | I17: =IF(Lịch_biểu_Thanh_toán[[#This Row],[SỐ THANH TOÁN]]<>"",Lịch_biểu_Thanh_toán[[#This Row],[SỐ DƯ ĐẦU]]*(Lãi_Suất/Thanh_toán_Mỗi_Năm),"") -> 8.13 ₫ | J17: =IF(Lịch_biểu_Thanh_toán[[#This Row],[SỐ THANH TOÁN]]<>"",IF(Lịch_biểu_Thanh_toán[[#This Row],[THANH TOÁN THEO LỊCH]]+Lịch_biểu_Thanh_toán[[#This Row],[THANH TOÁN BỔ SUNG]]<=Lịch_biểu_Thanh_toán[[#This Row],[SỐ DƯ ĐẦU]],Lịch_biểu_Thanh_toán[[#This Row],[SỐ DƯ ĐẦU]]-Lịch_biểu_Thanh_toán[[#This Row],[GỐC]],0),"") -> 1,919.94 ₫ | K17: =IF(Lịch_biểu_Thanh_toán[[#This Row],[SỐ THANH TOÁN]]<>"",SUM(INDEX(Lịch_biểu_Thanh_toán[LÃI],1,1):Lịch_biểu_Thanh_toán[[#This Row],[LÃI]]),"") -> 74.43 ₫
B18: =IF(Khoản_vay_Tốt,IF(ROW()-ROW(Lịch_biểu_Thanh_toán[[#Headers],[SỐ THANH TOÁN]])>Số_lần_Thanh_toán_theo_Lịch,"",ROW()-ROW(Lịch_biểu_Thanh_toán[[#Headers],[SỐ THANH TOÁN]])),"") -> 7 | C18: =IF(Lịch_biểu_Thanh_toán[[#This Row],[SỐ THANH TOÁN]]<>"",EOMONTH(Ngày_Bắt_đầu_Khoản_vay,ROW(Lịch_biểu_Thanh_toán[[#This Row],[SỐ THANH TOÁN]])-ROW(Lịch_biểu_Thanh_toán[[#Headers],[SỐ THANH TOÁN]])-2)+DAY(Ngày_Bắt_đầu_Khoản_vay),"") -> 2020-10-16 | D18: =IF(Lịch_biểu_Thanh_toán[[#This Row],[SỐ THANH TOÁN]]<>"",IF(ROW()-ROW(Lịch_biểu_Thanh_toán[[#Headers],[SỐ DƯ ĐẦU]])=1,Số_tiền_Vay,INDEX(Lịch_biểu_Thanh_toán[SỐ DƯ CUỐI],ROW()-ROW(Lịch_biểu_Thanh_toán[[#Headers],[SỐ DƯ ĐẦU]])-1)),"") -> 1,919.94 ₫ | E18: =IF(Lịch_biểu_Thanh_toán[[#This Row],[SỐ THANH TOÁN]]<>"",Thanh_toán_theo_Lịch,"") -> 425.75 ₫ | F18: =IF(Lịch_biểu_Thanh_toán[[#This Row],[SỐ THANH TOÁN]]<>"",IF(Lịch_biểu_Thanh_toán[[#This Row],[THANH TOÁN THEO LỊCH]]+Thanh_Toán_Bổ_sung<Lịch_biểu_Thanh_toán[[#This Row],[SỐ DƯ ĐẦU]],Thanh_Toán_Bổ_sung,IF(Lịch_biểu_Thanh_toán[[#This Row],[SỐ DƯ ĐẦU]]-Lịch_biểu_Thanh_toán[[#This Row],[THANH TOÁN THEO LỊCH]]>0,Lịch_biểu_Thanh_toán[[#This Row],[SỐ DƯ ĐẦU]]-Lịch_biểu_Thanh_toán[[#This Row],[THANH TOÁN THEO LỊCH]],0)),"") -> 100.00 ₫ | G18: =IF(Lịch_biểu_Thanh_toán[[#This Row],[SỐ THANH TOÁN]]<>"",IF(Lịch_biểu_Thanh_toán[[#This Row],[THANH TOÁN THEO LỊCH]]+Lịch_biểu_Thanh_toán[[#This Row],[THANH TOÁN BỔ SUNG]]<=Lịch_biểu_Thanh_toán[[#This Row],[SỐ DƯ ĐẦU]],Lịch_biểu_Thanh_toán[[#This Row],[THANH TOÁN THEO LỊCH]]+Lịch_biểu_Thanh_toán[[#This Row],[THANH TOÁN BỔ SUNG]],Lịch_biểu_Thanh_toán[[#This Row],[SỐ DƯ ĐẦU]]),"") -> 525.75 ₫ | H18: =IF(Lịch_biểu_Thanh_toán[[#This Row],[SỐ THANH TOÁN]]<>"",Lịch_biểu_Thanh_toán[[#This Row],[TỔNG THANH TOÁN]]-Lịch_biểu_Thanh_toán[[#This Row],[LÃI]],"") -> 519.35 ₫ | I18: =IF(Lịch_biểu_Thanh_toán[[#This Row],[SỐ THANH TOÁN]]<>"",Lịch_biểu_Thanh_toán[[#This Row],[SỐ DƯ ĐẦU]]*(Lãi_Suất/Thanh_toán_Mỗi_Năm),"") -> 6.40 ₫ | J18: =IF(Lịch_biểu_Thanh_toán[[#This Row],[SỐ THANH TOÁN]]<>"",IF(Lịch_biểu_Thanh_toán[[#This Row],[THANH TOÁN THEO LỊCH]]+Lịch_biểu_Thanh_toán[[#This Row],[THANH TOÁN BỔ SUNG]]<=Lịch_biểu_Thanh_toán[[#This Row],[SỐ DƯ ĐẦU]],Lịch_biểu_Thanh_toán[[#This Row],[SỐ DƯ ĐẦU]]-Lịch_biểu_Thanh_toán[[#This Row],[GỐC]],0),"") -> 1,400.59 ₫ | K18: =IF(Lịch_biểu_Thanh_toán[[#This Row],[SỐ THANH TOÁN]]<>"",SUM(INDEX(Lịch_biểu_Thanh_toán[LÃI],1,1):Lịch_biểu_Thanh_toán[[#This Row],[LÃI]]),"") -> 80.83 ₫
B19: =IF(Khoản_vay_Tốt,IF(ROW()-ROW(Lịch_biểu_Thanh_toán[[#Headers],[SỐ THANH TOÁN]])>Số_lần_Thanh_toán_theo_Lịch,"",ROW()-ROW(Lịch_biểu_Thanh_toán[[#Headers],[SỐ THANH TOÁN]])),"") -> 8 | C19: =IF(Lịch_biểu_Thanh_toán[[#This Row],[SỐ THANH TOÁN]]<>"",EOMONTH(Ngày_Bắt_đầu_Khoản_vay,ROW(Lịch_biểu_Thanh_toán[[#This Row],[SỐ THANH TOÁN]])-ROW(Lịch_biểu_Thanh_toán[[#Headers],[SỐ THANH TOÁN]])-2)+DAY(Ngày_Bắt_đầu_Khoản_vay),"") -> 2020-11-16 | D19: =IF(Lịch_biểu_Thanh_toán[[#This Row],[SỐ THANH TOÁN]]<>"",IF(ROW()-ROW(Lịch_biểu_Thanh_toán[[#Headers],[SỐ DƯ ĐẦU]])=1,Số_tiền_Vay,INDEX(Lịch_biểu_Thanh_toán[SỐ DƯ CUỐI],ROW()-ROW(Lịch_biểu_Thanh_toán[[#Headers],[SỐ DƯ ĐẦU]])-1)),"") -> 1,400.59 ₫ | E19: =IF(Lịch_biểu_Thanh_toán[[#This Row],[SỐ THANH TOÁN]]<>"",Thanh_toán_theo_Lịch,"") -> 425.75 ₫ | F19: =IF(Lịch_biểu_Thanh_toán[[#This Row],[SỐ THANH TOÁN]]<>"",IF(Lịch_biểu_Thanh_toán[[#This Row],[THANH TOÁN THEO LỊCH]]+Thanh_Toán_Bổ_sung<Lịch_biểu_Thanh_toán[[#This Row],[SỐ DƯ ĐẦU]],Thanh_Toán_Bổ_sung,IF(Lịch_biểu_Thanh_toán[[#This Row],[SỐ DƯ ĐẦU]]-Lịch_biểu_Thanh_toán[[#This Row],[THANH TOÁN THEO LỊCH]]>0,Lịch_biểu_Thanh_toán[[#This Row],[SỐ DƯ ĐẦU]]-Lịch_biểu_Thanh_toán[[#This Row],[THANH TOÁN THEO LỊCH]],0)),"") -> 100.00 ₫ | G19: =IF(Lịch_biểu_Thanh_toán[[#This Row],[SỐ THANH TOÁN]]<>"",IF(Lịch_biểu_Thanh_toán[[#This Row],[THANH TOÁN THEO LỊCH]]+Lịch_biểu_Thanh_toán[[#This Row],[THANH TOÁN BỔ SUNG]]<=Lịch_biểu_Thanh_toán[[#This Row],[SỐ DƯ ĐẦU]],Lịch_biểu_Thanh_toán[[#This Row],[THANH TOÁN THEO LỊCH]]+Lịch_biểu_Thanh_toán[[#This Row],[THANH TOÁN BỔ SUNG]],Lịch_biểu_Thanh_toán[[#This Row],[SỐ DƯ ĐẦU]]),"") -> 525.75 ₫ | H19: =IF(Lịch_biểu_Thanh_toán[[#This Row],[SỐ THANH TOÁN]]<>"",Lịch_biểu_Thanh_toán[[#This Row],[TỔNG THANH TOÁN]]-Lịch_biểu_Thanh_toán[[#This Row],[LÃI]],"") -> 521.08 ₫ | I19: =IF(Lịch_biểu_Thanh_toán[[#This Row],[SỐ THANH TOÁN]]<>"",Lịch_biểu_Thanh_toán[[#This Row],[SỐ DƯ ĐẦU]]*(Lãi_Suất/Thanh_toán_Mỗi_Năm),"") -> 4.67 ₫ | J19: =IF(Lịch_biểu_Thanh_toán[[#This Row],[SỐ THANH TOÁN]]<>"",IF(Lịch_biểu_Thanh_toán[[#This Row],[THANH TOÁN THEO LỊCH]]+Lịch_biểu_Thanh_toán[[#This Row],[THANH TOÁN BỔ SUNG]]<=Lịch_biểu_Thanh_toán[[#This Row],[SỐ DƯ ĐẦU]],Lịch_biểu_Thanh_toán[[#This Row],[SỐ DƯ ĐẦU]]-Lịch_biểu_Thanh_toán[[#This Row],[GỐC]],0),"") -> 879.50 ₫ | K19: =IF(Lịch_biểu_Thanh_toán[[#This Row],[SỐ THANH TOÁN]]<>"",SUM(INDEX(Lịch_biểu_Thanh_toán[LÃI],1,1):Lịch_biểu_Thanh_toán[[#This Row],[LÃI]]),"") -> 85.50 ₫
B20: =IF(Khoản_vay_Tốt,IF(ROW()-ROW(Lịch_biểu_Thanh_toán[[#Headers],[SỐ THANH TOÁN]])>Số_lần_Thanh_toán_theo_Lịch,"",ROW()-ROW(Lịch_biểu_Thanh_toán[[#Headers],[SỐ THANH TOÁN]])),"") -> 9 | C20: =IF(Lịch_biểu_Thanh_toán[[#This Row],[SỐ THANH TOÁN]]<>"",EOMONTH(Ngày_Bắt_đầu_Khoản_vay,ROW(Lịch_biểu_Thanh_toán[[#This Row],[SỐ THANH TOÁN]])-ROW(Lịch_biểu_Thanh_toán[[#Headers],[SỐ THANH TOÁN]])-2)+DAY(Ngày_Bắt_đầu_Khoản_vay),"") -> 2020-12-16 | D20: =IF(Lịch_biểu_Thanh_toán[[#This Row],[SỐ THANH TOÁN]]<>"",IF(ROW()-ROW(Lịch_biểu_Thanh_toán[[#Headers],[SỐ DƯ ĐẦU]])=1,Số_tiền_Vay,INDEX(Lịch_biểu_Thanh_toán[SỐ DƯ CUỐI],ROW()-ROW(Lịch_biểu_Thanh_toán[[#Headers],[SỐ DƯ ĐẦU]])-1)),"") -> 879.50 ₫ | E20: =IF(Lịch_biểu_Thanh_toán[[#This Row],[SỐ THANH TOÁN]]<>"",Thanh_toán_theo_Lịch,"") -> 425.75 ₫ | F20: =IF(Lịch_biểu_Thanh_toán[[#This Row],[SỐ THANH TOÁN]]<>"",IF(Lịch_biểu_Thanh_toán[[#This Row],[THANH TOÁN THEO LỊCH]]+Thanh_Toán_Bổ_sung<Lịch_biểu_Thanh_toán[[#This Row],[SỐ DƯ ĐẦU]],Thanh_Toán_Bổ_sung,IF(Lịch_biểu_Thanh_toán[[#This Row],[SỐ DƯ ĐẦU]]-Lịch_biểu_Thanh_toán[[#This Row],[THANH TOÁN THEO LỊCH]]>0,Lịch_biểu_Thanh_toán[[#This Row],[SỐ DƯ ĐẦU]]-Lịch_biểu_Thanh_toán[[#This Row],[THANH TOÁN THEO LỊCH]],0)),"") -> 100.00 ₫ | G20: =IF(Lịch_biểu_Thanh_toán[[#This Row],[SỐ THANH TOÁN]]<>"",IF(Lịch_biểu_Thanh_toán[[#This Row],[THANH TOÁN THEO LỊCH]]+Lịch_biểu_Thanh_toán[[#This Row],[THANH TOÁN BỔ SUNG]]<=Lịch_biểu_Thanh_toán[[#This Row],[SỐ DƯ ĐẦU]],Lịch_biểu_Thanh_toán[[#This Row],[THANH TOÁN THEO LỊCH]]+Lịch_biểu_Thanh_toán[[#This Row],[THANH TOÁN BỔ SUNG]],Lịch_biểu_Thanh_toán[[#This Row],[SỐ DƯ ĐẦU]]),"") -> 525.75 ₫ | H20: =IF(Lịch_biểu_Thanh_toán[[#This Row],[SỐ THANH TOÁN]]<>"",Lịch_biểu_Thanh_toán[[#This Row],[TỔNG THANH TOÁN]]-Lịch_biểu_Thanh_toán[[#This Row],[LÃI]],"") -> 522.82 ₫ | I20: =IF(Lịch_biểu_Thanh_toán[[#This Row],[SỐ THANH TOÁN]]<>"",Lịch_biểu_Thanh_toán[[#This Row],[SỐ DƯ ĐẦU]]*(Lãi_Suất/Thanh_toán_Mỗi_Năm),"") -> 2.93 ₫ | J20: =IF(Lịch_biểu_Thanh_toán[[#This Row],[SỐ THANH TOÁN]]<>"",IF(Lịch_biểu_Thanh_toán[[#This Row],[THANH TOÁN THEO LỊCH]]+Lịch_biểu_Thanh_toán[[#This Row],[THANH TOÁN BỔ SUNG]]<=Lịch_biểu_Thanh_toán[[#This Row],[SỐ DƯ ĐẦU]],Lịch_biểu_Thanh_toán[[#This Row],[SỐ DƯ ĐẦU]]-Lịch_biểu_Thanh_toán[[#This Row],[GỐC]],0),"") -> 356.69 ₫ | K20: =IF(Lịch_biểu_Thanh_toán[[#This Row],[SỐ THANH TOÁN]]<>"",SUM(INDEX(Lịch_biểu_Thanh_toán[LÃI],1,1):Lịch_biểu_Thanh_toán[[#This Row],[LÃI]]),"") -> 88.43 ₫
B21: =IF(Khoản_vay_Tốt,IF(ROW()-ROW(Lịch_biểu_Thanh_toán[[#Headers],[SỐ THANH TOÁN]])>Số_lần_Thanh_toán_theo_Lịch,"",ROW()-ROW(Lịch_biểu_Thanh_toán[[#Headers],[SỐ THANH TOÁN]])),"") -> 10 | C21: =IF(Lịch_biểu_Thanh_toán[[#This Row],[SỐ THANH TOÁN]]<>"",EOMONTH(Ngày_Bắt_đầu_Khoản_vay,ROW(Lịch_biểu_Thanh_toán[[#This Row],[SỐ THANH TOÁN]])-ROW(Lịch_biểu_Thanh_toán[[#Headers],[SỐ THANH TOÁN]])-2)+DAY(Ngày_Bắt_đầu_Khoản_vay),"") -> 2021-01-16 | D21: =IF(Lịch_biểu_Thanh_toán[[#This Row],[SỐ THANH TOÁN]]<>"",IF(ROW()-ROW(Lịch_biểu_Thanh_toán[[#Headers],[SỐ DƯ ĐẦU]])=1,Số_tiền_Vay,INDEX(Lịch_biểu_Thanh_toán[SỐ DƯ CUỐI],ROW()-ROW(Lịch_biểu_Thanh_toán[[#Headers],[SỐ DƯ ĐẦU]])-1)),"") -> 356.69 ₫ | E21: =IF(Lịch_biểu_Thanh_toán[[#This Row],[SỐ THANH TOÁN]]<>"",Thanh_toán_theo_Lịch,"") -> 425.75 ₫ | F21: =IF(Lịch_biểu_Thanh_toán[[#This Row],[SỐ THANH TOÁN]]<>"",IF(Lịch_biểu_Thanh_toán[[#This Row],[THANH TOÁN THEO LỊCH]]+Thanh_Toán_Bổ_sung<Lịch_biểu_Thanh_toán[[#This Row],[SỐ DƯ ĐẦU]],Thanh_Toán_Bổ_sung,IF(Lịch_biểu_Thanh_toán[[#This Row],[SỐ DƯ ĐẦU]]-Lịch_biểu_Thanh_toán[[#This Row],[THANH TOÁN THEO LỊCH]]>0,Lịch_biểu_Thanh_toán[[#This Row],[SỐ DƯ ĐẦU]]-Lịch_biểu_Thanh_toán[[#This Row],[THANH TOÁN THEO LỊCH]],0)),"") -> 0.00 ₫ | G21: =IF(Lịch_biểu_Thanh_toán[[#This Row],[SỐ THANH TOÁN]]<>"",IF(Lịch_biểu_Thanh_toán[[#This Row],[THANH TOÁN THEO LỊCH]]+Lịch_biểu_Thanh_toán[[#This Row],[THANH TOÁN BỔ SUNG]]<=Lịch_biểu_Thanh_toán[[#This Row],[SỐ DƯ ĐẦU]],Lịch_biểu_Thanh_toán[[#This Row],[THANH TOÁN THEO LỊCH]]+Lịch_biểu_Thanh_toán[[#This Row],[THANH TOÁN BỔ SUNG]],Lịch_biểu_Thanh_toán[[#This Row],[SỐ DƯ ĐẦU]]),"") -> 356.69 ₫ | H21: =IF(Lịch_biểu_Thanh_toán[[#This Row],[SỐ THANH TOÁN]]<>"",Lịch_biểu_Thanh_toán[[#This Row],[TỔNG THANH TOÁN]]-Lịch_biểu_Thanh_toán[[#This Row],[LÃI]],"") -> 355.50 ₫ | I21: =IF(Lịch_biểu_Thanh_toán[[#This Row],[SỐ THANH TOÁN]]<>"",Lịch_biểu_Thanh_toán[[#This Row],[SỐ DƯ ĐẦU]]*(Lãi_Suất/Thanh_toán_Mỗi_Năm),"") -> 1.19 ₫ | J21: =IF(Lịch_biểu_Thanh_toán[[#This Row],[SỐ THANH TOÁN]]<>"",IF(Lịch_biểu_Thanh_toán[[#This Row],[THANH TOÁN THEO LỊCH]]+Lịch_biểu_Thanh_toán[[#This Row],[THANH TOÁN BỔ SUNG]]<=Lịch_biểu_Thanh_toán[[#This Row],[SỐ DƯ ĐẦU]],Lịch_biểu_Thanh_toán[[#This Row],[SỐ DƯ ĐẦU]]-Lịch_biểu_Thanh_toán[[#This Row],[GỐC]],0),"") -> 0.00 ₫ | K21: =IF(Lịch_biểu_Thanh_toán[[#This Row],[SỐ THANH TOÁN]]<>"",SUM(INDEX(Lịch_biểu_Thanh_toán[LÃI],1,1):Lịch_biểu_Thanh_toán[[#This Row],[LÃI]]),"") -> 89.62 ₫
B22: =IF(Khoản_vay_Tốt,IF(ROW()-ROW(Lịch_biểu_Thanh_toán[[#Headers],[SỐ THANH TOÁN]])>Số_lần_Thanh_toán_theo_Lịch,"",ROW()-ROW(Lịch_biểu_Thanh_toán[[#Headers],[SỐ THANH TOÁN]])),"") -> 11 | C22: =IF(Lịch_biểu_Thanh_toán[[#This Row],[SỐ THANH TOÁN]]<>"",EOMONTH(Ngày_Bắt_đầu_Khoản_vay,ROW(Lịch_biểu_Thanh_toán[[#This Row],[SỐ THANH TOÁN]])-ROW(Lịch_biểu_Thanh_toán[[#Headers],[SỐ THANH TOÁN]])-2)+DAY(Ngày_Bắt_đầu_Khoản_vay),"") -> 2021-02-16 | D22: =IF(Lịch_biểu_Thanh_toán[[#This Row],[SỐ THANH TOÁN]]<>"",IF(ROW()-ROW(Lịch_biểu_Thanh_toán[[#Headers],[SỐ DƯ ĐẦU]])=1,Số_tiền_Vay,INDEX(Lịch_biểu_Thanh_toán[SỐ DƯ CUỐI],ROW()-ROW(Lịch_biểu_Thanh_toán[[#Headers],[SỐ DƯ ĐẦU]])-1)),"") -> 0.00 ₫ | E22: =IF(Lịch_biểu_Thanh_toán[[#This Row],[SỐ THANH TOÁN]]<>"",Thanh_toán_theo_Lịch,"") -> 425.75 ₫ | F22: =IF(Lịch_biểu_Thanh_toán[[#This Row],[SỐ THANH TOÁN]]<>"",IF(Lịch_biểu_Thanh_toán[[#This Row],[THANH TOÁN THEO LỊCH]]+Thanh_Toán_Bổ_sung<Lịch_biểu_Thanh_toán[[#This Row],[SỐ DƯ ĐẦU]],Thanh_Toán_Bổ_sung,IF(Lịch_biểu_Thanh_toán[[#This Row],[SỐ DƯ ĐẦU]]-Lịch_biểu_Thanh_toán[[#This Row],[THANH TOÁN THEO LỊCH]]>0,Lịch_biểu_Thanh_toán[[#This Row],[SỐ DƯ ĐẦU]]-Lịch_biểu_Thanh_toán[[#This Row],[THANH TOÁN THEO LỊCH]],0)),"") -> 0.00 ₫ | G22: =IF(Lịch_biểu_Thanh_toán[[#This Row],[SỐ THANH TOÁN]]<>"",IF(Lịch_biểu_Thanh_toán[[#This Row],[THANH TOÁN THEO LỊCH]]+Lịch_biểu_Thanh_toán[[#This Row],[THANH TOÁN BỔ SUNG]]<=Lịch_biểu_Thanh_toán[[#This Row],[SỐ DƯ ĐẦU]],Lịch_biểu_Thanh_toán[[#This Row],[THANH TOÁN THEO LỊCH]]+Lịch_biểu_Thanh_toán[[#This Row],[THANH TOÁN BỔ SUNG]],Lịch_biểu_Thanh_toán[[#This Row],[SỐ DƯ ĐẦU]]),"") -> 0.00 ₫ | H22: =IF(Lịch_biểu_Thanh_toán[[#This Row],[SỐ THANH TOÁN]]<>"",Lịch_biểu_Thanh_toán[[#This Row],[TỔNG THANH TOÁN]]-Lịch_biểu_Thanh_toán[[#This Row],[LÃI]],"") -> 0.00 ₫ | I22: =IF(Lịch_biểu_Thanh_toán[[#This Row],[SỐ THANH TOÁN]]<>"",Lịch_biểu_Thanh_toán[[#This Row],[SỐ DƯ ĐẦU]]*(Lãi_Suất/Thanh_toán_Mỗi_Năm),"") -> 0.00 ₫ | J22: =IF(Lịch_biểu_Thanh_toán[[#This Row],[SỐ THANH TOÁN]]<>"",IF(Lịch_biểu_Thanh_toán[[#This Row],[THANH TOÁN THEO LỊCH]]+Lịch_biểu_Thanh_toán[[#This Row],[THANH TOÁN BỔ SUNG]]<=Lịch_biểu_Thanh_toán[[#This Row],[SỐ DƯ ĐẦU]],Lịch_biểu_Thanh_toán[[#This Row],[SỐ DƯ ĐẦU]]-Lịch_biểu_Thanh_toán[[#This Row],[GỐC]],0),"") -> 0.00 ₫ | K22: =IF(Lịch_biểu_Thanh_toán[[#This Row],[SỐ THANH TOÁN]]<>"",SUM(INDEX(Lịch_biểu_Thanh_toán[LÃI],1,1):Lịch_biểu_Thanh_toán[[#This Row],[LÃI]]),"") -> 89.62 ₫
B23: =IF(Khoản_vay_Tốt,IF(ROW()-ROW(Lịch_biểu_Thanh_toán[[#Headers],[SỐ THANH TOÁN]])>Số_lần_Thanh_toán_theo_Lịch,"",ROW()-ROW(Lịch_biểu_Thanh_toán[[#Headers],[SỐ THANH TOÁN]])),"") -> 12 | C23: =IF(Lịch_biểu_Thanh_toán[[#This Row],[SỐ THANH TOÁN]]<>"",EOMONTH(Ngày_Bắt_đầu_Khoản_vay,ROW(Lịch_biểu_Thanh_toán[[#This Row],[SỐ THANH TOÁN]])-ROW(Lịch_biểu_Thanh_toán[[#Headers],[SỐ THANH TOÁN]])-2)+DAY(Ngày_Bắt_đầu_Khoản_vay),"") -> 2021-03-16 | D23: =IF(Lịch_biểu_Thanh_toán[[#This Row],[SỐ THANH TOÁN]]<>"",IF(ROW()-ROW(Lịch_biểu_Thanh_toán[[#Headers],[SỐ DƯ ĐẦU]])=1,Số_tiền_Vay,INDEX(Lịch_biểu_Thanh_toán[SỐ DƯ CUỐI],ROW()-ROW(Lịch_biểu_Thanh_toán[[#Headers],[SỐ DƯ ĐẦU]])-1)),"") -> 0.00 ₫ | E23: =IF(Lịch_biểu_Thanh_toán[[#This Row],[SỐ THANH TOÁN]]<>"",Thanh_toán_theo_Lịch,"") -> 425.75 ₫ | F23: =IF(Lịch_biểu_Thanh_toán[[#This Row],[SỐ THANH TOÁN]]<>"",IF(Lịch_biểu_Thanh_toán[[#This Row],[THANH TOÁN THEO LỊCH]]+Thanh_Toán_Bổ_sung<Lịch_biểu_Thanh_toán[[#This Row],[SỐ DƯ ĐẦU]],Thanh_Toán_Bổ_sung,IF(Lịch_biểu_Thanh_toán[[#This Row],[SỐ DƯ ĐẦU]]-Lịch_biểu_Thanh_toán[[#This Row],[THANH TOÁN THEO LỊCH]]>0,Lịch_biểu_Thanh_toán[[#This Row],[SỐ DƯ ĐẦU]]-Lịch_biểu_Thanh_toán[[#This Row],[THANH TOÁN THEO LỊCH]],0)),"") -> 0.00 ₫ | G23: =IF(Lịch_biểu_Thanh_toán[[#This Row],[SỐ THANH TOÁN]]<>"",IF(Lịch_biểu_Thanh_toán[[#This Row],[THANH TOÁN THEO LỊCH]]+Lịch_biểu_Thanh_toán[[#This Row],[THANH TOÁN BỔ SUNG]]<=Lịch_biểu_Thanh_toán[[#This Row],[SỐ DƯ ĐẦU]],Lịch_biểu_Thanh_toán[[#This Row],[THANH TOÁN THEO LỊCH]]+Lịch_biểu_Thanh_toán[[#This Row],[THANH TOÁN BỔ SUNG]],Lịch_biểu_Thanh_toán[[#This Row],[SỐ DƯ ĐẦU]]),"") -> 0.00 ₫ | H23: =IF(Lịch_biểu_Thanh_toán[[#This Row],[SỐ THANH TOÁN]]<>"",Lịch_biểu_Thanh_toán[[#This Row],[TỔNG THANH TOÁN]]-Lịch_biểu_Thanh_toán[[#This Row],[LÃI]],"") -> 0.00 ₫ | I23: =IF(Lịch_biểu_Thanh_toán[[#This Row],[SỐ THANH TOÁN]]<>"",Lịch_biểu_Thanh_toán[[#This Row],[SỐ DƯ ĐẦU]]*(Lãi_Suất/Thanh_toán_Mỗi_Năm),"") -> 0.00 ₫ | J23: =IF(Lịch_biểu_Thanh_toán[[#This Row],[SỐ THANH TOÁN]]<>"",IF(Lịch_biểu_Thanh_toán[[#This Row],[THANH TOÁN THEO LỊCH]]+Lịch_biểu_Thanh_toán[[#This Row],[THANH TOÁN BỔ SUNG]]<=Lịch_biểu_Thanh_toán[[#This Row],[SỐ DƯ ĐẦU]],Lịch_biểu_Thanh_toán[[#This Row],[SỐ DƯ ĐẦU]]-Lịch_biểu_Thanh_toán[[#This Row],[GỐC]],0),"") -> 0.00 ₫ | K23: =IF(Lịch_biểu_Thanh_toán[[#This Row],[SỐ THANH TOÁN]]<>"",SUM(INDEX(Lịch_biểu_Thanh_toán[LÃI],1,1):Lịch_biểu_Thanh_toán[[#This Row],[LÃI]]),"") -> 89.62 ₫
B24: =IF(Khoản_vay_Tốt,IF(ROW()-ROW(Lịch_biểu_Thanh_toán[[#Headers],[SỐ THANH TOÁN]])>Số_lần_Thanh_toán_theo_Lịch,"",ROW()-ROW(Lịch_biểu_Thanh_toán[[#Headers],[SỐ THANH TOÁN]])),"") ->  | C24: =IF(Lịch_biểu_Thanh_toán[[#This Row],[SỐ THANH TOÁN]]<>"",EOMONTH(Ngày_Bắt_đầu_Khoản_vay,ROW(Lịch_biểu_Thanh_toán[[#This Row],[SỐ THANH TOÁN]])-ROW(Lịch_biểu_Thanh_toán[[#Headers],[SỐ THANH TOÁN]])-2)+DAY(Ngày_Bắt_đầu_Khoản_vay),"") ->  | D24: =IF(Lịch_biểu_Thanh_toán[[#This Row],[SỐ THANH TOÁN]]<>"",IF(ROW()-ROW(Lịch_biểu_Thanh_toán[[#Headers],[SỐ DƯ ĐẦU]])=1,Số_tiền_Vay,INDEX(Lịch_biểu_Thanh_toán[SỐ DƯ CUỐI],ROW()-ROW(Lịch_biểu_Thanh_toán[[#Headers],[SỐ DƯ ĐẦU]])-1)),"") ->  | E24: =IF(Lịch_biểu_Thanh_toán[[#This Row],[SỐ THANH TOÁN]]<>"",Thanh_toán_theo_Lịch,"") ->  | F24: =IF(Lịch_biểu_Thanh_toán[[#This Row],[SỐ THANH TOÁN]]<>"",IF(Lịch_biểu_Thanh_toán[[#This Row],[THANH TOÁN THEO LỊCH]]+Thanh_Toán_Bổ_sung<Lịch_biểu_Thanh_toán[[#This Row],[SỐ DƯ ĐẦU]],Thanh_Toán_Bổ_sung,IF(Lịch_biểu_Thanh_toán[[#This Row],[SỐ DƯ ĐẦU]]-Lịch_biểu_Thanh_toán[[#This Row],[THANH TOÁN THEO LỊCH]]>0,Lịch_biểu_Thanh_toán[[#This Row],[SỐ DƯ ĐẦU]]-Lịch_biểu_Thanh_toán[[#This Row],[THANH TOÁN THEO LỊCH]],0)),"") ->  | G24: =IF(Lịch_biểu_Thanh_toán[[#This Row],[SỐ THANH TOÁN]]<>"",IF(Lịch_biểu_Thanh_toán[[#This Row],[THANH TOÁN THEO LỊCH]]+Lịch_biểu_Thanh_toán[[#This Row],[THANH TOÁN BỔ SUNG]]<=Lịch_biểu_Thanh_toán[[#This Row],[SỐ DƯ ĐẦU]],Lịch_biểu_Thanh_toán[[#This Row],[THANH TOÁN THEO LỊCH]]+Lịch_biểu_Thanh_toán[[#This Row],[THANH TOÁN BỔ SUNG]],Lịch_biểu_Thanh_toán[[#This Row],[SỐ DƯ ĐẦU]]),"") ->  | H24: =IF(Lịch_biểu_Thanh_toán[[#This Row],[SỐ THANH TOÁN]]<>"",Lịch_biểu_Thanh_toán[[#This Row],[TỔNG THANH TOÁN]]-Lịch_biểu_Thanh_toán[[#This Row],[LÃI]],"") ->  | I24: =IF(Lịch_biểu_Thanh_toán[[#This Row],[SỐ THANH TOÁN]]<>"",Lịch_biểu_Thanh_toán[[#This Row],[SỐ DƯ ĐẦU]]*(Lãi_Suất/Thanh_toán_Mỗi_Năm),"") ->  | J24: =IF(Lịch_biểu_Thanh_toán[[#This Row],[SỐ THANH TOÁN]]<>"",IF(Lịch_biểu_Thanh_toán[[#This Row],[THANH TOÁN THEO LỊCH]]+Lịch_biểu_Thanh_toán[[#This Row],[THANH TOÁN BỔ SUNG]]<=Lịch_biểu_Thanh_toán[[#This Row],[SỐ DƯ ĐẦU]],Lịch_biểu_Thanh_toán[[#This Row],[SỐ DƯ ĐẦU]]-Lịch_biểu_Thanh_toán[[#This Row],[GỐC]],0),"") ->  | K24: =IF(Lịch_biểu_Thanh_toán[[#This Row],[SỐ THANH TOÁN]]<>"",SUM(INDEX(Lịch_biểu_Thanh_toán[LÃI],1,1):Lịch_biểu_Thanh_toán[[#This Row],[LÃI]]),"") -> 
B25: =IF(Khoản_vay_Tốt,IF(ROW()-ROW(Lịch_biểu_Thanh_toán[[#Headers],[SỐ THANH TOÁN]])>Số_lần_Thanh_toán_theo_Lịch,"",ROW()-ROW(Lịch_biểu_Thanh_toán[[#Headers],[SỐ THANH TOÁN]])),"") ->  | C25: =IF(Lịch_biểu_Thanh_toán[[#This Row],[SỐ THANH TOÁN]]<>"",EOMONTH(Ngày_Bắt_đầu_Khoản_vay,ROW(Lịch_biểu_Thanh_toán[[#This Row],[SỐ THANH TOÁN]])-ROW(Lịch_biểu_Thanh_toán[[#Headers],[SỐ THANH TOÁN]])-2)+DAY(Ngày_Bắt_đầu_Khoản_vay),"") ->  | D25: =IF(Lịch_biểu_Thanh_toán[[#This Row],[SỐ THANH TOÁN]]<>"",IF(ROW()-ROW(Lịch_biểu_Thanh_toán[[#Headers],[SỐ DƯ ĐẦU]])=1,Số_tiền_Vay,INDEX(Lịch_biểu_Thanh_toán[SỐ DƯ CUỐI],ROW()-ROW(Lịch_biểu_Thanh_toán[[#Headers],[SỐ DƯ ĐẦU]])-1)),"") ->  | E25: =IF(Lịch_biểu_Thanh_toán[[#This Row],[SỐ THANH TOÁN]]<>"",Thanh_toán_theo_Lịch,"") ->  | F25: =IF(Lịch_biểu_Thanh_toán[[#This Row],[SỐ THANH TOÁN]]<>"",IF(Lịch_biểu_Thanh_toán[[#This Row],[THANH TOÁN THEO LỊCH]]+Thanh_Toán_Bổ_sung<Lịch_biểu_Thanh_toán[[#This Row],[SỐ DƯ ĐẦU]],Thanh_Toán_Bổ_sung,IF(Lịch_biểu_Thanh_toán[[#This Row],[SỐ DƯ ĐẦU]]-Lịch_biểu_Thanh_toán[[#This Row],[THANH TOÁN THEO LỊCH]]>0,Lịch_biểu_Thanh_toán[[#This Row],[SỐ DƯ ĐẦU]]-Lịch_biểu_Thanh_toán[[#This Row],[THANH TOÁN THEO LỊCH]],0)),"") ->  | G25: =IF(Lịch_biểu_Thanh_toán[[#This Row],[SỐ THANH TOÁN]]<>"",IF(Lịch_biểu_Thanh_toán[[#This Row],[THANH TOÁN THEO LỊCH]]+Lịch_biểu_Thanh_toán[[#This Row],[THANH TOÁN BỔ SUNG]]<=Lịch_biểu_Thanh_toán[[#This Row],[SỐ DƯ ĐẦU]],Lịch_biểu_Thanh_toán[[#This Row],[THANH TOÁN THEO LỊCH]]+Lịch_biểu_Thanh_toán[[#This Row],[THANH TOÁN BỔ SUNG]],Lịch_biểu_Thanh_toán[[#This Row],[SỐ DƯ ĐẦU]]),"") ->  | H25: =IF(Lịch_biểu_Thanh_toán[[#This Row],[SỐ THANH TOÁN]]<>"",Lịch_biểu_Thanh_toán[[#This Row],[TỔNG THANH TOÁN]]-Lịch_biểu_Thanh_toán[[#This Row],[LÃI]],"") ->  | I25: =IF(Lịch_biểu_Thanh_toán[[#This Row],[SỐ THANH TOÁN]]<>"",Lịch_biểu_Thanh_toán[[#This Row],[SỐ DƯ ĐẦU]]*(Lãi_Suất/Thanh_toán_Mỗi_Năm),"") ->  | J25: =IF(Lịch_biểu_Thanh_toán[[#This Row],[SỐ THANH TOÁN]]<>"",IF(Lịch_biểu_Thanh_toán[[#This Row],[THANH TOÁN THEO LỊCH]]+Lịch_biểu_Thanh_toán[[#This Row],[THANH TOÁN BỔ SUNG]]<=Lịch_biểu_Thanh_toán[[#This Row],[SỐ DƯ ĐẦU]],Lịch_biểu_Thanh_toán[[#This Row],[SỐ DƯ ĐẦU]]-Lịch_biểu_Thanh_toán[[#This Row],[GỐC]],0),"") ->  | K25: =IF(Lịch_biểu_Thanh_toán[[#This Row],[SỐ THANH TOÁN]]<>"",SUM(INDEX(Lịch_biểu_Thanh_toán[LÃI],1,1):Lịch_biểu_Thanh_toán[[#This Row],[LÃI]]),"") -> 
B26: =IF(Khoản_vay_Tốt,IF(ROW()-ROW(Lịch_biểu_Thanh_toán[[#Headers],[SỐ THANH TOÁN]])>Số_lần_Thanh_toán_theo_Lịch,"",ROW()-ROW(Lịch_biểu_Thanh_toán[[#Headers],[SỐ THANH TOÁN]])),"") ->  | C26: =IF(Lịch_biểu_Thanh_toán[[#This Row],[SỐ THANH TOÁN]]<>"",EOMONTH(Ngày_Bắt_đầu_Khoản_vay,ROW(Lịch_biểu_Thanh_toán[[#This Row],[SỐ THANH TOÁN]])-ROW(Lịch_biểu_Thanh_toán[[#Headers],[SỐ THANH TOÁN]])-2)+DAY(Ngày_Bắt_đầu_Khoản_vay),"") ->  | D26: =IF(Lịch_biểu_Thanh_toán[[#This Row],[SỐ THANH TOÁN]]<>"",IF(ROW()-ROW(Lịch_biểu_Thanh_toán[[#Headers],[SỐ DƯ ĐẦU]])=1,Số_tiền_Vay,INDEX(Lịch_biểu_Thanh_toán[SỐ DƯ CUỐI],ROW()-ROW(Lịch_biểu_Thanh_toán[[#Headers],[SỐ DƯ ĐẦU]])-1)),"") ->  | E26: =IF(Lịch_biểu_Thanh_toán[[#This Row],[SỐ THANH TOÁN]]<>"",Thanh_toán_theo_Lịch,"") ->  | F26: =IF(Lịch_biểu_Thanh_toán[[#This Row],[SỐ THANH TOÁN]]<>"",IF(Lịch_biểu_Thanh_toán[[#This Row],[THANH TOÁN THEO LỊCH]]+Thanh_Toán_Bổ_sung<Lịch_biểu_Thanh_toán[[#This Row],[SỐ DƯ ĐẦU]],Thanh_Toán_Bổ_sung,IF(Lịch_biểu_Thanh_toán[[#This Row],[SỐ DƯ ĐẦU]]-Lịch_biểu_Thanh_toán[[#This Row],[THANH TOÁN THEO LỊCH]]>0,Lịch_biểu_Thanh_toán[[#This Row],[SỐ DƯ ĐẦU]]-Lịch_biểu_Thanh_toán[[#This Row],[THANH TOÁN THEO LỊCH]],0)),"") ->  | G26: =IF(Lịch_biểu_Thanh_toán[[#This Row],[SỐ THANH TOÁN]]<>"",IF(Lịch_biểu_Thanh_toán[[#This Row],[THANH TOÁN THEO LỊCH]]+Lịch_biểu_Thanh_toán[[#This Row],[THANH TOÁN BỔ SUNG]]<=Lịch_biểu_Thanh_toán[[#This Row],[SỐ DƯ ĐẦU]],Lịch_biểu_Thanh_toán[[#This Row],[THANH TOÁN THEO LỊCH]]+Lịch_biểu_Thanh_toán[[#This Row],[THANH TOÁN BỔ SUNG]],Lịch_biểu_Thanh_toán[[#This Row],[SỐ DƯ ĐẦU]]),"") ->  | H26: =IF(Lịch_biểu_Thanh_toán[[#This Row],[SỐ THANH TOÁN]]<>"",Lịch_biểu_Thanh_toán[[#This Row],[TỔNG THANH TOÁN]]-Lịch_biểu_Thanh_toán[[#This Row],[LÃI]],"") ->  | I26: =IF(Lịch_biểu_Thanh_toán[[#This Row],[SỐ THANH TOÁN]]<>"",Lịch_biểu_Thanh_toán[[#This Row],[SỐ DƯ ĐẦU]]*(Lãi_Suất/Thanh_toán_Mỗi_Năm),"") ->  | J26: =IF(Lịch_biểu_Thanh_toán[[#This Row],[SỐ THANH TOÁN]]<>"",IF(Lịch_biểu_Thanh_toán[[#This Row],[THANH TOÁN THEO LỊCH]]+Lịch_biểu_Thanh_toán[[#This Row],[THANH TOÁN BỔ SUNG]]<=Lịch_biểu_Thanh_toán[[#This Row],[SỐ DƯ ĐẦU]],Lịch_biểu_Thanh_toán[[#This Row],[SỐ DƯ ĐẦU]]-Lịch_biểu_Thanh_toán[[#This Row],[GỐC]],0),"") ->  | K26: =IF(Lịch_biểu_Thanh_toán[[#This Row],[SỐ THANH TOÁN]]<>"",SUM(INDEX(Lịch_biểu_Thanh_toán[LÃI],1,1):Lịch_biểu_Thanh_toán[[#This Row],[LÃI]]),"") -> 
B27: =IF(Khoản_vay_Tốt,IF(ROW()-ROW(Lịch_biểu_Thanh_toán[[#Headers],[SỐ THANH TOÁN]])>Số_lần_Thanh_toán_theo_Lịch,"",ROW()-ROW(Lịch_biểu_Thanh_toán[[#Headers],[SỐ THANH TOÁN]])),"") ->  | C27: =IF(Lịch_biểu_Thanh_toán[[#This Row],[SỐ THANH TOÁN]]<>"",EOMONTH(Ngày_Bắt_đầu_Khoản_vay,ROW(Lịch_biểu_Thanh_toán[[#This Row],[SỐ THANH TOÁN]])-ROW(Lịch_biểu_Thanh_toán[[#Headers],[SỐ THANH TOÁN]])-2)+DAY(Ngày_Bắt_đầu_Khoản_vay),"") ->  | D27: =IF(Lịch_biểu_Thanh_toán[[#This Row],[SỐ THANH TOÁN]]<>"",IF(ROW()-ROW(Lịch_biểu_Thanh_toán[[#Headers],[SỐ DƯ ĐẦU]])=1,Số_tiền_Vay,INDEX(Lịch_biểu_Thanh_toán[SỐ DƯ CUỐI],ROW()-ROW(Lịch_biểu_Thanh_toán[[#Headers],[SỐ DƯ ĐẦU]])-1)),"") ->  | E27: =IF(Lịch_biểu_Thanh_toán[[#This Row],[SỐ THANH TOÁN]]<>"",Thanh_toán_theo_Lịch,"") ->  | F27: =IF(Lịch_biểu_Thanh_toán[[#This Row],[SỐ THANH TOÁN]]<>"",IF(Lịch_biểu_Thanh_toán[[#This Row],[THANH TOÁN THEO LỊCH]]+Thanh_Toán_Bổ_sung<Lịch_biểu_Thanh_toán[[#This Row],[SỐ DƯ ĐẦU]],Thanh_Toán_Bổ_sung,IF(Lịch_biểu_Thanh_toán[[#This Row],[SỐ DƯ ĐẦU]]-Lịch_biểu_Thanh_toán[[#This Row],[THANH TOÁN THEO LỊCH]]>0,Lịch_biểu_Thanh_toán[[#This Row],[SỐ DƯ ĐẦU]]-Lịch_biểu_Thanh_toán[[#This Row],[THANH TOÁN THEO LỊCH]],0)),"") ->  | G27: =IF(Lịch_biểu_Thanh_toán[[#This Row],[SỐ THANH TOÁN]]<>"",IF(Lịch_biểu_Thanh_toán[[#This Row],[THANH TOÁN THEO LỊCH]]+Lịch_biểu_Thanh_toán[[#This Row],[THANH TOÁN BỔ SUNG]]<=Lịch_biểu_Thanh_toán[[#This Row],[SỐ DƯ ĐẦU]],Lịch_biểu_Thanh_toán[[#This Row],[THANH TOÁN THEO LỊCH]]+Lịch_biểu_Thanh_toán[[#This Row],[THANH TOÁN BỔ SUNG]],Lịch_biểu_Thanh_toán[[#This Row],[SỐ DƯ ĐẦU]]),"") ->  | H27: =IF(Lịch_biểu_Thanh_toán[[#This Row],[SỐ THANH TOÁN]]<>"",Lịch_biểu_Thanh_toán[[#This Row],[TỔNG THANH TOÁN]]-Lịch_biểu_Thanh_toán[[#This Row],[LÃI]],"") ->  | I27: =IF(Lịch_biểu_Thanh_toán[[#This Row],[SỐ THANH TOÁN]]<>"",Lịch_biểu_Thanh_toán[[#This Row],[SỐ DƯ ĐẦU]]*(Lãi_Suất/Thanh_toán_Mỗi_Năm),"") ->  | J27: =IF(Lịch_biểu_Thanh_toán[[#This Row],[SỐ THANH TOÁN]]<>"",IF(Lịch_biểu_Thanh_toán[[#This Row],[THANH TOÁN THEO LỊCH]]+Lịch_biểu_Thanh_toán[[#This Row],[THANH TOÁN BỔ SUNG]]<=Lịch_biểu_Thanh_toán[[#This Row],[SỐ DƯ ĐẦU]],Lịch_biểu_Thanh_toán[[#This Row],[SỐ DƯ ĐẦU]]-Lịch_biểu_Thanh_toán[[#This Row],[GỐC]],0),"") ->  | K27: =IF(Lịch_biểu_Thanh_toán[[#This Row],[SỐ THANH TOÁN]]<>"",SUM(INDEX(Lịch_biểu_Thanh_toán[LÃI],1,1):Lịch_biểu_Thanh_toán[[#This Row],[LÃI]]),"") -> 
B28: =IF(Khoản_vay_Tốt,IF(ROW()-ROW(Lịch_biểu_Thanh_toán[[#Headers],[SỐ THANH TOÁN]])>Số_lần_Thanh_toán_theo_Lịch,"",ROW()-ROW(Lịch_biểu_Thanh_toán[[#Headers],[SỐ THANH TOÁN]])),"") ->  | C28: =IF(Lịch_biểu_Thanh_toán[[#This Row],[SỐ THANH TOÁN]]<>"",EOMONTH(Ngày_Bắt_đầu_Khoản_vay,ROW(Lịch_biểu_Thanh_toán[[#This Row],[SỐ THANH TOÁN]])-ROW(Lịch_biểu_Thanh_toán[[#Headers],[SỐ THANH TOÁN]])-2)+DAY(Ngày_Bắt_đầu_Khoản_vay),"") ->  | D28: =IF(Lịch_biểu_Thanh_toán[[#This Row],[SỐ THANH TOÁN]]<>"",IF(ROW()-ROW(Lịch_biểu_Thanh_toán[[#Headers],[SỐ DƯ ĐẦU]])=1,Số_tiền_Vay,INDEX(Lịch_biểu_Thanh_toán[SỐ DƯ CUỐI],ROW()-ROW(Lịch_biểu_Thanh_toán[[#Headers],[SỐ DƯ ĐẦU]])-1)),"") ->  | E28: =IF(Lịch_biểu_Thanh_toán[[#This Row],[SỐ THANH TOÁN]]<>"",Thanh_toán_theo_Lịch,"") ->  | F28: =IF(Lịch_biểu_Thanh_toán[[#This Row],[SỐ THANH TOÁN]]<>"",IF(Lịch_biểu_Thanh_toán[[#This Row],[THANH TOÁN THEO LỊCH]]+Thanh_Toán_Bổ_sung<Lịch_biểu_Thanh_toán[[#This Row],[SỐ DƯ ĐẦU]],Thanh_Toán_Bổ_sung,IF(Lịch_biểu_Thanh_toán[[#This Row],[SỐ DƯ ĐẦU]]-Lịch_biểu_Thanh_toán[[#This Row],[THANH TOÁN THEO LỊCH]]>0,Lịch_biểu_Thanh_toán[[#This Row],[SỐ DƯ ĐẦU]]-Lịch_biểu_Thanh_toán[[#This Row],[THANH TOÁN THEO LỊCH]],0)),"") ->  | G28: =IF(Lịch_biểu_Thanh_toán[[#This Row],[SỐ THANH TOÁN]]<>"",IF(Lịch_biểu_Thanh_toán[[#This Row],[THANH TOÁN THEO LỊCH]]+Lịch_biểu_Thanh_toán[[#This Row],[THANH TOÁN BỔ SUNG]]<=Lịch_biểu_Thanh_toán[[#This Row],[SỐ DƯ ĐẦU]],Lịch_biểu_Thanh_toán[[#This Row],[THANH TOÁN THEO LỊCH]]+Lịch_biểu_Thanh_toán[[#This Row],[THANH TOÁN BỔ SUNG]],Lịch_biểu_Thanh_toán[[#This Row],[SỐ DƯ ĐẦU]]),"") ->  | H28: =IF(Lịch_biểu_Thanh_toán[[#This Row],[SỐ THANH TOÁN]]<>"",Lịch_biểu_Thanh_toán[[#This Row],[TỔNG THANH TOÁN]]-Lịch_biểu_Thanh_toán[[#This Row],[LÃI]],"") ->  | I28: =IF(Lịch_biểu_Thanh_toán[[#This Row],[SỐ THANH TOÁN]]<>"",Lịch_biểu_Thanh_toán[[#This Row],[SỐ DƯ ĐẦU]]*(Lãi_Suất/Thanh_toán_Mỗi_Năm),"") ->  | J28: =IF(Lịch_biểu_Thanh_toán[[#This Row],[SỐ THANH TOÁN]]<>"",IF(Lịch_biểu_Thanh_toán[[#This Row],[THANH TOÁN THEO LỊCH]]+Lịch_biểu_Thanh_toán[[#This Row],[THANH TOÁN BỔ SUNG]]<=Lịch_biểu_Thanh_toán[[#This Row],[SỐ DƯ ĐẦU]],Lịch_biểu_Thanh_toán[[#This Row],[SỐ DƯ ĐẦU]]-Lịch_biểu_Thanh_toán[[#This Row],[GỐC]],0),"") ->  | K28: =IF(Lịch_biểu_Thanh_toán[[#This Row],[SỐ THANH TOÁN]]<>"",SUM(INDEX(Lịch_biểu_Thanh_toán[LÃI],1,1):Lịch_biểu_Thanh_toán[[#This Row],[LÃI]]),"") -> 
B29: =IF(Khoản_vay_Tốt,IF(ROW()-ROW(Lịch_biểu_Thanh_toán[[#Headers],[SỐ THANH TOÁN]])>Số_lần_Thanh_toán_theo_Lịch,"",ROW()-ROW(Lịch_biểu_Thanh_toán[[#Headers],[SỐ THANH TOÁN]])),"") ->  | C29: =IF(Lịch_biểu_Thanh_toán[[#This Row],[SỐ THANH TOÁN]]<>"",EOMONTH(Ngày_Bắt_đầu_Khoản_vay,ROW(Lịch_biểu_Thanh_toán[[#This Row],[SỐ THANH TOÁN]])-ROW(Lịch_biểu_Thanh_toán[[#Headers],[SỐ THANH TOÁN]])-2)+DAY(Ngày_Bắt_đầu_Khoản_vay),"") ->  | D29: =IF(Lịch_biểu_Thanh_toán[[#This Row],[SỐ THANH TOÁN]]<>"",IF(ROW()-ROW(Lịch_biểu_Thanh_toán[[#Headers],[SỐ DƯ ĐẦU]])=1,Số_tiền_Vay,INDEX(Lịch_biểu_Thanh_toán[SỐ DƯ CUỐI],ROW()-ROW(Lịch_biểu_Thanh_toán[[#Headers],[SỐ DƯ ĐẦU]])-1)),"") ->  | E29: =IF(Lịch_biểu_Thanh_toán[[#This Row],[SỐ THANH TOÁN]]<>"",Thanh_toán_theo_Lịch,"") ->  | F29: =IF(Lịch_biểu_Thanh_toán[[#This Row],[SỐ THANH TOÁN]]<>"",IF(Lịch_biểu_Thanh_toán[[#This Row],[THANH TOÁN THEO LỊCH]]+Thanh_Toán_Bổ_sung<Lịch_biểu_Thanh_toán[[#This Row],[SỐ DƯ ĐẦU]],Thanh_Toán_Bổ_sung,IF(Lịch_biểu_Thanh_toán[[#This Row],[SỐ DƯ ĐẦU]]-Lịch_biểu_Thanh_toán[[#This Row],[THANH TOÁN THEO LỊCH]]>0,Lịch_biểu_Thanh_toán[[#This Row],[SỐ DƯ ĐẦU]]-Lịch_biểu_Thanh_toán[[#This Row],[THANH TOÁN THEO LỊCH]],0)),"") ->  | G29: =IF(Lịch_biểu_Thanh_toán[[#This Row],[SỐ THANH TOÁN]]<>"",IF(Lịch_biểu_Thanh_toán[[#This Row],[THANH TOÁN THEO LỊCH]]+Lịch_biểu_Thanh_toán[[#This Row],[THANH TOÁN BỔ SUNG]]<=Lịch_biểu_Thanh_toán[[#This Row],[SỐ DƯ ĐẦU]],Lịch_biểu_Thanh_toán[[#This Row],[THANH TOÁN THEO LỊCH]]+Lịch_biểu_Thanh_toán[[#This Row],[THANH TOÁN BỔ SUNG]],Lịch_biểu_Thanh_toán[[#This Row],[SỐ DƯ ĐẦU]]),"") ->  | H29: =IF(Lịch_biểu_Thanh_toán[[#This Row],[SỐ THANH TOÁN]]<>"",Lịch_biểu_Thanh_toán[[#This Row],[TỔNG THANH TOÁN]]-Lịch_biểu_Thanh_toán[[#This Row],[LÃI]],"") ->  | I29: =IF(Lịch_biểu_Thanh_toán[[#This Row],[SỐ THANH TOÁN]]<>"",Lịch_biểu_Thanh_toán[[#This Row],[SỐ DƯ ĐẦU]]*(Lãi_Suất/Thanh_toán_Mỗi_Năm),"") ->  | J29: =IF(Lịch_biểu_Thanh_toán[[#This Row],[SỐ THANH TOÁN]]<>"",IF(Lịch_biểu_Thanh_toán[[#This Row],[THANH TOÁN THEO LỊCH]]+Lịch_biểu_Thanh_toán[[#This Row],[THANH TOÁN BỔ SUNG]]<=Lịch_biểu_Thanh_toán[[#This Row],[SỐ DƯ ĐẦU]],Lịch_biểu_Thanh_toán[[#This Row],[SỐ DƯ ĐẦU]]-Lịch_biểu_Thanh_toán[[#This Row],[GỐC]],0),"") ->  | K29: =IF(Lịch_biểu_Thanh_toán[[#This Row],[SỐ THANH TOÁN]]<>"",SUM(INDEX(Lịch_biểu_Thanh_toán[LÃI],1,1):Lịch_biểu_Thanh_toán[[#This Row],[LÃI]]),"") -> 
B30: =IF(Khoản_vay_Tốt,IF(ROW()-ROW(Lịch_biểu_Thanh_toán[[#Headers],[SỐ THANH TOÁN]])>Số_lần_Thanh_toán_theo_Lịch,"",ROW()-ROW(Lịch_biểu_Thanh_toán[[#Headers],[SỐ THANH TOÁN]])),"") ->  | C30: =IF(Lịch_biểu_Thanh_toán[[#This Row],[SỐ THANH TOÁN]]<>"",EOMONTH(Ngày_Bắt_đầu_Khoản_vay,ROW(Lịch_biểu_Thanh_toán[[#This Row],[SỐ THANH TOÁN]])-ROW(Lịch_biểu_Thanh_toán[[#Headers],[SỐ THANH TOÁN]])-2)+DAY(Ngày_Bắt_đầu_Khoản_vay),"") ->  | D30: =IF(Lịch_biểu_Thanh_toán[[#This Row],[SỐ THANH TOÁN]]<>"",IF(ROW()-ROW(Lịch_biểu_Thanh_toán[[#Headers],[SỐ DƯ ĐẦU]])=1,Số_tiền_Vay,INDEX(Lịch_biểu_Thanh_toán[SỐ DƯ CUỐI],ROW()-ROW(Lịch_biểu_Thanh_toán[[#Headers],[SỐ DƯ ĐẦU]])-1)),"") ->  | E30: =IF(Lịch_biểu_Thanh_toán[[#This Row],[SỐ THANH TOÁN]]<>"",Thanh_toán_theo_Lịch,"") ->  | F30: =IF(Lịch_biểu_Thanh_toán[[#This Row],[SỐ THANH TOÁN]]<>"",IF(Lịch_biểu_Thanh_toán[[#This Row],[THANH TOÁN THEO LỊCH]]+Thanh_Toán_Bổ_sung<Lịch_biểu_Thanh_toán[[#This Row],[SỐ DƯ ĐẦU]],Thanh_Toán_Bổ_sung,IF(Lịch_biểu_Thanh_toán[[#This Row],[SỐ DƯ ĐẦU]]-Lịch_biểu_Thanh_toán[[#This Row],[THANH TOÁN THEO LỊCH]]>0,Lịch_biểu_Thanh_toán[[#This Row],[SỐ DƯ ĐẦU]]-Lịch_biểu_Thanh_toán[[#This Row],[THANH TOÁN THEO LỊCH]],0)),"") ->  | G30: =IF(Lịch_biểu_Thanh_toán[[#This Row],[SỐ THANH TOÁN]]<>"",IF(Lịch_biểu_Thanh_toán[[#This Row],[THANH TOÁN THEO LỊCH]]+Lịch_biểu_Thanh_toán[[#This Row],[THANH TOÁN BỔ SUNG]]<=Lịch_biểu_Thanh_toán[[#This Row],[SỐ DƯ ĐẦU]],Lịch_biểu_Thanh_toán[[#This Row],[THANH TOÁN THEO LỊCH]]+Lịch_biểu_Thanh_toán[[#This Row],[THANH TOÁN BỔ SUNG]],Lịch_biểu_Thanh_toán[[#This Row],[SỐ DƯ ĐẦU]]),"") ->  | H30: =IF(Lịch_biểu_Thanh_toán[[#This Row],[SỐ THANH TOÁN]]<>"",Lịch_biểu_Thanh_toán[[#This Row],[TỔNG THANH TOÁN]]-Lịch_biểu_Thanh_toán[[#This Row],[LÃI]],"") ->  | I30: =IF(Lịch_biểu_Thanh_toán[[#This Row],[SỐ THANH TOÁN]]<>"",Lịch_biểu_Thanh_toán[[#This Row],[SỐ DƯ ĐẦU]]*(Lãi_Suất/Thanh_toán_Mỗi_Năm),"") ->  | J30: =IF(Lịch_biểu_Thanh_toán[[#This Row],[SỐ THANH TOÁN]]<>"",IF(Lịch_biểu_Thanh_toán[[#This Row],[THANH TOÁN THEO LỊCH]]+Lịch_biểu_Thanh_toán[[#This Row],[THANH TOÁN BỔ SUNG]]<=Lịch_biểu_Thanh_toán[[#This Row],[SỐ DƯ ĐẦU]],Lịch_biểu_Thanh_toán[[#This Row],[SỐ DƯ ĐẦU]]-Lịch_biểu_Thanh_toán[[#This Row],[GỐC]],0),"") ->  | K30: =IF(Lịch_biểu_Thanh_toán[[#This Row],[SỐ THANH TOÁN]]<>"",SUM(INDEX(Lịch_biểu_Thanh_toán[LÃI],1,1):Lịch_biểu_Thanh_toán[[#This Row],[LÃI]]),"") -> 
B31: =IF(Khoản_vay_Tốt,IF(ROW()-ROW(Lịch_biểu_Thanh_toán[[#Headers],[SỐ THANH TOÁN]])>Số_lần_Thanh_toán_theo_Lịch,"",ROW()-ROW(Lịch_biểu_Thanh_toán[[#Headers],[SỐ THANH TOÁN]])),"") ->  | C31: =IF(Lịch_biểu_Thanh_toán[[#This Row],[SỐ THANH TOÁN]]<>"",EOMONTH(Ngày_Bắt_đầu_Khoản_vay,ROW(Lịch_biểu_Thanh_toán[[#This Row],[SỐ THANH TOÁN]])-ROW(Lịch_biểu_Thanh_toán[[#Headers],[SỐ THANH TOÁN]])-2)+DAY(Ngày_Bắt_đầu_Khoản_vay),"") ->  | D31: =IF(Lịch_biểu_Thanh_toán[[#This Row],[SỐ THANH TOÁN]]<>"",IF(ROW()-ROW(Lịch_biểu_Thanh_toán[[#Headers],[SỐ DƯ ĐẦU]])=1,Số_tiền_Vay,INDEX(Lịch_biểu_Thanh_toán[SỐ DƯ CUỐI],ROW()-ROW(Lịch_biểu_Thanh_toán[[#Headers],[SỐ DƯ ĐẦU]])-1)),"") ->  | E31: =IF(Lịch_biểu_Thanh_toán[[#This Row],[SỐ THANH TOÁN]]<>"",Thanh_toán_theo_Lịch,"") ->  | F31: =IF(Lịch_biểu_Thanh_toán[[#This Row],[SỐ THANH TOÁN]]<>"",IF(Lịch_biểu_Thanh_toán[[#This Row],[THANH TOÁN THEO LỊCH]]+Thanh_Toán_Bổ_sung<Lịch_biểu_Thanh_toán[[#This Row],[SỐ DƯ ĐẦU]],Thanh_Toán_Bổ_sung,IF(Lịch_biểu_Thanh_toán[[#This Row],[SỐ DƯ ĐẦU]]-Lịch_biểu_Thanh_toán[[#This Row],[THANH TOÁN THEO LỊCH]]>0,Lịch_biểu_Thanh_toán[[#This Row],[SỐ DƯ ĐẦU]]-Lịch_biểu_Thanh_toán[[#This Row],[THANH TOÁN THEO LỊCH]],0)),"") ->  | G31: =IF(Lịch_biểu_Thanh_toán[[#This Row],[SỐ THANH TOÁN]]<>"",IF(Lịch_biểu_Thanh_toán[[#This Row],[THANH TOÁN THEO LỊCH]]+Lịch_biểu_Thanh_toán[[#This Row],[THANH TOÁN BỔ SUNG]]<=Lịch_biểu_Thanh_toán[[#This Row],[SỐ DƯ ĐẦU]],Lịch_biểu_Thanh_toán[[#This Row],[THANH TOÁN THEO LỊCH]]+Lịch_biểu_Thanh_toán[[#This Row],[THANH TOÁN BỔ SUNG]],Lịch_biểu_Thanh_toán[[#This Row],[SỐ DƯ ĐẦU]]),"") ->  | H31: =IF(Lịch_biểu_Thanh_toán[[#This Row],[SỐ THANH TOÁN]]<>"",Lịch_biểu_Thanh_toán[[#This Row],[TỔNG THANH TOÁN]]-Lịch_biểu_Thanh_toán[[#This Row],[LÃI]],"") ->  | I31: =IF(Lịch_biểu_Thanh_toán[[#This Row],[SỐ THANH TOÁN]]<>"",Lịch_biểu_Thanh_toán[[#This Row],[SỐ DƯ ĐẦU]]*(Lãi_Suất/Thanh_toán_Mỗi_Năm),"") ->  | J31: =IF(Lịch_biểu_Thanh_toán[[#This Row],[SỐ THANH TOÁN]]<>"",IF(Lịch_biểu_Thanh_toán[[#This Row],[THANH TOÁN THEO LỊCH]]+Lịch_biểu_Thanh_toán[[#This Row],[THANH TOÁN BỔ SUNG]]<=Lịch_biểu_Thanh_toán[[#This Row],[SỐ DƯ ĐẦU]],Lịch_biểu_Thanh_toán[[#This Row],[SỐ DƯ ĐẦU]]-Lịch_biểu_Thanh_toán[[#This Row],[GỐC]],0),"") ->  | K31: =IF(Lịch_biểu_Thanh_toán[[#This Row],[SỐ THANH TOÁN]]<>"",SUM(INDEX(Lịch_biểu_Thanh_toán[LÃI],1,1):Lịch_biểu_Thanh_toán[[#This Row],[LÃI]]),"") -> 
B32: =IF(Khoản_vay_Tốt,IF(ROW()-ROW(Lịch_biểu_Thanh_toán[[#Headers],[SỐ THANH TOÁN]])>Số_lần_Thanh_toán_theo_Lịch,"",ROW()-ROW(Lịch_biểu_Thanh_toán[[#Headers],[SỐ THANH TOÁN]])),"") ->  | C32: =IF(Lịch_biểu_Thanh_toán[[#This Row],[SỐ THANH TOÁN]]<>"",EOMONTH(Ngày_Bắt_đầu_Khoản_vay,ROW(Lịch_biểu_Thanh_toán[[#This Row],[SỐ THANH TOÁN]])-ROW(Lịch_biểu_Thanh_toán[[#Headers],[SỐ THANH TOÁN]])-2)+DAY(Ngày_Bắt_đầu_Khoản_vay),"") ->  | D32: =IF(Lịch_biểu_Thanh_toán[[#This Row],[SỐ THANH TOÁN]]<>"",IF(ROW()-ROW(Lịch_biểu_Thanh_toán[[#Headers],[SỐ DƯ ĐẦU]])=1,Số_tiền_Vay,INDEX(Lịch_biểu_Thanh_toán[SỐ DƯ CUỐI],ROW()-ROW(Lịch_biểu_Thanh_toán[[#Headers],[SỐ DƯ ĐẦU]])-1)),"") ->  | E32: =IF(Lịch_biểu_Thanh_toán[[#This Row],[SỐ THANH TOÁN]]<>"",Thanh_toán_theo_Lịch,"") ->  | F32: =IF(Lịch_biểu_Thanh_toán[[#This Row],[SỐ THANH TOÁN]]<>"",IF(Lịch_biểu_Thanh_toán[[#This Row],[THANH TOÁN THEO LỊCH]]+Thanh_Toán_Bổ_sung<Lịch_biểu_Thanh_toán[[#This Row],[SỐ DƯ ĐẦU]],Thanh_Toán_Bổ_sung,IF(Lịch_biểu_Thanh_toán[[#This Row],[SỐ DƯ ĐẦU]]-Lịch_biểu_Thanh_toán[[#This Row],[THANH TOÁN THEO LỊCH]]>0,Lịch_biểu_Thanh_toán[[#This Row],[SỐ DƯ ĐẦU]]-Lịch_biểu_Thanh_toán[[#This Row],[THANH TOÁN THEO LỊCH]],0)),"") ->  | G32: =IF(Lịch_biểu_Thanh_toán[[#This Row],[SỐ THANH TOÁN]]<>"",IF(Lịch_biểu_Thanh_toán[[#This Row],[THANH TOÁN THEO LỊCH]]+Lịch_biểu_Thanh_toán[[#This Row],[THANH TOÁN BỔ SUNG]]<=Lịch_biểu_Thanh_toán[[#This Row],[SỐ DƯ ĐẦU]],Lịch_biểu_Thanh_toán[[#This Row],[THANH TOÁN THEO LỊCH]]+Lịch_biểu_Thanh_toán[[#This Row],[THANH TOÁN BỔ SUNG]],Lịch_biểu_Thanh_toán[[#This Row],[SỐ DƯ ĐẦU]]),"") ->  | H32: =IF(Lịch_biểu_Thanh_toán[[#This Row],[SỐ THANH TOÁN]]<>"",Lịch_biểu_Thanh_toán[[#This Row],[TỔNG THANH TOÁN]]-Lịch_biểu_Thanh_toán[[#This Row],[LÃI]],"") ->  | I32: =IF(Lịch_biểu_Thanh_toán[[#This Row],[SỐ THANH TOÁN]]<>"",Lịch_biểu_Thanh_toán[[#This Row],[SỐ DƯ ĐẦU]]*(Lãi_Suất/Thanh_toán_Mỗi_Năm),"") ->  | J32: =IF(Lịch_biểu_Thanh_toán[[#This Row],[SỐ THANH TOÁN]]<>"",IF(Lịch_biểu_Thanh_toán[[#This Row],[THANH TOÁN THEO LỊCH]]+Lịch_biểu_Thanh_toán[[#This Row],[THANH TOÁN BỔ SUNG]]<=Lịch_biểu_Thanh_toán[[#This Row],[SỐ DƯ ĐẦU]],Lịch_biểu_Thanh_toán[[#This Row],[SỐ DƯ ĐẦU]]-Lịch_biểu_Thanh_toán[[#This Row],[GỐC]],0),"") ->  | K32: =IF(Lịch_biểu_Thanh_toán[[#This Row],[SỐ THANH TOÁN]]<>"",SUM(INDEX(Lịch_biểu_Thanh_toán[LÃI],1,1):Lịch_biểu_Thanh_toán[[#This Row],[LÃI]]),"") -> 
B33: =IF(Khoản_vay_Tốt,IF(ROW()-ROW(Lịch_biểu_Thanh_toán[[#Headers],[SỐ THANH TOÁN]])>Số_lần_Thanh_toán_theo_Lịch,"",ROW()-ROW(Lịch_biểu_Thanh_toán[[#Headers],[SỐ THANH TOÁN]])),"") ->  | C33: =IF(Lịch_biểu_Thanh_toán[[#This Row],[SỐ THANH TOÁN]]<>"",EOMONTH(Ngày_Bắt_đầu_Khoản_vay,ROW(Lịch_biểu_Thanh_toán[[#This Row],[SỐ THANH TOÁN]])-ROW(Lịch_biểu_Thanh_toán[[#Headers],[SỐ THANH TOÁN]])-2)+DAY(Ngày_Bắt_đầu_Khoản_vay),"") ->  | D33: =IF(Lịch_biểu_Thanh_toán[[#This Row],[SỐ THANH TOÁN]]<>"",IF(ROW()-ROW(Lịch_biểu_Thanh_toán[[#Headers],[SỐ DƯ ĐẦU]])=1,Số_tiền_Vay,INDEX(Lịch_biểu_Thanh_toán[SỐ DƯ CUỐI],ROW()-ROW(Lịch_biểu_Thanh_toán[[#Headers],[SỐ DƯ ĐẦU]])-1)),"") ->  | E33: =IF(Lịch_biểu_Thanh_toán[[#This Row],[SỐ THANH TOÁN]]<>"",Thanh_toán_theo_Lịch,"") ->  | F33: =IF(Lịch_biểu_Thanh_toán[[#This Row],[SỐ THANH TOÁN]]<>"",IF(Lịch_biểu_Thanh_toán[[#This Row],[THANH TOÁN THEO LỊCH]]+Thanh_Toán_Bổ_sung<Lịch_biểu_Thanh_toán[[#This Row],[SỐ DƯ ĐẦU]],Thanh_Toán_Bổ_sung,IF(Lịch_biểu_Thanh_toán[[#This Row],[SỐ DƯ ĐẦU]]-Lịch_biểu_Thanh_toán[[#This Row],[THANH TOÁN THEO LỊCH]]>0,Lịch_biểu_Thanh_toán[[#This Row],[SỐ DƯ ĐẦU]]-Lịch_biểu_Thanh_toán[[#This Row],[THANH TOÁN THEO LỊCH]],0)),"") ->  | G33: =IF(Lịch_biểu_Thanh_toán[[#This Row],[SỐ THANH TOÁN]]<>"",IF(Lịch_biểu_Thanh_toán[[#This Row],[THANH TOÁN THEO LỊCH]]+Lịch_biểu_Thanh_toán[[#This Row],[THANH TOÁN BỔ SUNG]]<=Lịch_biểu_Thanh_toán[[#This Row],[SỐ DƯ ĐẦU]],Lịch_biểu_Thanh_toán[[#This Row],[THANH TOÁN THEO LỊCH]]+Lịch_biểu_Thanh_toán[[#This Row],[THANH TOÁN BỔ SUNG]],Lịch_biểu_Thanh_toán[[#This Row],[SỐ DƯ ĐẦU]]),"") ->  | H33: =IF(Lịch_biểu_Thanh_toán[[#This Row],[SỐ THANH TOÁN]]<>"",Lịch_biểu_Thanh_toán[[#This Row],[TỔNG THANH TOÁN]]-Lịch_biểu_Thanh_toán[[#This Row],[LÃI]],"") ->  | I33: =IF(Lịch_biểu_Thanh_toán[[#This Row],[SỐ THANH TOÁN]]<>"",Lịch_biểu_Thanh_toán[[#This Row],[SỐ DƯ ĐẦU]]*(Lãi_Suất/Thanh_toán_Mỗi_Năm),"") ->  | J33: =IF(Lịch_biểu_Thanh_toán[[#This Row],[SỐ THANH TOÁN]]<>"",IF(Lịch_biểu_Thanh_toán[[#This Row],[THANH TOÁN THEO LỊCH]]+Lịch_biểu_Thanh_toán[[#This Row],[THANH TOÁN BỔ SUNG]]<=Lịch_biểu_Thanh_toán[[#This Row],[SỐ DƯ ĐẦU]],Lịch_biểu_Thanh_toán[[#This Row],[SỐ DƯ ĐẦU]]-Lịch_biểu_Thanh_toán[[#This Row],[GỐC]],0),"") ->  | K33: =IF(Lịch_biểu_Thanh_toán[[#This Row],[SỐ THANH TOÁN]]<>"",SUM(INDEX(Lịch_biểu_Thanh_toán[LÃI],1,1):Lịch_biểu_Thanh_toán[[#This Row],[LÃI]]),"") -> 
B34: =IF(Khoản_vay_Tốt,IF(ROW()-ROW(Lịch_biểu_Thanh_toán[[#Headers],[SỐ THANH TOÁN]])>Số_lần_Thanh_toán_theo_Lịch,"",ROW()-ROW(Lịch_biểu_Thanh_toán[[#Headers],[SỐ THANH TOÁN]])),"") ->  | C34: =IF(Lịch_biểu_Thanh_toán[[#This Row],[SỐ THANH TOÁN]]<>"",EOMONTH(Ngày_Bắt_đầu_Khoản_vay,ROW(Lịch_biểu_Thanh_toán[[#This Row],[SỐ THANH TOÁN]])-ROW(Lịch_biểu_Thanh_toán[[#Headers],[SỐ THANH TOÁN]])-2)+DAY(Ngày_Bắt_đầu_Khoản_vay),"") ->  | D34: =IF(Lịch_biểu_Thanh_toán[[#This Row],[SỐ THANH TOÁN]]<>"",IF(ROW()-ROW(Lịch_biểu_Thanh_toán[[#Headers],[SỐ DƯ ĐẦU]])=1,Số_tiền_Vay,INDEX(Lịch_biểu_Thanh_toán[SỐ DƯ CUỐI],ROW()-ROW(Lịch_biểu_Thanh_toán[[#Headers],[SỐ DƯ ĐẦU]])-1)),"") ->  | E34: =IF(Lịch_biểu_Thanh_toán[[#This Row],[SỐ THANH TOÁN]]<>"",Thanh_toán_theo_Lịch,"") ->  | F34: =IF(Lịch_biểu_Thanh_toán[[#This Row],[SỐ THANH TOÁN]]<>"",IF(Lịch_biểu_Thanh_toán[[#This Row],[THANH TOÁN THEO LỊCH]]+Thanh_Toán_Bổ_sung<Lịch_biểu_Thanh_toán[[#This Row],[SỐ DƯ ĐẦU]],Thanh_Toán_Bổ_sung,IF(Lịch_biểu_Thanh_toán[[#This Row],[SỐ DƯ ĐẦU]]-Lịch_biểu_Thanh_toán[[#This Row],[THANH TOÁN THEO LỊCH]]>0,Lịch_biểu_Thanh_toán[[#This Row],[SỐ DƯ ĐẦU]]-Lịch_biểu_Thanh_toán[[#This Row],[THANH TOÁN THEO LỊCH]],0)),"") ->  | G34: =IF(Lịch_biểu_Thanh_toán[[#This Row],[SỐ THANH TOÁN]]<>"",IF(Lịch_biểu_Thanh_toán[[#This Row],[THANH TOÁN THEO LỊCH]]+Lịch_biểu_Thanh_toán[[#This Row],[THANH TOÁN BỔ SUNG]]<=Lịch_biểu_Thanh_toán[[#This Row],[SỐ DƯ ĐẦU]],Lịch_biểu_Thanh_toán[[#This Row],[THANH TOÁN THEO LỊCH]]+Lịch_biểu_Thanh_toán[[#This Row],[THANH TOÁN BỔ SUNG]],Lịch_biểu_Thanh_toán[[#This Row],[SỐ DƯ ĐẦU]]),"") ->  | H34: =IF(Lịch_biểu_Thanh_toán[[#This Row],[SỐ THANH TOÁN]]<>"",Lịch_biểu_Thanh_toán[[#This Row],[TỔNG THANH TOÁN]]-Lịch_biểu_Thanh_toán[[#This Row],[LÃI]],"") ->  | I34: =IF(Lịch_biểu_Thanh_toán[[#This Row],[SỐ THANH TOÁN]]<>"",Lịch_biểu_Thanh_toán[[#This Row],[SỐ DƯ ĐẦU]]*(Lãi_Suất/Thanh_toán_Mỗi_Năm),"") ->  | J34: =IF(Lịch_biểu_Thanh_toán[[#This Row],[SỐ THANH TOÁN]]<>"",IF(Lịch_biểu_Thanh_toán[[#This Row],[THANH TOÁN THEO LỊCH]]+Lịch_biểu_Thanh_toán[[#This Row],[THANH TOÁN BỔ SUNG]]<=Lịch_biểu_Thanh_toán[[#This Row],[SỐ DƯ ĐẦU]],Lịch_biểu_Thanh_toán[[#This Row],[SỐ DƯ ĐẦU]]-Lịch_biểu_Thanh_toán[[#This Row],[GỐC]],0),"") ->  | K34: =IF(Lịch_biểu_Thanh_toán[[#This Row],[SỐ THANH TOÁN]]<>"",SUM(INDEX(Lịch_biểu_Thanh_toán[LÃI],1,1):Lịch_biểu_Thanh_toán[[#This Row],[LÃI]]),"") -> 
B35: =IF(Khoản_vay_Tốt,IF(ROW()-ROW(Lịch_biểu_Thanh_toán[[#Headers],[SỐ THANH TOÁN]])>Số_lần_Thanh_toán_theo_Lịch,"",ROW()-ROW(Lịch_biểu_Thanh_toán[[#Headers],[SỐ THANH TOÁN]])),"") ->  | C35: =IF(Lịch_biểu_Thanh_toán[[#This Row],[SỐ THANH TOÁN]]<>"",EOMONTH(Ngày_Bắt_đầu_Khoản_vay,ROW(Lịch_biểu_Thanh_toán[[#This Row],[SỐ THANH TOÁN]])-ROW(Lịch_biểu_Thanh_toán[[#Headers],[SỐ THANH TOÁN]])-2)+DAY(Ngày_Bắt_đầu_Khoản_vay),"") ->  | D35: =IF(Lịch_biểu_Thanh_toán[[#This Row],[SỐ THANH TOÁN]]<>"",IF(ROW()-ROW(Lịch_biểu_Thanh_toán[[#Headers],[SỐ DƯ ĐẦU]])=1,Số_tiền_Vay,INDEX(Lịch_biểu_Thanh_toán[SỐ DƯ CUỐI],ROW()-ROW(Lịch_biểu_Thanh_toán[[#Headers],[SỐ DƯ ĐẦU]])-1)),"") ->  | E35: =IF(Lịch_biểu_Thanh_toán[[#This Row],[SỐ THANH TOÁN]]<>"",Thanh_toán_theo_Lịch,"") ->  | F35: =IF(Lịch_biểu_Thanh_toán[[#This Row],[SỐ THANH TOÁN]]<>"",IF(Lịch_biểu_Thanh_toán[[#This Row],[THANH TOÁN THEO LỊCH]]+Thanh_Toán_Bổ_sung<Lịch_biểu_Thanh_toán[[#This Row],[SỐ DƯ ĐẦU]],Thanh_Toán_Bổ_sung,IF(Lịch_biểu_Thanh_toán[[#This Row],[SỐ DƯ ĐẦU]]-Lịch_biểu_Thanh_toán[[#This Row],[THANH TOÁN THEO LỊCH]]>0,Lịch_biểu_Thanh_toán[[#This Row],[SỐ DƯ ĐẦU]]-Lịch_biểu_Thanh_toán[[#This Row],[THANH TOÁN THEO LỊCH]],0)),"") ->  | G35: =IF(Lịch_biểu_Thanh_toán[[#This Row],[SỐ THANH TOÁN]]<>"",IF(Lịch_biểu_Thanh_toán[[#This Row],[THANH TOÁN THEO LỊCH]]+Lịch_biểu_Thanh_toán[[#This Row],[THANH TOÁN BỔ SUNG]]<=Lịch_biểu_Thanh_toán[[#This Row],[SỐ DƯ ĐẦU]],Lịch_biểu_Thanh_toán[[#This Row],[THANH TOÁN THEO LỊCH]]+Lịch_biểu_Thanh_toán[[#This Row],[THANH TOÁN BỔ SUNG]],Lịch_biểu_Thanh_toán[[#This Row],[SỐ DƯ ĐẦU]]),"") ->  | H35: =IF(Lịch_biểu_Thanh_toán[[#This Row],[SỐ THANH TOÁN]]<>"",Lịch_biểu_Thanh_toán[[#This Row],[TỔNG THANH TOÁN]]-Lịch_biểu_Thanh_toán[[#This Row],[LÃI]],"") ->  | I35: =IF(Lịch_biểu_Thanh_toán[[#This Row],[SỐ THANH TOÁN]]<>"",Lịch_biểu_Thanh_toán[[#This Row],[SỐ DƯ ĐẦU]]*(Lãi_Suất/Thanh_toán_Mỗi_Năm),"") ->  | J35: =IF(Lịch_biểu_Thanh_toán[[#This Row],[SỐ THANH TOÁN]]<>"",IF(Lịch_biểu_Thanh_toán[[#This Row],[THANH TOÁN THEO LỊCH]]+Lịch_biểu_Thanh_toán[[#This Row],[THANH TOÁN BỔ SUNG]]<=Lịch_biểu_Thanh_toán[[#This Row],[SỐ DƯ ĐẦU]],Lịch_biểu_Thanh_toán[[#This Row],[SỐ DƯ ĐẦU]]-Lịch_biểu_Thanh_toán[[#This Row],[GỐC]],0),"") ->  | K35: =IF(Lịch_biểu_Thanh_toán[[#This Row],[SỐ THANH TOÁN]]<>"",SUM(INDEX(Lịch_biểu_Thanh_toán[LÃI],1,1):Lịch_biểu_Thanh_toán[[#This Row],[LÃI]]),"") -> 
B36: =IF(Khoản_vay_Tốt,IF(ROW()-ROW(Lịch_biểu_Thanh_toán[[#Headers],[SỐ THANH TOÁN]])>Số_lần_Thanh_toán_theo_Lịch,"",ROW()-ROW(Lịch_biểu_Thanh_toán[[#Headers],[SỐ THANH TOÁN]])),"") ->  | C36: =IF(Lịch_biểu_Thanh_toán[[#This Row],[SỐ THANH TOÁN]]<>"",EOMONTH(Ngày_Bắt_đầu_Khoản_vay,ROW(Lịch_biểu_Thanh_toán[[#This Row],[SỐ THANH TOÁN]])-ROW(Lịch_biểu_Thanh_toán[[#Headers],[SỐ THANH TOÁN]])-2)+DAY(Ngày_Bắt_đầu_Khoản_vay),"") ->  | D36: =IF(Lịch_biểu_Thanh_toán[[#This Row],[SỐ THANH TOÁN]]<>"",IF(ROW()-ROW(Lịch_biểu_Thanh_toán[[#Headers],[SỐ DƯ ĐẦU]])=1,Số_tiền_Vay,INDEX(Lịch_biểu_Thanh_toán[SỐ DƯ CUỐI],ROW()-ROW(Lịch_biểu_Thanh_toán[[#Headers],[SỐ DƯ ĐẦU]])-1)),"") ->  | E36: =IF(Lịch_biểu_Thanh_toán[[#This Row],[SỐ THANH TOÁN]]<>"",Thanh_toán_theo_Lịch,"") ->  | F36: =IF(Lịch_biểu_Thanh_toán[[#This Row],[SỐ THANH TOÁN]]<>"",IF(Lịch_biểu_Thanh_toán[[#This Row],[THANH TOÁN THEO LỊCH]]+Thanh_Toán_Bổ_sung<Lịch_biểu_Thanh_toán[[#This Row],[SỐ DƯ ĐẦU]],Thanh_Toán_Bổ_sung,IF(Lịch_biểu_Thanh_toán[[#This Row],[SỐ DƯ ĐẦU]]-Lịch_biểu_Thanh_toán[[#This Row],[THANH TOÁN THEO LỊCH]]>0,Lịch_biểu_Thanh_toán[[#This Row],[SỐ DƯ ĐẦU]]-Lịch_biểu_Thanh_toán[[#This Row],[THANH TOÁN THEO LỊCH]],0)),"") ->  | G36: =IF(Lịch_biểu_Thanh_toán[[#This Row],[SỐ THANH TOÁN]]<>"",IF(Lịch_biểu_Thanh_toán[[#This Row],[THANH TOÁN THEO LỊCH]]+Lịch_biểu_Thanh_toán[[#This Row],[THANH TOÁN BỔ SUNG]]<=Lịch_biểu_Thanh_toán[[#This Row],[SỐ DƯ ĐẦU]],Lịch_biểu_Thanh_toán[[#This Row],[THANH TOÁN THEO LỊCH]]+Lịch_biểu_Thanh_toán[[#This Row],[THANH TOÁN BỔ SUNG]],Lịch_biểu_Thanh_toán[[#This Row],[SỐ DƯ ĐẦU]]),"") ->  | H36: =IF(Lịch_biểu_Thanh_toán[[#This Row],[SỐ THANH TOÁN]]<>"",Lịch_biểu_Thanh_toán[[#This Row],[TỔNG THANH TOÁN]]-Lịch_biểu_Thanh_toán[[#This Row],[LÃI]],"") ->  | I36: =IF(Lịch_biểu_Thanh_toán[[#This Row],[SỐ THANH TOÁN]]<>"",Lịch_biểu_Thanh_toán[[#This Row],[SỐ DƯ ĐẦU]]*(Lãi_Suất/Thanh_toán_Mỗi_Năm),"") ->  | J36: =IF(Lịch_biểu_Thanh_toán[[#This Row],[SỐ THANH TOÁN]]<>"",IF(Lịch_biểu_Thanh_toán[[#This Row],[THANH TOÁN THEO LỊCH]]+Lịch_biểu_Thanh_toán[[#This Row],[THANH TOÁN BỔ SUNG]]<=Lịch_biểu_Thanh_toán[[#This Row],[SỐ DƯ ĐẦU]],Lịch_biểu_Thanh_toán[[#This Row],[SỐ DƯ ĐẦU]]-Lịch_biểu_Thanh_toán[[#This Row],[GỐC]],0),"") ->  | K36: =IF(Lịch_biểu_Thanh_toán[[#This Row],[SỐ THANH TOÁN]]<>"",SUM(INDEX(Lịch_biểu_Thanh_toán[LÃI],1,1):Lịch_biểu_Thanh_toán[[#This Row],[LÃI]]),"") -> 
B37: =IF(Khoản_vay_Tốt,IF(ROW()-ROW(Lịch_biểu_Thanh_toán[[#Headers],[SỐ THANH TOÁN]])>Số_lần_Thanh_toán_theo_Lịch,"",ROW()-ROW(Lịch_biểu_Thanh_toán[[#Headers],[SỐ THANH TOÁN]])),"") ->  | C37: =IF(Lịch_biểu_Thanh_toán[[#This Row],[SỐ THANH TOÁN]]<>"",EOMONTH(Ngày_Bắt_đầu_Khoản_vay,ROW(Lịch_biểu_Thanh_toán[[#This Row],[SỐ THANH TOÁN]])-ROW(Lịch_biểu_Thanh_toán[[#Headers],[SỐ THANH TOÁN]])-2)+DAY(Ngày_Bắt_đầu_Khoản_vay),"") ->  | D37: =IF(Lịch_biểu_Thanh_toán[[#This Row],[SỐ THANH TOÁN]]<>"",IF(ROW()-ROW(Lịch_biểu_Thanh_toán[[#Headers],[SỐ DƯ ĐẦU]])=1,Số_tiền_Vay,INDEX(Lịch_biểu_Thanh_toán[SỐ DƯ CUỐI],ROW()-ROW(Lịch_biểu_Thanh_toán[[#Headers],[SỐ DƯ ĐẦU]])-1)),"") ->  | E37: =IF(Lịch_biểu_Thanh_toán[[#This Row],[SỐ THANH TOÁN]]<>"",Thanh_toán_theo_Lịch,"") ->  | F37: =IF(Lịch_biểu_Thanh_toán[[#This Row],[SỐ THANH TOÁN]]<>"",IF(Lịch_biểu_Thanh_toán[[#This Row],[THANH TOÁN THEO LỊCH]]+Thanh_Toán_Bổ_sung<Lịch_biểu_Thanh_toán[[#This Row],[SỐ DƯ ĐẦU]],Thanh_Toán_Bổ_sung,IF(Lịch_biểu_Thanh_toán[[#This Row],[SỐ DƯ ĐẦU]]-Lịch_biểu_Thanh_toán[[#This Row],[THANH TOÁN THEO LỊCH]]>0,Lịch_biểu_Thanh_toán[[#This Row],[SỐ DƯ ĐẦU]]-Lịch_biểu_Thanh_toán[[#This Row],[THANH TOÁN THEO LỊCH]],0)),"") ->  | G37: =IF(Lịch_biểu_Thanh_toán[[#This Row],[SỐ THANH TOÁN]]<>"",IF(Lịch_biểu_Thanh_toán[[#This Row],[THANH TOÁN THEO LỊCH]]+Lịch_biểu_Thanh_toán[[#This Row],[THANH TOÁN BỔ SUNG]]<=Lịch_biểu_Thanh_toán[[#This Row],[SỐ DƯ ĐẦU]],Lịch_biểu_Thanh_toán[[#This Row],[THANH TOÁN THEO LỊCH]]+Lịch_biểu_Thanh_toán[[#This Row],[THANH TOÁN BỔ SUNG]],Lịch_biểu_Thanh_toán[[#This Row],[SỐ DƯ ĐẦU]]),"") ->  | H37: =IF(Lịch_biểu_Thanh_toán[[#This Row],[SỐ THANH TOÁN]]<>"",Lịch_biểu_Thanh_toán[[#This Row],[TỔNG THANH TOÁN]]-Lịch_biểu_Thanh_toán[[#This Row],[LÃI]],"") ->  | I37: =IF(Lịch_biểu_Thanh_toán[[#This Row],[SỐ THANH TOÁN]]<>"",Lịch_biểu_Thanh_toán[[#This Row],[SỐ DƯ ĐẦU]]*(Lãi_Suất/Thanh_toán_Mỗi_Năm),"") ->  | J37: =IF(Lịch_biểu_Thanh_toán[[#This Row],[SỐ THANH TOÁN]]<>"",IF(Lịch_biểu_Thanh_toán[[#This Row],[THANH TOÁN THEO LỊCH]]+Lịch_biểu_Thanh_toán[[#This Row],[THANH TOÁN BỔ SUNG]]<=Lịch_biểu_Thanh_toán[[#This Row],[SỐ DƯ ĐẦU]],Lịch_biểu_Thanh_toán[[#This Row],[SỐ DƯ ĐẦU]]-Lịch_biểu_Thanh_toán[[#This Row],[GỐC]],0),"") ->  | K37: =IF(Lịch_biểu_Thanh_toán[[#This Row],[SỐ THANH TOÁN]]<>"",SUM(INDEX(Lịch_biểu_Thanh_toán[LÃI],1,1):Lịch_biểu_Thanh_toán[[#This Row],[LÃI]]),"") -> 
B38: =IF(Khoản_vay_Tốt,IF(ROW()-ROW(Lịch_biểu_Thanh_toán[[#Headers],[SỐ THANH TOÁN]])>Số_lần_Thanh_toán_theo_Lịch,"",ROW()-ROW(Lịch_biểu_Thanh_toán[[#Headers],[SỐ THANH TOÁN]])),"") ->  | C38: =IF(Lịch_biểu_Thanh_toán[[#This Row],[SỐ THANH TOÁN]]<>"",EOMONTH(Ngày_Bắt_đầu_Khoản_vay,ROW(Lịch_biểu_Thanh_toán[[#This Row],[SỐ THANH TOÁN]])-ROW(Lịch_biểu_Thanh_toán[[#Headers],[SỐ THANH TOÁN]])-2)+DAY(Ngày_Bắt_đầu_Khoản_vay),"") ->  | D38: =IF(Lịch_biểu_Thanh_toán[[#This Row],[SỐ THANH TOÁN]]<>"",IF(ROW()-ROW(Lịch_biểu_Thanh_toán[[#Headers],[SỐ DƯ ĐẦU]])=1,Số_tiền_Vay,INDEX(Lịch_biểu_Thanh_toán[SỐ DƯ CUỐI],ROW()-ROW(Lịch_biểu_Thanh_toán[[#Headers],[SỐ DƯ ĐẦU]])-1)),"") ->  | E38: =IF(Lịch_biểu_Thanh_toán[[#This Row],[SỐ THANH TOÁN]]<>"",Thanh_toán_theo_Lịch,"") ->  | F38: =IF(Lịch_biểu_Thanh_toán[[#This Row],[SỐ THANH TOÁN]]<>"",IF(Lịch_biểu_Thanh_toán[[#This Row],[THANH TOÁN THEO LỊCH]]+Thanh_Toán_Bổ_sung<Lịch_biểu_Thanh_toán[[#This Row],[SỐ DƯ ĐẦU]],Thanh_Toán_Bổ_sung,IF(Lịch_biểu_Thanh_toán[[#This Row],[SỐ DƯ ĐẦU]]-Lịch_biểu_Thanh_toán[[#This Row],[THANH TOÁN THEO LỊCH]]>0,Lịch_biểu_Thanh_toán[[#This Row],[SỐ DƯ ĐẦU]]-Lịch_biểu_Thanh_toán[[#This Row],[THANH TOÁN THEO LỊCH]],0)),"") ->  | G38: =IF(Lịch_biểu_Thanh_toán[[#This Row],[SỐ THANH TOÁN]]<>"",IF(Lịch_biểu_Thanh_toán[[#This Row],[THANH TOÁN THEO LỊCH]]+Lịch_biểu_Thanh_toán[[#This Row],[THANH TOÁN BỔ SUNG]]<=Lịch_biểu_Thanh_toán[[#This Row],[SỐ DƯ ĐẦU]],Lịch_biểu_Thanh_toán[[#This Row],[THANH TOÁN THEO LỊCH]]+Lịch_biểu_Thanh_toán[[#This Row],[THANH TOÁN BỔ SUNG]],Lịch_biểu_Thanh_toán[[#This Row],[SỐ DƯ ĐẦU]]),"") ->  | H38: =IF(Lịch_biểu_Thanh_toán[[#This Row],[SỐ THANH TOÁN]]<>"",Lịch_biểu_Thanh_toán[[#This Row],[TỔNG THANH TOÁN]]-Lịch_biểu_Thanh_toán[[#This Row],[LÃI]],"") ->  | I38: =IF(Lịch_biểu_Thanh_toán[[#This Row],[SỐ THANH TOÁN]]<>"",Lịch_biểu_Thanh_toán[[#This Row],[SỐ DƯ ĐẦU]]*(Lãi_Suất/Thanh_toán_Mỗi_Năm),"") ->  | J38: =IF(Lịch_biểu_Thanh_toán[[#This Row],[SỐ THANH TOÁN]]<>"",IF(Lịch_biểu_Thanh_toán[[#This Row],[THANH TOÁN THEO LỊCH]]+Lịch_biểu_Thanh_toán[[#This Row],[THANH TOÁN BỔ SUNG]]<=Lịch_biểu_Thanh_toán[[#This Row],[SỐ DƯ ĐẦU]],Lịch_biểu_Thanh_toán[[#This Row],[SỐ DƯ ĐẦU]]-Lịch_biểu_Thanh_toán[[#This Row],[GỐC]],0),"") ->  | K38: =IF(Lịch_biểu_Thanh_toán[[#This Row],[SỐ THANH TOÁN]]<>"",SUM(INDEX(Lịch_biểu_Thanh_toán[LÃI],1,1):Lịch_biểu_Thanh_toán[[#This Row],[LÃI]]),"") -> 
B39: =IF(Khoản_vay_Tốt,IF(ROW()-ROW(Lịch_biểu_Thanh_toán[[#Headers],[SỐ THANH TOÁN]])>Số_lần_Thanh_toán_theo_Lịch,"",ROW()-ROW(Lịch_biểu_Thanh_toán[[#Headers],[SỐ THANH TOÁN]])),"") ->  | C39: =IF(Lịch_biểu_Thanh_toán[[#This Row],[SỐ THANH TOÁN]]<>"",EOMONTH(Ngày_Bắt_đầu_Khoản_vay,ROW(Lịch_biểu_Thanh_toán[[#This Row],[SỐ THANH TOÁN]])-ROW(Lịch_biểu_Thanh_toán[[#Headers],[SỐ THANH TOÁN]])-2)+DAY(Ngày_Bắt_đầu_Khoản_vay),"") ->  | D39: =IF(Lịch_biểu_Thanh_toán[[#This Row],[SỐ THANH TOÁN]]<>"",IF(ROW()-ROW(Lịch_biểu_Thanh_toán[[#Headers],[SỐ DƯ ĐẦU]])=1,Số_tiền_Vay,INDEX(Lịch_biểu_Thanh_toán[SỐ DƯ CUỐI],ROW()-ROW(Lịch_biểu_Thanh_toán[[#Headers],[SỐ DƯ ĐẦU]])-1)),"") ->  | E39: =IF(Lịch_biểu_Thanh_toán[[#This Row],[SỐ THANH TOÁN]]<>"",Thanh_toán_theo_Lịch,"") ->  | F39: =IF(Lịch_biểu_Thanh_toán[[#This Row],[SỐ THANH TOÁN]]<>"",IF(Lịch_biểu_Thanh_toán[[#This Row],[THANH TOÁN THEO LỊCH]]+Thanh_Toán_Bổ_sung<Lịch_biểu_Thanh_toán[[#This Row],[SỐ DƯ ĐẦU]],Thanh_Toán_Bổ_sung,IF(Lịch_biểu_Thanh_toán[[#This Row],[SỐ DƯ ĐẦU]]-Lịch_biểu_Thanh_toán[[#This Row],[THANH TOÁN THEO LỊCH]]>0,Lịch_biểu_Thanh_toán[[#This Row],[SỐ DƯ ĐẦU]]-Lịch_biểu_Thanh_toán[[#This Row],[THANH TOÁN THEO LỊCH]],0)),"") ->  | G39: =IF(Lịch_biểu_Thanh_toán[[#This Row],[SỐ THANH TOÁN]]<>"",IF(Lịch_biểu_Thanh_toán[[#This Row],[THANH TOÁN THEO LỊCH]]+Lịch_biểu_Thanh_toán[[#This Row],[THANH TOÁN BỔ SUNG]]<=Lịch_biểu_Thanh_toán[[#This Row],[SỐ DƯ ĐẦU]],Lịch_biểu_Thanh_toán[[#This Row],[THANH TOÁN THEO LỊCH]]+Lịch_biểu_Thanh_toán[[#This Row],[THANH TOÁN BỔ SUNG]],Lịch_biểu_Thanh_toán[[#This Row],[SỐ DƯ ĐẦU]]),"") ->  | H39: =IF(Lịch_biểu_Thanh_toán[[#This Row],[SỐ THANH TOÁN]]<>"",Lịch_biểu_Thanh_toán[[#This Row],[TỔNG THANH TOÁN]]-Lịch_biểu_Thanh_toán[[#This Row],[LÃI]],"") ->  | I39: =IF(Lịch_biểu_Thanh_toán[[#This Row],[SỐ THANH TOÁN]]<>"",Lịch_biểu_Thanh_toán[[#This Row],[SỐ DƯ ĐẦU]]*(Lãi_Suất/Thanh_toán_Mỗi_Năm),"") ->  | J39: =IF(Lịch_biểu_Thanh_toán[[#This Row],[SỐ THANH TOÁN]]<>"",IF(Lịch_biểu_Thanh_toán[[#This Row],[THANH TOÁN THEO LỊCH]]+Lịch_biểu_Thanh_toán[[#This Row],[THANH TOÁN BỔ SUNG]]<=Lịch_biểu_Thanh_toán[[#This Row],[SỐ DƯ ĐẦU]],Lịch_biểu_Thanh_toán[[#This Row],[SỐ DƯ ĐẦU]]-Lịch_biểu_Thanh_toán[[#This Row],[GỐC]],0),"") ->  | K39: =IF(Lịch_biểu_Thanh_toán[[#This Row],[SỐ THANH TOÁN]]<>"",SUM(INDEX(Lịch_biểu_Thanh_toán[LÃI],1,1):Lịch_biểu_Thanh_toán[[#This Row],[LÃI]]),"") -> 
B40: =IF(Khoản_vay_Tốt,IF(ROW()-ROW(Lịch_biểu_Thanh_toán[[#Headers],[SỐ THANH TOÁN]])>Số_lần_Thanh_toán_theo_Lịch,"",ROW()-ROW(Lịch_biểu_Thanh_toán[[#Headers],[SỐ THANH TOÁN]])),"") ->  | C40: =IF(Lịch_biểu_Thanh_toán[[#This Row],[SỐ THANH TOÁN]]<>"",EOMONTH(Ngày_Bắt_đầu_Khoản_vay,ROW(Lịch_biểu_Thanh_toán[[#This Row],[SỐ THANH TOÁN]])-ROW(Lịch_biểu_Thanh_toán[[#Headers],[SỐ THANH TOÁN]])-2)+DAY(Ngày_Bắt_đầu_Khoản_vay),"") ->  | D40: =IF(Lịch_biểu_Thanh_toán[[#This Row],[SỐ THANH TOÁN]]<>"",IF(ROW()-ROW(Lịch_biểu_Thanh_toán[[#Headers],[SỐ DƯ ĐẦU]])=1,Số_tiền_Vay,INDEX(Lịch_biểu_Thanh_toán[SỐ DƯ CUỐI],ROW()-ROW(Lịch_biểu_Thanh_toán[[#Headers],[SỐ DƯ ĐẦU]])-1)),"") ->  | E40: =IF(Lịch_biểu_Thanh_toán[[#This Row],[SỐ THANH TOÁN]]<>"",Thanh_toán_theo_Lịch,"") ->  | F40: =IF(Lịch_biểu_Thanh_toán[[#This Row],[SỐ THANH TOÁN]]<>"",IF(Lịch_biểu_Thanh_toán[[#This Row],[THANH TOÁN THEO LỊCH]]+Thanh_Toán_Bổ_sung<Lịch_biểu_Thanh_toán[[#This Row],[SỐ DƯ ĐẦU]],Thanh_Toán_Bổ_sung,IF(Lịch_biểu_Thanh_toán[[#This Row],[SỐ DƯ ĐẦU]]-Lịch_biểu_Thanh_toán[[#This Row],[THANH TOÁN THEO LỊCH]]>0,Lịch_biểu_Thanh_toán[[#This Row],[SỐ DƯ ĐẦU]]-Lịch_biểu_Thanh_toán[[#This Row],[THANH TOÁN THEO LỊCH]],0)),"") ->  | G40: =IF(Lịch_biểu_Thanh_toán[[#This Row],[SỐ THANH TOÁN]]<>"",IF(Lịch_biểu_Thanh_toán[[#This Row],[THANH TOÁN THEO LỊCH]]+Lịch_biểu_Thanh_toán[[#This Row],[THANH TOÁN BỔ SUNG]]<=Lịch_biểu_Thanh_toán[[#This Row],[SỐ DƯ ĐẦU]],Lịch_biểu_Thanh_toán[[#This Row],[THANH TOÁN THEO LỊCH]]+Lịch_biểu_Thanh_toán[[#This Row],[THANH TOÁN BỔ SUNG]],Lịch_biểu_Thanh_toán[[#This Row],[SỐ DƯ ĐẦU]]),"") ->  | H40: =IF(Lịch_biểu_Thanh_toán[[#This Row],[SỐ THANH TOÁN]]<>"",Lịch_biểu_Thanh_toán[[#This Row],[TỔNG THANH TOÁN]]-Lịch_biểu_Thanh_toán[[#This Row],[LÃI]],"") ->  | I40: =IF(Lịch_biểu_Thanh_toán[[#This Row],[SỐ THANH TOÁN]]<>"",Lịch_biểu_Thanh_toán[[#This Row],[SỐ DƯ ĐẦU]]*(Lãi_Suất/Thanh_toán_Mỗi_Năm),"") ->  | J40: =IF(Lịch_biểu_Thanh_toán[[#This Row],[SỐ THANH TOÁN]]<>"",IF(Lịch_biểu_Thanh_toán[[#This Row],[THANH TOÁN THEO LỊCH]]+Lịch_biểu_Thanh_toán[[#This Row],[THANH TOÁN BỔ SUNG]]<=Lịch_biểu_Thanh_toán[[#This Row],[SỐ DƯ ĐẦU]],Lịch_biểu_Thanh_toán[[#This Row],[SỐ DƯ ĐẦU]]-Lịch_biểu_Thanh_toán[[#This Row],[GỐC]],0),"") ->  | K40: =IF(Lịch_biểu_Thanh_toán[[#This Row],[SỐ THANH TOÁN]]<>"",SUM(INDEX(Lịch_biểu_Thanh_toán[LÃI],1,1):Lịch_biểu_Thanh_toán[[#This Row],[LÃI]]),"") -> 
B41: =IF(Khoản_vay_Tốt,IF(ROW()-ROW(Lịch_biểu_Thanh_toán[[#Headers],[SỐ THANH TOÁN]])>Số_lần_Thanh_toán_theo_Lịch,"",ROW()-ROW(Lịch_biểu_Thanh_toán[[#Headers],[SỐ THANH TOÁN]])),"") ->  | C41: =IF(Lịch_biểu_Thanh_toán[[#This Row],[SỐ THANH TOÁN]]<>"",EOMONTH(Ngày_Bắt_đầu_Khoản_vay,ROW(Lịch_biểu_Thanh_toán[[#This Row],[SỐ THANH TOÁN]])-ROW(Lịch_biểu_Thanh_toán[[#Headers],[SỐ THANH TOÁN]])-2)+DAY(Ngày_Bắt_đầu_Khoản_vay),"") ->  | D41: =IF(Lịch_biểu_Thanh_toán[[#This Row],[SỐ THANH TOÁN]]<>"",IF(ROW()-ROW(Lịch_biểu_Thanh_toán[[#Headers],[SỐ DƯ ĐẦU]])=1,Số_tiền_Vay,INDEX(Lịch_biểu_Thanh_toán[SỐ DƯ CUỐI],ROW()-ROW(Lịch_biểu_Thanh_toán[[#Headers],[SỐ DƯ ĐẦU]])-1)),"") ->  | E41: =IF(Lịch_biểu_Thanh_toán[[#This Row],[SỐ THANH TOÁN]]<>"",Thanh_toán_theo_Lịch,"") ->  | F41: =IF(Lịch_biểu_Thanh_toán[[#This Row],[SỐ THANH TOÁN]]<>"",IF(Lịch_biểu_Thanh_toán[[#This Row],[THANH TOÁN THEO LỊCH]]+Thanh_Toán_Bổ_sung<Lịch_biểu_Thanh_toán[[#This Row],[SỐ DƯ ĐẦU]],Thanh_Toán_Bổ_sung,IF(Lịch_biểu_Thanh_toán[[#This Row],[SỐ DƯ ĐẦU]]-Lịch_biểu_Thanh_toán[[#This Row],[THANH TOÁN THEO LỊCH]]>0,Lịch_biểu_Thanh_toán[[#This Row],[SỐ DƯ ĐẦU]]-Lịch_biểu_Thanh_toán[[#This Row],[THANH TOÁN THEO LỊCH]],0)),"") ->  | G41: =IF(Lịch_biểu_Thanh_toán[[#This Row],[SỐ THANH TOÁN]]<>"",IF(Lịch_biểu_Thanh_toán[[#This Row],[THANH TOÁN THEO LỊCH]]+Lịch_biểu_Thanh_toán[[#This Row],[THANH TOÁN BỔ SUNG]]<=Lịch_biểu_Thanh_toán[[#This Row],[SỐ DƯ ĐẦU]],Lịch_biểu_Thanh_toán[[#This Row],[THANH TOÁN THEO LỊCH]]+Lịch_biểu_Thanh_toán[[#This Row],[THANH TOÁN BỔ SUNG]],Lịch_biểu_Thanh_toán[[#This Row],[SỐ DƯ ĐẦU]]),"") ->  | H41: =IF(Lịch_biểu_Thanh_toán[[#This Row],[SỐ THANH TOÁN]]<>"",Lịch_biểu_Thanh_toán[[#This Row],[TỔNG THANH TOÁN]]-Lịch_biểu_Thanh_toán[[#This Row],[LÃI]],"") ->  | I41: =IF(Lịch_biểu_Thanh_toán[[#This Row],[SỐ THANH TOÁN]]<>"",Lịch_biểu_Thanh_toán[[#This Row],[SỐ DƯ ĐẦU]]*(Lãi_Suất/Thanh_toán_Mỗi_Năm),"") ->  | J41: =IF(Lịch_biểu_Thanh_toán[[#This Row],[SỐ THANH TOÁN]]<>"",IF(Lịch_biểu_Thanh_toán[[#This Row],[THANH TOÁN THEO LỊCH]]+Lịch_biểu_Thanh_toán[[#This Row],[THANH TOÁN BỔ SUNG]]<=Lịch_biểu_Thanh_toán[[#This Row],[SỐ DƯ ĐẦU]],Lịch_biểu_Thanh_toán[[#This Row],[SỐ DƯ ĐẦU]]-Lịch_biểu_Thanh_toán[[#This Row],[GỐC]],0),"") ->  | K41: =IF(Lịch_biểu_Thanh_toán[[#This Row],[SỐ THANH TOÁN]]<>"",SUM(INDEX(Lịch_biểu_Thanh_toán[LÃI],1,1):Lịch_biểu_Thanh_toán[[#This Row],[LÃI]]),"") -> 
B42: =IF(Khoản_vay_Tốt,IF(ROW()-ROW(Lịch_biểu_Thanh_toán[[#Headers],[SỐ THANH TOÁN]])>Số_lần_Thanh_toán_theo_Lịch,"",ROW()-ROW(Lịch_biểu_Thanh_toán[[#Headers],[SỐ THANH TOÁN]])),"") ->  | C42: =IF(Lịch_biểu_Thanh_toán[[#This Row],[SỐ THANH TOÁN]]<>"",EOMONTH(Ngày_Bắt_đầu_Khoản_vay,ROW(Lịch_biểu_Thanh_toán[[#This Row],[SỐ THANH TOÁN]])-ROW(Lịch_biểu_Thanh_toán[[#Headers],[SỐ THANH TOÁN]])-2)+DAY(Ngày_Bắt_đầu_Khoản_vay),"") ->  | D42: =IF(Lịch_biểu_Thanh_toán[[#This Row],[SỐ THANH TOÁN]]<>"",IF(ROW()-ROW(Lịch_biểu_Thanh_toán[[#Headers],[SỐ DƯ ĐẦU]])=1,Số_tiền_Vay,INDEX(Lịch_biểu_Thanh_toán[SỐ DƯ CUỐI],ROW()-ROW(Lịch_biểu_Thanh_toán[[#Headers],[SỐ DƯ ĐẦU]])-1)),"") ->  | E42: =IF(Lịch_biểu_Thanh_toán[[#This Row],[SỐ THANH TOÁN]]<>"",Thanh_toán_theo_Lịch,"") ->  | F42: =IF(Lịch_biểu_Thanh_toán[[#This Row],[SỐ THANH TOÁN]]<>"",IF(Lịch_biểu_Thanh_toán[[#This Row],[THANH TOÁN THEO LỊCH]]+Thanh_Toán_Bổ_sung<Lịch_biểu_Thanh_toán[[#This Row],[SỐ DƯ ĐẦU]],Thanh_Toán_Bổ_sung,IF(Lịch_biểu_Thanh_toán[[#This Row],[SỐ DƯ ĐẦU]]-Lịch_biểu_Thanh_toán[[#This Row],[THANH TOÁN THEO LỊCH]]>0,Lịch_biểu_Thanh_toán[[#This Row],[SỐ DƯ ĐẦU]]-Lịch_biểu_Thanh_toán[[#This Row],[THANH TOÁN THEO LỊCH]],0)),"") ->  | G42: =IF(Lịch_biểu_Thanh_toán[[#This Row],[SỐ THANH TOÁN]]<>"",IF(Lịch_biểu_Thanh_toán[[#This Row],[THANH TOÁN THEO LỊCH]]+Lịch_biểu_Thanh_toán[[#This Row],[THANH TOÁN BỔ SUNG]]<=Lịch_biểu_Thanh_toán[[#This Row],[SỐ DƯ ĐẦU]],Lịch_biểu_Thanh_toán[[#This Row],[THANH TOÁN THEO LỊCH]]+Lịch_biểu_Thanh_toán[[#This Row],[THANH TOÁN BỔ SUNG]],Lịch_biểu_Thanh_toán[[#This Row],[SỐ DƯ ĐẦU]]),"") ->  | H42: =IF(Lịch_biểu_Thanh_toán[[#This Row],[SỐ THANH TOÁN]]<>"",Lịch_biểu_Thanh_toán[[#This Row],[TỔNG THANH TOÁN]]-Lịch_biểu_Thanh_toán[[#This Row],[LÃI]],"") ->  | I42: =IF(Lịch_biểu_Thanh_toán[[#This Row],[SỐ THANH TOÁN]]<>"",Lịch_biểu_Thanh_toán[[#This Row],[SỐ DƯ ĐẦU]]*(Lãi_Suất/Thanh_toán_Mỗi_Năm),"") ->  | J42: =IF(Lịch_biểu_Thanh_toán[[#This Row],[SỐ THANH TOÁN]]<>"",IF(Lịch_biểu_Thanh_toán[[#This Row],[THANH TOÁN THEO LỊCH]]+Lịch_biểu_Thanh_toán[[#This Row],[THANH TOÁN BỔ SUNG]]<=Lịch_biểu_Thanh_toán[[#This Row],[SỐ DƯ ĐẦU]],Lịch_biểu_Thanh_toán[[#This Row],[SỐ DƯ ĐẦU]]-Lịch_biểu_Thanh_toán[[#This Row],[GỐC]],0),"") ->  | K42: =IF(Lịch_biểu_Thanh_toán[[#This Row],[SỐ THANH TOÁN]]<>"",SUM(INDEX(Lịch_biểu_Thanh_toán[LÃI],1,1):Lịch_biểu_Thanh_toán[[#This Row],[LÃI]]),"") -> 
B43: =IF(Khoản_vay_Tốt,IF(ROW()-ROW(Lịch_biểu_Thanh_toán[[#Headers],[SỐ THANH TOÁN]])>Số_lần_Thanh_toán_theo_Lịch,"",ROW()-ROW(Lịch_biểu_Thanh_toán[[#Headers],[SỐ THANH TOÁN]])),"") ->  | C43: =IF(Lịch_biểu_Thanh_toán[[#This Row],[SỐ THANH TOÁN]]<>"",EOMONTH(Ngày_Bắt_đầu_Khoản_vay,ROW(Lịch_biểu_Thanh_toán[[#This Row],[SỐ THANH TOÁN]])-ROW(Lịch_biểu_Thanh_toán[[#Headers],[SỐ THANH TOÁN]])-2)+DAY(Ngày_Bắt_đầu_Khoản_vay),"") ->  | D43: =IF(Lịch_biểu_Thanh_toán[[#This Row],[SỐ THANH TOÁN]]<>"",IF(ROW()-ROW(Lịch_biểu_Thanh_toán[[#Headers],[SỐ DƯ ĐẦU]])=1,Số_tiền_Vay,INDEX(Lịch_biểu_Thanh_toán[SỐ DƯ CUỐI],ROW()-ROW(Lịch_biểu_Thanh_toán[[#Headers],[SỐ DƯ ĐẦU]])-1)),"") ->  | E43: =IF(Lịch_biểu_Thanh_toán[[#This Row],[SỐ THANH TOÁN]]<>"",Thanh_toán_theo_Lịch,"") ->  | F43: =IF(Lịch_biểu_Thanh_toán[[#This Row],[SỐ THANH TOÁN]]<>"",IF(Lịch_biểu_Thanh_toán[[#This Row],[THANH TOÁN THEO LỊCH]]+Thanh_Toán_Bổ_sung<Lịch_biểu_Thanh_toán[[#This Row],[SỐ DƯ ĐẦU]],Thanh_Toán_Bổ_sung,IF(Lịch_biểu_Thanh_toán[[#This Row],[SỐ DƯ ĐẦU]]-Lịch_biểu_Thanh_toán[[#This Row],[THANH TOÁN THEO LỊCH]]>0,Lịch_biểu_Thanh_toán[[#This Row],[SỐ DƯ ĐẦU]]-Lịch_biểu_Thanh_toán[[#This Row],[THANH TOÁN THEO LỊCH]],0)),"") ->  | G43: =IF(Lịch_biểu_Thanh_toán[[#This Row],[SỐ THANH TOÁN]]<>"",IF(Lịch_biểu_Thanh_toán[[#This Row],[THANH TOÁN THEO LỊCH]]+Lịch_biểu_Thanh_toán[[#This Row],[THANH TOÁN BỔ SUNG]]<=Lịch_biểu_Thanh_toán[[#This Row],[SỐ DƯ ĐẦU]],Lịch_biểu_Thanh_toán[[#This Row],[THANH TOÁN THEO LỊCH]]+Lịch_biểu_Thanh_toán[[#This Row],[THANH TOÁN BỔ SUNG]],Lịch_biểu_Thanh_toán[[#This Row],[SỐ DƯ ĐẦU]]),"") ->  | H43: =IF(Lịch_biểu_Thanh_toán[[#This Row],[SỐ THANH TOÁN]]<>"",Lịch_biểu_Thanh_toán[[#This Row],[TỔNG THANH TOÁN]]-Lịch_biểu_Thanh_toán[[#This Row],[LÃI]],"") ->  | I43: =IF(Lịch_biểu_Thanh_toán[[#This Row],[SỐ THANH TOÁN]]<>"",Lịch_biểu_Thanh_toán[[#This Row],[SỐ DƯ ĐẦU]]*(Lãi_Suất/Thanh_toán_Mỗi_Năm),"") ->  | J43: =IF(Lịch_biểu_Thanh_toán[[#This Row],[SỐ THANH TOÁN]]<>"",IF(Lịch_biểu_Thanh_toán[[#This Row],[THANH TOÁN THEO LỊCH]]+Lịch_biểu_Thanh_toán[[#This Row],[THANH TOÁN BỔ SUNG]]<=Lịch_biểu_Thanh_toán[[#This Row],[SỐ DƯ ĐẦU]],Lịch_biểu_Thanh_toán[[#This Row],[SỐ DƯ ĐẦU]]-Lịch_biểu_Thanh_toán[[#This Row],[GỐC]],0),"") ->  | K43: =IF(Lịch_biểu_Thanh_toán[[#This Row],[SỐ THANH TOÁN]]<>"",SUM(INDEX(Lịch_biểu_Thanh_toán[LÃI],1,1):Lịch_biểu_Thanh_toán[[#This Row],[LÃI]]),"") -> 
B44: =IF(Khoản_vay_Tốt,IF(ROW()-ROW(Lịch_biểu_Thanh_toán[[#Headers],[SỐ THANH TOÁN]])>Số_lần_Thanh_toán_theo_Lịch,"",ROW()-ROW(Lịch_biểu_Thanh_toán[[#Headers],[SỐ THANH TOÁN]])),"") ->  | C44: =IF(Lịch_biểu_Thanh_toán[[#This Row],[SỐ THANH TOÁN]]<>"",EOMONTH(Ngày_Bắt_đầu_Khoản_vay,ROW(Lịch_biểu_Thanh_toán[[#This Row],[SỐ THANH TOÁN]])-ROW(Lịch_biểu_Thanh_toán[[#Headers],[SỐ THANH TOÁN]])-2)+DAY(Ngày_Bắt_đầu_Khoản_vay),"") ->  | D44: =IF(Lịch_biểu_Thanh_toán[[#This Row],[SỐ THANH TOÁN]]<>"",IF(ROW()-ROW(Lịch_biểu_Thanh_toán[[#Headers],[SỐ DƯ ĐẦU]])=1,Số_tiền_Vay,INDEX(Lịch_biểu_Thanh_toán[SỐ DƯ CUỐI],ROW()-ROW(Lịch_biểu_Thanh_toán[[#Headers],[SỐ DƯ ĐẦU]])-1)),"") ->  | E44: =IF(Lịch_biểu_Thanh_toán[[#This Row],[SỐ THANH TOÁN]]<>"",Thanh_toán_theo_Lịch,"") ->  | F44: =IF(Lịch_biểu_Thanh_toán[[#This Row],[SỐ THANH TOÁN]]<>"",IF(Lịch_biểu_Thanh_toán[[#This Row],[THANH TOÁN THEO LỊCH]]+Thanh_Toán_Bổ_sung<Lịch_biểu_Thanh_toán[[#This Row],[SỐ DƯ ĐẦU]],Thanh_Toán_Bổ_sung,IF(Lịch_biểu_Thanh_toán[[#This Row],[SỐ DƯ ĐẦU]]-Lịch_biểu_Thanh_toán[[#This Row],[THANH TOÁN THEO LỊCH]]>0,Lịch_biểu_Thanh_toán[[#This Row],[SỐ DƯ ĐẦU]]-Lịch_biểu_Thanh_toán[[#This Row],[THANH TOÁN THEO LỊCH]],0)),"") ->  | G44: =IF(Lịch_biểu_Thanh_toán[[#This Row],[SỐ THANH TOÁN]]<>"",IF(Lịch_biểu_Thanh_toán[[#This Row],[THANH TOÁN THEO LỊCH]]+Lịch_biểu_Thanh_toán[[#This Row],[THANH TOÁN BỔ SUNG]]<=Lịch_biểu_Thanh_toán[[#This Row],[SỐ DƯ ĐẦU]],Lịch_biểu_Thanh_toán[[#This Row],[THANH TOÁN THEO LỊCH]]+Lịch_biểu_Thanh_toán[[#This Row],[THANH TOÁN BỔ SUNG]],Lịch_biểu_Thanh_toán[[#This Row],[SỐ DƯ ĐẦU]]),"") ->  | H44: =IF(Lịch_biểu_Thanh_toán[[#This Row],[SỐ THANH TOÁN]]<>"",Lịch_biểu_Thanh_toán[[#This Row],[TỔNG THANH TOÁN]]-Lịch_biểu_Thanh_toán[[#This Row],[LÃI]],"") ->  | I44: =IF(Lịch_biểu_Thanh_toán[[#This Row],[SỐ THANH TOÁN]]<>"",Lịch_biểu_Thanh_toán[[#This Row],[SỐ DƯ ĐẦU]]*(Lãi_Suất/Thanh_toán_Mỗi_Năm),"") ->  | J44: =IF(Lịch_biểu_Thanh_toán[[#This Row],[SỐ THANH TOÁN]]<>"",IF(Lịch_biểu_Thanh_toán[[#This Row],[THANH TOÁN THEO LỊCH]]+Lịch_biểu_Thanh_toán[[#This Row],[THANH TOÁN BỔ SUNG]]<=Lịch_biểu_Thanh_toán[[#This Row],[SỐ DƯ ĐẦU]],Lịch_biểu_Thanh_toán[[#This Row],[SỐ DƯ ĐẦU]]-Lịch_biểu_Thanh_toán[[#This Row],[GỐC]],0),"") ->  | K44: =IF(Lịch_biểu_Thanh_toán[[#This Row],[SỐ THANH TOÁN]]<>"",SUM(INDEX(Lịch_biểu_Thanh_toán[LÃI],1,1):Lịch_biểu_Thanh_toán[[#This Row],[LÃI]]),"") -> 
B45: =IF(Khoản_vay_Tốt,IF(ROW()-ROW(Lịch_biểu_Thanh_toán[[#Headers],[SỐ THANH TOÁN]])>Số_lần_Thanh_toán_theo_Lịch,"",ROW()-ROW(Lịch_biểu_Thanh_toán[[#Headers],[SỐ THANH TOÁN]])),"") ->  | C45: =IF(Lịch_biểu_Thanh_toán[[#This Row],[SỐ THANH TOÁN]]<>"",EOMONTH(Ngày_Bắt_đầu_Khoản_vay,ROW(Lịch_biểu_Thanh_toán[[#This Row],[SỐ THANH TOÁN]])-ROW(Lịch_biểu_Thanh_toán[[#Headers],[SỐ THANH TOÁN]])-2)+DAY(Ngày_Bắt_đầu_Khoản_vay),"") ->  | D45: =IF(Lịch_biểu_Thanh_toán[[#This Row],[SỐ THANH TOÁN]]<>"",IF(ROW()-ROW(Lịch_biểu_Thanh_toán[[#Headers],[SỐ DƯ ĐẦU]])=1,Số_tiền_Vay,INDEX(Lịch_biểu_Thanh_toán[SỐ DƯ CUỐI],ROW()-ROW(Lịch_biểu_Thanh_toán[[#Headers],[SỐ DƯ ĐẦU]])-1)),"") ->  | E45: =IF(Lịch_biểu_Thanh_toán[[#This Row],[SỐ THANH TOÁN]]<>"",Thanh_toán_theo_Lịch,"") ->  | F45: =IF(Lịch_biểu_Thanh_toán[[#This Row],[SỐ THANH TOÁN]]<>"",IF(Lịch_biểu_Thanh_toán[[#This Row],[THANH TOÁN THEO LỊCH]]+Thanh_Toán_Bổ_sung<Lịch_biểu_Thanh_toán[[#This Row],[SỐ DƯ ĐẦU]],Thanh_Toán_Bổ_sung,IF(Lịch_biểu_Thanh_toán[[#This Row],[SỐ DƯ ĐẦU]]-Lịch_biểu_Thanh_toán[[#This Row],[THANH TOÁN THEO LỊCH]]>0,Lịch_biểu_Thanh_toán[[#This Row],[SỐ DƯ ĐẦU]]-Lịch_biểu_Thanh_toán[[#This Row],[THANH TOÁN THEO LỊCH]],0)),"") ->  | G45: =IF(Lịch_biểu_Thanh_toán[[#This Row],[SỐ THANH TOÁN]]<>"",IF(Lịch_biểu_Thanh_toán[[#This Row],[THANH TOÁN THEO LỊCH]]+Lịch_biểu_Thanh_toán[[#This Row],[THANH TOÁN BỔ SUNG]]<=Lịch_biểu_Thanh_toán[[#This Row],[SỐ DƯ ĐẦU]],Lịch_biểu_Thanh_toán[[#This Row],[THANH TOÁN THEO LỊCH]]+Lịch_biểu_Thanh_toán[[#This Row],[THANH TOÁN BỔ SUNG]],Lịch_biểu_Thanh_toán[[#This Row],[SỐ DƯ ĐẦU]]),"") ->  | H45: =IF(Lịch_biểu_Thanh_toán[[#This Row],[SỐ THANH TOÁN]]<>"",Lịch_biểu_Thanh_toán[[#This Row],[TỔNG THANH TOÁN]]-Lịch_biểu_Thanh_toán[[#This Row],[LÃI]],"") ->  | I45: =IF(Lịch_biểu_Thanh_toán[[#This Row],[SỐ THANH TOÁN]]<>"",Lịch_biểu_Thanh_toán[[#This Row],[SỐ DƯ ĐẦU]]*(Lãi_Suất/Thanh_toán_Mỗi_Năm),"") ->  | J45: =IF(Lịch_biểu_Thanh_toán[[#This Row],[SỐ THANH TOÁN]]<>"",IF(Lịch_biểu_Thanh_toán[[#This Row],[THANH TOÁN THEO LỊCH]]+Lịch_biểu_Thanh_toán[[#This Row],[THANH TOÁN BỔ SUNG]]<=Lịch_biểu_Thanh_toán[[#This Row],[SỐ DƯ ĐẦU]],Lịch_biểu_Thanh_toán[[#This Row],[SỐ DƯ ĐẦU]]-Lịch_biểu_Thanh_toán[[#This Row],[GỐC]],0),"") ->  | K45: =IF(Lịch_biểu_Thanh_toán[[#This Row],[SỐ THANH TOÁN]]<>"",SUM(INDEX(Lịch_biểu_Thanh_toán[LÃI],1,1):Lịch_biểu_Thanh_toán[[#This Row],[LÃI]]),"") -> 
B46: =IF(Khoản_vay_Tốt,IF(ROW()-ROW(Lịch_biểu_Thanh_toán[[#Headers],[SỐ THANH TOÁN]])>Số_lần_Thanh_toán_theo_Lịch,"",ROW()-ROW(Lịch_biểu_Thanh_toán[[#Headers],[SỐ THANH TOÁN]])),"") ->  | C46: =IF(Lịch_biểu_Thanh_toán[[#This Row],[SỐ THANH TOÁN]]<>"",EOMONTH(Ngày_Bắt_đầu_Khoản_vay,ROW(Lịch_biểu_Thanh_toán[[#This Row],[SỐ THANH TOÁN]])-ROW(Lịch_biểu_Thanh_toán[[#Headers],[SỐ THANH TOÁN]])-2)+DAY(Ngày_Bắt_đầu_Khoản_vay),"") ->  | D46: =IF(Lịch_biểu_Thanh_toán[[#This Row],[SỐ THANH TOÁN]]<>"",IF(ROW()-ROW(Lịch_biểu_Thanh_toán[[#Headers],[SỐ DƯ ĐẦU]])=1,Số_tiền_Vay,INDEX(Lịch_biểu_Thanh_toán[SỐ DƯ CUỐI],ROW()-ROW(Lịch_biểu_Thanh_toán[[#Headers],[SỐ DƯ ĐẦU]])-1)),"") ->  | E46: =IF(Lịch_biểu_Thanh_toán[[#This Row],[SỐ THANH TOÁN]]<>"",Thanh_toán_theo_Lịch,"") ->  | F46: =IF(Lịch_biểu_Thanh_toán[[#This Row],[SỐ THANH TOÁN]]<>"",IF(Lịch_biểu_Thanh_toán[[#This Row],[THANH TOÁN THEO LỊCH]]+Thanh_Toán_Bổ_sung<Lịch_biểu_Thanh_toán[[#This Row],[SỐ DƯ ĐẦU]],Thanh_Toán_Bổ_sung,IF(Lịch_biểu_Thanh_toán[[#This Row],[SỐ DƯ ĐẦU]]-Lịch_biểu_Thanh_toán[[#This Row],[THANH TOÁN THEO LỊCH]]>0,Lịch_biểu_Thanh_toán[[#This Row],[SỐ DƯ ĐẦU]]-Lịch_biểu_Thanh_toán[[#This Row],[THANH TOÁN THEO LỊCH]],0)),"") ->  | G46: =IF(Lịch_biểu_Thanh_toán[[#This Row],[SỐ THANH TOÁN]]<>"",IF(Lịch_biểu_Thanh_toán[[#This Row],[THANH TOÁN THEO LỊCH]]+Lịch_biểu_Thanh_toán[[#This Row],[THANH TOÁN BỔ SUNG]]<=Lịch_biểu_Thanh_toán[[#This Row],[SỐ DƯ ĐẦU]],Lịch_biểu_Thanh_toán[[#This Row],[THANH TOÁN THEO LỊCH]]+Lịch_biểu_Thanh_toán[[#This Row],[THANH TOÁN BỔ SUNG]],Lịch_biểu_Thanh_toán[[#This Row],[SỐ DƯ ĐẦU]]),"") ->  | H46: =IF(Lịch_biểu_Thanh_toán[[#This Row],[SỐ THANH TOÁN]]<>"",Lịch_biểu_Thanh_toán[[#This Row],[TỔNG THANH TOÁN]]-Lịch_biểu_Thanh_toán[[#This Row],[LÃI]],"") ->  | I46: =IF(Lịch_biểu_Thanh_toán[[#This Row],[SỐ THANH TOÁN]]<>"",Lịch_biểu_Thanh_toán[[#This Row],[SỐ DƯ ĐẦU]]*(Lãi_Suất/Thanh_toán_Mỗi_Năm),"") ->  | J46: =IF(Lịch_biểu_Thanh_toán[[#This Row],[SỐ THANH TOÁN]]<>"",IF(Lịch_biểu_Thanh_toán[[#This Row],[THANH TOÁN THEO LỊCH]]+Lịch_biểu_Thanh_toán[[#This Row],[THANH TOÁN BỔ SUNG]]<=Lịch_biểu_Thanh_toán[[#This Row],[SỐ DƯ ĐẦU]],Lịch_biểu_Thanh_toán[[#This Row],[SỐ DƯ ĐẦU]]-Lịch_biểu_Thanh_toán[[#This Row],[GỐC]],0),"") ->  | K46: =IF(Lịch_biểu_Thanh_toán[[#This Row],[SỐ THANH TOÁN]]<>"",SUM(INDEX(Lịch_biểu_Thanh_toán[LÃI],1,1):Lịch_biểu_Thanh_toán[[#This Row],[LÃI]]),"") -> 
B47: =IF(Khoản_vay_Tốt,IF(ROW()-ROW(Lịch_biểu_Thanh_toán[[#Headers],[SỐ THANH TOÁN]])>Số_lần_Thanh_toán_theo_Lịch,"",ROW()-ROW(Lịch_biểu_Thanh_toán[[#Headers],[SỐ THANH TOÁN]])),"") ->  | C47: =IF(Lịch_biểu_Thanh_toán[[#This Row],[SỐ THANH TOÁN]]<>"",EOMONTH(Ngày_Bắt_đầu_Khoản_vay,ROW(Lịch_biểu_Thanh_toán[[#This Row],[SỐ THANH TOÁN]])-ROW(Lịch_biểu_Thanh_toán[[#Headers],[SỐ THANH TOÁN]])-2)+DAY(Ngày_Bắt_đầu_Khoản_vay),"") ->  | D47: =IF(Lịch_biểu_Thanh_toán[[#This Row],[SỐ THANH TOÁN]]<>"",IF(ROW()-ROW(Lịch_biểu_Thanh_toán[[#Headers],[SỐ DƯ ĐẦU]])=1,Số_tiền_Vay,INDEX(Lịch_biểu_Thanh_toán[SỐ DƯ CUỐI],ROW()-ROW(Lịch_biểu_Thanh_toán[[#Headers],[SỐ DƯ ĐẦU]])-1)),"") ->  | E47: =IF(Lịch_biểu_Thanh_toán[[#This Row],[SỐ THANH TOÁN]]<>"",Thanh_toán_theo_Lịch,"") ->  | F47: =IF(Lịch_biểu_Thanh_toán[[#This Row],[SỐ THANH TOÁN]]<>"",IF(Lịch_biểu_Thanh_toán[[#This Row],[THANH TOÁN THEO LỊCH]]+Thanh_Toán_Bổ_sung<Lịch_biểu_Thanh_toán[[#This Row],[SỐ DƯ ĐẦU]],Thanh_Toán_Bổ_sung,IF(Lịch_biểu_Thanh_toán[[#This Row],[SỐ DƯ ĐẦU]]-Lịch_biểu_Thanh_toán[[#This Row],[THANH TOÁN THEO LỊCH]]>0,Lịch_biểu_Thanh_toán[[#This Row],[SỐ DƯ ĐẦU]]-Lịch_biểu_Thanh_toán[[#This Row],[THANH TOÁN THEO LỊCH]],0)),"") ->  | G47: =IF(Lịch_biểu_Thanh_toán[[#This Row],[SỐ THANH TOÁN]]<>"",IF(Lịch_biểu_Thanh_toán[[#This Row],[THANH TOÁN THEO LỊCH]]+Lịch_biểu_Thanh_toán[[#This Row],[THANH TOÁN BỔ SUNG]]<=Lịch_biểu_Thanh_toán[[#This Row],[SỐ DƯ ĐẦU]],Lịch_biểu_Thanh_toán[[#This Row],[THANH TOÁN THEO LỊCH]]+Lịch_biểu_Thanh_toán[[#This Row],[THANH TOÁN BỔ SUNG]],Lịch_biểu_Thanh_toán[[#This Row],[SỐ DƯ ĐẦU]]),"") ->  | H47: =IF(Lịch_biểu_Thanh_toán[[#This Row],[SỐ THANH TOÁN]]<>"",Lịch_biểu_Thanh_toán[[#This Row],[TỔNG THANH TOÁN]]-Lịch_biểu_Thanh_toán[[#This Row],[LÃI]],"") ->  | I47: =IF(Lịch_biểu_Thanh_toán[[#This Row],[SỐ THANH TOÁN]]<>"",Lịch_biểu_Thanh_toán[[#This Row],[SỐ DƯ ĐẦU]]*(Lãi_Suất/Thanh_toán_Mỗi_Năm),"") ->  | J47: =IF(Lịch_biểu_Thanh_toán[[#This Row],[SỐ THANH TOÁN]]<>"",IF(Lịch_biểu_Thanh_toán[[#This Row],[THANH TOÁN THEO LỊCH]]+Lịch_biểu_Thanh_toán[[#This Row],[THANH TOÁN BỔ SUNG]]<=Lịch_biểu_Thanh_toán[[#This Row],[SỐ DƯ ĐẦU]],Lịch_biểu_Thanh_toán[[#This Row],[SỐ DƯ ĐẦU]]-Lịch_biểu_Thanh_toán[[#This Row],[GỐC]],0),"") ->  | K47: =IF(Lịch_biểu_Thanh_toán[[#This Row],[SỐ THANH TOÁN]]<>"",SUM(INDEX(Lịch_biểu_Thanh_toán[LÃI],1,1):Lịch_biểu_Thanh_toán[[#This Row],[LÃI]]),"") -> 
B48: =IF(Khoản_vay_Tốt,IF(ROW()-ROW(Lịch_biểu_Thanh_toán[[#Headers],[SỐ THANH TOÁN]])>Số_lần_Thanh_toán_theo_Lịch,"",ROW()-ROW(Lịch_biểu_Thanh_toán[[#Headers],[SỐ THANH TOÁN]])),"") ->  | C48: =IF(Lịch_biểu_Thanh_toán[[#This Row],[SỐ THANH TOÁN]]<>"",EOMONTH(Ngày_Bắt_đầu_Khoản_vay,ROW(Lịch_biểu_Thanh_toán[[#This Row],[SỐ THANH TOÁN]])-ROW(Lịch_biểu_Thanh_toán[[#Headers],[SỐ THANH TOÁN]])-2)+DAY(Ngày_Bắt_đầu_Khoản_vay),"") ->  | D48: =IF(Lịch_biểu_Thanh_toán[[#This Row],[SỐ THANH TOÁN]]<>"",IF(ROW()-ROW(Lịch_biểu_Thanh_toán[[#Headers],[SỐ DƯ ĐẦU]])=1,Số_tiền_Vay,INDEX(Lịch_biểu_Thanh_toán[SỐ DƯ CUỐI],ROW()-ROW(Lịch_biểu_Thanh_toán[[#Headers],[SỐ DƯ ĐẦU]])-1)),"") ->  | E48: =IF(Lịch_biểu_Thanh_toán[[#This Row],[SỐ THANH TOÁN]]<>"",Thanh_toán_theo_Lịch,"") ->  | F48: =IF(Lịch_biểu_Thanh_toán[[#This Row],[SỐ THANH TOÁN]]<>"",IF(Lịch_biểu_Thanh_toán[[#This Row],[THANH TOÁN THEO LỊCH]]+Thanh_Toán_Bổ_sung<Lịch_biểu_Thanh_toán[[#This Row],[SỐ DƯ ĐẦU]],Thanh_Toán_Bổ_sung,IF(Lịch_biểu_Thanh_toán[[#This Row],[SỐ DƯ ĐẦU]]-Lịch_biểu_Thanh_toán[[#This Row],[THANH TOÁN THEO LỊCH]]>0,Lịch_biểu_Thanh_toán[[#This Row],[SỐ DƯ ĐẦU]]-Lịch_biểu_Thanh_toán[[#This Row],[THANH TOÁN THEO LỊCH]],0)),"") ->  | G48: =IF(Lịch_biểu_Thanh_toán[[#This Row],[SỐ THANH TOÁN]]<>"",IF(Lịch_biểu_Thanh_toán[[#This Row],[THANH TOÁN THEO LỊCH]]+Lịch_biểu_Thanh_toán[[#This Row],[THANH TOÁN BỔ SUNG]]<=Lịch_biểu_Thanh_toán[[#This Row],[SỐ DƯ ĐẦU]],Lịch_biểu_Thanh_toán[[#This Row],[THANH TOÁN THEO LỊCH]]+Lịch_biểu_Thanh_toán[[#This Row],[THANH TOÁN BỔ SUNG]],Lịch_biểu_Thanh_toán[[#This Row],[SỐ DƯ ĐẦU]]),"") ->  | H48: =IF(Lịch_biểu_Thanh_toán[[#This Row],[SỐ THANH TOÁN]]<>"",Lịch_biểu_Thanh_toán[[#This Row],[TỔNG THANH TOÁN]]-Lịch_biểu_Thanh_toán[[#This Row],[LÃI]],"") ->  | I48: =IF(Lịch_biểu_Thanh_toán[[#This Row],[SỐ THANH TOÁN]]<>"",Lịch_biểu_Thanh_toán[[#This Row],[SỐ DƯ ĐẦU]]*(Lãi_Suất/Thanh_toán_Mỗi_Năm),"") ->  | J48: =IF(Lịch_biểu_Thanh_toán[[#This Row],[SỐ THANH TOÁN]]<>"",IF(Lịch_biểu_Thanh_toán[[#This Row],[THANH TOÁN THEO LỊCH]]+Lịch_biểu_Thanh_toán[[#This Row],[THANH TOÁN BỔ SUNG]]<=Lịch_biểu_Thanh_toán[[#This Row],[SỐ DƯ ĐẦU]],Lịch_biểu_Thanh_toán[[#This Row],[SỐ DƯ ĐẦU]]-Lịch_biểu_Thanh_toán[[#This Row],[GỐC]],0),"") ->  | K48: =IF(Lịch_biểu_Thanh_toán[[#This Row],[SỐ THANH TOÁN]]<>"",SUM(INDEX(Lịch_biểu_Thanh_toán[LÃI],1,1):Lịch_biểu_Thanh_toán[[#This Row],[LÃI]]),"") -> 
B49: =IF(Khoản_vay_Tốt,IF(ROW()-ROW(Lịch_biểu_Thanh_toán[[#Headers],[SỐ THANH TOÁN]])>Số_lần_Thanh_toán_theo_Lịch,"",ROW()-ROW(Lịch_biểu_Thanh_toán[[#Headers],[SỐ THANH TOÁN]])),"") ->  | C49: =IF(Lịch_biểu_Thanh_toán[[#This Row],[SỐ THANH TOÁN]]<>"",EOMONTH(Ngày_Bắt_đầu_Khoản_vay,ROW(Lịch_biểu_Thanh_toán[[#This Row],[SỐ THANH TOÁN]])-ROW(Lịch_biểu_Thanh_toán[[#Headers],[SỐ THANH TOÁN]])-2)+DAY(Ngày_Bắt_đầu_Khoản_vay),"") ->  | D49: =IF(Lịch_biểu_Thanh_toán[[#This Row],[SỐ THANH TOÁN]]<>"",IF(ROW()-ROW(Lịch_biểu_Thanh_toán[[#Headers],[SỐ DƯ ĐẦU]])=1,Số_tiền_Vay,INDEX(Lịch_biểu_Thanh_toán[SỐ DƯ CUỐI],ROW()-ROW(Lịch_biểu_Thanh_toán[[#Headers],[SỐ DƯ ĐẦU]])-1)),"") ->  | E49: =IF(Lịch_biểu_Thanh_toán[[#This Row],[SỐ THANH TOÁN]]<>"",Thanh_toán_theo_Lịch,"") ->  | F49: =IF(Lịch_biểu_Thanh_toán[[#This Row],[SỐ THANH TOÁN]]<>"",IF(Lịch_biểu_Thanh_toán[[#This Row],[THANH TOÁN THEO LỊCH]]+Thanh_Toán_Bổ_sung<Lịch_biểu_Thanh_toán[[#This Row],[SỐ DƯ ĐẦU]],Thanh_Toán_Bổ_sung,IF(Lịch_biểu_Thanh_toán[[#This Row],[SỐ DƯ ĐẦU]]-Lịch_biểu_Thanh_toán[[#This Row],[THANH TOÁN THEO LỊCH]]>0,Lịch_biểu_Thanh_toán[[#This Row],[SỐ DƯ ĐẦU]]-Lịch_biểu_Thanh_toán[[#This Row],[THANH TOÁN THEO LỊCH]],0)),"") ->  | G49: =IF(Lịch_biểu_Thanh_toán[[#This Row],[SỐ THANH TOÁN]]<>"",IF(Lịch_biểu_Thanh_toán[[#This Row],[THANH TOÁN THEO LỊCH]]+Lịch_biểu_Thanh_toán[[#This Row],[THANH TOÁN BỔ SUNG]]<=Lịch_biểu_Thanh_toán[[#This Row],[SỐ DƯ ĐẦU]],Lịch_biểu_Thanh_toán[[#This Row],[THANH TOÁN THEO LỊCH]]+Lịch_biểu_Thanh_toán[[#This Row],[THANH TOÁN BỔ SUNG]],Lịch_biểu_Thanh_toán[[#This Row],[SỐ DƯ ĐẦU]]),"") ->  | H49: =IF(Lịch_biểu_Thanh_toán[[#This Row],[SỐ THANH TOÁN]]<>"",Lịch_biểu_Thanh_toán[[#This Row],[TỔNG THANH TOÁN]]-Lịch_biểu_Thanh_toán[[#This Row],[LÃI]],"") ->  | I49: =IF(Lịch_biểu_Thanh_toán[[#This Row],[SỐ THANH TOÁN]]<>"",Lịch_biểu_Thanh_toán[[#This Row],[SỐ DƯ ĐẦU]]*(Lãi_Suất/Thanh_toán_Mỗi_Năm),"") ->  | J49: =IF(Lịch_biểu_Thanh_toán[[#This Row],[SỐ THANH TOÁN]]<>"",IF(Lịch_biểu_Thanh_toán[[#This Row],[THANH TOÁN THEO LỊCH]]+Lịch_biểu_Thanh_toán[[#This Row],[THANH TOÁN BỔ SUNG]]<=Lịch_biểu_Thanh_toán[[#This Row],[SỐ DƯ ĐẦU]],Lịch_biểu_Thanh_toán[[#This Row],[SỐ DƯ ĐẦU]]-Lịch_biểu_Thanh_toán[[#This Row],[GỐC]],0),"") ->  | K49: =IF(Lịch_biểu_Thanh_toán[[#This Row],[SỐ THANH TOÁN]]<>"",SUM(INDEX(Lịch_biểu_Thanh_toán[LÃI],1,1):Lịch_biểu_Thanh_toán[[#This Row],[LÃI]]),"") -> 
B50: =IF(Khoản_vay_Tốt,IF(ROW()-ROW(Lịch_biểu_Thanh_toán[[#Headers],[SỐ THANH TOÁN]])>Số_lần_Thanh_toán_theo_Lịch,"",ROW()-ROW(Lịch_biểu_Thanh_toán[[#Headers],[SỐ THANH TOÁN]])),"") ->  | C50: =IF(Lịch_biểu_Thanh_toán[[#This Row],[SỐ THANH TOÁN]]<>"",EOMONTH(Ngày_Bắt_đầu_Khoản_vay,ROW(Lịch_biểu_Thanh_toán[[#This Row],[SỐ THANH TOÁN]])-ROW(Lịch_biểu_Thanh_toán[[#Headers],[SỐ THANH TOÁN]])-2)+DAY(Ngày_Bắt_đầu_Khoản_vay),"") ->  | D50: =IF(Lịch_biểu_Thanh_toán[[#This Row],[SỐ THANH TOÁN]]<>"",IF(ROW()-ROW(Lịch_biểu_Thanh_toán[[#Headers],[SỐ DƯ ĐẦU]])=1,Số_tiền_Vay,INDEX(Lịch_biểu_Thanh_toán[SỐ DƯ CUỐI],ROW()-ROW(Lịch_biểu_Thanh_toán[[#Headers],[SỐ DƯ ĐẦU]])-1)),"") ->  | E50: =IF(Lịch_biểu_Thanh_toán[[#This Row],[SỐ THANH TOÁN]]<>"",Thanh_toán_theo_Lịch,"") ->  | F50: =IF(Lịch_biểu_Thanh_toán[[#This Row],[SỐ THANH TOÁN]]<>"",IF(Lịch_biểu_Thanh_toán[[#This Row],[THANH TOÁN THEO LỊCH]]+Thanh_Toán_Bổ_sung<Lịch_biểu_Thanh_toán[[#This Row],[SỐ DƯ ĐẦU]],Thanh_Toán_Bổ_sung,IF(Lịch_biểu_Thanh_toán[[#This Row],[SỐ DƯ ĐẦU]]-Lịch_biểu_Thanh_toán[[#This Row],[THANH TOÁN THEO LỊCH]]>0,Lịch_biểu_Thanh_toán[[#This Row],[SỐ DƯ ĐẦU]]-Lịch_biểu_Thanh_toán[[#This Row],[THANH TOÁN THEO LỊCH]],0)),"") ->  | G50: =IF(Lịch_biểu_Thanh_toán[[#This Row],[SỐ THANH TOÁN]]<>"",IF(Lịch_biểu_Thanh_toán[[#This Row],[THANH TOÁN THEO LỊCH]]+Lịch_biểu_Thanh_toán[[#This Row],[THANH TOÁN BỔ SUNG]]<=Lịch_biểu_Thanh_toán[[#This Row],[SỐ DƯ ĐẦU]],Lịch_biểu_Thanh_toán[[#This Row],[THANH TOÁN THEO LỊCH]]+Lịch_biểu_Thanh_toán[[#This Row],[THANH TOÁN BỔ SUNG]],Lịch_biểu_Thanh_toán[[#This Row],[SỐ DƯ ĐẦU]]),"") ->  | H50: =IF(Lịch_biểu_Thanh_toán[[#This Row],[SỐ THANH TOÁN]]<>"",Lịch_biểu_Thanh_toán[[#This Row],[TỔNG THANH TOÁN]]-Lịch_biểu_Thanh_toán[[#This Row],[LÃI]],"") ->  | I50: =IF(Lịch_biểu_Thanh_toán[[#This Row],[SỐ THANH TOÁN]]<>"",Lịch_biểu_Thanh_toán[[#This Row],[SỐ DƯ ĐẦU]]*(Lãi_Suất/Thanh_toán_Mỗi_Năm),"") ->  | J50: =IF(Lịch_biểu_Thanh_toán[[#This Row],[SỐ THANH TOÁN]]<>"",IF(Lịch_biểu_Thanh_toán[[#This Row],[THANH TOÁN THEO LỊCH]]+Lịch_biểu_Thanh_toán[[#This Row],[THANH TOÁN BỔ SUNG]]<=Lịch_biểu_Thanh_toán[[#This Row],[SỐ DƯ ĐẦU]],Lịch_biểu_Thanh_toán[[#This Row],[SỐ DƯ ĐẦU]]-Lịch_biểu_Thanh_toán[[#This Row],[GỐC]],0),"") ->  | K50: =IF(Lịch_biểu_Thanh_toán[[#This Row],[SỐ THANH TOÁN]]<>"",SUM(INDEX(Lịch_biểu_Thanh_toán[LÃI],1,1):Lịch_biểu_Thanh_toán[[#This Row],[LÃI]]),"") -> 
B51: =IF(Khoản_vay_Tốt,IF(ROW()-ROW(Lịch_biểu_Thanh_toán[[#Headers],[SỐ THANH TOÁN]])>Số_lần_Thanh_toán_theo_Lịch,"",ROW()-ROW(Lịch_biểu_Thanh_toán[[#Headers],[SỐ THANH TOÁN]])),"") ->  | C51: =IF(Lịch_biểu_Thanh_toán[[#This Row],[SỐ THANH TOÁN]]<>"",EOMONTH(Ngày_Bắt_đầu_Khoản_vay,ROW(Lịch_biểu_Thanh_toán[[#This Row],[SỐ THANH TOÁN]])-ROW(Lịch_biểu_Thanh_toán[[#Headers],[SỐ THANH TOÁN]])-2)+DAY(Ngày_Bắt_đầu_Khoản_vay),"") ->  | D51: =IF(Lịch_biểu_Thanh_toán[[#This Row],[SỐ THANH TOÁN]]<>"",IF(ROW()-ROW(Lịch_biểu_Thanh_toán[[#Headers],[SỐ DƯ ĐẦU]])=1,Số_tiền_Vay,INDEX(Lịch_biểu_Thanh_toán[SỐ DƯ CUỐI],ROW()-ROW(Lịch_biểu_Thanh_toán[[#Headers],[SỐ DƯ ĐẦU]])-1)),"") ->  | E51: =IF(Lịch_biểu_Thanh_toán[[#This Row],[SỐ THANH TOÁN]]<>"",Thanh_toán_theo_Lịch,"") ->  | F51: =IF(Lịch_biểu_Thanh_toán[[#This Row],[SỐ THANH TOÁN]]<>"",IF(Lịch_biểu_Thanh_toán[[#This Row],[THANH TOÁN THEO LỊCH]]+Thanh_Toán_Bổ_sung<Lịch_biểu_Thanh_toán[[#This Row],[SỐ DƯ ĐẦU]],Thanh_Toán_Bổ_sung,IF(Lịch_biểu_Thanh_toán[[#This Row],[SỐ DƯ ĐẦU]]-Lịch_biểu_Thanh_toán[[#This Row],[THANH TOÁN THEO LỊCH]]>0,Lịch_biểu_Thanh_toán[[#This Row],[SỐ DƯ ĐẦU]]-Lịch_biểu_Thanh_toán[[#This Row],[THANH TOÁN THEO LỊCH]],0)),"") ->  | G51: =IF(Lịch_biểu_Thanh_toán[[#This Row],[SỐ THANH TOÁN]]<>"",IF(Lịch_biểu_Thanh_toán[[#This Row],[THANH TOÁN THEO LỊCH]]+Lịch_biểu_Thanh_toán[[#This Row],[THANH TOÁN BỔ SUNG]]<=Lịch_biểu_Thanh_toán[[#This Row],[SỐ DƯ ĐẦU]],Lịch_biểu_Thanh_toán[[#This Row],[THANH TOÁN THEO LỊCH]]+Lịch_biểu_Thanh_toán[[#This Row],[THANH TOÁN BỔ SUNG]],Lịch_biểu_Thanh_toán[[#This Row],[SỐ DƯ ĐẦU]]),"") ->  | H51: =IF(Lịch_biểu_Thanh_toán[[#This Row],[SỐ THANH TOÁN]]<>"",Lịch_biểu_Thanh_toán[[#This Row],[TỔNG THANH TOÁN]]-Lịch_biểu_Thanh_toán[[#This Row],[LÃI]],"") ->  | I51: =IF(Lịch_biểu_Thanh_toán[[#This Row],[SỐ THANH TOÁN]]<>"",Lịch_biểu_Thanh_toán[[#This Row],[SỐ DƯ ĐẦU]]*(Lãi_Suất/Thanh_toán_Mỗi_Năm),"") ->  | J51: =IF(Lịch_biểu_Thanh_toán[[#This Row],[SỐ THANH TOÁN]]<>"",IF(Lịch_biểu_Thanh_toán[[#This Row],[THANH TOÁN THEO LỊCH]]+Lịch_biểu_Thanh_toán[[#This Row],[THANH TOÁN BỔ SUNG]]<=Lịch_biểu_Thanh_toán[[#This Row],[SỐ DƯ ĐẦU]],Lịch_biểu_Thanh_toán[[#This Row],[SỐ DƯ ĐẦU]]-Lịch_biểu_Thanh_toán[[#This Row],[GỐC]],0),"") ->  | K51: =IF(Lịch_biểu_Thanh_toán[[#This Row],[SỐ THANH TOÁN]]<>"",SUM(INDEX(Lịch_biểu_Thanh_toán[LÃI],1,1):Lịch_biểu_Thanh_toán[[#This Row],[LÃI]]),"") -> 
B52: =IF(Khoản_vay_Tốt,IF(ROW()-ROW(Lịch_biểu_Thanh_toán[[#Headers],[SỐ THANH TOÁN]])>Số_lần_Thanh_toán_theo_Lịch,"",ROW()-ROW(Lịch_biểu_Thanh_toán[[#Headers],[SỐ THANH TOÁN]])),"") ->  | C52: =IF(Lịch_biểu_Thanh_toán[[#This Row],[SỐ THANH TOÁN]]<>"",EOMONTH(Ngày_Bắt_đầu_Khoản_vay,ROW(Lịch_biểu_Thanh_toán[[#This Row],[SỐ THANH TOÁN]])-ROW(Lịch_biểu_Thanh_toán[[#Headers],[SỐ THANH TOÁN]])-2)+DAY(Ngày_Bắt_đầu_Khoản_vay),"") ->  | D52: =IF(Lịch_biểu_Thanh_toán[[#This Row],[SỐ THANH TOÁN]]<>"",IF(ROW()-ROW(Lịch_biểu_Thanh_toán[[#Headers],[SỐ DƯ ĐẦU]])=1,Số_tiền_Vay,INDEX(Lịch_biểu_Thanh_toán[SỐ DƯ CUỐI],ROW()-ROW(Lịch_biểu_Thanh_toán[[#Headers],[SỐ DƯ ĐẦU]])-1)),"") ->  | E52: =IF(Lịch_biểu_Thanh_toán[[#This Row],[SỐ THANH TOÁN]]<>"",Thanh_toán_theo_Lịch,"") ->  | F52: =IF(Lịch_biểu_Thanh_toán[[#This Row],[SỐ THANH TOÁN]]<>"",IF(Lịch_biểu_Thanh_toán[[#This Row],[THANH TOÁN THEO LỊCH]]+Thanh_Toán_Bổ_sung<Lịch_biểu_Thanh_toán[[#This Row],[SỐ DƯ ĐẦU]],Thanh_Toán_Bổ_sung,IF(Lịch_biểu_Thanh_toán[[#This Row],[SỐ DƯ ĐẦU]]-Lịch_biểu_Thanh_toán[[#This Row],[THANH TOÁN THEO LỊCH]]>0,Lịch_biểu_Thanh_toán[[#This Row],[SỐ DƯ ĐẦU]]-Lịch_biểu_Thanh_toán[[#This Row],[THANH TOÁN THEO LỊCH]],0)),"") ->  | G52: =IF(Lịch_biểu_Thanh_toán[[#This Row],[SỐ THANH TOÁN]]<>"",IF(Lịch_biểu_Thanh_toán[[#This Row],[THANH TOÁN THEO LỊCH]]+Lịch_biểu_Thanh_toán[[#This Row],[THANH TOÁN BỔ SUNG]]<=Lịch_biểu_Thanh_toán[[#This Row],[SỐ DƯ ĐẦU]],Lịch_biểu_Thanh_toán[[#This Row],[THANH TOÁN THEO LỊCH]]+Lịch_biểu_Thanh_toán[[#This Row],[THANH TOÁN BỔ SUNG]],Lịch_biểu_Thanh_toán[[#This Row],[SỐ DƯ ĐẦU]]),"") ->  | H52: =IF(Lịch_biểu_Thanh_toán[[#This Row],[SỐ THANH TOÁN]]<>"",Lịch_biểu_Thanh_toán[[#This Row],[TỔNG THANH TOÁN]]-Lịch_biểu_Thanh_toán[[#This Row],[LÃI]],"") ->  | I52: =IF(Lịch_biểu_Thanh_toán[[#This Row],[SỐ THANH TOÁN]]<>"",Lịch_biểu_Thanh_toán[[#This Row],[SỐ DƯ ĐẦU]]*(Lãi_Suất/Thanh_toán_Mỗi_Năm),"") ->  | J52: =IF(Lịch_biểu_Thanh_toán[[#This Row],[SỐ THANH TOÁN]]<>"",IF(Lịch_biểu_Thanh_toán[[#This Row],[THANH TOÁN THEO LỊCH]]+Lịch_biểu_Thanh_toán[[#This Row],[THANH TOÁN BỔ SUNG]]<=Lịch_biểu_Thanh_toán[[#This Row],[SỐ DƯ ĐẦU]],Lịch_biểu_Thanh_toán[[#This Row],[SỐ DƯ ĐẦU]]-Lịch_biểu_Thanh_toán[[#This Row],[GỐC]],0),"") ->  | K52: =IF(Lịch_biểu_Thanh_toán[[#This Row],[SỐ THANH TOÁN]]<>"",SUM(INDEX(Lịch_biểu_Thanh_toán[LÃI],1,1):Lịch_biểu_Thanh_toán[[#This Row],[LÃI]]),"") -> 
B53: =IF(Khoản_vay_Tốt,IF(ROW()-ROW(Lịch_biểu_Thanh_toán[[#Headers],[SỐ THANH TOÁN]])>Số_lần_Thanh_toán_theo_Lịch,"",ROW()-ROW(Lịch_biểu_Thanh_toán[[#Headers],[SỐ THANH TOÁN]])),"") ->  | C53: =IF(Lịch_biểu_Thanh_toán[[#This Row],[SỐ THANH TOÁN]]<>"",EOMONTH(Ngày_Bắt_đầu_Khoản_vay,ROW(Lịch_biểu_Thanh_toán[[#This Row],[SỐ THANH TOÁN]])-ROW(Lịch_biểu_Thanh_toán[[#Headers],[SỐ THANH TOÁN]])-2)+DAY(Ngày_Bắt_đầu_Khoản_vay),"") ->  | D53: =IF(Lịch_biểu_Thanh_toán[[#This Row],[SỐ THANH TOÁN]]<>"",IF(ROW()-ROW(Lịch_biểu_Thanh_toán[[#Headers],[SỐ DƯ ĐẦU]])=1,Số_tiền_Vay,INDEX(Lịch_biểu_Thanh_toán[SỐ DƯ CUỐI],ROW()-ROW(Lịch_biểu_Thanh_toán[[#Headers],[SỐ DƯ ĐẦU]])-1)),"") ->  | E53: =IF(Lịch_biểu_Thanh_toán[[#This Row],[SỐ THANH TOÁN]]<>"",Thanh_toán_theo_Lịch,"") ->  | F53: =IF(Lịch_biểu_Thanh_toán[[#This Row],[SỐ THANH TOÁN]]<>"",IF(Lịch_biểu_Thanh_toán[[#This Row],[THANH TOÁN THEO LỊCH]]+Thanh_Toán_Bổ_sung<Lịch_biểu_Thanh_toán[[#This Row],[SỐ DƯ ĐẦU]],Thanh_Toán_Bổ_sung,IF(Lịch_biểu_Thanh_toán[[#This Row],[SỐ DƯ ĐẦU]]-Lịch_biểu_Thanh_toán[[#This Row],[THANH TOÁN THEO LỊCH]]>0,Lịch_biểu_Thanh_toán[[#This Row],[SỐ DƯ ĐẦU]]-Lịch_biểu_Thanh_toán[[#This Row],[THANH TOÁN THEO LỊCH]],0)),"") ->  | G53: =IF(Lịch_biểu_Thanh_toán[[#This Row],[SỐ THANH TOÁN]]<>"",IF(Lịch_biểu_Thanh_toán[[#This Row],[THANH TOÁN THEO LỊCH]]+Lịch_biểu_Thanh_toán[[#This Row],[THANH TOÁN BỔ SUNG]]<=Lịch_biểu_Thanh_toán[[#This Row],[SỐ DƯ ĐẦU]],Lịch_biểu_Thanh_toán[[#This Row],[THANH TOÁN THEO LỊCH]]+Lịch_biểu_Thanh_toán[[#This Row],[THANH TOÁN BỔ SUNG]],Lịch_biểu_Thanh_toán[[#This Row],[SỐ DƯ ĐẦU]]),"") ->  | H53: =IF(Lịch_biểu_Thanh_toán[[#This Row],[SỐ THANH TOÁN]]<>"",Lịch_biểu_Thanh_toán[[#This Row],[TỔNG THANH TOÁN]]-Lịch_biểu_Thanh_toán[[#This Row],[LÃI]],"") ->  | I53: =IF(Lịch_biểu_Thanh_toán[[#This Row],[SỐ THANH TOÁN]]<>"",Lịch_biểu_Thanh_toán[[#This Row],[SỐ DƯ ĐẦU]]*(Lãi_Suất/Thanh_toán_Mỗi_Năm),"") ->  | J53: =IF(Lịch_biểu_Thanh_toán[[#This Row],[SỐ THANH TOÁN]]<>"",IF(Lịch_biểu_Thanh_toán[[#This Row],[THANH TOÁN THEO LỊCH]]+Lịch_biểu_Thanh_toán[[#This Row],[THANH TOÁN BỔ SUNG]]<=Lịch_biểu_Thanh_toán[[#This Row],[SỐ DƯ ĐẦU]],Lịch_biểu_Thanh_toán[[#This Row],[SỐ DƯ ĐẦU]]-Lịch_biểu_Thanh_toán[[#This Row],[GỐC]],0),"") ->  | K53: =IF(Lịch_biểu_Thanh_toán[[#This Row],[SỐ THANH TOÁN]]<>"",SUM(INDEX(Lịch_biểu_Thanh_toán[LÃI],1,1):Lịch_biểu_Thanh_toán[[#This Row],[LÃI]]),"") -> 
B54: =IF(Khoản_vay_Tốt,IF(ROW()-ROW(Lịch_biểu_Thanh_toán[[#Headers],[SỐ THANH TOÁN]])>Số_lần_Thanh_toán_theo_Lịch,"",ROW()-ROW(Lịch_biểu_Thanh_toán[[#Headers],[SỐ THANH TOÁN]])),"") ->  | C54: =IF(Lịch_biểu_Thanh_toán[[#This Row],[SỐ THANH TOÁN]]<>"",EOMONTH(Ngày_Bắt_đầu_Khoản_vay,ROW(Lịch_biểu_Thanh_toán[[#This Row],[SỐ THANH TOÁN]])-ROW(Lịch_biểu_Thanh_toán[[#Headers],[SỐ THANH TOÁN]])-2)+DAY(Ngày_Bắt_đầu_Khoản_vay),"") ->  | D54: =IF(Lịch_biểu_Thanh_toán[[#This Row],[SỐ THANH TOÁN]]<>"",IF(ROW()-ROW(Lịch_biểu_Thanh_toán[[#Headers],[SỐ DƯ ĐẦU]])=1,Số_tiền_Vay,INDEX(Lịch_biểu_Thanh_toán[SỐ DƯ CUỐI],ROW()-ROW(Lịch_biểu_Thanh_toán[[#Headers],[SỐ DƯ ĐẦU]])-1)),"") ->  | E54: =IF(Lịch_biểu_Thanh_toán[[#This Row],[SỐ THANH TOÁN]]<>"",Thanh_toán_theo_Lịch,"") ->  | F54: =IF(Lịch_biểu_Thanh_toán[[#This Row],[SỐ THANH TOÁN]]<>"",IF(Lịch_biểu_Thanh_toán[[#This Row],[THANH TOÁN THEO LỊCH]]+Thanh_Toán_Bổ_sung<Lịch_biểu_Thanh_toán[[#This Row],[SỐ DƯ ĐẦU]],Thanh_Toán_Bổ_sung,IF(Lịch_biểu_Thanh_toán[[#This Row],[SỐ DƯ ĐẦU]]-Lịch_biểu_Thanh_toán[[#This Row],[THANH TOÁN THEO LỊCH]]>0,Lịch_biểu_Thanh_toán[[#This Row],[SỐ DƯ ĐẦU]]-Lịch_biểu_Thanh_toán[[#This Row],[THANH TOÁN THEO LỊCH]],0)),"") ->  | G54: =IF(Lịch_biểu_Thanh_toán[[#This Row],[SỐ THANH TOÁN]]<>"",IF(Lịch_biểu_Thanh_toán[[#This Row],[THANH TOÁN THEO LỊCH]]+Lịch_biểu_Thanh_toán[[#This Row],[THANH TOÁN BỔ SUNG]]<=Lịch_biểu_Thanh_toán[[#This Row],[SỐ DƯ ĐẦU]],Lịch_biểu_Thanh_toán[[#This Row],[THANH TOÁN THEO LỊCH]]+Lịch_biểu_Thanh_toán[[#This Row],[THANH TOÁN BỔ SUNG]],Lịch_biểu_Thanh_toán[[#This Row],[SỐ DƯ ĐẦU]]),"") ->  | H54: =IF(Lịch_biểu_Thanh_toán[[#This Row],[SỐ THANH TOÁN]]<>"",Lịch_biểu_Thanh_toán[[#This Row],[TỔNG THANH TOÁN]]-Lịch_biểu_Thanh_toán[[#This Row],[LÃI]],"") ->  | I54: =IF(Lịch_biểu_Thanh_toán[[#This Row],[SỐ THANH TOÁN]]<>"",Lịch_biểu_Thanh_toán[[#This Row],[SỐ DƯ ĐẦU]]*(Lãi_Suất/Thanh_toán_Mỗi_Năm),"") ->  | J54: =IF(Lịch_biểu_Thanh_toán[[#This Row],[SỐ THANH TOÁN]]<>"",IF(Lịch_biểu_Thanh_toán[[#This Row],[THANH TOÁN THEO LỊCH]]+Lịch_biểu_Thanh_toán[[#This Row],[THANH TOÁN BỔ SUNG]]<=Lịch_biểu_Thanh_toán[[#This Row],[SỐ DƯ ĐẦU]],Lịch_biểu_Thanh_toán[[#This Row],[SỐ DƯ ĐẦU]]-Lịch_biểu_Thanh_toán[[#This Row],[GỐC]],0),"") ->  | K54: =IF(Lịch_biểu_Thanh_toán[[#This Row],[SỐ THANH TOÁN]]<>"",SUM(INDEX(Lịch_biểu_Thanh_toán[LÃI],1,1):Lịch_biểu_Thanh_toán[[#This Row],[LÃI]]),"") -> 
B55: =IF(Khoản_vay_Tốt,IF(ROW()-ROW(Lịch_biểu_Thanh_toán[[#Headers],[SỐ THANH TOÁN]])>Số_lần_Thanh_toán_theo_Lịch,"",ROW()-ROW(Lịch_biểu_Thanh_toán[[#Headers],[SỐ THANH TOÁN]])),"") ->  | C55: =IF(Lịch_biểu_Thanh_toán[[#This Row],[SỐ THANH TOÁN]]<>"",EOMONTH(Ngày_Bắt_đầu_Khoản_vay,ROW(Lịch_biểu_Thanh_toán[[#This Row],[SỐ THANH TOÁN]])-ROW(Lịch_biểu_Thanh_toán[[#Headers],[SỐ THANH TOÁN]])-2)+DAY(Ngày_Bắt_đầu_Khoản_vay),"") ->  | D55: =IF(Lịch_biểu_Thanh_toán[[#This Row],[SỐ THANH TOÁN]]<>"",IF(ROW()-ROW(Lịch_biểu_Thanh_toán[[#Headers],[SỐ DƯ ĐẦU]])=1,Số_tiền_Vay,INDEX(Lịch_biểu_Thanh_toán[SỐ DƯ CUỐI],ROW()-ROW(Lịch_biểu_Thanh_toán[[#Headers],[SỐ DƯ ĐẦU]])-1)),"") ->  | E55: =IF(Lịch_biểu_Thanh_toán[[#This Row],[SỐ THANH TOÁN]]<>"",Thanh_toán_theo_Lịch,"") ->  | F55: =IF(Lịch_biểu_Thanh_toán[[#This Row],[SỐ THANH TOÁN]]<>"",IF(Lịch_biểu_Thanh_toán[[#This Row],[THANH TOÁN THEO LỊCH]]+Thanh_Toán_Bổ_sung<Lịch_biểu_Thanh_toán[[#This Row],[SỐ DƯ ĐẦU]],Thanh_Toán_Bổ_sung,IF(Lịch_biểu_Thanh_toán[[#This Row],[SỐ DƯ ĐẦU]]-Lịch_biểu_Thanh_toán[[#This Row],[THANH TOÁN THEO LỊCH]]>0,Lịch_biểu_Thanh_toán[[#This Row],[SỐ DƯ ĐẦU]]-Lịch_biểu_Thanh_toán[[#This Row],[THANH TOÁN THEO LỊCH]],0)),"") ->  | G55: =IF(Lịch_biểu_Thanh_toán[[#This Row],[SỐ THANH TOÁN]]<>"",IF(Lịch_biểu_Thanh_toán[[#This Row],[THANH TOÁN THEO LỊCH]]+Lịch_biểu_Thanh_toán[[#This Row],[THANH TOÁN BỔ SUNG]]<=Lịch_biểu_Thanh_toán[[#This Row],[SỐ DƯ ĐẦU]],Lịch_biểu_Thanh_toán[[#This Row],[THANH TOÁN THEO LỊCH]]+Lịch_biểu_Thanh_toán[[#This Row],[THANH TOÁN BỔ SUNG]],Lịch_biểu_Thanh_toán[[#This Row],[SỐ DƯ ĐẦU]]),"") ->  | H55: =IF(Lịch_biểu_Thanh_toán[[#This Row],[SỐ THANH TOÁN]]<>"",Lịch_biểu_Thanh_toán[[#This Row],[TỔNG THANH TOÁN]]-Lịch_biểu_Thanh_toán[[#This Row],[LÃI]],"") ->  | I55: =IF(Lịch_biểu_Thanh_toán[[#This Row],[SỐ THANH TOÁN]]<>"",Lịch_biểu_Thanh_toán[[#This Row],[SỐ DƯ ĐẦU]]*(Lãi_Suất/Thanh_toán_Mỗi_Năm),"") ->  | J55: =IF(Lịch_biểu_Thanh_toán[[#This Row],[SỐ THANH TOÁN]]<>"",IF(Lịch_biểu_Thanh_toán[[#This Row],[THANH TOÁN THEO LỊCH]]+Lịch_biểu_Thanh_toán[[#This Row],[THANH TOÁN BỔ SUNG]]<=Lịch_biểu_Thanh_toán[[#This Row],[SỐ DƯ ĐẦU]],Lịch_biểu_Thanh_toán[[#This Row],[SỐ DƯ ĐẦU]]-Lịch_biểu_Thanh_toán[[#This Row],[GỐC]],0),"") ->  | K55: =IF(Lịch_biểu_Thanh_toán[[#This Row],[SỐ THANH TOÁN]]<>"",SUM(INDEX(Lịch_biểu_Thanh_toán[LÃI],1,1):Lịch_biểu_Thanh_toán[[#This Row],[LÃI]]),"") -> 
B56: =IF(Khoản_vay_Tốt,IF(ROW()-ROW(Lịch_biểu_Thanh_toán[[#Headers],[SỐ THANH TOÁN]])>Số_lần_Thanh_toán_theo_Lịch,"",ROW()-ROW(Lịch_biểu_Thanh_toán[[#Headers],[SỐ THANH TOÁN]])),"") ->  | C56: =IF(Lịch_biểu_Thanh_toán[[#This Row],[SỐ THANH TOÁN]]<>"",EOMONTH(Ngày_Bắt_đầu_Khoản_vay,ROW(Lịch_biểu_Thanh_toán[[#This Row],[SỐ THANH TOÁN]])-ROW(Lịch_biểu_Thanh_toán[[#Headers],[SỐ THANH TOÁN]])-2)+DAY(Ngày_Bắt_đầu_Khoản_vay),"") ->  | D56: =IF(Lịch_biểu_Thanh_toán[[#This Row],[SỐ THANH TOÁN]]<>"",IF(ROW()-ROW(Lịch_biểu_Thanh_toán[[#Headers],[SỐ DƯ ĐẦU]])=1,Số_tiền_Vay,INDEX(Lịch_biểu_Thanh_toán[SỐ DƯ CUỐI],ROW()-ROW(Lịch_biểu_Thanh_toán[[#Headers],[SỐ DƯ ĐẦU]])-1)),"") ->  | E56: =IF(Lịch_biểu_Thanh_toán[[#This Row],[SỐ THANH TOÁN]]<>"",Thanh_toán_theo_Lịch,"") ->  | F56: =IF(Lịch_biểu_Thanh_toán[[#This Row],[SỐ THANH TOÁN]]<>"",IF(Lịch_biểu_Thanh_toán[[#This Row],[THANH TOÁN THEO LỊCH]]+Thanh_Toán_Bổ_sung<Lịch_biểu_Thanh_toán[[#This Row],[SỐ DƯ ĐẦU]],Thanh_Toán_Bổ_sung,IF(Lịch_biểu_Thanh_toán[[#This Row],[SỐ DƯ ĐẦU]]-Lịch_biểu_Thanh_toán[[#This Row],[THANH TOÁN THEO LỊCH]]>0,Lịch_biểu_Thanh_toán[[#This Row],[SỐ DƯ ĐẦU]]-Lịch_biểu_Thanh_toán[[#This Row],[THANH TOÁN THEO LỊCH]],0)),"") ->  | G56: =IF(Lịch_biểu_Thanh_toán[[#This Row],[SỐ THANH TOÁN]]<>"",IF(Lịch_biểu_Thanh_toán[[#This Row],[THANH TOÁN THEO LỊCH]]+Lịch_biểu_Thanh_toán[[#This Row],[THANH TOÁN BỔ SUNG]]<=Lịch_biểu_Thanh_toán[[#This Row],[SỐ DƯ ĐẦU]],Lịch_biểu_Thanh_toán[[#This Row],[THANH TOÁN THEO LỊCH]]+Lịch_biểu_Thanh_toán[[#This Row],[THANH TOÁN BỔ SUNG]],Lịch_biểu_Thanh_toán[[#This Row],[SỐ DƯ ĐẦU]]),"") ->  | H56: =IF(Lịch_biểu_Thanh_toán[[#This Row],[SỐ THANH TOÁN]]<>"",Lịch_biểu_Thanh_toán[[#This Row],[TỔNG THANH TOÁN]]-Lịch_biểu_Thanh_toán[[#This Row],[LÃI]],"") ->  | I56: =IF(Lịch_biểu_Thanh_toán[[#This Row],[SỐ THANH TOÁN]]<>"",Lịch_biểu_Thanh_toán[[#This Row],[SỐ DƯ ĐẦU]]*(Lãi_Suất/Thanh_toán_Mỗi_Năm),"") ->  | J56: =IF(Lịch_biểu_Thanh_toán[[#This Row],[SỐ THANH TOÁN]]<>"",IF(Lịch_biểu_Thanh_toán[[#This Row],[THANH TOÁN THEO LỊCH]]+Lịch_biểu_Thanh_toán[[#This Row],[THANH TOÁN BỔ SUNG]]<=Lịch_biểu_Thanh_toán[[#This Row],[SỐ DƯ ĐẦU]],Lịch_biểu_Thanh_toán[[#This Row],[SỐ DƯ ĐẦU]]-Lịch_biểu_Thanh_toán[[#This Row],[GỐC]],0),"") ->  | K56: =IF(Lịch_biểu_Thanh_toán[[#This Row],[SỐ THANH TOÁN]]<>"",SUM(INDEX(Lịch_biểu_Thanh_toán[LÃI],1,1):Lịch_biểu_Thanh_toán[[#This Row],[LÃI]]),"") -> 
B57: =IF(Khoản_vay_Tốt,IF(ROW()-ROW(Lịch_biểu_Thanh_toán[[#Headers],[SỐ THANH TOÁN]])>Số_lần_Thanh_toán_theo_Lịch,"",ROW()-ROW(Lịch_biểu_Thanh_toán[[#Headers],[SỐ THANH TOÁN]])),"") ->  | C57: =IF(Lịch_biểu_Thanh_toán[[#This Row],[SỐ THANH TOÁN]]<>"",EOMONTH(Ngày_Bắt_đầu_Khoản_vay,ROW(Lịch_biểu_Thanh_toán[[#This Row],[SỐ THANH TOÁN]])-ROW(Lịch_biểu_Thanh_toán[[#Headers],[SỐ THANH TOÁN]])-2)+DAY(Ngày_Bắt_đầu_Khoản_vay),"") ->  | D57: =IF(Lịch_biểu_Thanh_toán[[#This Row],[SỐ THANH TOÁN]]<>"",IF(ROW()-ROW(Lịch_biểu_Thanh_toán[[#Headers],[SỐ DƯ ĐẦU]])=1,Số_tiền_Vay,INDEX(Lịch_biểu_Thanh_toán[SỐ DƯ CUỐI],ROW()-ROW(Lịch_biểu_Thanh_toán[[#Headers],[SỐ DƯ ĐẦU]])-1)),"") ->  | E57: =IF(Lịch_biểu_Thanh_toán[[#This Row],[SỐ THANH TOÁN]]<>"",Thanh_toán_theo_Lịch,"") ->  | F57: =IF(Lịch_biểu_Thanh_toán[[#This Row],[SỐ THANH TOÁN]]<>"",IF(Lịch_biểu_Thanh_toán[[#This Row],[THANH TOÁN THEO LỊCH]]+Thanh_Toán_Bổ_sung<Lịch_biểu_Thanh_toán[[#This Row],[SỐ DƯ ĐẦU]],Thanh_Toán_Bổ_sung,IF(Lịch_biểu_Thanh_toán[[#This Row],[SỐ DƯ ĐẦU]]-Lịch_biểu_Thanh_toán[[#This Row],[THANH TOÁN THEO LỊCH]]>0,Lịch_biểu_Thanh_toán[[#This Row],[SỐ DƯ ĐẦU]]-Lịch_biểu_Thanh_toán[[#This Row],[THANH TOÁN THEO LỊCH]],0)),"") ->  | G57: =IF(Lịch_biểu_Thanh_toán[[#This Row],[SỐ THANH TOÁN]]<>"",IF(Lịch_biểu_Thanh_toán[[#This Row],[THANH TOÁN THEO LỊCH]]+Lịch_biểu_Thanh_toán[[#This Row],[THANH TOÁN BỔ SUNG]]<=Lịch_biểu_Thanh_toán[[#This Row],[SỐ DƯ ĐẦU]],Lịch_biểu_Thanh_toán[[#This Row],[THANH TOÁN THEO LỊCH]]+Lịch_biểu_Thanh_toán[[#This Row],[THANH TOÁN BỔ SUNG]],Lịch_biểu_Thanh_toán[[#This Row],[SỐ DƯ ĐẦU]]),"") ->  | H57: =IF(Lịch_biểu_Thanh_toán[[#This Row],[SỐ THANH TOÁN]]<>"",Lịch_biểu_Thanh_toán[[#This Row],[TỔNG THANH TOÁN]]-Lịch_biểu_Thanh_toán[[#This Row],[LÃI]],"") ->  | I57: =IF(Lịch_biểu_Thanh_toán[[#This Row],[SỐ THANH TOÁN]]<>"",Lịch_biểu_Thanh_toán[[#This Row],[SỐ DƯ ĐẦU]]*(Lãi_Suất/Thanh_toán_Mỗi_Năm),"") ->  | J57: =IF(Lịch_biểu_Thanh_toán[[#This Row],[SỐ THANH TOÁN]]<>"",IF(Lịch_biểu_Thanh_toán[[#This Row],[THANH TOÁN THEO LỊCH]]+Lịch_biểu_Thanh_toán[[#This Row],[THANH TOÁN BỔ SUNG]]<=Lịch_biểu_Thanh_toán[[#This Row],[SỐ DƯ ĐẦU]],Lịch_biểu_Thanh_toán[[#This Row],[SỐ DƯ ĐẦU]]-Lịch_biểu_Thanh_toán[[#This Row],[GỐC]],0),"") ->  | K57: =IF(Lịch_biểu_Thanh_toán[[#This Row],[SỐ THANH TOÁN]]<>"",SUM(INDEX(Lịch_biểu_Thanh_toán[LÃI],1,1):Lịch_biểu_Thanh_toán[[#This Row],[LÃI]]),"") -> 
B58: =IF(Khoản_vay_Tốt,IF(ROW()-ROW(Lịch_biểu_Thanh_toán[[#Headers],[SỐ THANH TOÁN]])>Số_lần_Thanh_toán_theo_Lịch,"",ROW()-ROW(Lịch_biểu_Thanh_toán[[#Headers],[SỐ THANH TOÁN]])),"") ->  | C58: =IF(Lịch_biểu_Thanh_toán[[#This Row],[SỐ THANH TOÁN]]<>"",EOMONTH(Ngày_Bắt_đầu_Khoản_vay,ROW(Lịch_biểu_Thanh_toán[[#This Row],[SỐ THANH TOÁN]])-ROW(Lịch_biểu_Thanh_toán[[#Headers],[SỐ THANH TOÁN]])-2)+DAY(Ngày_Bắt_đầu_Khoản_vay),"") ->  | D58: =IF(Lịch_biểu_Thanh_toán[[#This Row],[SỐ THANH TOÁN]]<>"",IF(ROW()-ROW(Lịch_biểu_Thanh_toán[[#Headers],[SỐ DƯ ĐẦU]])=1,Số_tiền_Vay,INDEX(Lịch_biểu_Thanh_toán[SỐ DƯ CUỐI],ROW()-ROW(Lịch_biểu_Thanh_toán[[#Headers],[SỐ DƯ ĐẦU]])-1)),"") ->  | E58: =IF(Lịch_biểu_Thanh_toán[[#This Row],[SỐ THANH TOÁN]]<>"",Thanh_toán_theo_Lịch,"") ->  | F58: =IF(Lịch_biểu_Thanh_toán[[#This Row],[SỐ THANH TOÁN]]<>"",IF(Lịch_biểu_Thanh_toán[[#This Row],[THANH TOÁN THEO LỊCH]]+Thanh_Toán_Bổ_sung<Lịch_biểu_Thanh_toán[[#This Row],[SỐ DƯ ĐẦU]],Thanh_Toán_Bổ_sung,IF(Lịch_biểu_Thanh_toán[[#This Row],[SỐ DƯ ĐẦU]]-Lịch_biểu_Thanh_toán[[#This Row],[THANH TOÁN THEO LỊCH]]>0,Lịch_biểu_Thanh_toán[[#This Row],[SỐ DƯ ĐẦU]]-Lịch_biểu_Thanh_toán[[#This Row],[THANH TOÁN THEO LỊCH]],0)),"") ->  | G58: =IF(Lịch_biểu_Thanh_toán[[#This Row],[SỐ THANH TOÁN]]<>"",IF(Lịch_biểu_Thanh_toán[[#This Row],[THANH TOÁN THEO LỊCH]]+Lịch_biểu_Thanh_toán[[#This Row],[THANH TOÁN BỔ SUNG]]<=Lịch_biểu_Thanh_toán[[#This Row],[SỐ DƯ ĐẦU]],Lịch_biểu_Thanh_toán[[#This Row],[THANH TOÁN THEO LỊCH]]+Lịch_biểu_Thanh_toán[[#This Row],[THANH TOÁN BỔ SUNG]],Lịch_biểu_Thanh_toán[[#This Row],[SỐ DƯ ĐẦU]]),"") ->  | H58: =IF(Lịch_biểu_Thanh_toán[[#This Row],[SỐ THANH TOÁN]]<>"",Lịch_biểu_Thanh_toán[[#This Row],[TỔNG THANH TOÁN]]-Lịch_biểu_Thanh_toán[[#This Row],[LÃI]],"") ->  | I58: =IF(Lịch_biểu_Thanh_toán[[#This Row],[SỐ THANH TOÁN]]<>"",Lịch_biểu_Thanh_toán[[#This Row],[SỐ DƯ ĐẦU]]*(Lãi_Suất/Thanh_toán_Mỗi_Năm),"") ->  | J58: =IF(Lịch_biểu_Thanh_toán[[#This Row],[SỐ THANH TOÁN]]<>"",IF(Lịch_biểu_Thanh_toán[[#This Row],[THANH TOÁN THEO LỊCH]]+Lịch_biểu_Thanh_toán[[#This Row],[THANH TOÁN BỔ SUNG]]<=Lịch_biểu_Thanh_toán[[#This Row],[SỐ DƯ ĐẦU]],Lịch_biểu_Thanh_toán[[#This Row],[SỐ DƯ ĐẦU]]-Lịch_biểu_Thanh_toán[[#This Row],[GỐC]],0),"") ->  | K58: =IF(Lịch_biểu_Thanh_toán[[#This Row],[SỐ THANH TOÁN]]<>"",SUM(INDEX(Lịch_biểu_Thanh_toán[LÃI],1,1):Lịch_biểu_Thanh_toán[[#This Row],[LÃI]]),"") -> 
B59: =IF(Khoản_vay_Tốt,IF(ROW()-ROW(Lịch_biểu_Thanh_toán[[#Headers],[SỐ THANH TOÁN]])>Số_lần_Thanh_toán_theo_Lịch,"",ROW()-ROW(Lịch_biểu_Thanh_toán[[#Headers],[SỐ THANH TOÁN]])),"") ->  | C59: =IF(Lịch_biểu_Thanh_toán[[#This Row],[SỐ THANH TOÁN]]<>"",EOMONTH(Ngày_Bắt_đầu_Khoản_vay,ROW(Lịch_biểu_Thanh_toán[[#This Row],[SỐ THANH TOÁN]])-ROW(Lịch_biểu_Thanh_toán[[#Headers],[SỐ THANH TOÁN]])-2)+DAY(Ngày_Bắt_đầu_Khoản_vay),"") ->  | D59: =IF(Lịch_biểu_Thanh_toán[[#This Row],[SỐ THANH TOÁN]]<>"",IF(ROW()-ROW(Lịch_biểu_Thanh_toán[[#Headers],[SỐ DƯ ĐẦU]])=1,Số_tiền_Vay,INDEX(Lịch_biểu_Thanh_toán[SỐ DƯ CUỐI],ROW()-ROW(Lịch_biểu_Thanh_toán[[#Headers],[SỐ DƯ ĐẦU]])-1)),"") ->  | E59: =IF(Lịch_biểu_Thanh_toán[[#This Row],[SỐ THANH TOÁN]]<>"",Thanh_toán_theo_Lịch,"") ->  | F59: =IF(Lịch_biểu_Thanh_toán[[#This Row],[SỐ THANH TOÁN]]<>"",IF(Lịch_biểu_Thanh_toán[[#This Row],[THANH TOÁN THEO LỊCH]]+Thanh_Toán_Bổ_sung<Lịch_biểu_Thanh_toán[[#This Row],[SỐ DƯ ĐẦU]],Thanh_Toán_Bổ_sung,IF(Lịch_biểu_Thanh_toán[[#This Row],[SỐ DƯ ĐẦU]]-Lịch_biểu_Thanh_toán[[#This Row],[THANH TOÁN THEO LỊCH]]>0,Lịch_biểu_Thanh_toán[[#This Row],[SỐ DƯ ĐẦU]]-Lịch_biểu_Thanh_toán[[#This Row],[THANH TOÁN THEO LỊCH]],0)),"") ->  | G59: =IF(Lịch_biểu_Thanh_toán[[#This Row],[SỐ THANH TOÁN]]<>"",IF(Lịch_biểu_Thanh_toán[[#This Row],[THANH TOÁN THEO LỊCH]]+Lịch_biểu_Thanh_toán[[#This Row],[THANH TOÁN BỔ SUNG]]<=Lịch_biểu_Thanh_toán[[#This Row],[SỐ DƯ ĐẦU]],Lịch_biểu_Thanh_toán[[#This Row],[THANH TOÁN THEO LỊCH]]+Lịch_biểu_Thanh_toán[[#This Row],[THANH TOÁN BỔ SUNG]],Lịch_biểu_Thanh_toán[[#This Row],[SỐ DƯ ĐẦU]]),"") ->  | H59: =IF(Lịch_biểu_Thanh_toán[[#This Row],[SỐ THANH TOÁN]]<>"",Lịch_biểu_Thanh_toán[[#This Row],[TỔNG THANH TOÁN]]-Lịch_biểu_Thanh_toán[[#This Row],[LÃI]],"") ->  | I59: =IF(Lịch_biểu_Thanh_toán[[#This Row],[SỐ THANH TOÁN]]<>"",Lịch_biểu_Thanh_toán[[#This Row],[SỐ DƯ ĐẦU]]*(Lãi_Suất/Thanh_toán_Mỗi_Năm),"") ->  | J59: =IF(Lịch_biểu_Thanh_toán[[#This Row],[SỐ THANH TOÁN]]<>"",IF(Lịch_biểu_Thanh_toán[[#This Row],[THANH TOÁN THEO LỊCH]]+Lịch_biểu_Thanh_toán[[#This Row],[THANH TOÁN BỔ SUNG]]<=Lịch_biểu_Thanh_toán[[#This Row],[SỐ DƯ ĐẦU]],Lịch_biểu_Thanh_toán[[#This Row],[SỐ DƯ ĐẦU]]-Lịch_biểu_Thanh_toán[[#This Row],[GỐC]],0),"") ->  | K59: =IF(Lịch_biểu_Thanh_toán[[#This Row],[SỐ THANH TOÁN]]<>"",SUM(INDEX(Lịch_biểu_Thanh_toán[LÃI],1,1):Lịch_biểu_Thanh_toán[[#This Row],[LÃI]]),"") -> 
B60: =IF(Khoản_vay_Tốt,IF(ROW()-ROW(Lịch_biểu_Thanh_toán[[#Headers],[SỐ THANH TOÁN]])>Số_lần_Thanh_toán_theo_Lịch,"",ROW()-ROW(Lịch_biểu_Thanh_toán[[#Headers],[SỐ THANH TOÁN]])),"") ->  | C60: =IF(Lịch_biểu_Thanh_toán[[#This Row],[SỐ THANH TOÁN]]<>"",EOMONTH(Ngày_Bắt_đầu_Khoản_vay,ROW(Lịch_biểu_Thanh_toán[[#This Row],[SỐ THANH TOÁN]])-ROW(Lịch_biểu_Thanh_toán[[#Headers],[SỐ THANH TOÁN]])-2)+DAY(Ngày_Bắt_đầu_Khoản_vay),"") ->  | D60: =IF(Lịch_biểu_Thanh_toán[[#This Row],[SỐ THANH TOÁN]]<>"",IF(ROW()-ROW(Lịch_biểu_Thanh_toán[[#Headers],[SỐ DƯ ĐẦU]])=1,Số_tiền_Vay,INDEX(Lịch_biểu_Thanh_toán[SỐ DƯ CUỐI],ROW()-ROW(Lịch_biểu_Thanh_toán[[#Headers],[SỐ DƯ ĐẦU]])-1)),"") ->  | E60: =IF(Lịch_biểu_Thanh_toán[[#This Row],[SỐ THANH TOÁN]]<>"",Thanh_toán_theo_Lịch,"") ->  | F60: =IF(Lịch_biểu_Thanh_toán[[#This Row],[SỐ THANH TOÁN]]<>"",IF(Lịch_biểu_Thanh_toán[[#This Row],[THANH TOÁN THEO LỊCH]]+Thanh_Toán_Bổ_sung<Lịch_biểu_Thanh_toán[[#This Row],[SỐ DƯ ĐẦU]],Thanh_Toán_Bổ_sung,IF(Lịch_biểu_Thanh_toán[[#This Row],[SỐ DƯ ĐẦU]]-Lịch_biểu_Thanh_toán[[#This Row],[THANH TOÁN THEO LỊCH]]>0,Lịch_biểu_Thanh_toán[[#This Row],[SỐ DƯ ĐẦU]]-Lịch_biểu_Thanh_toán[[#This Row],[THANH TOÁN THEO LỊCH]],0)),"") ->  | G60: =IF(Lịch_biểu_Thanh_toán[[#This Row],[SỐ THANH TOÁN]]<>"",IF(Lịch_biểu_Thanh_toán[[#This Row],[THANH TOÁN THEO LỊCH]]+Lịch_biểu_Thanh_toán[[#This Row],[THANH TOÁN BỔ SUNG]]<=Lịch_biểu_Thanh_toán[[#This Row],[SỐ DƯ ĐẦU]],Lịch_biểu_Thanh_toán[[#This Row],[THANH TOÁN THEO LỊCH]]+Lịch_biểu_Thanh_toán[[#This Row],[THANH TOÁN BỔ SUNG]],Lịch_biểu_Thanh_toán[[#This Row],[SỐ DƯ ĐẦU]]),"") ->  | H60: =IF(Lịch_biểu_Thanh_toán[[#This Row],[SỐ THANH TOÁN]]<>"",Lịch_biểu_Thanh_toán[[#This Row],[TỔNG THANH TOÁN]]-Lịch_biểu_Thanh_toán[[#This Row],[LÃI]],"") ->  | I60: =IF(Lịch_biểu_Thanh_toán[[#This Row],[SỐ THANH TOÁN]]<>"",Lịch_biểu_Thanh_toán[[#This Row],[SỐ DƯ ĐẦU]]*(Lãi_Suất/Thanh_toán_Mỗi_Năm),"") ->  | J60: =IF(Lịch_biểu_Thanh_toán[[#This Row],[SỐ THANH TOÁN]]<>"",IF(Lịch_biểu_Thanh_toán[[#This Row],[THANH TOÁN THEO LỊCH]]+Lịch_biểu_Thanh_toán[[#This Row],[THANH TOÁN BỔ SUNG]]<=Lịch_biểu_Thanh_toán[[#This Row],[SỐ DƯ ĐẦU]],Lịch_biểu_Thanh_toán[[#This Row],[SỐ DƯ ĐẦU]]-Lịch_biểu_Thanh_toán[[#This Row],[GỐC]],0),"") ->  | K60: =IF(Lịch_biểu_Thanh_toán[[#This Row],[SỐ THANH TOÁN]]<>"",SUM(INDEX(Lịch_biểu_Thanh_toán[LÃI],1,1):Lịch_biểu_Thanh_toán[[#This Row],[LÃI]]),"") -> 
B61: =IF(Khoản_vay_Tốt,IF(ROW()-ROW(Lịch_biểu_Thanh_toán[[#Headers],[SỐ THANH TOÁN]])>Số_lần_Thanh_toán_theo_Lịch,"",ROW()-ROW(Lịch_biểu_Thanh_toán[[#Headers],[SỐ THANH TOÁN]])),"") ->  | C61: =IF(Lịch_biểu_Thanh_toán[[#This Row],[SỐ THANH TOÁN]]<>"",EOMONTH(Ngày_Bắt_đầu_Khoản_vay,ROW(Lịch_biểu_Thanh_toán[[#This Row],[SỐ THANH TOÁN]])-ROW(Lịch_biểu_Thanh_toán[[#Headers],[SỐ THANH TOÁN]])-2)+DAY(Ngày_Bắt_đầu_Khoản_vay),"") ->  | D61: =IF(Lịch_biểu_Thanh_toán[[#This Row],[SỐ THANH TOÁN]]<>"",IF(ROW()-ROW(Lịch_biểu_Thanh_toán[[#Headers],[SỐ DƯ ĐẦU]])=1,Số_tiền_Vay,INDEX(Lịch_biểu_Thanh_toán[SỐ DƯ CUỐI],ROW()-ROW(Lịch_biểu_Thanh_toán[[#Headers],[SỐ DƯ ĐẦU]])-1)),"") ->  | E61: =IF(Lịch_biểu_Thanh_toán[[#This Row],[SỐ THANH TOÁN]]<>"",Thanh_toán_theo_Lịch,"") ->  | F61: =IF(Lịch_biểu_Thanh_toán[[#This Row],[SỐ THANH TOÁN]]<>"",IF(Lịch_biểu_Thanh_toán[[#This Row],[THANH TOÁN THEO LỊCH]]+Thanh_Toán_Bổ_sung<Lịch_biểu_Thanh_toán[[#This Row],[SỐ DƯ ĐẦU]],Thanh_Toán_Bổ_sung,IF(Lịch_biểu_Thanh_toán[[#This Row],[SỐ DƯ ĐẦU]]-Lịch_biểu_Thanh_toán[[#This Row],[THANH TOÁN THEO LỊCH]]>0,Lịch_biểu_Thanh_toán[[#This Row],[SỐ DƯ ĐẦU]]-Lịch_biểu_Thanh_toán[[#This Row],[THANH TOÁN THEO LỊCH]],0)),"") ->  | G61: =IF(Lịch_biểu_Thanh_toán[[#This Row],[SỐ THANH TOÁN]]<>"",IF(Lịch_biểu_Thanh_toán[[#This Row],[THANH TOÁN THEO LỊCH]]+Lịch_biểu_Thanh_toán[[#This Row],[THANH TOÁN BỔ SUNG]]<=Lịch_biểu_Thanh_toán[[#This Row],[SỐ DƯ ĐẦU]],Lịch_biểu_Thanh_toán[[#This Row],[THANH TOÁN THEO LỊCH]]+Lịch_biểu_Thanh_toán[[#This Row],[THANH TOÁN BỔ SUNG]],Lịch_biểu_Thanh_toán[[#This Row],[SỐ DƯ ĐẦU]]),"") ->  | H61: =IF(Lịch_biểu_Thanh_toán[[#This Row],[SỐ THANH TOÁN]]<>"",Lịch_biểu_Thanh_toán[[#This Row],[TỔNG THANH TOÁN]]-Lịch_biểu_Thanh_toán[[#This Row],[LÃI]],"") ->  | I61: =IF(Lịch_biểu_Thanh_toán[[#This Row],[SỐ THANH TOÁN]]<>"",Lịch_biểu_Thanh_toán[[#This Row],[SỐ DƯ ĐẦU]]*(Lãi_Suất/Thanh_toán_Mỗi_Năm),"") ->  | J61: =IF(Lịch_biểu_Thanh_toán[[#This Row],[SỐ THANH TOÁN]]<>"",IF(Lịch_biểu_Thanh_toán[[#This Row],[THANH TOÁN THEO LỊCH]]+Lịch_biểu_Thanh_toán[[#This Row],[THANH TOÁN BỔ SUNG]]<=Lịch_biểu_Thanh_toán[[#This Row],[SỐ DƯ ĐẦU]],Lịch_biểu_Thanh_toán[[#This Row],[SỐ DƯ ĐẦU]]-Lịch_biểu_Thanh_toán[[#This Row],[GỐC]],0),"") ->  | K61: =IF(Lịch_biểu_Thanh_toán[[#This Row],[SỐ THANH TOÁN]]<>"",SUM(INDEX(Lịch_biểu_Thanh_toán[LÃI],1,1):Lịch_biểu_Thanh_toán[[#This Row],[LÃI]]),"") -> 
B62: =IF(Khoản_vay_Tốt,IF(ROW()-ROW(Lịch_biểu_Thanh_toán[[#Headers],[SỐ THANH TOÁN]])>Số_lần_Thanh_toán_theo_Lịch,"",ROW()-ROW(Lịch_biểu_Thanh_toán[[#Headers],[SỐ THANH TOÁN]])),"") ->  | C62: =IF(Lịch_biểu_Thanh_toán[[#This Row],[SỐ THANH TOÁN]]<>"",EOMONTH(Ngày_Bắt_đầu_Khoản_vay,ROW(Lịch_biểu_Thanh_toán[[#This Row],[SỐ THANH TOÁN]])-ROW(Lịch_biểu_Thanh_toán[[#Headers],[SỐ THANH TOÁN]])-2)+DAY(Ngày_Bắt_đầu_Khoản_vay),"") ->  | D62: =IF(Lịch_biểu_Thanh_toán[[#This Row],[SỐ THANH TOÁN]]<>"",IF(ROW()-ROW(Lịch_biểu_Thanh_toán[[#Headers],[SỐ DƯ ĐẦU]])=1,Số_tiền_Vay,INDEX(Lịch_biểu_Thanh_toán[SỐ DƯ CUỐI],ROW()-ROW(Lịch_biểu_Thanh_toán[[#Headers],[SỐ DƯ ĐẦU]])-1)),"") ->  | E62: =IF(Lịch_biểu_Thanh_toán[[#This Row],[SỐ THANH TOÁN]]<>"",Thanh_toán_theo_Lịch,"") ->  | F62: =IF(Lịch_biểu_Thanh_toán[[#This Row],[SỐ THANH TOÁN]]<>"",IF(Lịch_biểu_Thanh_toán[[#This Row],[THANH TOÁN THEO LỊCH]]+Thanh_Toán_Bổ_sung<Lịch_biểu_Thanh_toán[[#This Row],[SỐ DƯ ĐẦU]],Thanh_Toán_Bổ_sung,IF(Lịch_biểu_Thanh_toán[[#This Row],[SỐ DƯ ĐẦU]]-Lịch_biểu_Thanh_toán[[#This Row],[THANH TOÁN THEO LỊCH]]>0,Lịch_biểu_Thanh_toán[[#This Row],[SỐ DƯ ĐẦU]]-Lịch_biểu_Thanh_toán[[#This Row],[THANH TOÁN THEO LỊCH]],0)),"") ->  | G62: =IF(Lịch_biểu_Thanh_toán[[#This Row],[SỐ THANH TOÁN]]<>"",IF(Lịch_biểu_Thanh_toán[[#This Row],[THANH TOÁN THEO LỊCH]]+Lịch_biểu_Thanh_toán[[#This Row],[THANH TOÁN BỔ SUNG]]<=Lịch_biểu_Thanh_toán[[#This Row],[SỐ DƯ ĐẦU]],Lịch_biểu_Thanh_toán[[#This Row],[THANH TOÁN THEO LỊCH]]+Lịch_biểu_Thanh_toán[[#This Row],[THANH TOÁN BỔ SUNG]],Lịch_biểu_Thanh_toán[[#This Row],[SỐ DƯ ĐẦU]]),"") ->  | H62: =IF(Lịch_biểu_Thanh_toán[[#This Row],[SỐ THANH TOÁN]]<>"",Lịch_biểu_Thanh_toán[[#This Row],[TỔNG THANH TOÁN]]-Lịch_biểu_Thanh_toán[[#This Row],[LÃI]],"") ->  | I62: =IF(Lịch_biểu_Thanh_toán[[#This Row],[SỐ THANH TOÁN]]<>"",Lịch_biểu_Thanh_toán[[#This Row],[SỐ DƯ ĐẦU]]*(Lãi_Suất/Thanh_toán_Mỗi_Năm),"") ->  | J62: =IF(Lịch_biểu_Thanh_toán[[#This Row],[SỐ THANH TOÁN]]<>"",IF(Lịch_biểu_Thanh_toán[[#This Row],[THANH TOÁN THEO LỊCH]]+Lịch_biểu_Thanh_toán[[#This Row],[THANH TOÁN BỔ SUNG]]<=Lịch_biểu_Thanh_toán[[#This Row],[SỐ DƯ ĐẦU]],Lịch_biểu_Thanh_toán[[#This Row],[SỐ DƯ ĐẦU]]-Lịch_biểu_Thanh_toán[[#This Row],[GỐC]],0),"") ->  | K62: =IF(Lịch_biểu_Thanh_toán[[#This Row],[SỐ THANH TOÁN]]<>"",SUM(INDEX(Lịch_biểu_Thanh_toán[LÃI],1,1):Lịch_biểu_Thanh_toán[[#This Row],[LÃI]]),"") -> 
B63: =IF(Khoản_vay_Tốt,IF(ROW()-ROW(Lịch_biểu_Thanh_toán[[#Headers],[SỐ THANH TOÁN]])>Số_lần_Thanh_toán_theo_Lịch,"",ROW()-ROW(Lịch_biểu_Thanh_toán[[#Headers],[SỐ THANH TOÁN]])),"") ->  | C63: =IF(Lịch_biểu_Thanh_toán[[#This Row],[SỐ THANH TOÁN]]<>"",EOMONTH(Ngày_Bắt_đầu_Khoản_vay,ROW(Lịch_biểu_Thanh_toán[[#This Row],[SỐ THANH TOÁN]])-ROW(Lịch_biểu_Thanh_toán[[#Headers],[SỐ THANH TOÁN]])-2)+DAY(Ngày_Bắt_đầu_Khoản_vay),"") ->  | D63: =IF(Lịch_biểu_Thanh_toán[[#This Row],[SỐ THANH TOÁN]]<>"",IF(ROW()-ROW(Lịch_biểu_Thanh_toán[[#Headers],[SỐ DƯ ĐẦU]])=1,Số_tiền_Vay,INDEX(Lịch_biểu_Thanh_toán[SỐ DƯ CUỐI],ROW()-ROW(Lịch_biểu_Thanh_toán[[#Headers],[SỐ DƯ ĐẦU]])-1)),"") ->  | E63: =IF(Lịch_biểu_Thanh_toán[[#This Row],[SỐ THANH TOÁN]]<>"",Thanh_toán_theo_Lịch,"") ->  | F63: =IF(Lịch_biểu_Thanh_toán[[#This Row],[SỐ THANH TOÁN]]<>"",IF(Lịch_biểu_Thanh_toán[[#This Row],[THANH TOÁN THEO LỊCH]]+Thanh_Toán_Bổ_sung<Lịch_biểu_Thanh_toán[[#This Row],[SỐ DƯ ĐẦU]],Thanh_Toán_Bổ_sung,IF(Lịch_biểu_Thanh_toán[[#This Row],[SỐ DƯ ĐẦU]]-Lịch_biểu_Thanh_toán[[#This Row],[THANH TOÁN THEO LỊCH]]>0,Lịch_biểu_Thanh_toán[[#This Row],[SỐ DƯ ĐẦU]]-Lịch_biểu_Thanh_toán[[#This Row],[THANH TOÁN THEO LỊCH]],0)),"") ->  | G63: =IF(Lịch_biểu_Thanh_toán[[#This Row],[SỐ THANH TOÁN]]<>"",IF(Lịch_biểu_Thanh_toán[[#This Row],[THANH TOÁN THEO LỊCH]]+Lịch_biểu_Thanh_toán[[#This Row],[THANH TOÁN BỔ SUNG]]<=Lịch_biểu_Thanh_toán[[#This Row],[SỐ DƯ ĐẦU]],Lịch_biểu_Thanh_toán[[#This Row],[THANH TOÁN THEO LỊCH]]+Lịch_biểu_Thanh_toán[[#This Row],[THANH TOÁN BỔ SUNG]],Lịch_biểu_Thanh_toán[[#This Row],[SỐ DƯ ĐẦU]]),"") ->  | H63: =IF(Lịch_biểu_Thanh_toán[[#This Row],[SỐ THANH TOÁN]]<>"",Lịch_biểu_Thanh_toán[[#This Row],[TỔNG THANH TOÁN]]-Lịch_biểu_Thanh_toán[[#This Row],[LÃI]],"") ->  | I63: =IF(Lịch_biểu_Thanh_toán[[#This Row],[SỐ THANH TOÁN]]<>"",Lịch_biểu_Thanh_toán[[#This Row],[SỐ DƯ ĐẦU]]*(Lãi_Suất/Thanh_toán_Mỗi_Năm),"") ->  | J63: =IF(Lịch_biểu_Thanh_toán[[#This Row],[SỐ THANH TOÁN]]<>"",IF(Lịch_biểu_Thanh_toán[[#This Row],[THANH TOÁN THEO LỊCH]]+Lịch_biểu_Thanh_toán[[#This Row],[THANH TOÁN BỔ SUNG]]<=Lịch_biểu_Thanh_toán[[#This Row],[SỐ DƯ ĐẦU]],Lịch_biểu_Thanh_toán[[#This Row],[SỐ DƯ ĐẦU]]-Lịch_biểu_Thanh_toán[[#This Row],[GỐC]],0),"") ->  | K63: =IF(Lịch_biểu_Thanh_toán[[#This Row],[SỐ THANH TOÁN]]<>"",SUM(INDEX(Lịch_biểu_Thanh_toán[LÃI],1,1):Lịch_biểu_Thanh_toán[[#This Row],[LÃI]]),"") -> 
B64: =IF(Khoản_vay_Tốt,IF(ROW()-ROW(Lịch_biểu_Thanh_toán[[#Headers],[SỐ THANH TOÁN]])>Số_lần_Thanh_toán_theo_Lịch,"",ROW()-ROW(Lịch_biểu_Thanh_toán[[#Headers],[SỐ THANH TOÁN]])),"") ->  | C64: =IF(Lịch_biểu_Thanh_toán[[#This Row],[SỐ THANH TOÁN]]<>"",EOMONTH(Ngày_Bắt_đầu_Khoản_vay,ROW(Lịch_biểu_Thanh_toán[[#This Row],[SỐ THANH TOÁN]])-ROW(Lịch_biểu_Thanh_toán[[#Headers],[SỐ THANH TOÁN]])-2)+DAY(Ngày_Bắt_đầu_Khoản_vay),"") ->  | D64: =IF(Lịch_biểu_Thanh_toán[[#This Row],[SỐ THANH TOÁN]]<>"",IF(ROW()-ROW(Lịch_biểu_Thanh_toán[[#Headers],[SỐ DƯ ĐẦU]])=1,Số_tiền_Vay,INDEX(Lịch_biểu_Thanh_toán[SỐ DƯ CUỐI],ROW()-ROW(Lịch_biểu_Thanh_toán[[#Headers],[SỐ DƯ ĐẦU]])-1)),"") ->  | E64: =IF(Lịch_biểu_Thanh_toán[[#This Row],[SỐ THANH TOÁN]]<>"",Thanh_toán_theo_Lịch,"") ->  | F64: =IF(Lịch_biểu_Thanh_toán[[#This Row],[SỐ THANH TOÁN]]<>"",IF(Lịch_biểu_Thanh_toán[[#This Row],[THANH TOÁN THEO LỊCH]]+Thanh_Toán_Bổ_sung<Lịch_biểu_Thanh_toán[[#This Row],[SỐ DƯ ĐẦU]],Thanh_Toán_Bổ_sung,IF(Lịch_biểu_Thanh_toán[[#This Row],[SỐ DƯ ĐẦU]]-Lịch_biểu_Thanh_toán[[#This Row],[THANH TOÁN THEO LỊCH]]>0,Lịch_biểu_Thanh_toán[[#This Row],[SỐ DƯ ĐẦU]]-Lịch_biểu_Thanh_toán[[#This Row],[THANH TOÁN THEO LỊCH]],0)),"") ->  | G64: =IF(Lịch_biểu_Thanh_toán[[#This Row],[SỐ THANH TOÁN]]<>"",IF(Lịch_biểu_Thanh_toán[[#This Row],[THANH TOÁN THEO LỊCH]]+Lịch_biểu_Thanh_toán[[#This Row],[THANH TOÁN BỔ SUNG]]<=Lịch_biểu_Thanh_toán[[#This Row],[SỐ DƯ ĐẦU]],Lịch_biểu_Thanh_toán[[#This Row],[THANH TOÁN THEO LỊCH]]+Lịch_biểu_Thanh_toán[[#This Row],[THANH TOÁN BỔ SUNG]],Lịch_biểu_Thanh_toán[[#This Row],[SỐ DƯ ĐẦU]]),"") ->  | H64: =IF(Lịch_biểu_Thanh_toán[[#This Row],[SỐ THANH TOÁN]]<>"",Lịch_biểu_Thanh_toán[[#This Row],[TỔNG THANH TOÁN]]-Lịch_biểu_Thanh_toán[[#This Row],[LÃI]],"") ->  | I64: =IF(Lịch_biểu_Thanh_toán[[#This Row],[SỐ THANH TOÁN]]<>"",Lịch_biểu_Thanh_toán[[#This Row],[SỐ DƯ ĐẦU]]*(Lãi_Suất/Thanh_toán_Mỗi_Năm),"") ->  | J64: =IF(Lịch_biểu_Thanh_toán[[#This Row],[SỐ THANH TOÁN]]<>"",IF(Lịch_biểu_Thanh_toán[[#This Row],[THANH TOÁN THEO LỊCH]]+Lịch_biểu_Thanh_toán[[#This Row],[THANH TOÁN BỔ SUNG]]<=Lịch_biểu_Thanh_toán[[#This Row],[SỐ DƯ ĐẦU]],Lịch_biểu_Thanh_toán[[#This Row],[SỐ DƯ ĐẦU]]-Lịch_biểu_Thanh_toán[[#This Row],[GỐC]],0),"") ->  | K64: =IF(Lịch_biểu_Thanh_toán[[#This Row],[SỐ THANH TOÁN]]<>"",SUM(INDEX(Lịch_biểu_Thanh_toán[LÃI],1,1):Lịch_biểu_Thanh_toán[[#This Row],[LÃI]]),"") -> 
B65: =IF(Khoản_vay_Tốt,IF(ROW()-ROW(Lịch_biểu_Thanh_toán[[#Headers],[SỐ THANH TOÁN]])>Số_lần_Thanh_toán_theo_Lịch,"",ROW()-ROW(Lịch_biểu_Thanh_toán[[#Headers],[SỐ THANH TOÁN]])),"") ->  | C65: =IF(Lịch_biểu_Thanh_toán[[#This Row],[SỐ THANH TOÁN]]<>"",EOMONTH(Ngày_Bắt_đầu_Khoản_vay,ROW(Lịch_biểu_Thanh_toán[[#This Row],[SỐ THANH TOÁN]])-ROW(Lịch_biểu_Thanh_toán[[#Headers],[SỐ THANH TOÁN]])-2)+DAY(Ngày_Bắt_đầu_Khoản_vay),"") ->  | D65: =IF(Lịch_biểu_Thanh_toán[[#This Row],[SỐ THANH TOÁN]]<>"",IF(ROW()-ROW(Lịch_biểu_Thanh_toán[[#Headers],[SỐ DƯ ĐẦU]])=1,Số_tiền_Vay,INDEX(Lịch_biểu_Thanh_toán[SỐ DƯ CUỐI],ROW()-ROW(Lịch_biểu_Thanh_toán[[#Headers],[SỐ DƯ ĐẦU]])-1)),"") ->  | E65: =IF(Lịch_biểu_Thanh_toán[[#This Row],[SỐ THANH TOÁN]]<>"",Thanh_toán_theo_Lịch,"") ->  | F65: =IF(Lịch_biểu_Thanh_toán[[#This Row],[SỐ THANH TOÁN]]<>"",IF(Lịch_biểu_Thanh_toán[[#This Row],[THANH TOÁN THEO LỊCH]]+Thanh_Toán_Bổ_sung<Lịch_biểu_Thanh_toán[[#This Row],[SỐ DƯ ĐẦU]],Thanh_Toán_Bổ_sung,IF(Lịch_biểu_Thanh_toán[[#This Row],[SỐ DƯ ĐẦU]]-Lịch_biểu_Thanh_toán[[#This Row],[THANH TOÁN THEO LỊCH]]>0,Lịch_biểu_Thanh_toán[[#This Row],[SỐ DƯ ĐẦU]]-Lịch_biểu_Thanh_toán[[#This Row],[THANH TOÁN THEO LỊCH]],0)),"") ->  | G65: =IF(Lịch_biểu_Thanh_toán[[#This Row],[SỐ THANH TOÁN]]<>"",IF(Lịch_biểu_Thanh_toán[[#This Row],[THANH TOÁN THEO LỊCH]]+Lịch_biểu_Thanh_toán[[#This Row],[THANH TOÁN BỔ SUNG]]<=Lịch_biểu_Thanh_toán[[#This Row],[SỐ DƯ ĐẦU]],Lịch_biểu_Thanh_toán[[#This Row],[THANH TOÁN THEO LỊCH]]+Lịch_biểu_Thanh_toán[[#This Row],[THANH TOÁN BỔ SUNG]],Lịch_biểu_Thanh_toán[[#This Row],[SỐ DƯ ĐẦU]]),"") ->  | H65: =IF(Lịch_biểu_Thanh_toán[[#This Row],[SỐ THANH TOÁN]]<>"",Lịch_biểu_Thanh_toán[[#This Row],[TỔNG THANH TOÁN]]-Lịch_biểu_Thanh_toán[[#This Row],[LÃI]],"") ->  | I65: =IF(Lịch_biểu_Thanh_toán[[#This Row],[SỐ THANH TOÁN]]<>"",Lịch_biểu_Thanh_toán[[#This Row],[SỐ DƯ ĐẦU]]*(Lãi_Suất/Thanh_toán_Mỗi_Năm),"") ->  | J65: =IF(Lịch_biểu_Thanh_toán[[#This Row],[SỐ THANH TOÁN]]<>"",IF(Lịch_biểu_Thanh_toán[[#This Row],[THANH TOÁN THEO LỊCH]]+Lịch_biểu_Thanh_toán[[#This Row],[THANH TOÁN BỔ SUNG]]<=Lịch_biểu_Thanh_toán[[#This Row],[SỐ DƯ ĐẦU]],Lịch_biểu_Thanh_toán[[#This Row],[SỐ DƯ ĐẦU]]-Lịch_biểu_Thanh_toán[[#This Row],[GỐC]],0),"") ->  | K65: =IF(Lịch_biểu_Thanh_toán[[#This Row],[SỐ THANH TOÁN]]<>"",SUM(INDEX(Lịch_biểu_Thanh_toán[LÃI],1,1):Lịch_biểu_Thanh_toán[[#This Row],[LÃI]]),"") -> 
B66: =IF(Khoản_vay_Tốt,IF(ROW()-ROW(Lịch_biểu_Thanh_toán[[#Headers],[SỐ THANH TOÁN]])>Số_lần_Thanh_toán_theo_Lịch,"",ROW()-ROW(Lịch_biểu_Thanh_toán[[#Headers],[SỐ THANH TOÁN]])),"") ->  | C66: =IF(Lịch_biểu_Thanh_toán[[#This Row],[SỐ THANH TOÁN]]<>"",EOMONTH(Ngày_Bắt_đầu_Khoản_vay,ROW(Lịch_biểu_Thanh_toán[[#This Row],[SỐ THANH TOÁN]])-ROW(Lịch_biểu_Thanh_toán[[#Headers],[SỐ THANH TOÁN]])-2)+DAY(Ngày_Bắt_đầu_Khoản_vay),"") ->  | D66: =IF(Lịch_biểu_Thanh_toán[[#This Row],[SỐ THANH TOÁN]]<>"",IF(ROW()-ROW(Lịch_biểu_Thanh_toán[[#Headers],[SỐ DƯ ĐẦU]])=1,Số_tiền_Vay,INDEX(Lịch_biểu_Thanh_toán[SỐ DƯ CUỐI],ROW()-ROW(Lịch_biểu_Thanh_toán[[#Headers],[SỐ DƯ ĐẦU]])-1)),"") ->  | E66: =IF(Lịch_biểu_Thanh_toán[[#This Row],[SỐ THANH TOÁN]]<>"",Thanh_toán_theo_Lịch,"") ->  | F66: =IF(Lịch_biểu_Thanh_toán[[#This Row],[SỐ THANH TOÁN]]<>"",IF(Lịch_biểu_Thanh_toán[[#This Row],[THANH TOÁN THEO LỊCH]]+Thanh_Toán_Bổ_sung<Lịch_biểu_Thanh_toán[[#This Row],[SỐ DƯ ĐẦU]],Thanh_Toán_Bổ_sung,IF(Lịch_biểu_Thanh_toán[[#This Row],[SỐ DƯ ĐẦU]]-Lịch_biểu_Thanh_toán[[#This Row],[THANH TOÁN THEO LỊCH]]>0,Lịch_biểu_Thanh_toán[[#This Row],[SỐ DƯ ĐẦU]]-Lịch_biểu_Thanh_toán[[#This Row],[THANH TOÁN THEO LỊCH]],0)),"") ->  | G66: =IF(Lịch_biểu_Thanh_toán[[#This Row],[SỐ THANH TOÁN]]<>"",IF(Lịch_biểu_Thanh_toán[[#This Row],[THANH TOÁN THEO LỊCH]]+Lịch_biểu_Thanh_toán[[#This Row],[THANH TOÁN BỔ SUNG]]<=Lịch_biểu_Thanh_toán[[#This Row],[SỐ DƯ ĐẦU]],Lịch_biểu_Thanh_toán[[#This Row],[THANH TOÁN THEO LỊCH]]+Lịch_biểu_Thanh_toán[[#This Row],[THANH TOÁN BỔ SUNG]],Lịch_biểu_Thanh_toán[[#This Row],[SỐ DƯ ĐẦU]]),"") ->  | H66: =IF(Lịch_biểu_Thanh_toán[[#This Row],[SỐ THANH TOÁN]]<>"",Lịch_biểu_Thanh_toán[[#This Row],[TỔNG THANH TOÁN]]-Lịch_biểu_Thanh_toán[[#This Row],[LÃI]],"") ->  | I66: =IF(Lịch_biểu_Thanh_toán[[#This Row],[SỐ THANH TOÁN]]<>"",Lịch_biểu_Thanh_toán[[#This Row],[SỐ DƯ ĐẦU]]*(Lãi_Suất/Thanh_toán_Mỗi_Năm),"") ->  | J66: =IF(Lịch_biểu_Thanh_toán[[#This Row],[SỐ THANH TOÁN]]<>"",IF(Lịch_biểu_Thanh_toán[[#This Row],[THANH TOÁN THEO LỊCH]]+Lịch_biểu_Thanh_toán[[#This Row],[THANH TOÁN BỔ SUNG]]<=Lịch_biểu_Thanh_toán[[#This Row],[SỐ DƯ ĐẦU]],Lịch_biểu_Thanh_toán[[#This Row],[SỐ DƯ ĐẦU]]-Lịch_biểu_Thanh_toán[[#This Row],[GỐC]],0),"") ->  | K66: =IF(Lịch_biểu_Thanh_toán[[#This Row],[SỐ THANH TOÁN]]<>"",SUM(INDEX(Lịch_biểu_Thanh_toán[LÃI],1,1):Lịch_biểu_Thanh_toán[[#This Row],[LÃI]]),"") -> 
B67: =IF(Khoản_vay_Tốt,IF(ROW()-ROW(Lịch_biểu_Thanh_toán[[#Headers],[SỐ THANH TOÁN]])>Số_lần_Thanh_toán_theo_Lịch,"",ROW()-ROW(Lịch_biểu_Thanh_toán[[#Headers],[SỐ THANH TOÁN]])),"") ->  | C67: =IF(Lịch_biểu_Thanh_toán[[#This Row],[SỐ THANH TOÁN]]<>"",EOMONTH(Ngày_Bắt_đầu_Khoản_vay,ROW(Lịch_biểu_Thanh_toán[[#This Row],[SỐ THANH TOÁN]])-ROW(Lịch_biểu_Thanh_toán[[#Headers],[SỐ THANH TOÁN]])-2)+DAY(Ngày_Bắt_đầu_Khoản_vay),"") ->  | D67: =IF(Lịch_biểu_Thanh_toán[[#This Row],[SỐ THANH TOÁN]]<>"",IF(ROW()-ROW(Lịch_biểu_Thanh_toán[[#Headers],[SỐ DƯ ĐẦU]])=1,Số_tiền_Vay,INDEX(Lịch_biểu_Thanh_toán[SỐ DƯ CUỐI],ROW()-ROW(Lịch_biểu_Thanh_toán[[#Headers],[SỐ DƯ ĐẦU]])-1)),"") ->  | E67: =IF(Lịch_biểu_Thanh_toán[[#This Row],[SỐ THANH TOÁN]]<>"",Thanh_toán_theo_Lịch,"") ->  | F67: =IF(Lịch_biểu_Thanh_toán[[#This Row],[SỐ THANH TOÁN]]<>"",IF(Lịch_biểu_Thanh_toán[[#This Row],[THANH TOÁN THEO LỊCH]]+Thanh_Toán_Bổ_sung<Lịch_biểu_Thanh_toán[[#This Row],[SỐ DƯ ĐẦU]],Thanh_Toán_Bổ_sung,IF(Lịch_biểu_Thanh_toán[[#This Row],[SỐ DƯ ĐẦU]]-Lịch_biểu_Thanh_toán[[#This Row],[THANH TOÁN THEO LỊCH]]>0,Lịch_biểu_Thanh_toán[[#This Row],[SỐ DƯ ĐẦU]]-Lịch_biểu_Thanh_toán[[#This Row],[THANH TOÁN THEO LỊCH]],0)),"") ->  | G67: =IF(Lịch_biểu_Thanh_toán[[#This Row],[SỐ THANH TOÁN]]<>"",IF(Lịch_biểu_Thanh_toán[[#This Row],[THANH TOÁN THEO LỊCH]]+Lịch_biểu_Thanh_toán[[#This Row],[THANH TOÁN BỔ SUNG]]<=Lịch_biểu_Thanh_toán[[#This Row],[SỐ DƯ ĐẦU]],Lịch_biểu_Thanh_toán[[#This Row],[THANH TOÁN THEO LỊCH]]+Lịch_biểu_Thanh_toán[[#This Row],[THANH TOÁN BỔ SUNG]],Lịch_biểu_Thanh_toán[[#This Row],[SỐ DƯ ĐẦU]]),"") ->  | H67: =IF(Lịch_biểu_Thanh_toán[[#This Row],[SỐ THANH TOÁN]]<>"",Lịch_biểu_Thanh_toán[[#This Row],[TỔNG THANH TOÁN]]-Lịch_biểu_Thanh_toán[[#This Row],[LÃI]],"") ->  | I67: =IF(Lịch_biểu_Thanh_toán[[#This Row],[SỐ THANH TOÁN]]<>"",Lịch_biểu_Thanh_toán[[#This Row],[SỐ DƯ ĐẦU]]*(Lãi_Suất/Thanh_toán_Mỗi_Năm),"") ->  | J67: =IF(Lịch_biểu_Thanh_toán[[#This Row],[SỐ THANH TOÁN]]<>"",IF(Lịch_biểu_Thanh_toán[[#This Row],[THANH TOÁN THEO LỊCH]]+Lịch_biểu_Thanh_toán[[#This Row],[THANH TOÁN BỔ SUNG]]<=Lịch_biểu_Thanh_toán[[#This Row],[SỐ DƯ ĐẦU]],Lịch_biểu_Thanh_toán[[#This Row],[SỐ DƯ ĐẦU]]-Lịch_biểu_Thanh_toán[[#This Row],[GỐC]],0),"") ->  | K67: =IF(Lịch_biểu_Thanh_toán[[#This Row],[SỐ THANH TOÁN]]<>"",SUM(INDEX(Lịch_biểu_Thanh_toán[LÃI],1,1):Lịch_biểu_Thanh_toán[[#This Row],[LÃI]]),"") -> 
B68: =IF(Khoản_vay_Tốt,IF(ROW()-ROW(Lịch_biểu_Thanh_toán[[#Headers],[SỐ THANH TOÁN]])>Số_lần_Thanh_toán_theo_Lịch,"",ROW()-ROW(Lịch_biểu_Thanh_toán[[#Headers],[SỐ THANH TOÁN]])),"") ->  | C68: =IF(Lịch_biểu_Thanh_toán[[#This Row],[SỐ THANH TOÁN]]<>"",EOMONTH(Ngày_Bắt_đầu_Khoản_vay,ROW(Lịch_biểu_Thanh_toán[[#This Row],[SỐ THANH TOÁN]])-ROW(Lịch_biểu_Thanh_toán[[#Headers],[SỐ THANH TOÁN]])-2)+DAY(Ngày_Bắt_đầu_Khoản_vay),"") ->  | D68: =IF(Lịch_biểu_Thanh_toán[[#This Row],[SỐ THANH TOÁN]]<>"",IF(ROW()-ROW(Lịch_biểu_Thanh_toán[[#Headers],[SỐ DƯ ĐẦU]])=1,Số_tiền_Vay,INDEX(Lịch_biểu_Thanh_toán[SỐ DƯ CUỐI],ROW()-ROW(Lịch_biểu_Thanh_toán[[#Headers],[SỐ DƯ ĐẦU]])-1)),"") ->  | E68: =IF(Lịch_biểu_Thanh_toán[[#This Row],[SỐ THANH TOÁN]]<>"",Thanh_toán_theo_Lịch,"") ->  | F68: =IF(Lịch_biểu_Thanh_toán[[#This Row],[SỐ THANH TOÁN]]<>"",IF(Lịch_biểu_Thanh_toán[[#This Row],[THANH TOÁN THEO LỊCH]]+Thanh_Toán_Bổ_sung<Lịch_biểu_Thanh_toán[[#This Row],[SỐ DƯ ĐẦU]],Thanh_Toán_Bổ_sung,IF(Lịch_biểu_Thanh_toán[[#This Row],[SỐ DƯ ĐẦU]]-Lịch_biểu_Thanh_toán[[#This Row],[THANH TOÁN THEO LỊCH]]>0,Lịch_biểu_Thanh_toán[[#This Row],[SỐ DƯ ĐẦU]]-Lịch_biểu_Thanh_toán[[#This Row],[THANH TOÁN THEO LỊCH]],0)),"") ->  | G68: =IF(Lịch_biểu_Thanh_toán[[#This Row],[SỐ THANH TOÁN]]<>"",IF(Lịch_biểu_Thanh_toán[[#This Row],[THANH TOÁN THEO LỊCH]]+Lịch_biểu_Thanh_toán[[#This Row],[THANH TOÁN BỔ SUNG]]<=Lịch_biểu_Thanh_toán[[#This Row],[SỐ DƯ ĐẦU]],Lịch_biểu_Thanh_toán[[#This Row],[THANH TOÁN THEO LỊCH]]+Lịch_biểu_Thanh_toán[[#This Row],[THANH TOÁN BỔ SUNG]],Lịch_biểu_Thanh_toán[[#This Row],[SỐ DƯ ĐẦU]]),"") ->  | H68: =IF(Lịch_biểu_Thanh_toán[[#This Row],[SỐ THANH TOÁN]]<>"",Lịch_biểu_Thanh_toán[[#This Row],[TỔNG THANH TOÁN]]-Lịch_biểu_Thanh_toán[[#This Row],[LÃI]],"") ->  | I68: =IF(Lịch_biểu_Thanh_toán[[#This Row],[SỐ THANH TOÁN]]<>"",Lịch_biểu_Thanh_toán[[#This Row],[SỐ DƯ ĐẦU]]*(Lãi_Suất/Thanh_toán_Mỗi_Năm),"") ->  | J68: =IF(Lịch_biểu_Thanh_toán[[#This Row],[SỐ THANH TOÁN]]<>"",IF(Lịch_biểu_Thanh_toán[[#This Row],[THANH TOÁN THEO LỊCH]]+Lịch_biểu_Thanh_toán[[#This Row],[THANH TOÁN BỔ SUNG]]<=Lịch_biểu_Thanh_toán[[#This Row],[SỐ DƯ ĐẦU]],Lịch_biểu_Thanh_toán[[#This Row],[SỐ DƯ ĐẦU]]-Lịch_biểu_Thanh_toán[[#This Row],[GỐC]],0),"") ->  | K68: =IF(Lịch_biểu_Thanh_toán[[#This Row],[SỐ THANH TOÁN]]<>"",SUM(INDEX(Lịch_biểu_Thanh_toán[LÃI],1,1):Lịch_biểu_Thanh_toán[[#This Row],[LÃI]]),"") -> 
B69: =IF(Khoản_vay_Tốt,IF(ROW()-ROW(Lịch_biểu_Thanh_toán[[#Headers],[SỐ THANH TOÁN]])>Số_lần_Thanh_toán_theo_Lịch,"",ROW()-ROW(Lịch_biểu_Thanh_toán[[#Headers],[SỐ THANH TOÁN]])),"") ->  | C69: =IF(Lịch_biểu_Thanh_toán[[#This Row],[SỐ THANH TOÁN]]<>"",EOMONTH(Ngày_Bắt_đầu_Khoản_vay,ROW(Lịch_biểu_Thanh_toán[[#This Row],[SỐ THANH TOÁN]])-ROW(Lịch_biểu_Thanh_toán[[#Headers],[SỐ THANH TOÁN]])-2)+DAY(Ngày_Bắt_đầu_Khoản_vay),"") ->  | D69: =IF(Lịch_biểu_Thanh_toán[[#This Row],[SỐ THANH TOÁN]]<>"",IF(ROW()-ROW(Lịch_biểu_Thanh_toán[[#Headers],[SỐ DƯ ĐẦU]])=1,Số_tiền_Vay,INDEX(Lịch_biểu_Thanh_toán[SỐ DƯ CUỐI],ROW()-ROW(Lịch_biểu_Thanh_toán[[#Headers],[SỐ DƯ ĐẦU]])-1)),"") ->  | E69: =IF(Lịch_biểu_Thanh_toán[[#This Row],[SỐ THANH TOÁN]]<>"",Thanh_toán_theo_Lịch,"") ->  | F69: =IF(Lịch_biểu_Thanh_toán[[#This Row],[SỐ THANH TOÁN]]<>"",IF(Lịch_biểu_Thanh_toán[[#This Row],[THANH TOÁN THEO LỊCH]]+Thanh_Toán_Bổ_sung<Lịch_biểu_Thanh_toán[[#This Row],[SỐ DƯ ĐẦU]],Thanh_Toán_Bổ_sung,IF(Lịch_biểu_Thanh_toán[[#This Row],[SỐ DƯ ĐẦU]]-Lịch_biểu_Thanh_toán[[#This Row],[THANH TOÁN THEO LỊCH]]>0,Lịch_biểu_Thanh_toán[[#This Row],[SỐ DƯ ĐẦU]]-Lịch_biểu_Thanh_toán[[#This Row],[THANH TOÁN THEO LỊCH]],0)),"") ->  | G69: =IF(Lịch_biểu_Thanh_toán[[#This Row],[SỐ THANH TOÁN]]<>"",IF(Lịch_biểu_Thanh_toán[[#This Row],[THANH TOÁN THEO LỊCH]]+Lịch_biểu_Thanh_toán[[#This Row],[THANH TOÁN BỔ SUNG]]<=Lịch_biểu_Thanh_toán[[#This Row],[SỐ DƯ ĐẦU]],Lịch_biểu_Thanh_toán[[#This Row],[THANH TOÁN THEO LỊCH]]+Lịch_biểu_Thanh_toán[[#This Row],[THANH TOÁN BỔ SUNG]],Lịch_biểu_Thanh_toán[[#This Row],[SỐ DƯ ĐẦU]]),"") ->  | H69: =IF(Lịch_biểu_Thanh_toán[[#This Row],[SỐ THANH TOÁN]]<>"",Lịch_biểu_Thanh_toán[[#This Row],[TỔNG THANH TOÁN]]-Lịch_biểu_Thanh_toán[[#This Row],[LÃI]],"") ->  | I69: =IF(Lịch_biểu_Thanh_toán[[#This Row],[SỐ THANH TOÁN]]<>"",Lịch_biểu_Thanh_toán[[#This Row],[SỐ DƯ ĐẦU]]*(Lãi_Suất/Thanh_toán_Mỗi_Năm),"") ->  | J69: =IF(Lịch_biểu_Thanh_toán[[#This Row],[SỐ THANH TOÁN]]<>"",IF(Lịch_biểu_Thanh_toán[[#This Row],[THANH TOÁN THEO LỊCH]]+Lịch_biểu_Thanh_toán[[#This Row],[THANH TOÁN BỔ SUNG]]<=Lịch_biểu_Thanh_toán[[#This Row],[SỐ DƯ ĐẦU]],Lịch_biểu_Thanh_toán[[#This Row],[SỐ DƯ ĐẦU]]-Lịch_biểu_Thanh_toán[[#This Row],[GỐC]],0),"") ->  | K69: =IF(Lịch_biểu_Thanh_toán[[#This Row],[SỐ THANH TOÁN]]<>"",SUM(INDEX(Lịch_biểu_Thanh_toán[LÃI],1,1):Lịch_biểu_Thanh_toán[[#This Row],[LÃI]]),"") -> 
B70: =IF(Khoản_vay_Tốt,IF(ROW()-ROW(Lịch_biểu_Thanh_toán[[#Headers],[SỐ THANH TOÁN]])>Số_lần_Thanh_toán_theo_Lịch,"",ROW()-ROW(Lịch_biểu_Thanh_toán[[#Headers],[SỐ THANH TOÁN]])),"") ->  | C70: =IF(Lịch_biểu_Thanh_toán[[#This Row],[SỐ THANH TOÁN]]<>"",EOMONTH(Ngày_Bắt_đầu_Khoản_vay,ROW(Lịch_biểu_Thanh_toán[[#This Row],[SỐ THANH TOÁN]])-ROW(Lịch_biểu_Thanh_toán[[#Headers],[SỐ THANH TOÁN]])-2)+DAY(Ngày_Bắt_đầu_Khoản_vay),"") ->  | D70: =IF(Lịch_biểu_Thanh_toán[[#This Row],[SỐ THANH TOÁN]]<>"",IF(ROW()-ROW(Lịch_biểu_Thanh_toán[[#Headers],[SỐ DƯ ĐẦU]])=1,Số_tiền_Vay,INDEX(Lịch_biểu_Thanh_toán[SỐ DƯ CUỐI],ROW()-ROW(Lịch_biểu_Thanh_toán[[#Headers],[SỐ DƯ ĐẦU]])-1)),"") ->  | E70: =IF(Lịch_biểu_Thanh_toán[[#This Row],[SỐ THANH TOÁN]]<>"",Thanh_toán_theo_Lịch,"") ->  | F70: =IF(Lịch_biểu_Thanh_toán[[#This Row],[SỐ THANH TOÁN]]<>"",IF(Lịch_biểu_Thanh_toán[[#This Row],[THANH TOÁN THEO LỊCH]]+Thanh_Toán_Bổ_sung<Lịch_biểu_Thanh_toán[[#This Row],[SỐ DƯ ĐẦU]],Thanh_Toán_Bổ_sung,IF(Lịch_biểu_Thanh_toán[[#This Row],[SỐ DƯ ĐẦU]]-Lịch_biểu_Thanh_toán[[#This Row],[THANH TOÁN THEO LỊCH]]>0,Lịch_biểu_Thanh_toán[[#This Row],[SỐ DƯ ĐẦU]]-Lịch_biểu_Thanh_toán[[#This Row],[THANH TOÁN THEO LỊCH]],0)),"") ->  | G70: =IF(Lịch_biểu_Thanh_toán[[#This Row],[SỐ THANH TOÁN]]<>"",IF(Lịch_biểu_Thanh_toán[[#This Row],[THANH TOÁN THEO LỊCH]]+Lịch_biểu_Thanh_toán[[#This Row],[THANH TOÁN BỔ SUNG]]<=Lịch_biểu_Thanh_toán[[#This Row],[SỐ DƯ ĐẦU]],Lịch_biểu_Thanh_toán[[#This Row],[THANH TOÁN THEO LỊCH]]+Lịch_biểu_Thanh_toán[[#This Row],[THANH TOÁN BỔ SUNG]],Lịch_biểu_Thanh_toán[[#This Row],[SỐ DƯ ĐẦU]]),"") ->  | H70: =IF(Lịch_biểu_Thanh_toán[[#This Row],[SỐ THANH TOÁN]]<>"",Lịch_biểu_Thanh_toán[[#This Row],[TỔNG THANH TOÁN]]-Lịch_biểu_Thanh_toán[[#This Row],[LÃI]],"") ->  | I70: =IF(Lịch_biểu_Thanh_toán[[#This Row],[SỐ THANH TOÁN]]<>"",Lịch_biểu_Thanh_toán[[#This Row],[SỐ DƯ ĐẦU]]*(Lãi_Suất/Thanh_toán_Mỗi_Năm),"") ->  | J70: =IF(Lịch_biểu_Thanh_toán[[#This Row],[SỐ THANH TOÁN]]<>"",IF(Lịch_biểu_Thanh_toán[[#This Row],[THANH TOÁN THEO LỊCH]]+Lịch_biểu_Thanh_toán[[#This Row],[THANH TOÁN BỔ SUNG]]<=Lịch_biểu_Thanh_toán[[#This Row],[SỐ DƯ ĐẦU]],Lịch_biểu_Thanh_toán[[#This Row],[SỐ DƯ ĐẦU]]-Lịch_biểu_Thanh_toán[[#This Row],[GỐC]],0),"") ->  | K70: =IF(Lịch_biểu_Thanh_toán[[#This Row],[SỐ THANH TOÁN]]<>"",SUM(INDEX(Lịch_biểu_Thanh_toán[LÃI],1,1):Lịch_biểu_Thanh_toán[[#This Row],[LÃI]]),"") -> 
B71: =IF(Khoản_vay_Tốt,IF(ROW()-ROW(Lịch_biểu_Thanh_toán[[#Headers],[SỐ THANH TOÁN]])>Số_lần_Thanh_toán_theo_Lịch,"",ROW()-ROW(Lịch_biểu_Thanh_toán[[#Headers],[SỐ THANH TOÁN]])),"") ->  | C71: =IF(Lịch_biểu_Thanh_toán[[#This Row],[SỐ THANH TOÁN]]<>"",EOMONTH(Ngày_Bắt_đầu_Khoản_vay,ROW(Lịch_biểu_Thanh_toán[[#This Row],[SỐ THANH TOÁN]])-ROW(Lịch_biểu_Thanh_toán[[#Headers],[SỐ THANH TOÁN]])-2)+DAY(Ngày_Bắt_đầu_Khoản_vay),"") ->  | D71: =IF(Lịch_biểu_Thanh_toán[[#This Row],[SỐ THANH TOÁN]]<>"",IF(ROW()-ROW(Lịch_biểu_Thanh_toán[[#Headers],[SỐ DƯ ĐẦU]])=1,Số_tiền_Vay,INDEX(Lịch_biểu_Thanh_toán[SỐ DƯ CUỐI],ROW()-ROW(Lịch_biểu_Thanh_toán[[#Headers],[SỐ DƯ ĐẦU]])-1)),"") ->  | E71: =IF(Lịch_biểu_Thanh_toán[[#This Row],[SỐ THANH TOÁN]]<>"",Thanh_toán_theo_Lịch,"") ->  | F71: =IF(Lịch_biểu_Thanh_toán[[#This Row],[SỐ THANH TOÁN]]<>"",IF(Lịch_biểu_Thanh_toán[[#This Row],[THANH TOÁN THEO LỊCH]]+Thanh_Toán_Bổ_sung<Lịch_biểu_Thanh_toán[[#This Row],[SỐ DƯ ĐẦU]],Thanh_Toán_Bổ_sung,IF(Lịch_biểu_Thanh_toán[[#This Row],[SỐ DƯ ĐẦU]]-Lịch_biểu_Thanh_toán[[#This Row],[THANH TOÁN THEO LỊCH]]>0,Lịch_biểu_Thanh_toán[[#This Row],[SỐ DƯ ĐẦU]]-Lịch_biểu_Thanh_toán[[#This Row],[THANH TOÁN THEO LỊCH]],0)),"") ->  | G71: =IF(Lịch_biểu_Thanh_toán[[#This Row],[SỐ THANH TOÁN]]<>"",IF(Lịch_biểu_Thanh_toán[[#This Row],[THANH TOÁN THEO LỊCH]]+Lịch_biểu_Thanh_toán[[#This Row],[THANH TOÁN BỔ SUNG]]<=Lịch_biểu_Thanh_toán[[#This Row],[SỐ DƯ ĐẦU]],Lịch_biểu_Thanh_toán[[#This Row],[THANH TOÁN THEO LỊCH]]+Lịch_biểu_Thanh_toán[[#This Row],[THANH TOÁN BỔ SUNG]],Lịch_biểu_Thanh_toán[[#This Row],[SỐ DƯ ĐẦU]]),"") ->  | H71: =IF(Lịch_biểu_Thanh_toán[[#This Row],[SỐ THANH TOÁN]]<>"",Lịch_biểu_Thanh_toán[[#This Row],[TỔNG THANH TOÁN]]-Lịch_biểu_Thanh_toán[[#This Row],[LÃI]],"") ->  | I71: =IF(Lịch_biểu_Thanh_toán[[#This Row],[SỐ THANH TOÁN]]<>"",Lịch_biểu_Thanh_toán[[#This Row],[SỐ DƯ ĐẦU]]*(Lãi_Suất/Thanh_toán_Mỗi_Năm),"") ->  | J71: =IF(Lịch_biểu_Thanh_toán[[#This Row],[SỐ THANH TOÁN]]<>"",IF(Lịch_biểu_Thanh_toán[[#This Row],[THANH TOÁN THEO LỊCH]]+Lịch_biểu_Thanh_toán[[#This Row],[THANH TOÁN BỔ SUNG]]<=Lịch_biểu_Thanh_toán[[#This Row],[SỐ DƯ ĐẦU]],Lịch_biểu_Thanh_toán[[#This Row],[SỐ DƯ ĐẦU]]-Lịch_biểu_Thanh_toán[[#This Row],[GỐC]],0),"") ->  | K71: =IF(Lịch_biểu_Thanh_toán[[#This Row],[SỐ THANH TOÁN]]<>"",SUM(INDEX(Lịch_biểu_Thanh_toán[LÃI],1,1):Lịch_biểu_Thanh_toán[[#This Row],[LÃI]]),"") -> 
B72: =IF(Khoản_vay_Tốt,IF(ROW()-ROW(Lịch_biểu_Thanh_toán[[#Headers],[SỐ THANH TOÁN]])>Số_lần_Thanh_toán_theo_Lịch,"",ROW()-ROW(Lịch_biểu_Thanh_toán[[#Headers],[SỐ THANH TOÁN]])),"") ->  | C72: =IF(Lịch_biểu_Thanh_toán[[#This Row],[SỐ THANH TOÁN]]<>"",EOMONTH(Ngày_Bắt_đầu_Khoản_vay,ROW(Lịch_biểu_Thanh_toán[[#This Row],[SỐ THANH TOÁN]])-ROW(Lịch_biểu_Thanh_toán[[#Headers],[SỐ THANH TOÁN]])-2)+DAY(Ngày_Bắt_đầu_Khoản_vay),"") ->  | D72: =IF(Lịch_biểu_Thanh_toán[[#This Row],[SỐ THANH TOÁN]]<>"",IF(ROW()-ROW(Lịch_biểu_Thanh_toán[[#Headers],[SỐ DƯ ĐẦU]])=1,Số_tiền_Vay,INDEX(Lịch_biểu_Thanh_toán[SỐ DƯ CUỐI],ROW()-ROW(Lịch_biểu_Thanh_toán[[#Headers],[SỐ DƯ ĐẦU]])-1)),"") ->  | E72: =IF(Lịch_biểu_Thanh_toán[[#This Row],[SỐ THANH TOÁN]]<>"",Thanh_toán_theo_Lịch,"") ->  | F72: =IF(Lịch_biểu_Thanh_toán[[#This Row],[SỐ THANH TOÁN]]<>"",IF(Lịch_biểu_Thanh_toán[[#This Row],[THANH TOÁN THEO LỊCH]]+Thanh_Toán_Bổ_sung<Lịch_biểu_Thanh_toán[[#This Row],[SỐ DƯ ĐẦU]],Thanh_Toán_Bổ_sung,IF(Lịch_biểu_Thanh_toán[[#This Row],[SỐ DƯ ĐẦU]]-Lịch_biểu_Thanh_toán[[#This Row],[THANH TOÁN THEO LỊCH]]>0,Lịch_biểu_Thanh_toán[[#This Row],[SỐ DƯ ĐẦU]]-Lịch_biểu_Thanh_toán[[#This Row],[THANH TOÁN THEO LỊCH]],0)),"") ->  | G72: =IF(Lịch_biểu_Thanh_toán[[#This Row],[SỐ THANH TOÁN]]<>"",IF(Lịch_biểu_Thanh_toán[[#This Row],[THANH TOÁN THEO LỊCH]]+Lịch_biểu_Thanh_toán[[#This Row],[THANH TOÁN BỔ SUNG]]<=Lịch_biểu_Thanh_toán[[#This Row],[SỐ DƯ ĐẦU]],Lịch_biểu_Thanh_toán[[#This Row],[THANH TOÁN THEO LỊCH]]+Lịch_biểu_Thanh_toán[[#This Row],[THANH TOÁN BỔ SUNG]],Lịch_biểu_Thanh_toán[[#This Row],[SỐ DƯ ĐẦU]]),"") ->  | H72: =IF(Lịch_biểu_Thanh_toán[[#This Row],[SỐ THANH TOÁN]]<>"",Lịch_biểu_Thanh_toán[[#This Row],[TỔNG THANH TOÁN]]-Lịch_biểu_Thanh_toán[[#This Row],[LÃI]],"") ->  | I72: =IF(Lịch_biểu_Thanh_toán[[#This Row],[SỐ THANH TOÁN]]<>"",Lịch_biểu_Thanh_toán[[#This Row],[SỐ DƯ ĐẦU]]*(Lãi_Suất/Thanh_toán_Mỗi_Năm),"") ->  | J72: =IF(Lịch_biểu_Thanh_toán[[#This Row],[SỐ THANH TOÁN]]<>"",IF(Lịch_biểu_Thanh_toán[[#This Row],[THANH TOÁN THEO LỊCH]]+Lịch_biểu_Thanh_toán[[#This Row],[THANH TOÁN BỔ SUNG]]<=Lịch_biểu_Thanh_toán[[#This Row],[SỐ DƯ ĐẦU]],Lịch_biểu_Thanh_toán[[#This Row],[SỐ DƯ ĐẦU]]-Lịch_biểu_Thanh_toán[[#This Row],[GỐC]],0),"") ->  | K72: =IF(Lịch_biểu_Thanh_toán[[#This Row],[SỐ THANH TOÁN]]<>"",SUM(INDEX(Lịch_biểu_Thanh_toán[LÃI],1,1):Lịch_biểu_Thanh_toán[[#This Row],[LÃI]]),"") -> 
B73: =IF(Khoản_vay_Tốt,IF(ROW()-ROW(Lịch_biểu_Thanh_toán[[#Headers],[SỐ THANH TOÁN]])>Số_lần_Thanh_toán_theo_Lịch,"",ROW()-ROW(Lịch_biểu_Thanh_toán[[#Headers],[SỐ THANH TOÁN]])),"") ->  | C73: =IF(Lịch_biểu_Thanh_toán[[#This Row],[SỐ THANH TOÁN]]<>"",EOMONTH(Ngày_Bắt_đầu_Khoản_vay,ROW(Lịch_biểu_Thanh_toán[[#This Row],[SỐ THANH TOÁN]])-ROW(Lịch_biểu_Thanh_toán[[#Headers],[SỐ THANH TOÁN]])-2)+DAY(Ngày_Bắt_đầu_Khoản_vay),"") ->  | D73: =IF(Lịch_biểu_Thanh_toán[[#This Row],[SỐ THANH TOÁN]]<>"",IF(ROW()-ROW(Lịch_biểu_Thanh_toán[[#Headers],[SỐ DƯ ĐẦU]])=1,Số_tiền_Vay,INDEX(Lịch_biểu_Thanh_toán[SỐ DƯ CUỐI],ROW()-ROW(Lịch_biểu_Thanh_toán[[#Headers],[SỐ DƯ ĐẦU]])-1)),"") ->  | E73: =IF(Lịch_biểu_Thanh_toán[[#This Row],[SỐ THANH TOÁN]]<>"",Thanh_toán_theo_Lịch,"") ->  | F73: =IF(Lịch_biểu_Thanh_toán[[#This Row],[SỐ THANH TOÁN]]<>"",IF(Lịch_biểu_Thanh_toán[[#This Row],[THANH TOÁN THEO LỊCH]]+Thanh_Toán_Bổ_sung<Lịch_biểu_Thanh_toán[[#This Row],[SỐ DƯ ĐẦU]],Thanh_Toán_Bổ_sung,IF(Lịch_biểu_Thanh_toán[[#This Row],[SỐ DƯ ĐẦU]]-Lịch_biểu_Thanh_toán[[#This Row],[THANH TOÁN THEO LỊCH]]>0,Lịch_biểu_Thanh_toán[[#This Row],[SỐ DƯ ĐẦU]]-Lịch_biểu_Thanh_toán[[#This Row],[THANH TOÁN THEO LỊCH]],0)),"") ->  | G73: =IF(Lịch_biểu_Thanh_toán[[#This Row],[SỐ THANH TOÁN]]<>"",IF(Lịch_biểu_Thanh_toán[[#This Row],[THANH TOÁN THEO LỊCH]]+Lịch_biểu_Thanh_toán[[#This Row],[THANH TOÁN BỔ SUNG]]<=Lịch_biểu_Thanh_toán[[#This Row],[SỐ DƯ ĐẦU]],Lịch_biểu_Thanh_toán[[#This Row],[THANH TOÁN THEO LỊCH]]+Lịch_biểu_Thanh_toán[[#This Row],[THANH TOÁN BỔ SUNG]],Lịch_biểu_Thanh_toán[[#This Row],[SỐ DƯ ĐẦU]]),"") ->  | H73: =IF(Lịch_biểu_Thanh_toán[[#This Row],[SỐ THANH TOÁN]]<>"",Lịch_biểu_Thanh_toán[[#This Row],[TỔNG THANH TOÁN]]-Lịch_biểu_Thanh_toán[[#This Row],[LÃI]],"") ->  | I73: =IF(Lịch_biểu_Thanh_toán[[#This Row],[SỐ THANH TOÁN]]<>"",Lịch_biểu_Thanh_toán[[#This Row],[SỐ DƯ ĐẦU]]*(Lãi_Suất/Thanh_toán_Mỗi_Năm),"") ->  | J73: =IF(Lịch_biểu_Thanh_toán[[#This Row],[SỐ THANH TOÁN]]<>"",IF(Lịch_biểu_Thanh_toán[[#This Row],[THANH TOÁN THEO LỊCH]]+Lịch_biểu_Thanh_toán[[#This Row],[THANH TOÁN BỔ SUNG]]<=Lịch_biểu_Thanh_toán[[#This Row],[SỐ DƯ ĐẦU]],Lịch_biểu_Thanh_toán[[#This Row],[SỐ DƯ ĐẦU]]-Lịch_biểu_Thanh_toán[[#This Row],[GỐC]],0),"") ->  | K73: =IF(Lịch_biểu_Thanh_toán[[#This Row],[SỐ THANH TOÁN]]<>"",SUM(INDEX(Lịch_biểu_Thanh_toán[LÃI],1,1):Lịch_biểu_Thanh_toán[[#This Row],[LÃI]]),"") -> 
B74: =IF(Khoản_vay_Tốt,IF(ROW()-ROW(Lịch_biểu_Thanh_toán[[#Headers],[SỐ THANH TOÁN]])>Số_lần_Thanh_toán_theo_Lịch,"",ROW()-ROW(Lịch_biểu_Thanh_toán[[#Headers],[SỐ THANH TOÁN]])),"") ->  | C74: =IF(Lịch_biểu_Thanh_toán[[#This Row],[SỐ THANH TOÁN]]<>"",EOMONTH(Ngày_Bắt_đầu_Khoản_vay,ROW(Lịch_biểu_Thanh_toán[[#This Row],[SỐ THANH TOÁN]])-ROW(Lịch_biểu_Thanh_toán[[#Headers],[SỐ THANH TOÁN]])-2)+DAY(Ngày_Bắt_đầu_Khoản_vay),"") ->  | D74: =IF(Lịch_biểu_Thanh_toán[[#This Row],[SỐ THANH TOÁN]]<>"",IF(ROW()-ROW(Lịch_biểu_Thanh_toán[[#Headers],[SỐ DƯ ĐẦU]])=1,Số_tiền_Vay,INDEX(Lịch_biểu_Thanh_toán[SỐ DƯ CUỐI],ROW()-ROW(Lịch_biểu_Thanh_toán[[#Headers],[SỐ DƯ ĐẦU]])-1)),"") ->  | E74: =IF(Lịch_biểu_Thanh_toán[[#This Row],[SỐ THANH TOÁN]]<>"",Thanh_toán_theo_Lịch,"") ->  | F74: =IF(Lịch_biểu_Thanh_toán[[#This Row],[SỐ THANH TOÁN]]<>"",IF(Lịch_biểu_Thanh_toán[[#This Row],[THANH TOÁN THEO LỊCH]]+Thanh_Toán_Bổ_sung<Lịch_biểu_Thanh_toán[[#This Row],[SỐ DƯ ĐẦU]],Thanh_Toán_Bổ_sung,IF(Lịch_biểu_Thanh_toán[[#This Row],[SỐ DƯ ĐẦU]]-Lịch_biểu_Thanh_toán[[#This Row],[THANH TOÁN THEO LỊCH]]>0,Lịch_biểu_Thanh_toán[[#This Row],[SỐ DƯ ĐẦU]]-Lịch_biểu_Thanh_toán[[#This Row],[THANH TOÁN THEO LỊCH]],0)),"") ->  | G74: =IF(Lịch_biểu_Thanh_toán[[#This Row],[SỐ THANH TOÁN]]<>"",IF(Lịch_biểu_Thanh_toán[[#This Row],[THANH TOÁN THEO LỊCH]]+Lịch_biểu_Thanh_toán[[#This Row],[THANH TOÁN BỔ SUNG]]<=Lịch_biểu_Thanh_toán[[#This Row],[SỐ DƯ ĐẦU]],Lịch_biểu_Thanh_toán[[#This Row],[THANH TOÁN THEO LỊCH]]+Lịch_biểu_Thanh_toán[[#This Row],[THANH TOÁN BỔ SUNG]],Lịch_biểu_Thanh_toán[[#This Row],[SỐ DƯ ĐẦU]]),"") ->  | H74: =IF(Lịch_biểu_Thanh_toán[[#This Row],[SỐ THANH TOÁN]]<>"",Lịch_biểu_Thanh_toán[[#This Row],[TỔNG THANH TOÁN]]-Lịch_biểu_Thanh_toán[[#This Row],[LÃI]],"") ->  | I74: =IF(Lịch_biểu_Thanh_toán[[#This Row],[SỐ THANH TOÁN]]<>"",Lịch_biểu_Thanh_toán[[#This Row],[SỐ DƯ ĐẦU]]*(Lãi_Suất/Thanh_toán_Mỗi_Năm),"") ->  | J74: =IF(Lịch_biểu_Thanh_toán[[#This Row],[SỐ THANH TOÁN]]<>"",IF(Lịch_biểu_Thanh_toán[[#This Row],[THANH TOÁN THEO LỊCH]]+Lịch_biểu_Thanh_toán[[#This Row],[THANH TOÁN BỔ SUNG]]<=Lịch_biểu_Thanh_toán[[#This Row],[SỐ DƯ ĐẦU]],Lịch_biểu_Thanh_toán[[#This Row],[SỐ DƯ ĐẦU]]-Lịch_biểu_Thanh_toán[[#This Row],[GỐC]],0),"") ->  | K74: =IF(Lịch_biểu_Thanh_toán[[#This Row],[SỐ THANH TOÁN]]<>"",SUM(INDEX(Lịch_biểu_Thanh_toán[LÃI],1,1):Lịch_biểu_Thanh_toán[[#This Row],[LÃI]]),"") -> 
B75: =IF(Khoản_vay_Tốt,IF(ROW()-ROW(Lịch_biểu_Thanh_toán[[#Headers],[SỐ THANH TOÁN]])>Số_lần_Thanh_toán_theo_Lịch,"",ROW()-ROW(Lịch_biểu_Thanh_toán[[#Headers],[SỐ THANH TOÁN]])),"") ->  | C75: =IF(Lịch_biểu_Thanh_toán[[#This Row],[SỐ THANH TOÁN]]<>"",EOMONTH(Ngày_Bắt_đầu_Khoản_vay,ROW(Lịch_biểu_Thanh_toán[[#This Row],[SỐ THANH TOÁN]])-ROW(Lịch_biểu_Thanh_toán[[#Headers],[SỐ THANH TOÁN]])-2)+DAY(Ngày_Bắt_đầu_Khoản_vay),"") ->  | D75: =IF(Lịch_biểu_Thanh_toán[[#This Row],[SỐ THANH TOÁN]]<>"",IF(ROW()-ROW(Lịch_biểu_Thanh_toán[[#Headers],[SỐ DƯ ĐẦU]])=1,Số_tiền_Vay,INDEX(Lịch_biểu_Thanh_toán[SỐ DƯ CUỐI],ROW()-ROW(Lịch_biểu_Thanh_toán[[#Headers],[SỐ DƯ ĐẦU]])-1)),"") ->  | E75: =IF(Lịch_biểu_Thanh_toán[[#This Row],[SỐ THANH TOÁN]]<>"",Thanh_toán_theo_Lịch,"") ->  | F75: =IF(Lịch_biểu_Thanh_toán[[#This Row],[SỐ THANH TOÁN]]<>"",IF(Lịch_biểu_Thanh_toán[[#This Row],[THANH TOÁN THEO LỊCH]]+Thanh_Toán_Bổ_sung<Lịch_biểu_Thanh_toán[[#This Row],[SỐ DƯ ĐẦU]],Thanh_Toán_Bổ_sung,IF(Lịch_biểu_Thanh_toán[[#This Row],[SỐ DƯ ĐẦU]]-Lịch_biểu_Thanh_toán[[#This Row],[THANH TOÁN THEO LỊCH]]>0,Lịch_biểu_Thanh_toán[[#This Row],[SỐ DƯ ĐẦU]]-Lịch_biểu_Thanh_toán[[#This Row],[THANH TOÁN THEO LỊCH]],0)),"") ->  | G75: =IF(Lịch_biểu_Thanh_toán[[#This Row],[SỐ THANH TOÁN]]<>"",IF(Lịch_biểu_Thanh_toán[[#This Row],[THANH TOÁN THEO LỊCH]]+Lịch_biểu_Thanh_toán[[#This Row],[THANH TOÁN BỔ SUNG]]<=Lịch_biểu_Thanh_toán[[#This Row],[SỐ DƯ ĐẦU]],Lịch_biểu_Thanh_toán[[#This Row],[THANH TOÁN THEO LỊCH]]+Lịch_biểu_Thanh_toán[[#This Row],[THANH TOÁN BỔ SUNG]],Lịch_biểu_Thanh_toán[[#This Row],[SỐ DƯ ĐẦU]]),"") ->  | H75: =IF(Lịch_biểu_Thanh_toán[[#This Row],[SỐ THANH TOÁN]]<>"",Lịch_biểu_Thanh_toán[[#This Row],[TỔNG THANH TOÁN]]-Lịch_biểu_Thanh_toán[[#This Row],[LÃI]],"") ->  | I75: =IF(Lịch_biểu_Thanh_toán[[#This Row],[SỐ THANH TOÁN]]<>"",Lịch_biểu_Thanh_toán[[#This Row],[SỐ DƯ ĐẦU]]*(Lãi_Suất/Thanh_toán_Mỗi_Năm),"") ->  | J75: =IF(Lịch_biểu_Thanh_toán[[#This Row],[SỐ THANH TOÁN]]<>"",IF(Lịch_biểu_Thanh_toán[[#This Row],[THANH TOÁN THEO LỊCH]]+Lịch_biểu_Thanh_toán[[#This Row],[THANH TOÁN BỔ SUNG]]<=Lịch_biểu_Thanh_toán[[#This Row],[SỐ DƯ ĐẦU]],Lịch_biểu_Thanh_toán[[#This Row],[SỐ DƯ ĐẦU]]-Lịch_biểu_Thanh_toán[[#This Row],[GỐC]],0),"") ->  | K75: =IF(Lịch_biểu_Thanh_toán[[#This Row],[SỐ THANH TOÁN]]<>"",SUM(INDEX(Lịch_biểu_Thanh_toán[LÃI],1,1):Lịch_biểu_Thanh_toán[[#This Row],[LÃI]]),"") -> 
B76: =IF(Khoản_vay_Tốt,IF(ROW()-ROW(Lịch_biểu_Thanh_toán[[#Headers],[SỐ THANH TOÁN]])>Số_lần_Thanh_toán_theo_Lịch,"",ROW()-ROW(Lịch_biểu_Thanh_toán[[#Headers],[SỐ THANH TOÁN]])),"") ->  | C76: =IF(Lịch_biểu_Thanh_toán[[#This Row],[SỐ THANH TOÁN]]<>"",EOMONTH(Ngày_Bắt_đầu_Khoản_vay,ROW(Lịch_biểu_Thanh_toán[[#This Row],[SỐ THANH TOÁN]])-ROW(Lịch_biểu_Thanh_toán[[#Headers],[SỐ THANH TOÁN]])-2)+DAY(Ngày_Bắt_đầu_Khoản_vay),"") ->  | D76: =IF(Lịch_biểu_Thanh_toán[[#This Row],[SỐ THANH TOÁN]]<>"",IF(ROW()-ROW(Lịch_biểu_Thanh_toán[[#Headers],[SỐ DƯ ĐẦU]])=1,Số_tiền_Vay,INDEX(Lịch_biểu_Thanh_toán[SỐ DƯ CUỐI],ROW()-ROW(Lịch_biểu_Thanh_toán[[#Headers],[SỐ DƯ ĐẦU]])-1)),"") ->  | E76: =IF(Lịch_biểu_Thanh_toán[[#This Row],[SỐ THANH TOÁN]]<>"",Thanh_toán_theo_Lịch,"") ->  | F76: =IF(Lịch_biểu_Thanh_toán[[#This Row],[SỐ THANH TOÁN]]<>"",IF(Lịch_biểu_Thanh_toán[[#This Row],[THANH TOÁN THEO LỊCH]]+Thanh_Toán_Bổ_sung<Lịch_biểu_Thanh_toán[[#This Row],[SỐ DƯ ĐẦU]],Thanh_Toán_Bổ_sung,IF(Lịch_biểu_Thanh_toán[[#This Row],[SỐ DƯ ĐẦU]]-Lịch_biểu_Thanh_toán[[#This Row],[THANH TOÁN THEO LỊCH]]>0,Lịch_biểu_Thanh_toán[[#This Row],[SỐ DƯ ĐẦU]]-Lịch_biểu_Thanh_toán[[#This Row],[THANH TOÁN THEO LỊCH]],0)),"") ->  | G76: =IF(Lịch_biểu_Thanh_toán[[#This Row],[SỐ THANH TOÁN]]<>"",IF(Lịch_biểu_Thanh_toán[[#This Row],[THANH TOÁN THEO LỊCH]]+Lịch_biểu_Thanh_toán[[#This Row],[THANH TOÁN BỔ SUNG]]<=Lịch_biểu_Thanh_toán[[#This Row],[SỐ DƯ ĐẦU]],Lịch_biểu_Thanh_toán[[#This Row],[THANH TOÁN THEO LỊCH]]+Lịch_biểu_Thanh_toán[[#This Row],[THANH TOÁN BỔ SUNG]],Lịch_biểu_Thanh_toán[[#This Row],[SỐ DƯ ĐẦU]]),"") ->  | H76: =IF(Lịch_biểu_Thanh_toán[[#This Row],[SỐ THANH TOÁN]]<>"",Lịch_biểu_Thanh_toán[[#This Row],[TỔNG THANH TOÁN]]-Lịch_biểu_Thanh_toán[[#This Row],[LÃI]],"") ->  | I76: =IF(Lịch_biểu_Thanh_toán[[#This Row],[SỐ THANH TOÁN]]<>"",Lịch_biểu_Thanh_toán[[#This Row],[SỐ DƯ ĐẦU]]*(Lãi_Suất/Thanh_toán_Mỗi_Năm),"") ->  | J76: =IF(Lịch_biểu_Thanh_toán[[#This Row],[SỐ THANH TOÁN]]<>"",IF(Lịch_biểu_Thanh_toán[[#This Row],[THANH TOÁN THEO LỊCH]]+Lịch_biểu_Thanh_toán[[#This Row],[THANH TOÁN BỔ SUNG]]<=Lịch_biểu_Thanh_toán[[#This Row],[SỐ DƯ ĐẦU]],Lịch_biểu_Thanh_toán[[#This Row],[SỐ DƯ ĐẦU]]-Lịch_biểu_Thanh_toán[[#This Row],[GỐC]],0),"") ->  | K76: =IF(Lịch_biểu_Thanh_toán[[#This Row],[SỐ THANH TOÁN]]<>"",SUM(INDEX(Lịch_biểu_Thanh_toán[LÃI],1,1):Lịch_biểu_Thanh_toán[[#This Row],[LÃI]]),"") -> 
B77: =IF(Khoản_vay_Tốt,IF(ROW()-ROW(Lịch_biểu_Thanh_toán[[#Headers],[SỐ THANH TOÁN]])>Số_lần_Thanh_toán_theo_Lịch,"",ROW()-ROW(Lịch_biểu_Thanh_toán[[#Headers],[SỐ THANH TOÁN]])),"") ->  | C77: =IF(Lịch_biểu_Thanh_toán[[#This Row],[SỐ THANH TOÁN]]<>"",EOMONTH(Ngày_Bắt_đầu_Khoản_vay,ROW(Lịch_biểu_Thanh_toán[[#This Row],[SỐ THANH TOÁN]])-ROW(Lịch_biểu_Thanh_toán[[#Headers],[SỐ THANH TOÁN]])-2)+DAY(Ngày_Bắt_đầu_Khoản_vay),"") ->  | D77: =IF(Lịch_biểu_Thanh_toán[[#This Row],[SỐ THANH TOÁN]]<>"",IF(ROW()-ROW(Lịch_biểu_Thanh_toán[[#Headers],[SỐ DƯ ĐẦU]])=1,Số_tiền_Vay,INDEX(Lịch_biểu_Thanh_toán[SỐ DƯ CUỐI],ROW()-ROW(Lịch_biểu_Thanh_toán[[#Headers],[SỐ DƯ ĐẦU]])-1)),"") ->  | E77: =IF(Lịch_biểu_Thanh_toán[[#This Row],[SỐ THANH TOÁN]]<>"",Thanh_toán_theo_Lịch,"") ->  | F77: =IF(Lịch_biểu_Thanh_toán[[#This Row],[SỐ THANH TOÁN]]<>"",IF(Lịch_biểu_Thanh_toán[[#This Row],[THANH TOÁN THEO LỊCH]]+Thanh_Toán_Bổ_sung<Lịch_biểu_Thanh_toán[[#This Row],[SỐ DƯ ĐẦU]],Thanh_Toán_Bổ_sung,IF(Lịch_biểu_Thanh_toán[[#This Row],[SỐ DƯ ĐẦU]]-Lịch_biểu_Thanh_toán[[#This Row],[THANH TOÁN THEO LỊCH]]>0,Lịch_biểu_Thanh_toán[[#This Row],[SỐ DƯ ĐẦU]]-Lịch_biểu_Thanh_toán[[#This Row],[THANH TOÁN THEO LỊCH]],0)),"") ->  | G77: =IF(Lịch_biểu_Thanh_toán[[#This Row],[SỐ THANH TOÁN]]<>"",IF(Lịch_biểu_Thanh_toán[[#This Row],[THANH TOÁN THEO LỊCH]]+Lịch_biểu_Thanh_toán[[#This Row],[THANH TOÁN BỔ SUNG]]<=Lịch_biểu_Thanh_toán[[#This Row],[SỐ DƯ ĐẦU]],Lịch_biểu_Thanh_toán[[#This Row],[THANH TOÁN THEO LỊCH]]+Lịch_biểu_Thanh_toán[[#This Row],[THANH TOÁN BỔ SUNG]],Lịch_biểu_Thanh_toán[[#This Row],[SỐ DƯ ĐẦU]]),"") ->  | H77: =IF(Lịch_biểu_Thanh_toán[[#This Row],[SỐ THANH TOÁN]]<>"",Lịch_biểu_Thanh_toán[[#This Row],[TỔNG THANH TOÁN]]-Lịch_biểu_Thanh_toán[[#This Row],[LÃI]],"") ->  | I77: =IF(Lịch_biểu_Thanh_toán[[#This Row],[SỐ THANH TOÁN]]<>"",Lịch_biểu_Thanh_toán[[#This Row],[SỐ DƯ ĐẦU]]*(Lãi_Suất/Thanh_toán_Mỗi_Năm),"") ->  | J77: =IF(Lịch_biểu_Thanh_toán[[#This Row],[SỐ THANH TOÁN]]<>"",IF(Lịch_biểu_Thanh_toán[[#This Row],[THANH TOÁN THEO LỊCH]]+Lịch_biểu_Thanh_toán[[#This Row],[THANH TOÁN BỔ SUNG]]<=Lịch_biểu_Thanh_toán[[#This Row],[SỐ DƯ ĐẦU]],Lịch_biểu_Thanh_toán[[#This Row],[SỐ DƯ ĐẦU]]-Lịch_biểu_Thanh_toán[[#This Row],[GỐC]],0),"") ->  | K77: =IF(Lịch_biểu_Thanh_toán[[#This Row],[SỐ THANH TOÁN]]<>"",SUM(INDEX(Lịch_biểu_Thanh_toán[LÃI],1,1):Lịch_biểu_Thanh_toán[[#This Row],[LÃI]]),"") -> 
B78: =IF(Khoản_vay_Tốt,IF(ROW()-ROW(Lịch_biểu_Thanh_toán[[#Headers],[SỐ THANH TOÁN]])>Số_lần_Thanh_toán_theo_Lịch,"",ROW()-ROW(Lịch_biểu_Thanh_toán[[#Headers],[SỐ THANH TOÁN]])),"") ->  | C78: =IF(Lịch_biểu_Thanh_toán[[#This Row],[SỐ THANH TOÁN]]<>"",EOMONTH(Ngày_Bắt_đầu_Khoản_vay,ROW(Lịch_biểu_Thanh_toán[[#This Row],[SỐ THANH TOÁN]])-ROW(Lịch_biểu_Thanh_toán[[#Headers],[SỐ THANH TOÁN]])-2)+DAY(Ngày_Bắt_đầu_Khoản_vay),"") ->  | D78: =IF(Lịch_biểu_Thanh_toán[[#This Row],[SỐ THANH TOÁN]]<>"",IF(ROW()-ROW(Lịch_biểu_Thanh_toán[[#Headers],[SỐ DƯ ĐẦU]])=1,Số_tiền_Vay,INDEX(Lịch_biểu_Thanh_toán[SỐ DƯ CUỐI],ROW()-ROW(Lịch_biểu_Thanh_toán[[#Headers],[SỐ DƯ ĐẦU]])-1)),"") ->  | E78: =IF(Lịch_biểu_Thanh_toán[[#This Row],[SỐ THANH TOÁN]]<>"",Thanh_toán_theo_Lịch,"") ->  | F78: =IF(Lịch_biểu_Thanh_toán[[#This Row],[SỐ THANH TOÁN]]<>"",IF(Lịch_biểu_Thanh_toán[[#This Row],[THANH TOÁN THEO LỊCH]]+Thanh_Toán_Bổ_sung<Lịch_biểu_Thanh_toán[[#This Row],[SỐ DƯ ĐẦU]],Thanh_Toán_Bổ_sung,IF(Lịch_biểu_Thanh_toán[[#This Row],[SỐ DƯ ĐẦU]]-Lịch_biểu_Thanh_toán[[#This Row],[THANH TOÁN THEO LỊCH]]>0,Lịch_biểu_Thanh_toán[[#This Row],[SỐ DƯ ĐẦU]]-Lịch_biểu_Thanh_toán[[#This Row],[THANH TOÁN THEO LỊCH]],0)),"") ->  | G78: =IF(Lịch_biểu_Thanh_toán[[#This Row],[SỐ THANH TOÁN]]<>"",IF(Lịch_biểu_Thanh_toán[[#This Row],[THANH TOÁN THEO LỊCH]]+Lịch_biểu_Thanh_toán[[#This Row],[THANH TOÁN BỔ SUNG]]<=Lịch_biểu_Thanh_toán[[#This Row],[SỐ DƯ ĐẦU]],Lịch_biểu_Thanh_toán[[#This Row],[THANH TOÁN THEO LỊCH]]+Lịch_biểu_Thanh_toán[[#This Row],[THANH TOÁN BỔ SUNG]],Lịch_biểu_Thanh_toán[[#This Row],[SỐ DƯ ĐẦU]]),"") ->  | H78: =IF(Lịch_biểu_Thanh_toán[[#This Row],[SỐ THANH TOÁN]]<>"",Lịch_biểu_Thanh_toán[[#This Row],[TỔNG THANH TOÁN]]-Lịch_biểu_Thanh_toán[[#This Row],[LÃI]],"") ->  | I78: =IF(Lịch_biểu_Thanh_toán[[#This Row],[SỐ THANH TOÁN]]<>"",Lịch_biểu_Thanh_toán[[#This Row],[SỐ DƯ ĐẦU]]*(Lãi_Suất/Thanh_toán_Mỗi_Năm),"") ->  | J78: =IF(Lịch_biểu_Thanh_toán[[#This Row],[SỐ THANH TOÁN]]<>"",IF(Lịch_biểu_Thanh_toán[[#This Row],[THANH TOÁN THEO LỊCH]]+Lịch_biểu_Thanh_toán[[#This Row],[THANH TOÁN BỔ SUNG]]<=Lịch_biểu_Thanh_toán[[#This Row],[SỐ DƯ ĐẦU]],Lịch_biểu_Thanh_toán[[#This Row],[SỐ DƯ ĐẦU]]-Lịch_biểu_Thanh_toán[[#This Row],[GỐC]],0),"") ->  | K78: =IF(Lịch_biểu_Thanh_toán[[#This Row],[SỐ THANH TOÁN]]<>"",SUM(INDEX(Lịch_biểu_Thanh_toán[LÃI],1,1):Lịch_biểu_Thanh_toán[[#This Row],[LÃI]]),"") -> 
B79: =IF(Khoản_vay_Tốt,IF(ROW()-ROW(Lịch_biểu_Thanh_toán[[#Headers],[SỐ THANH TOÁN]])>Số_lần_Thanh_toán_theo_Lịch,"",ROW()-ROW(Lịch_biểu_Thanh_toán[[#Headers],[SỐ THANH TOÁN]])),"") ->  | C79: =IF(Lịch_biểu_Thanh_toán[[#This Row],[SỐ THANH TOÁN]]<>"",EOMONTH(Ngày_Bắt_đầu_Khoản_vay,ROW(Lịch_biểu_Thanh_toán[[#This Row],[SỐ THANH TOÁN]])-ROW(Lịch_biểu_Thanh_toán[[#Headers],[SỐ THANH TOÁN]])-2)+DAY(Ngày_Bắt_đầu_Khoản_vay),"") ->  | D79: =IF(Lịch_biểu_Thanh_toán[[#This Row],[SỐ THANH TOÁN]]<>"",IF(ROW()-ROW(Lịch_biểu_Thanh_toán[[#Headers],[SỐ DƯ ĐẦU]])=1,Số_tiền_Vay,INDEX(Lịch_biểu_Thanh_toán[SỐ DƯ CUỐI],ROW()-ROW(Lịch_biểu_Thanh_toán[[#Headers],[SỐ DƯ ĐẦU]])-1)),"") ->  | E79: =IF(Lịch_biểu_Thanh_toán[[#This Row],[SỐ THANH TOÁN]]<>"",Thanh_toán_theo_Lịch,"") ->  | F79: =IF(Lịch_biểu_Thanh_toán[[#This Row],[SỐ THANH TOÁN]]<>"",IF(Lịch_biểu_Thanh_toán[[#This Row],[THANH TOÁN THEO LỊCH]]+Thanh_Toán_Bổ_sung<Lịch_biểu_Thanh_toán[[#This Row],[SỐ DƯ ĐẦU]],Thanh_Toán_Bổ_sung,IF(Lịch_biểu_Thanh_toán[[#This Row],[SỐ DƯ ĐẦU]]-Lịch_biểu_Thanh_toán[[#This Row],[THANH TOÁN THEO LỊCH]]>0,Lịch_biểu_Thanh_toán[[#This Row],[SỐ DƯ ĐẦU]]-Lịch_biểu_Thanh_toán[[#This Row],[THANH TOÁN THEO LỊCH]],0)),"") ->  | G79: =IF(Lịch_biểu_Thanh_toán[[#This Row],[SỐ THANH TOÁN]]<>"",IF(Lịch_biểu_Thanh_toán[[#This Row],[THANH TOÁN THEO LỊCH]]+Lịch_biểu_Thanh_toán[[#This Row],[THANH TOÁN BỔ SUNG]]<=Lịch_biểu_Thanh_toán[[#This Row],[SỐ DƯ ĐẦU]],Lịch_biểu_Thanh_toán[[#This Row],[THANH TOÁN THEO LỊCH]]+Lịch_biểu_Thanh_toán[[#This Row],[THANH TOÁN BỔ SUNG]],Lịch_biểu_Thanh_toán[[#This Row],[SỐ DƯ ĐẦU]]),"") ->  | H79: =IF(Lịch_biểu_Thanh_toán[[#This Row],[SỐ THANH TOÁN]]<>"",Lịch_biểu_Thanh_toán[[#This Row],[TỔNG THANH TOÁN]]-Lịch_biểu_Thanh_toán[[#This Row],[LÃI]],"") ->  | I79: =IF(Lịch_biểu_Thanh_toán[[#This Row],[SỐ THANH TOÁN]]<>"",Lịch_biểu_Thanh_toán[[#This Row],[SỐ DƯ ĐẦU]]*(Lãi_Suất/Thanh_toán_Mỗi_Năm),"") ->  | J79: =IF(Lịch_biểu_Thanh_toán[[#This Row],[SỐ THANH TOÁN]]<>"",IF(Lịch_biểu_Thanh_toán[[#This Row],[THANH TOÁN THEO LỊCH]]+Lịch_biểu_Thanh_toán[[#This Row],[THANH TOÁN BỔ SUNG]]<=Lịch_biểu_Thanh_toán[[#This Row],[SỐ DƯ ĐẦU]],Lịch_biểu_Thanh_toán[[#This Row],[SỐ DƯ ĐẦU]]-Lịch_biểu_Thanh_toán[[#This Row],[GỐC]],0),"") ->  | K79: =IF(Lịch_biểu_Thanh_toán[[#This Row],[SỐ THANH TOÁN]]<>"",SUM(INDEX(Lịch_biểu_Thanh_toán[LÃI],1,1):Lịch_biểu_Thanh_toán[[#This Row],[LÃI]]),"") -> 
B80: =IF(Khoản_vay_Tốt,IF(ROW()-ROW(Lịch_biểu_Thanh_toán[[#Headers],[SỐ THANH TOÁN]])>Số_lần_Thanh_toán_theo_Lịch,"",ROW()-ROW(Lịch_biểu_Thanh_toán[[#Headers],[SỐ THANH TOÁN]])),"") ->  | C80: =IF(Lịch_biểu_Thanh_toán[[#This Row],[SỐ THANH TOÁN]]<>"",EOMONTH(Ngày_Bắt_đầu_Khoản_vay,ROW(Lịch_biểu_Thanh_toán[[#This Row],[SỐ THANH TOÁN]])-ROW(Lịch_biểu_Thanh_toán[[#Headers],[SỐ THANH TOÁN]])-2)+DAY(Ngày_Bắt_đầu_Khoản_vay),"") ->  | D80: =IF(Lịch_biểu_Thanh_toán[[#This Row],[SỐ THANH TOÁN]]<>"",IF(ROW()-ROW(Lịch_biểu_Thanh_toán[[#Headers],[SỐ DƯ ĐẦU]])=1,Số_tiền_Vay,INDEX(Lịch_biểu_Thanh_toán[SỐ DƯ CUỐI],ROW()-ROW(Lịch_biểu_Thanh_toán[[#Headers],[SỐ DƯ ĐẦU]])-1)),"") ->  | E80: =IF(Lịch_biểu_Thanh_toán[[#This Row],[SỐ THANH TOÁN]]<>"",Thanh_toán_theo_Lịch,"") ->  | F80: =IF(Lịch_biểu_Thanh_toán[[#This Row],[SỐ THANH TOÁN]]<>"",IF(Lịch_biểu_Thanh_toán[[#This Row],[THANH TOÁN THEO LỊCH]]+Thanh_Toán_Bổ_sung<Lịch_biểu_Thanh_toán[[#This Row],[SỐ DƯ ĐẦU]],Thanh_Toán_Bổ_sung,IF(Lịch_biểu_Thanh_toán[[#This Row],[SỐ DƯ ĐẦU]]-Lịch_biểu_Thanh_toán[[#This Row],[THANH TOÁN THEO LỊCH]]>0,Lịch_biểu_Thanh_toán[[#This Row],[SỐ DƯ ĐẦU]]-Lịch_biểu_Thanh_toán[[#This Row],[THANH TOÁN THEO LỊCH]],0)),"") ->  | G80: =IF(Lịch_biểu_Thanh_toán[[#This Row],[SỐ THANH TOÁN]]<>"",IF(Lịch_biểu_Thanh_toán[[#This Row],[THANH TOÁN THEO LỊCH]]+Lịch_biểu_Thanh_toán[[#This Row],[THANH TOÁN BỔ SUNG]]<=Lịch_biểu_Thanh_toán[[#This Row],[SỐ DƯ ĐẦU]],Lịch_biểu_Thanh_toán[[#This Row],[THANH TOÁN THEO LỊCH]]+Lịch_biểu_Thanh_toán[[#This Row],[THANH TOÁN BỔ SUNG]],Lịch_biểu_Thanh_toán[[#This Row],[SỐ DƯ ĐẦU]]),"") ->  | H80: =IF(Lịch_biểu_Thanh_toán[[#This Row],[SỐ THANH TOÁN]]<>"",Lịch_biểu_Thanh_toán[[#This Row],[TỔNG THANH TOÁN]]-Lịch_biểu_Thanh_toán[[#This Row],[LÃI]],"") ->  | I80: =IF(Lịch_biểu_Thanh_toán[[#This Row],[SỐ THANH TOÁN]]<>"",Lịch_biểu_Thanh_toán[[#This Row],[SỐ DƯ ĐẦU]]*(Lãi_Suất/Thanh_toán_Mỗi_Năm),"") ->  | J80: =IF(Lịch_biểu_Thanh_toán[[#This Row],[SỐ THANH TOÁN]]<>"",IF(Lịch_biểu_Thanh_toán[[#This Row],[THANH TOÁN THEO LỊCH]]+Lịch_biểu_Thanh_toán[[#This Row],[THANH TOÁN BỔ SUNG]]<=Lịch_biểu_Thanh_toán[[#This Row],[SỐ DƯ ĐẦU]],Lịch_biểu_Thanh_toán[[#This Row],[SỐ DƯ ĐẦU]]-Lịch_biểu_Thanh_toán[[#This Row],[GỐC]],0),"") ->  | K80: =IF(Lịch_biểu_Thanh_toán[[#This Row],[SỐ THANH TOÁN]]<>"",SUM(INDEX(Lịch_biểu_Thanh_toán[LÃI],1,1):Lịch_biểu_Thanh_toán[[#This Row],[LÃI]]),"") -> 
B81: =IF(Khoản_vay_Tốt,IF(ROW()-ROW(Lịch_biểu_Thanh_toán[[#Headers],[SỐ THANH TOÁN]])>Số_lần_Thanh_toán_theo_Lịch,"",ROW()-ROW(Lịch_biểu_Thanh_toán[[#Headers],[SỐ THANH TOÁN]])),"") ->  | C81: =IF(Lịch_biểu_Thanh_toán[[#This Row],[SỐ THANH TOÁN]]<>"",EOMONTH(Ngày_Bắt_đầu_Khoản_vay,ROW(Lịch_biểu_Thanh_toán[[#This Row],[SỐ THANH TOÁN]])-ROW(Lịch_biểu_Thanh_toán[[#Headers],[SỐ THANH TOÁN]])-2)+DAY(Ngày_Bắt_đầu_Khoản_vay),"") ->  | D81: =IF(Lịch_biểu_Thanh_toán[[#This Row],[SỐ THANH TOÁN]]<>"",IF(ROW()-ROW(Lịch_biểu_Thanh_toán[[#Headers],[SỐ DƯ ĐẦU]])=1,Số_tiền_Vay,INDEX(Lịch_biểu_Thanh_toán[SỐ DƯ CUỐI],ROW()-ROW(Lịch_biểu_Thanh_toán[[#Headers],[SỐ DƯ ĐẦU]])-1)),"") ->  | E81: =IF(Lịch_biểu_Thanh_toán[[#This Row],[SỐ THANH TOÁN]]<>"",Thanh_toán_theo_Lịch,"") ->  | F81: =IF(Lịch_biểu_Thanh_toán[[#This Row],[SỐ THANH TOÁN]]<>"",IF(Lịch_biểu_Thanh_toán[[#This Row],[THANH TOÁN THEO LỊCH]]+Thanh_Toán_Bổ_sung<Lịch_biểu_Thanh_toán[[#This Row],[SỐ DƯ ĐẦU]],Thanh_Toán_Bổ_sung,IF(Lịch_biểu_Thanh_toán[[#This Row],[SỐ DƯ ĐẦU]]-Lịch_biểu_Thanh_toán[[#This Row],[THANH TOÁN THEO LỊCH]]>0,Lịch_biểu_Thanh_toán[[#This Row],[SỐ DƯ ĐẦU]]-Lịch_biểu_Thanh_toán[[#This Row],[THANH TOÁN THEO LỊCH]],0)),"") ->  | G81: =IF(Lịch_biểu_Thanh_toán[[#This Row],[SỐ THANH TOÁN]]<>"",IF(Lịch_biểu_Thanh_toán[[#This Row],[THANH TOÁN THEO LỊCH]]+Lịch_biểu_Thanh_toán[[#This Row],[THANH TOÁN BỔ SUNG]]<=Lịch_biểu_Thanh_toán[[#This Row],[SỐ DƯ ĐẦU]],Lịch_biểu_Thanh_toán[[#This Row],[THANH TOÁN THEO LỊCH]]+Lịch_biểu_Thanh_toán[[#This Row],[THANH TOÁN BỔ SUNG]],Lịch_biểu_Thanh_toán[[#This Row],[SỐ DƯ ĐẦU]]),"") ->  | H81: =IF(Lịch_biểu_Thanh_toán[[#This Row],[SỐ THANH TOÁN]]<>"",Lịch_biểu_Thanh_toán[[#This Row],[TỔNG THANH TOÁN]]-Lịch_biểu_Thanh_toán[[#This Row],[LÃI]],"") ->  | I81: =IF(Lịch_biểu_Thanh_toán[[#This Row],[SỐ THANH TOÁN]]<>"",Lịch_biểu_Thanh_toán[[#This Row],[SỐ DƯ ĐẦU]]*(Lãi_Suất/Thanh_toán_Mỗi_Năm),"") ->  | J81: =IF(Lịch_biểu_Thanh_toán[[#This Row],[SỐ THANH TOÁN]]<>"",IF(Lịch_biểu_Thanh_toán[[#This Row],[THANH TOÁN THEO LỊCH]]+Lịch_biểu_Thanh_toán[[#This Row],[THANH TOÁN BỔ SUNG]]<=Lịch_biểu_Thanh_toán[[#This Row],[SỐ DƯ ĐẦU]],Lịch_biểu_Thanh_toán[[#This Row],[SỐ DƯ ĐẦU]]-Lịch_biểu_Thanh_toán[[#This Row],[GỐC]],0),"") ->  | K81: =IF(Lịch_biểu_Thanh_toán[[#This Row],[SỐ THANH TOÁN]]<>"",SUM(INDEX(Lịch_biểu_Thanh_toán[LÃI],1,1):Lịch_biểu_Thanh_toán[[#This Row],[LÃI]]),"") -> 
B82: =IF(Khoản_vay_Tốt,IF(ROW()-ROW(Lịch_biểu_Thanh_toán[[#Headers],[SỐ THANH TOÁN]])>Số_lần_Thanh_toán_theo_Lịch,"",ROW()-ROW(Lịch_biểu_Thanh_toán[[#Headers],[SỐ THANH TOÁN]])),"") ->  | C82: =IF(Lịch_biểu_Thanh_toán[[#This Row],[SỐ THANH TOÁN]]<>"",EOMONTH(Ngày_Bắt_đầu_Khoản_vay,ROW(Lịch_biểu_Thanh_toán[[#This Row],[SỐ THANH TOÁN]])-ROW(Lịch_biểu_Thanh_toán[[#Headers],[SỐ THANH TOÁN]])-2)+DAY(Ngày_Bắt_đầu_Khoản_vay),"") ->  | D82: =IF(Lịch_biểu_Thanh_toán[[#This Row],[SỐ THANH TOÁN]]<>"",IF(ROW()-ROW(Lịch_biểu_Thanh_toán[[#Headers],[SỐ DƯ ĐẦU]])=1,Số_tiền_Vay,INDEX(Lịch_biểu_Thanh_toán[SỐ DƯ CUỐI],ROW()-ROW(Lịch_biểu_Thanh_toán[[#Headers],[SỐ DƯ ĐẦU]])-1)),"") ->  | E82: =IF(Lịch_biểu_Thanh_toán[[#This Row],[SỐ THANH TOÁN]]<>"",Thanh_toán_theo_Lịch,"") ->  | F82: =IF(Lịch_biểu_Thanh_toán[[#This Row],[SỐ THANH TOÁN]]<>"",IF(Lịch_biểu_Thanh_toán[[#This Row],[THANH TOÁN THEO LỊCH]]+Thanh_Toán_Bổ_sung<Lịch_biểu_Thanh_toán[[#This Row],[SỐ DƯ ĐẦU]],Thanh_Toán_Bổ_sung,IF(Lịch_biểu_Thanh_toán[[#This Row],[SỐ DƯ ĐẦU]]-Lịch_biểu_Thanh_toán[[#This Row],[THANH TOÁN THEO LỊCH]]>0,Lịch_biểu_Thanh_toán[[#This Row],[SỐ DƯ ĐẦU]]-Lịch_biểu_Thanh_toán[[#This Row],[THANH TOÁN THEO LỊCH]],0)),"") ->  | G82: =IF(Lịch_biểu_Thanh_toán[[#This Row],[SỐ THANH TOÁN]]<>"",IF(Lịch_biểu_Thanh_toán[[#This Row],[THANH TOÁN THEO LỊCH]]+Lịch_biểu_Thanh_toán[[#This Row],[THANH TOÁN BỔ SUNG]]<=Lịch_biểu_Thanh_toán[[#This Row],[SỐ DƯ ĐẦU]],Lịch_biểu_Thanh_toán[[#This Row],[THANH TOÁN THEO LỊCH]]+Lịch_biểu_Thanh_toán[[#This Row],[THANH TOÁN BỔ SUNG]],Lịch_biểu_Thanh_toán[[#This Row],[SỐ DƯ ĐẦU]]),"") ->  | H82: =IF(Lịch_biểu_Thanh_toán[[#This Row],[SỐ THANH TOÁN]]<>"",Lịch_biểu_Thanh_toán[[#This Row],[TỔNG THANH TOÁN]]-Lịch_biểu_Thanh_toán[[#This Row],[LÃI]],"") ->  | I82: =IF(Lịch_biểu_Thanh_toán[[#This Row],[SỐ THANH TOÁN]]<>"",Lịch_biểu_Thanh_toán[[#This Row],[SỐ DƯ ĐẦU]]*(Lãi_Suất/Thanh_toán_Mỗi_Năm),"") ->  | J82: =IF(Lịch_biểu_Thanh_toán[[#This Row],[SỐ THANH TOÁN]]<>"",IF(Lịch_biểu_Thanh_toán[[#This Row],[THANH TOÁN THEO LỊCH]]+Lịch_biểu_Thanh_toán[[#This Row],[THANH TOÁN BỔ SUNG]]<=Lịch_biểu_Thanh_toán[[#This Row],[SỐ DƯ ĐẦU]],Lịch_biểu_Thanh_toán[[#This Row],[SỐ DƯ ĐẦU]]-Lịch_biểu_Thanh_toán[[#This Row],[GỐC]],0),"") ->  | K82: =IF(Lịch_biểu_Thanh_toán[[#This Row],[SỐ THANH TOÁN]]<>"",SUM(INDEX(Lịch_biểu_Thanh_toán[LÃI],1,1):Lịch_biểu_Thanh_toán[[#This Row],[LÃI]]),"") -> 
B83: =IF(Khoản_vay_Tốt,IF(ROW()-ROW(Lịch_biểu_Thanh_toán[[#Headers],[SỐ THANH TOÁN]])>Số_lần_Thanh_toán_theo_Lịch,"",ROW()-ROW(Lịch_biểu_Thanh_toán[[#Headers],[SỐ THANH TOÁN]])),"") ->  | C83: =IF(Lịch_biểu_Thanh_toán[[#This Row],[SỐ THANH TOÁN]]<>"",EOMONTH(Ngày_Bắt_đầu_Khoản_vay,ROW(Lịch_biểu_Thanh_toán[[#This Row],[SỐ THANH TOÁN]])-ROW(Lịch_biểu_Thanh_toán[[#Headers],[SỐ THANH TOÁN]])-2)+DAY(Ngày_Bắt_đầu_Khoản_vay),"") ->  | D83: =IF(Lịch_biểu_Thanh_toán[[#This Row],[SỐ THANH TOÁN]]<>"",IF(ROW()-ROW(Lịch_biểu_Thanh_toán[[#Headers],[SỐ DƯ ĐẦU]])=1,Số_tiền_Vay,INDEX(Lịch_biểu_Thanh_toán[SỐ DƯ CUỐI],ROW()-ROW(Lịch_biểu_Thanh_toán[[#Headers],[SỐ DƯ ĐẦU]])-1)),"") ->  | E83: =IF(Lịch_biểu_Thanh_toán[[#This Row],[SỐ THANH TOÁN]]<>"",Thanh_toán_theo_Lịch,"") ->  | F83: =IF(Lịch_biểu_Thanh_toán[[#This Row],[SỐ THANH TOÁN]]<>"",IF(Lịch_biểu_Thanh_toán[[#This Row],[THANH TOÁN THEO LỊCH]]+Thanh_Toán_Bổ_sung<Lịch_biểu_Thanh_toán[[#This Row],[SỐ DƯ ĐẦU]],Thanh_Toán_Bổ_sung,IF(Lịch_biểu_Thanh_toán[[#This Row],[SỐ DƯ ĐẦU]]-Lịch_biểu_Thanh_toán[[#This Row],[THANH TOÁN THEO LỊCH]]>0,Lịch_biểu_Thanh_toán[[#This Row],[SỐ DƯ ĐẦU]]-Lịch_biểu_Thanh_toán[[#This Row],[THANH TOÁN THEO LỊCH]],0)),"") ->  | G83: =IF(Lịch_biểu_Thanh_toán[[#This Row],[SỐ THANH TOÁN]]<>"",IF(Lịch_biểu_Thanh_toán[[#This Row],[THANH TOÁN THEO LỊCH]]+Lịch_biểu_Thanh_toán[[#This Row],[THANH TOÁN BỔ SUNG]]<=Lịch_biểu_Thanh_toán[[#This Row],[SỐ DƯ ĐẦU]],Lịch_biểu_Thanh_toán[[#This Row],[THANH TOÁN THEO LỊCH]]+Lịch_biểu_Thanh_toán[[#This Row],[THANH TOÁN BỔ SUNG]],Lịch_biểu_Thanh_toán[[#This Row],[SỐ DƯ ĐẦU]]),"") ->  | H83: =IF(Lịch_biểu_Thanh_toán[[#This Row],[SỐ THANH TOÁN]]<>"",Lịch_biểu_Thanh_toán[[#This Row],[TỔNG THANH TOÁN]]-Lịch_biểu_Thanh_toán[[#This Row],[LÃI]],"") ->  | I83: =IF(Lịch_biểu_Thanh_toán[[#This Row],[SỐ THANH TOÁN]]<>"",Lịch_biểu_Thanh_toán[[#This Row],[SỐ DƯ ĐẦU]]*(Lãi_Suất/Thanh_toán_Mỗi_Năm),"") ->  | J83: =IF(Lịch_biểu_Thanh_toán[[#This Row],[SỐ THANH TOÁN]]<>"",IF(Lịch_biểu_Thanh_toán[[#This Row],[THANH TOÁN THEO LỊCH]]+Lịch_biểu_Thanh_toán[[#This Row],[THANH TOÁN BỔ SUNG]]<=Lịch_biểu_Thanh_toán[[#This Row],[SỐ DƯ ĐẦU]],Lịch_biểu_Thanh_toán[[#This Row],[SỐ DƯ ĐẦU]]-Lịch_biểu_Thanh_toán[[#This Row],[GỐC]],0),"") ->  | K83: =IF(Lịch_biểu_Thanh_toán[[#This Row],[SỐ THANH TOÁN]]<>"",SUM(INDEX(Lịch_biểu_Thanh_toán[LÃI],1,1):Lịch_biểu_Thanh_toán[[#This Row],[LÃI]]),"") -> 
B84: =IF(Khoản_vay_Tốt,IF(ROW()-ROW(Lịch_biểu_Thanh_toán[[#Headers],[SỐ THANH TOÁN]])>Số_lần_Thanh_toán_theo_Lịch,"",ROW()-ROW(Lịch_biểu_Thanh_toán[[#Headers],[SỐ THANH TOÁN]])),"") ->  | C84: =IF(Lịch_biểu_Thanh_toán[[#This Row],[SỐ THANH TOÁN]]<>"",EOMONTH(Ngày_Bắt_đầu_Khoản_vay,ROW(Lịch_biểu_Thanh_toán[[#This Row],[SỐ THANH TOÁN]])-ROW(Lịch_biểu_Thanh_toán[[#Headers],[SỐ THANH TOÁN]])-2)+DAY(Ngày_Bắt_đầu_Khoản_vay),"") ->  | D84: =IF(Lịch_biểu_Thanh_toán[[#This Row],[SỐ THANH TOÁN]]<>"",IF(ROW()-ROW(Lịch_biểu_Thanh_toán[[#Headers],[SỐ DƯ ĐẦU]])=1,Số_tiền_Vay,INDEX(Lịch_biểu_Thanh_toán[SỐ DƯ CUỐI],ROW()-ROW(Lịch_biểu_Thanh_toán[[#Headers],[SỐ DƯ ĐẦU]])-1)),"") ->  | E84: =IF(Lịch_biểu_Thanh_toán[[#This Row],[SỐ THANH TOÁN]]<>"",Thanh_toán_theo_Lịch,"") ->  | F84: =IF(Lịch_biểu_Thanh_toán[[#This Row],[SỐ THANH TOÁN]]<>"",IF(Lịch_biểu_Thanh_toán[[#This Row],[THANH TOÁN THEO LỊCH]]+Thanh_Toán_Bổ_sung<Lịch_biểu_Thanh_toán[[#This Row],[SỐ DƯ ĐẦU]],Thanh_Toán_Bổ_sung,IF(Lịch_biểu_Thanh_toán[[#This Row],[SỐ DƯ ĐẦU]]-Lịch_biểu_Thanh_toán[[#This Row],[THANH TOÁN THEO LỊCH]]>0,Lịch_biểu_Thanh_toán[[#This Row],[SỐ DƯ ĐẦU]]-Lịch_biểu_Thanh_toán[[#This Row],[THANH TOÁN THEO LỊCH]],0)),"") ->  | G84: =IF(Lịch_biểu_Thanh_toán[[#This Row],[SỐ THANH TOÁN]]<>"",IF(Lịch_biểu_Thanh_toán[[#This Row],[THANH TOÁN THEO LỊCH]]+Lịch_biểu_Thanh_toán[[#This Row],[THANH TOÁN BỔ SUNG]]<=Lịch_biểu_Thanh_toán[[#This Row],[SỐ DƯ ĐẦU]],Lịch_biểu_Thanh_toán[[#This Row],[THANH TOÁN THEO LỊCH]]+Lịch_biểu_Thanh_toán[[#This Row],[THANH TOÁN BỔ SUNG]],Lịch_biểu_Thanh_toán[[#This Row],[SỐ DƯ ĐẦU]]),"") ->  | H84: =IF(Lịch_biểu_Thanh_toán[[#This Row],[SỐ THANH TOÁN]]<>"",Lịch_biểu_Thanh_toán[[#This Row],[TỔNG THANH TOÁN]]-Lịch_biểu_Thanh_toán[[#This Row],[LÃI]],"") ->  | I84: =IF(Lịch_biểu_Thanh_toán[[#This Row],[SỐ THANH TOÁN]]<>"",Lịch_biểu_Thanh_toán[[#This Row],[SỐ DƯ ĐẦU]]*(Lãi_Suất/Thanh_toán_Mỗi_Năm),"") ->  | J84: =IF(Lịch_biểu_Thanh_toán[[#This Row],[SỐ THANH TOÁN]]<>"",IF(Lịch_biểu_Thanh_toán[[#This Row],[THANH TOÁN THEO LỊCH]]+Lịch_biểu_Thanh_toán[[#This Row],[THANH TOÁN BỔ SUNG]]<=Lịch_biểu_Thanh_toán[[#This Row],[SỐ DƯ ĐẦU]],Lịch_biểu_Thanh_toán[[#This Row],[SỐ DƯ ĐẦU]]-Lịch_biểu_Thanh_toán[[#This Row],[GỐC]],0),"") ->  | K84: =IF(Lịch_biểu_Thanh_toán[[#This Row],[SỐ THANH TOÁN]]<>"",SUM(INDEX(Lịch_biểu_Thanh_toán[LÃI],1,1):Lịch_biểu_Thanh_toán[[#This Row],[LÃI]]),"") -> 
B85: =IF(Khoản_vay_Tốt,IF(ROW()-ROW(Lịch_biểu_Thanh_toán[[#Headers],[SỐ THANH TOÁN]])>Số_lần_Thanh_toán_theo_Lịch,"",ROW()-ROW(Lịch_biểu_Thanh_toán[[#Headers],[SỐ THANH TOÁN]])),"") ->  | C85: =IF(Lịch_biểu_Thanh_toán[[#This Row],[SỐ THANH TOÁN]]<>"",EOMONTH(Ngày_Bắt_đầu_Khoản_vay,ROW(Lịch_biểu_Thanh_toán[[#This Row],[SỐ THANH TOÁN]])-ROW(Lịch_biểu_Thanh_toán[[#Headers],[SỐ THANH TOÁN]])-2)+DAY(Ngày_Bắt_đầu_Khoản_vay),"") ->  | D85: =IF(Lịch_biểu_Thanh_toán[[#This Row],[SỐ THANH TOÁN]]<>"",IF(ROW()-ROW(Lịch_biểu_Thanh_toán[[#Headers],[SỐ DƯ ĐẦU]])=1,Số_tiền_Vay,INDEX(Lịch_biểu_Thanh_toán[SỐ DƯ CUỐI],ROW()-ROW(Lịch_biểu_Thanh_toán[[#Headers],[SỐ DƯ ĐẦU]])-1)),"") ->  | E85: =IF(Lịch_biểu_Thanh_toán[[#This Row],[SỐ THANH TOÁN]]<>"",Thanh_toán_theo_Lịch,"") ->  | F85: =IF(Lịch_biểu_Thanh_toán[[#This Row],[SỐ THANH TOÁN]]<>"",IF(Lịch_biểu_Thanh_toán[[#This Row],[THANH TOÁN THEO LỊCH]]+Thanh_Toán_Bổ_sung<Lịch_biểu_Thanh_toán[[#This Row],[SỐ DƯ ĐẦU]],Thanh_Toán_Bổ_sung,IF(Lịch_biểu_Thanh_toán[[#This Row],[SỐ DƯ ĐẦU]]-Lịch_biểu_Thanh_toán[[#This Row],[THANH TOÁN THEO LỊCH]]>0,Lịch_biểu_Thanh_toán[[#This Row],[SỐ DƯ ĐẦU]]-Lịch_biểu_Thanh_toán[[#This Row],[THANH TOÁN THEO LỊCH]],0)),"") ->  | G85: =IF(Lịch_biểu_Thanh_toán[[#This Row],[SỐ THANH TOÁN]]<>"",IF(Lịch_biểu_Thanh_toán[[#This Row],[THANH TOÁN THEO LỊCH]]+Lịch_biểu_Thanh_toán[[#This Row],[THANH TOÁN BỔ SUNG]]<=Lịch_biểu_Thanh_toán[[#This Row],[SỐ DƯ ĐẦU]],Lịch_biểu_Thanh_toán[[#This Row],[THANH TOÁN THEO LỊCH]]+Lịch_biểu_Thanh_toán[[#This Row],[THANH TOÁN BỔ SUNG]],Lịch_biểu_Thanh_toán[[#This Row],[SỐ DƯ ĐẦU]]),"") ->  | H85: =IF(Lịch_biểu_Thanh_toán[[#This Row],[SỐ THANH TOÁN]]<>"",Lịch_biểu_Thanh_toán[[#This Row],[TỔNG THANH TOÁN]]-Lịch_biểu_Thanh_toán[[#This Row],[LÃI]],"") ->  | I85: =IF(Lịch_biểu_Thanh_toán[[#This Row],[SỐ THANH TOÁN]]<>"",Lịch_biểu_Thanh_toán[[#This Row],[SỐ DƯ ĐẦU]]*(Lãi_Suất/Thanh_toán_Mỗi_Năm),"") ->  | J85: =IF(Lịch_biểu_Thanh_toán[[#This Row],[SỐ THANH TOÁN]]<>"",IF(Lịch_biểu_Thanh_toán[[#This Row],[THANH TOÁN THEO LỊCH]]+Lịch_biểu_Thanh_toán[[#This Row],[THANH TOÁN BỔ SUNG]]<=Lịch_biểu_Thanh_toán[[#This Row],[SỐ DƯ ĐẦU]],Lịch_biểu_Thanh_toán[[#This Row],[SỐ DƯ ĐẦU]]-Lịch_biểu_Thanh_toán[[#This Row],[GỐC]],0),"") ->  | K85: =IF(Lịch_biểu_Thanh_toán[[#This Row],[SỐ THANH TOÁN]]<>"",SUM(INDEX(Lịch_biểu_Thanh_toán[LÃI],1,1):Lịch_biểu_Thanh_toán[[#This Row],[LÃI]]),"") -> 
B86: =IF(Khoản_vay_Tốt,IF(ROW()-ROW(Lịch_biểu_Thanh_toán[[#Headers],[SỐ THANH TOÁN]])>Số_lần_Thanh_toán_theo_Lịch,"",ROW()-ROW(Lịch_biểu_Thanh_toán[[#Headers],[SỐ THANH TOÁN]])),"") ->  | C86: =IF(Lịch_biểu_Thanh_toán[[#This Row],[SỐ THANH TOÁN]]<>"",EOMONTH(Ngày_Bắt_đầu_Khoản_vay,ROW(Lịch_biểu_Thanh_toán[[#This Row],[SỐ THANH TOÁN]])-ROW(Lịch_biểu_Thanh_toán[[#Headers],[SỐ THANH TOÁN]])-2)+DAY(Ngày_Bắt_đầu_Khoản_vay),"") ->  | D86: =IF(Lịch_biểu_Thanh_toán[[#This Row],[SỐ THANH TOÁN]]<>"",IF(ROW()-ROW(Lịch_biểu_Thanh_toán[[#Headers],[SỐ DƯ ĐẦU]])=1,Số_tiền_Vay,INDEX(Lịch_biểu_Thanh_toán[SỐ DƯ CUỐI],ROW()-ROW(Lịch_biểu_Thanh_toán[[#Headers],[SỐ DƯ ĐẦU]])-1)),"") ->  | E86: =IF(Lịch_biểu_Thanh_toán[[#This Row],[SỐ THANH TOÁN]]<>"",Thanh_toán_theo_Lịch,"") ->  | F86: =IF(Lịch_biểu_Thanh_toán[[#This Row],[SỐ THANH TOÁN]]<>"",IF(Lịch_biểu_Thanh_toán[[#This Row],[THANH TOÁN THEO LỊCH]]+Thanh_Toán_Bổ_sung<Lịch_biểu_Thanh_toán[[#This Row],[SỐ DƯ ĐẦU]],Thanh_Toán_Bổ_sung,IF(Lịch_biểu_Thanh_toán[[#This Row],[SỐ DƯ ĐẦU]]-Lịch_biểu_Thanh_toán[[#This Row],[THANH TOÁN THEO LỊCH]]>0,Lịch_biểu_Thanh_toán[[#This Row],[SỐ DƯ ĐẦU]]-Lịch_biểu_Thanh_toán[[#This Row],[THANH TOÁN THEO LỊCH]],0)),"") ->  | G86: =IF(Lịch_biểu_Thanh_toán[[#This Row],[SỐ THANH TOÁN]]<>"",IF(Lịch_biểu_Thanh_toán[[#This Row],[THANH TOÁN THEO LỊCH]]+Lịch_biểu_Thanh_toán[[#This Row],[THANH TOÁN BỔ SUNG]]<=Lịch_biểu_Thanh_toán[[#This Row],[SỐ DƯ ĐẦU]],Lịch_biểu_Thanh_toán[[#This Row],[THANH TOÁN THEO LỊCH]]+Lịch_biểu_Thanh_toán[[#This Row],[THANH TOÁN BỔ SUNG]],Lịch_biểu_Thanh_toán[[#This Row],[SỐ DƯ ĐẦU]]),"") ->  | H86: =IF(Lịch_biểu_Thanh_toán[[#This Row],[SỐ THANH TOÁN]]<>"",Lịch_biểu_Thanh_toán[[#This Row],[TỔNG THANH TOÁN]]-Lịch_biểu_Thanh_toán[[#This Row],[LÃI]],"") ->  | I86: =IF(Lịch_biểu_Thanh_toán[[#This Row],[SỐ THANH TOÁN]]<>"",Lịch_biểu_Thanh_toán[[#This Row],[SỐ DƯ ĐẦU]]*(Lãi_Suất/Thanh_toán_Mỗi_Năm),"") ->  | J86: =IF(Lịch_biểu_Thanh_toán[[#This Row],[SỐ THANH TOÁN]]<>"",IF(Lịch_biểu_Thanh_toán[[#This Row],[THANH TOÁN THEO LỊCH]]+Lịch_biểu_Thanh_toán[[#This Row],[THANH TOÁN BỔ SUNG]]<=Lịch_biểu_Thanh_toán[[#This Row],[SỐ DƯ ĐẦU]],Lịch_biểu_Thanh_toán[[#This Row],[SỐ DƯ ĐẦU]]-Lịch_biểu_Thanh_toán[[#This Row],[GỐC]],0),"") ->  | K86: =IF(Lịch_biểu_Thanh_toán[[#This Row],[SỐ THANH TOÁN]]<>"",SUM(INDEX(Lịch_biểu_Thanh_toán[LÃI],1,1):Lịch_biểu_Thanh_toán[[#This Row],[LÃI]]),"") -> 
B87: =IF(Khoản_vay_Tốt,IF(ROW()-ROW(Lịch_biểu_Thanh_toán[[#Headers],[SỐ THANH TOÁN]])>Số_lần_Thanh_toán_theo_Lịch,"",ROW()-ROW(Lịch_biểu_Thanh_toán[[#Headers],[SỐ THANH TOÁN]])),"") ->  | C87: =IF(Lịch_biểu_Thanh_toán[[#This Row],[SỐ THANH TOÁN]]<>"",EOMONTH(Ngày_Bắt_đầu_Khoản_vay,ROW(Lịch_biểu_Thanh_toán[[#This Row],[SỐ THANH TOÁN]])-ROW(Lịch_biểu_Thanh_toán[[#Headers],[SỐ THANH TOÁN]])-2)+DAY(Ngày_Bắt_đầu_Khoản_vay),"") ->  | D87: =IF(Lịch_biểu_Thanh_toán[[#This Row],[SỐ THANH TOÁN]]<>"",IF(ROW()-ROW(Lịch_biểu_Thanh_toán[[#Headers],[SỐ DƯ ĐẦU]])=1,Số_tiền_Vay,INDEX(Lịch_biểu_Thanh_toán[SỐ DƯ CUỐI],ROW()-ROW(Lịch_biểu_Thanh_toán[[#Headers],[SỐ DƯ ĐẦU]])-1)),"") ->  | E87: =IF(Lịch_biểu_Thanh_toán[[#This Row],[SỐ THANH TOÁN]]<>"",Thanh_toán_theo_Lịch,"") ->  | F87: =IF(Lịch_biểu_Thanh_toán[[#This Row],[SỐ THANH TOÁN]]<>"",IF(Lịch_biểu_Thanh_toán[[#This Row],[THANH TOÁN THEO LỊCH]]+Thanh_Toán_Bổ_sung<Lịch_biểu_Thanh_toán[[#This Row],[SỐ DƯ ĐẦU]],Thanh_Toán_Bổ_sung,IF(Lịch_biểu_Thanh_toán[[#This Row],[SỐ DƯ ĐẦU]]-Lịch_biểu_Thanh_toán[[#This Row],[THANH TOÁN THEO LỊCH]]>0,Lịch_biểu_Thanh_toán[[#This Row],[SỐ DƯ ĐẦU]]-Lịch_biểu_Thanh_toán[[#This Row],[THANH TOÁN THEO LỊCH]],0)),"") ->  | G87: =IF(Lịch_biểu_Thanh_toán[[#This Row],[SỐ THANH TOÁN]]<>"",IF(Lịch_biểu_Thanh_toán[[#This Row],[THANH TOÁN THEO LỊCH]]+Lịch_biểu_Thanh_toán[[#This Row],[THANH TOÁN BỔ SUNG]]<=Lịch_biểu_Thanh_toán[[#This Row],[SỐ DƯ ĐẦU]],Lịch_biểu_Thanh_toán[[#This Row],[THANH TOÁN THEO LỊCH]]+Lịch_biểu_Thanh_toán[[#This Row],[THANH TOÁN BỔ SUNG]],Lịch_biểu_Thanh_toán[[#This Row],[SỐ DƯ ĐẦU]]),"") ->  | H87: =IF(Lịch_biểu_Thanh_toán[[#This Row],[SỐ THANH TOÁN]]<>"",Lịch_biểu_Thanh_toán[[#This Row],[TỔNG THANH TOÁN]]-Lịch_biểu_Thanh_toán[[#This Row],[LÃI]],"") ->  | I87: =IF(Lịch_biểu_Thanh_toán[[#This Row],[SỐ THANH TOÁN]]<>"",Lịch_biểu_Thanh_toán[[#This Row],[SỐ DƯ ĐẦU]]*(Lãi_Suất/Thanh_toán_Mỗi_Năm),"") ->  | J87: =IF(Lịch_biểu_Thanh_toán[[#This Row],[SỐ THANH TOÁN]]<>"",IF(Lịch_biểu_Thanh_toán[[#This Row],[THANH TOÁN THEO LỊCH]]+Lịch_biểu_Thanh_toán[[#This Row],[THANH TOÁN BỔ SUNG]]<=Lịch_biểu_Thanh_toán[[#This Row],[SỐ DƯ ĐẦU]],Lịch_biểu_Thanh_toán[[#This Row],[SỐ DƯ ĐẦU]]-Lịch_biểu_Thanh_toán[[#This Row],[GỐC]],0),"") ->  | K87: =IF(Lịch_biểu_Thanh_toán[[#This Row],[SỐ THANH TOÁN]]<>"",SUM(INDEX(Lịch_biểu_Thanh_toán[LÃI],1,1):Lịch_biểu_Thanh_toán[[#This Row],[LÃI]]),"") -> 
B88: =IF(Khoản_vay_Tốt,IF(ROW()-ROW(Lịch_biểu_Thanh_toán[[#Headers],[SỐ THANH TOÁN]])>Số_lần_Thanh_toán_theo_Lịch,"",ROW()-ROW(Lịch_biểu_Thanh_toán[[#Headers],[SỐ THANH TOÁN]])),"") ->  | C88: =IF(Lịch_biểu_Thanh_toán[[#This Row],[SỐ THANH TOÁN]]<>"",EOMONTH(Ngày_Bắt_đầu_Khoản_vay,ROW(Lịch_biểu_Thanh_toán[[#This Row],[SỐ THANH TOÁN]])-ROW(Lịch_biểu_Thanh_toán[[#Headers],[SỐ THANH TOÁN]])-2)+DAY(Ngày_Bắt_đầu_Khoản_vay),"") ->  | D88: =IF(Lịch_biểu_Thanh_toán[[#This Row],[SỐ THANH TOÁN]]<>"",IF(ROW()-ROW(Lịch_biểu_Thanh_toán[[#Headers],[SỐ DƯ ĐẦU]])=1,Số_tiền_Vay,INDEX(Lịch_biểu_Thanh_toán[SỐ DƯ CUỐI],ROW()-ROW(Lịch_biểu_Thanh_toán[[#Headers],[SỐ DƯ ĐẦU]])-1)),"") ->  | E88: =IF(Lịch_biểu_Thanh_toán[[#This Row],[SỐ THANH TOÁN]]<>"",Thanh_toán_theo_Lịch,"") ->  | F88: =IF(Lịch_biểu_Thanh_toán[[#This Row],[SỐ THANH TOÁN]]<>"",IF(Lịch_biểu_Thanh_toán[[#This Row],[THANH TOÁN THEO LỊCH]]+Thanh_Toán_Bổ_sung<Lịch_biểu_Thanh_toán[[#This Row],[SỐ DƯ ĐẦU]],Thanh_Toán_Bổ_sung,IF(Lịch_biểu_Thanh_toán[[#This Row],[SỐ DƯ ĐẦU]]-Lịch_biểu_Thanh_toán[[#This Row],[THANH TOÁN THEO LỊCH]]>0,Lịch_biểu_Thanh_toán[[#This Row],[SỐ DƯ ĐẦU]]-Lịch_biểu_Thanh_toán[[#This Row],[THANH TOÁN THEO LỊCH]],0)),"") ->  | G88: =IF(Lịch_biểu_Thanh_toán[[#This Row],[SỐ THANH TOÁN]]<>"",IF(Lịch_biểu_Thanh_toán[[#This Row],[THANH TOÁN THEO LỊCH]]+Lịch_biểu_Thanh_toán[[#This Row],[THANH TOÁN BỔ SUNG]]<=Lịch_biểu_Thanh_toán[[#This Row],[SỐ DƯ ĐẦU]],Lịch_biểu_Thanh_toán[[#This Row],[THANH TOÁN THEO LỊCH]]+Lịch_biểu_Thanh_toán[[#This Row],[THANH TOÁN BỔ SUNG]],Lịch_biểu_Thanh_toán[[#This Row],[SỐ DƯ ĐẦU]]),"") ->  | H88: =IF(Lịch_biểu_Thanh_toán[[#This Row],[SỐ THANH TOÁN]]<>"",Lịch_biểu_Thanh_toán[[#This Row],[TỔNG THANH TOÁN]]-Lịch_biểu_Thanh_toán[[#This Row],[LÃI]],"") ->  | I88: =IF(Lịch_biểu_Thanh_toán[[#This Row],[SỐ THANH TOÁN]]<>"",Lịch_biểu_Thanh_toán[[#This Row],[SỐ DƯ ĐẦU]]*(Lãi_Suất/Thanh_toán_Mỗi_Năm),"") ->  | J88: =IF(Lịch_biểu_Thanh_toán[[#This Row],[SỐ THANH TOÁN]]<>"",IF(Lịch_biểu_Thanh_toán[[#This Row],[THANH TOÁN THEO LỊCH]]+Lịch_biểu_Thanh_toán[[#This Row],[THANH TOÁN BỔ SUNG]]<=Lịch_biểu_Thanh_toán[[#This Row],[SỐ DƯ ĐẦU]],Lịch_biểu_Thanh_toán[[#This Row],[SỐ DƯ ĐẦU]]-Lịch_biểu_Thanh_toán[[#This Row],[GỐC]],0),"") ->  | K88: =IF(Lịch_biểu_Thanh_toán[[#This Row],[SỐ THANH TOÁN]]<>"",SUM(INDEX(Lịch_biểu_Thanh_toán[LÃI],1,1):Lịch_biểu_Thanh_toán[[#This Row],[LÃI]]),"") -> 
B89: =IF(Khoản_vay_Tốt,IF(ROW()-ROW(Lịch_biểu_Thanh_toán[[#Headers],[SỐ THANH TOÁN]])>Số_lần_Thanh_toán_theo_Lịch,"",ROW()-ROW(Lịch_biểu_Thanh_toán[[#Headers],[SỐ THANH TOÁN]])),"") ->  | C89: =IF(Lịch_biểu_Thanh_toán[[#This Row],[SỐ THANH TOÁN]]<>"",EOMONTH(Ngày_Bắt_đầu_Khoản_vay,ROW(Lịch_biểu_Thanh_toán[[#This Row],[SỐ THANH TOÁN]])-ROW(Lịch_biểu_Thanh_toán[[#Headers],[SỐ THANH TOÁN]])-2)+DAY(Ngày_Bắt_đầu_Khoản_vay),"") ->  | D89: =IF(Lịch_biểu_Thanh_toán[[#This Row],[SỐ THANH TOÁN]]<>"",IF(ROW()-ROW(Lịch_biểu_Thanh_toán[[#Headers],[SỐ DƯ ĐẦU]])=1,Số_tiền_Vay,INDEX(Lịch_biểu_Thanh_toán[SỐ DƯ CUỐI],ROW()-ROW(Lịch_biểu_Thanh_toán[[#Headers],[SỐ DƯ ĐẦU]])-1)),"") ->  | E89: =IF(Lịch_biểu_Thanh_toán[[#This Row],[SỐ THANH TOÁN]]<>"",Thanh_toán_theo_Lịch,"") ->  | F89: =IF(Lịch_biểu_Thanh_toán[[#This Row],[SỐ THANH TOÁN]]<>"",IF(Lịch_biểu_Thanh_toán[[#This Row],[THANH TOÁN THEO LỊCH]]+Thanh_Toán_Bổ_sung<Lịch_biểu_Thanh_toán[[#This Row],[SỐ DƯ ĐẦU]],Thanh_Toán_Bổ_sung,IF(Lịch_biểu_Thanh_toán[[#This Row],[SỐ DƯ ĐẦU]]-Lịch_biểu_Thanh_toán[[#This Row],[THANH TOÁN THEO LỊCH]]>0,Lịch_biểu_Thanh_toán[[#This Row],[SỐ DƯ ĐẦU]]-Lịch_biểu_Thanh_toán[[#This Row],[THANH TOÁN THEO LỊCH]],0)),"") ->  | G89: =IF(Lịch_biểu_Thanh_toán[[#This Row],[SỐ THANH TOÁN]]<>"",IF(Lịch_biểu_Thanh_toán[[#This Row],[THANH TOÁN THEO LỊCH]]+Lịch_biểu_Thanh_toán[[#This Row],[THANH TOÁN BỔ SUNG]]<=Lịch_biểu_Thanh_toán[[#This Row],[SỐ DƯ ĐẦU]],Lịch_biểu_Thanh_toán[[#This Row],[THANH TOÁN THEO LỊCH]]+Lịch_biểu_Thanh_toán[[#This Row],[THANH TOÁN BỔ SUNG]],Lịch_biểu_Thanh_toán[[#This Row],[SỐ DƯ ĐẦU]]),"") ->  | H89: =IF(Lịch_biểu_Thanh_toán[[#This Row],[SỐ THANH TOÁN]]<>"",Lịch_biểu_Thanh_toán[[#This Row],[TỔNG THANH TOÁN]]-Lịch_biểu_Thanh_toán[[#This Row],[LÃI]],"") ->  | I89: =IF(Lịch_biểu_Thanh_toán[[#This Row],[SỐ THANH TOÁN]]<>"",Lịch_biểu_Thanh_toán[[#This Row],[SỐ DƯ ĐẦU]]*(Lãi_Suất/Thanh_toán_Mỗi_Năm),"") ->  | J89: =IF(Lịch_biểu_Thanh_toán[[#This Row],[SỐ THANH TOÁN]]<>"",IF(Lịch_biểu_Thanh_toán[[#This Row],[THANH TOÁN THEO LỊCH]]+Lịch_biểu_Thanh_toán[[#This Row],[THANH TOÁN BỔ SUNG]]<=Lịch_biểu_Thanh_toán[[#This Row],[SỐ DƯ ĐẦU]],Lịch_biểu_Thanh_toán[[#This Row],[SỐ DƯ ĐẦU]]-Lịch_biểu_Thanh_toán[[#This Row],[GỐC]],0),"") ->  | K89: =IF(Lịch_biểu_Thanh_toán[[#This Row],[SỐ THANH TOÁN]]<>"",SUM(INDEX(Lịch_biểu_Thanh_toán[LÃI],1,1):Lịch_biểu_Thanh_toán[[#This Row],[LÃI]]),"") -> 
B90: =IF(Khoản_vay_Tốt,IF(ROW()-ROW(Lịch_biểu_Thanh_toán[[#Headers],[SỐ THANH TOÁN]])>Số_lần_Thanh_toán_theo_Lịch,"",ROW()-ROW(Lịch_biểu_Thanh_toán[[#Headers],[SỐ THANH TOÁN]])),"") ->  | C90: =IF(Lịch_biểu_Thanh_toán[[#This Row],[SỐ THANH TOÁN]]<>"",EOMONTH(Ngày_Bắt_đầu_Khoản_vay,ROW(Lịch_biểu_Thanh_toán[[#This Row],[SỐ THANH TOÁN]])-ROW(Lịch_biểu_Thanh_toán[[#Headers],[SỐ THANH TOÁN]])-2)+DAY(Ngày_Bắt_đầu_Khoản_vay),"") ->  | D90: =IF(Lịch_biểu_Thanh_toán[[#This Row],[SỐ THANH TOÁN]]<>"",IF(ROW()-ROW(Lịch_biểu_Thanh_toán[[#Headers],[SỐ DƯ ĐẦU]])=1,Số_tiền_Vay,INDEX(Lịch_biểu_Thanh_toán[SỐ DƯ CUỐI],ROW()-ROW(Lịch_biểu_Thanh_toán[[#Headers],[SỐ DƯ ĐẦU]])-1)),"") ->  | E90: =IF(Lịch_biểu_Thanh_toán[[#This Row],[SỐ THANH TOÁN]]<>"",Thanh_toán_theo_Lịch,"") ->  | F90: =IF(Lịch_biểu_Thanh_toán[[#This Row],[SỐ THANH TOÁN]]<>"",IF(Lịch_biểu_Thanh_toán[[#This Row],[THANH TOÁN THEO LỊCH]]+Thanh_Toán_Bổ_sung<Lịch_biểu_Thanh_toán[[#This Row],[SỐ DƯ ĐẦU]],Thanh_Toán_Bổ_sung,IF(Lịch_biểu_Thanh_toán[[#This Row],[SỐ DƯ ĐẦU]]-Lịch_biểu_Thanh_toán[[#This Row],[THANH TOÁN THEO LỊCH]]>0,Lịch_biểu_Thanh_toán[[#This Row],[SỐ DƯ ĐẦU]]-Lịch_biểu_Thanh_toán[[#This Row],[THANH TOÁN THEO LỊCH]],0)),"") ->  | G90: =IF(Lịch_biểu_Thanh_toán[[#This Row],[SỐ THANH TOÁN]]<>"",IF(Lịch_biểu_Thanh_toán[[#This Row],[THANH TOÁN THEO LỊCH]]+Lịch_biểu_Thanh_toán[[#This Row],[THANH TOÁN BỔ SUNG]]<=Lịch_biểu_Thanh_toán[[#This Row],[SỐ DƯ ĐẦU]],Lịch_biểu_Thanh_toán[[#This Row],[THANH TOÁN THEO LỊCH]]+Lịch_biểu_Thanh_toán[[#This Row],[THANH TOÁN BỔ SUNG]],Lịch_biểu_Thanh_toán[[#This Row],[SỐ DƯ ĐẦU]]),"") ->  | H90: =IF(Lịch_biểu_Thanh_toán[[#This Row],[SỐ THANH TOÁN]]<>"",Lịch_biểu_Thanh_toán[[#This Row],[TỔNG THANH TOÁN]]-Lịch_biểu_Thanh_toán[[#This Row],[LÃI]],"") ->  | I90: =IF(Lịch_biểu_Thanh_toán[[#This Row],[SỐ THANH TOÁN]]<>"",Lịch_biểu_Thanh_toán[[#This Row],[SỐ DƯ ĐẦU]]*(Lãi_Suất/Thanh_toán_Mỗi_Năm),"") ->  | J90: =IF(Lịch_biểu_Thanh_toán[[#This Row],[SỐ THANH TOÁN]]<>"",IF(Lịch_biểu_Thanh_toán[[#This Row],[THANH TOÁN THEO LỊCH]]+Lịch_biểu_Thanh_toán[[#This Row],[THANH TOÁN BỔ SUNG]]<=Lịch_biểu_Thanh_toán[[#This Row],[SỐ DƯ ĐẦU]],Lịch_biểu_Thanh_toán[[#This Row],[SỐ DƯ ĐẦU]]-Lịch_biểu_Thanh_toán[[#This Row],[GỐC]],0),"") ->  | K90: =IF(Lịch_biểu_Thanh_toán[[#This Row],[SỐ THANH TOÁN]]<>"",SUM(INDEX(Lịch_biểu_Thanh_toán[LÃI],1,1):Lịch_biểu_Thanh_toán[[#This Row],[LÃI]]),"") -> 
B91: =IF(Khoản_vay_Tốt,IF(ROW()-ROW(Lịch_biểu_Thanh_toán[[#Headers],[SỐ THANH TOÁN]])>Số_lần_Thanh_toán_theo_Lịch,"",ROW()-ROW(Lịch_biểu_Thanh_toán[[#Headers],[SỐ THANH TOÁN]])),"") ->  | C91: =IF(Lịch_biểu_Thanh_toán[[#This Row],[SỐ THANH TOÁN]]<>"",EOMONTH(Ngày_Bắt_đầu_Khoản_vay,ROW(Lịch_biểu_Thanh_toán[[#This Row],[SỐ THANH TOÁN]])-ROW(Lịch_biểu_Thanh_toán[[#Headers],[SỐ THANH TOÁN]])-2)+DAY(Ngày_Bắt_đầu_Khoản_vay),"") ->  | D91: =IF(Lịch_biểu_Thanh_toán[[#This Row],[SỐ THANH TOÁN]]<>"",IF(ROW()-ROW(Lịch_biểu_Thanh_toán[[#Headers],[SỐ DƯ ĐẦU]])=1,Số_tiền_Vay,INDEX(Lịch_biểu_Thanh_toán[SỐ DƯ CUỐI],ROW()-ROW(Lịch_biểu_Thanh_toán[[#Headers],[SỐ DƯ ĐẦU]])-1)),"") ->  | E91: =IF(Lịch_biểu_Thanh_toán[[#This Row],[SỐ THANH TOÁN]]<>"",Thanh_toán_theo_Lịch,"") ->  | F91: =IF(Lịch_biểu_Thanh_toán[[#This Row],[SỐ THANH TOÁN]]<>"",IF(Lịch_biểu_Thanh_toán[[#This Row],[THANH TOÁN THEO LỊCH]]+Thanh_Toán_Bổ_sung<Lịch_biểu_Thanh_toán[[#This Row],[SỐ DƯ ĐẦU]],Thanh_Toán_Bổ_sung,IF(Lịch_biểu_Thanh_toán[[#This Row],[SỐ DƯ ĐẦU]]-Lịch_biểu_Thanh_toán[[#This Row],[THANH TOÁN THEO LỊCH]]>0,Lịch_biểu_Thanh_toán[[#This Row],[SỐ DƯ ĐẦU]]-Lịch_biểu_Thanh_toán[[#This Row],[THANH TOÁN THEO LỊCH]],0)),"") ->  | G91: =IF(Lịch_biểu_Thanh_toán[[#This Row],[SỐ THANH TOÁN]]<>"",IF(Lịch_biểu_Thanh_toán[[#This Row],[THANH TOÁN THEO LỊCH]]+Lịch_biểu_Thanh_toán[[#This Row],[THANH TOÁN BỔ SUNG]]<=Lịch_biểu_Thanh_toán[[#This Row],[SỐ DƯ ĐẦU]],Lịch_biểu_Thanh_toán[[#This Row],[THANH TOÁN THEO LỊCH]]+Lịch_biểu_Thanh_toán[[#This Row],[THANH TOÁN BỔ SUNG]],Lịch_biểu_Thanh_toán[[#This Row],[SỐ DƯ ĐẦU]]),"") ->  | H91: =IF(Lịch_biểu_Thanh_toán[[#This Row],[SỐ THANH TOÁN]]<>"",Lịch_biểu_Thanh_toán[[#This Row],[TỔNG THANH TOÁN]]-Lịch_biểu_Thanh_toán[[#This Row],[LÃI]],"") ->  | I91: =IF(Lịch_biểu_Thanh_toán[[#This Row],[SỐ THANH TOÁN]]<>"",Lịch_biểu_Thanh_toán[[#This Row],[SỐ DƯ ĐẦU]]*(Lãi_Suất/Thanh_toán_Mỗi_Năm),"") ->  | J91: =IF(Lịch_biểu_Thanh_toán[[#This Row],[SỐ THANH TOÁN]]<>"",IF(Lịch_biểu_Thanh_toán[[#This Row],[THANH TOÁN THEO LỊCH]]+Lịch_biểu_Thanh_toán[[#This Row],[THANH TOÁN BỔ SUNG]]<=Lịch_biểu_Thanh_toán[[#This Row],[SỐ DƯ ĐẦU]],Lịch_biểu_Thanh_toán[[#This Row],[SỐ DƯ ĐẦU]]-Lịch_biểu_Thanh_toán[[#This Row],[GỐC]],0),"") ->  | K91: =IF(Lịch_biểu_Thanh_toán[[#This Row],[SỐ THANH TOÁN]]<>"",SUM(INDEX(Lịch_biểu_Thanh_toán[LÃI],1,1):Lịch_biểu_Thanh_toán[[#This Row],[LÃI]]),"") -> 
B92: =IF(Khoản_vay_Tốt,IF(ROW()-ROW(Lịch_biểu_Thanh_toán[[#Headers],[SỐ THANH TOÁN]])>Số_lần_Thanh_toán_theo_Lịch,"",ROW()-ROW(Lịch_biểu_Thanh_toán[[#Headers],[SỐ THANH TOÁN]])),"") ->  | C92: =IF(Lịch_biểu_Thanh_toán[[#This Row],[SỐ THANH TOÁN]]<>"",EOMONTH(Ngày_Bắt_đầu_Khoản_vay,ROW(Lịch_biểu_Thanh_toán[[#This Row],[SỐ THANH TOÁN]])-ROW(Lịch_biểu_Thanh_toán[[#Headers],[SỐ THANH TOÁN]])-2)+DAY(Ngày_Bắt_đầu_Khoản_vay),"") ->  | D92: =IF(Lịch_biểu_Thanh_toán[[#This Row],[SỐ THANH TOÁN]]<>"",IF(ROW()-ROW(Lịch_biểu_Thanh_toán[[#Headers],[SỐ DƯ ĐẦU]])=1,Số_tiền_Vay,INDEX(Lịch_biểu_Thanh_toán[SỐ DƯ CUỐI],ROW()-ROW(Lịch_biểu_Thanh_toán[[#Headers],[SỐ DƯ ĐẦU]])-1)),"") ->  | E92: =IF(Lịch_biểu_Thanh_toán[[#This Row],[SỐ THANH TOÁN]]<>"",Thanh_toán_theo_Lịch,"") ->  | F92: =IF(Lịch_biểu_Thanh_toán[[#This Row],[SỐ THANH TOÁN]]<>"",IF(Lịch_biểu_Thanh_toán[[#This Row],[THANH TOÁN THEO LỊCH]]+Thanh_Toán_Bổ_sung<Lịch_biểu_Thanh_toán[[#This Row],[SỐ DƯ ĐẦU]],Thanh_Toán_Bổ_sung,IF(Lịch_biểu_Thanh_toán[[#This Row],[SỐ DƯ ĐẦU]]-Lịch_biểu_Thanh_toán[[#This Row],[THANH TOÁN THEO LỊCH]]>0,Lịch_biểu_Thanh_toán[[#This Row],[SỐ DƯ ĐẦU]]-Lịch_biểu_Thanh_toán[[#This Row],[THANH TOÁN THEO LỊCH]],0)),"") ->  | G92: =IF(Lịch_biểu_Thanh_toán[[#This Row],[SỐ THANH TOÁN]]<>"",IF(Lịch_biểu_Thanh_toán[[#This Row],[THANH TOÁN THEO LỊCH]]+Lịch_biểu_Thanh_toán[[#This Row],[THANH TOÁN BỔ SUNG]]<=Lịch_biểu_Thanh_toán[[#This Row],[SỐ DƯ ĐẦU]],Lịch_biểu_Thanh_toán[[#This Row],[THANH TOÁN THEO LỊCH]]+Lịch_biểu_Thanh_toán[[#This Row],[THANH TOÁN BỔ SUNG]],Lịch_biểu_Thanh_toán[[#This Row],[SỐ DƯ ĐẦU]]),"") ->  | H92: =IF(Lịch_biểu_Thanh_toán[[#This Row],[SỐ THANH TOÁN]]<>"",Lịch_biểu_Thanh_toán[[#This Row],[TỔNG THANH TOÁN]]-Lịch_biểu_Thanh_toán[[#This Row],[LÃI]],"") ->  | I92: =IF(Lịch_biểu_Thanh_toán[[#This Row],[SỐ THANH TOÁN]]<>"",Lịch_biểu_Thanh_toán[[#This Row],[SỐ DƯ ĐẦU]]*(Lãi_Suất/Thanh_toán_Mỗi_Năm),"") ->  | J92: =IF(Lịch_biểu_Thanh_toán[[#This Row],[SỐ THANH TOÁN]]<>"",IF(Lịch_biểu_Thanh_toán[[#This Row],[THANH TOÁN THEO LỊCH]]+Lịch_biểu_Thanh_toán[[#This Row],[THANH TOÁN BỔ SUNG]]<=Lịch_biểu_Thanh_toán[[#This Row],[SỐ DƯ ĐẦU]],Lịch_biểu_Thanh_toán[[#This Row],[SỐ DƯ ĐẦU]]-Lịch_biểu_Thanh_toán[[#This Row],[GỐC]],0),"") ->  | K92: =IF(Lịch_biểu_Thanh_toán[[#This Row],[SỐ THANH TOÁN]]<>"",SUM(INDEX(Lịch_biểu_Thanh_toán[LÃI],1,1):Lịch_biểu_Thanh_toán[[#This Row],[LÃI]]),"") -> 
B93: =IF(Khoản_vay_Tốt,IF(ROW()-ROW(Lịch_biểu_Thanh_toán[[#Headers],[SỐ THANH TOÁN]])>Số_lần_Thanh_toán_theo_Lịch,"",ROW()-ROW(Lịch_biểu_Thanh_toán[[#Headers],[SỐ THANH TOÁN]])),"") ->  | C93: =IF(Lịch_biểu_Thanh_toán[[#This Row],[SỐ THANH TOÁN]]<>"",EOMONTH(Ngày_Bắt_đầu_Khoản_vay,ROW(Lịch_biểu_Thanh_toán[[#This Row],[SỐ THANH TOÁN]])-ROW(Lịch_biểu_Thanh_toán[[#Headers],[SỐ THANH TOÁN]])-2)+DAY(Ngày_Bắt_đầu_Khoản_vay),"") ->  | D93: =IF(Lịch_biểu_Thanh_toán[[#This Row],[SỐ THANH TOÁN]]<>"",IF(ROW()-ROW(Lịch_biểu_Thanh_toán[[#Headers],[SỐ DƯ ĐẦU]])=1,Số_tiền_Vay,INDEX(Lịch_biểu_Thanh_toán[SỐ DƯ CUỐI],ROW()-ROW(Lịch_biểu_Thanh_toán[[#Headers],[SỐ DƯ ĐẦU]])-1)),"") ->  | E93: =IF(Lịch_biểu_Thanh_toán[[#This Row],[SỐ THANH TOÁN]]<>"",Thanh_toán_theo_Lịch,"") ->  | F93: =IF(Lịch_biểu_Thanh_toán[[#This Row],[SỐ THANH TOÁN]]<>"",IF(Lịch_biểu_Thanh_toán[[#This Row],[THANH TOÁN THEO LỊCH]]+Thanh_Toán_Bổ_sung<Lịch_biểu_Thanh_toán[[#This Row],[SỐ DƯ ĐẦU]],Thanh_Toán_Bổ_sung,IF(Lịch_biểu_Thanh_toán[[#This Row],[SỐ DƯ ĐẦU]]-Lịch_biểu_Thanh_toán[[#This Row],[THANH TOÁN THEO LỊCH]]>0,Lịch_biểu_Thanh_toán[[#This Row],[SỐ DƯ ĐẦU]]-Lịch_biểu_Thanh_toán[[#This Row],[THANH TOÁN THEO LỊCH]],0)),"") ->  | G93: =IF(Lịch_biểu_Thanh_toán[[#This Row],[SỐ THANH TOÁN]]<>"",IF(Lịch_biểu_Thanh_toán[[#This Row],[THANH TOÁN THEO LỊCH]]+Lịch_biểu_Thanh_toán[[#This Row],[THANH TOÁN BỔ SUNG]]<=Lịch_biểu_Thanh_toán[[#This Row],[SỐ DƯ ĐẦU]],Lịch_biểu_Thanh_toán[[#This Row],[THANH TOÁN THEO LỊCH]]+Lịch_biểu_Thanh_toán[[#This Row],[THANH TOÁN BỔ SUNG]],Lịch_biểu_Thanh_toán[[#This Row],[SỐ DƯ ĐẦU]]),"") ->  | H93: =IF(Lịch_biểu_Thanh_toán[[#This Row],[SỐ THANH TOÁN]]<>"",Lịch_biểu_Thanh_toán[[#This Row],[TỔNG THANH TOÁN]]-Lịch_biểu_Thanh_toán[[#This Row],[LÃI]],"") ->  | I93: =IF(Lịch_biểu_Thanh_toán[[#This Row],[SỐ THANH TOÁN]]<>"",Lịch_biểu_Thanh_toán[[#This Row],[SỐ DƯ ĐẦU]]*(Lãi_Suất/Thanh_toán_Mỗi_Năm),"") ->  | J93: =IF(Lịch_biểu_Thanh_toán[[#This Row],[SỐ THANH TOÁN]]<>"",IF(Lịch_biểu_Thanh_toán[[#This Row],[THANH TOÁN THEO LỊCH]]+Lịch_biểu_Thanh_toán[[#This Row],[THANH TOÁN BỔ SUNG]]<=Lịch_biểu_Thanh_toán[[#This Row],[SỐ DƯ ĐẦU]],Lịch_biểu_Thanh_toán[[#This Row],[SỐ DƯ ĐẦU]]-Lịch_biểu_Thanh_toán[[#This Row],[GỐC]],0),"") ->  | K93: =IF(Lịch_biểu_Thanh_toán[[#This Row],[SỐ THANH TOÁN]]<>"",SUM(INDEX(Lịch_biểu_Thanh_toán[LÃI],1,1):Lịch_biểu_Thanh_toán[[#This Row],[LÃI]]),"") -> 
B94: =IF(Khoản_vay_Tốt,IF(ROW()-ROW(Lịch_biểu_Thanh_toán[[#Headers],[SỐ THANH TOÁN]])>Số_lần_Thanh_toán_theo_Lịch,"",ROW()-ROW(Lịch_biểu_Thanh_toán[[#Headers],[SỐ THANH TOÁN]])),"") ->  | C94: =IF(Lịch_biểu_Thanh_toán[[#This Row],[SỐ THANH TOÁN]]<>"",EOMONTH(Ngày_Bắt_đầu_Khoản_vay,ROW(Lịch_biểu_Thanh_toán[[#This Row],[SỐ THANH TOÁN]])-ROW(Lịch_biểu_Thanh_toán[[#Headers],[SỐ THANH TOÁN]])-2)+DAY(Ngày_Bắt_đầu_Khoản_vay),"") ->  | D94: =IF(Lịch_biểu_Thanh_toán[[#This Row],[SỐ THANH TOÁN]]<>"",IF(ROW()-ROW(Lịch_biểu_Thanh_toán[[#Headers],[SỐ DƯ ĐẦU]])=1,Số_tiền_Vay,INDEX(Lịch_biểu_Thanh_toán[SỐ DƯ CUỐI],ROW()-ROW(Lịch_biểu_Thanh_toán[[#Headers],[SỐ DƯ ĐẦU]])-1)),"") ->  | E94: =IF(Lịch_biểu_Thanh_toán[[#This Row],[SỐ THANH TOÁN]]<>"",Thanh_toán_theo_Lịch,"") ->  | F94: =IF(Lịch_biểu_Thanh_toán[[#This Row],[SỐ THANH TOÁN]]<>"",IF(Lịch_biểu_Thanh_toán[[#This Row],[THANH TOÁN THEO LỊCH]]+Thanh_Toán_Bổ_sung<Lịch_biểu_Thanh_toán[[#This Row],[SỐ DƯ ĐẦU]],Thanh_Toán_Bổ_sung,IF(Lịch_biểu_Thanh_toán[[#This Row],[SỐ DƯ ĐẦU]]-Lịch_biểu_Thanh_toán[[#This Row],[THANH TOÁN THEO LỊCH]]>0,Lịch_biểu_Thanh_toán[[#This Row],[SỐ DƯ ĐẦU]]-Lịch_biểu_Thanh_toán[[#This Row],[THANH TOÁN THEO LỊCH]],0)),"") ->  | G94: =IF(Lịch_biểu_Thanh_toán[[#This Row],[SỐ THANH TOÁN]]<>"",IF(Lịch_biểu_Thanh_toán[[#This Row],[THANH TOÁN THEO LỊCH]]+Lịch_biểu_Thanh_toán[[#This Row],[THANH TOÁN BỔ SUNG]]<=Lịch_biểu_Thanh_toán[[#This Row],[SỐ DƯ ĐẦU]],Lịch_biểu_Thanh_toán[[#This Row],[THANH TOÁN THEO LỊCH]]+Lịch_biểu_Thanh_toán[[#This Row],[THANH TOÁN BỔ SUNG]],Lịch_biểu_Thanh_toán[[#This Row],[SỐ DƯ ĐẦU]]),"") ->  | H94: =IF(Lịch_biểu_Thanh_toán[[#This Row],[SỐ THANH TOÁN]]<>"",Lịch_biểu_Thanh_toán[[#This Row],[TỔNG THANH TOÁN]]-Lịch_biểu_Thanh_toán[[#This Row],[LÃI]],"") ->  | I94: =IF(Lịch_biểu_Thanh_toán[[#This Row],[SỐ THANH TOÁN]]<>"",Lịch_biểu_Thanh_toán[[#This Row],[SỐ DƯ ĐẦU]]*(Lãi_Suất/Thanh_toán_Mỗi_Năm),"") ->  | J94: =IF(Lịch_biểu_Thanh_toán[[#This Row],[SỐ THANH TOÁN]]<>"",IF(Lịch_biểu_Thanh_toán[[#This Row],[THANH TOÁN THEO LỊCH]]+Lịch_biểu_Thanh_toán[[#This Row],[THANH TOÁN BỔ SUNG]]<=Lịch_biểu_Thanh_toán[[#This Row],[SỐ DƯ ĐẦU]],Lịch_biểu_Thanh_toán[[#This Row],[SỐ DƯ ĐẦU]]-Lịch_biểu_Thanh_toán[[#This Row],[GỐC]],0),"") ->  | K94: =IF(Lịch_biểu_Thanh_toán[[#This Row],[SỐ THANH TOÁN]]<>"",SUM(INDEX(Lịch_biểu_Thanh_toán[LÃI],1,1):Lịch_biểu_Thanh_toán[[#This Row],[LÃI]]),"") -> 
B95: =IF(Khoản_vay_Tốt,IF(ROW()-ROW(Lịch_biểu_Thanh_toán[[#Headers],[SỐ THANH TOÁN]])>Số_lần_Thanh_toán_theo_Lịch,"",ROW()-ROW(Lịch_biểu_Thanh_toán[[#Headers],[SỐ THANH TOÁN]])),"") ->  | C95: =IF(Lịch_biểu_Thanh_toán[[#This Row],[SỐ THANH TOÁN]]<>"",EOMONTH(Ngày_Bắt_đầu_Khoản_vay,ROW(Lịch_biểu_Thanh_toán[[#This Row],[SỐ THANH TOÁN]])-ROW(Lịch_biểu_Thanh_toán[[#Headers],[SỐ THANH TOÁN]])-2)+DAY(Ngày_Bắt_đầu_Khoản_vay),"") ->  | D95: =IF(Lịch_biểu_Thanh_toán[[#This Row],[SỐ THANH TOÁN]]<>"",IF(ROW()-ROW(Lịch_biểu_Thanh_toán[[#Headers],[SỐ DƯ ĐẦU]])=1,Số_tiền_Vay,INDEX(Lịch_biểu_Thanh_toán[SỐ DƯ CUỐI],ROW()-ROW(Lịch_biểu_Thanh_toán[[#Headers],[SỐ DƯ ĐẦU]])-1)),"") ->  | E95: =IF(Lịch_biểu_Thanh_toán[[#This Row],[SỐ THANH TOÁN]]<>"",Thanh_toán_theo_Lịch,"") ->  | F95: =IF(Lịch_biểu_Thanh_toán[[#This Row],[SỐ THANH TOÁN]]<>"",IF(Lịch_biểu_Thanh_toán[[#This Row],[THANH TOÁN THEO LỊCH]]+Thanh_Toán_Bổ_sung<Lịch_biểu_Thanh_toán[[#This Row],[SỐ DƯ ĐẦU]],Thanh_Toán_Bổ_sung,IF(Lịch_biểu_Thanh_toán[[#This Row],[SỐ DƯ ĐẦU]]-Lịch_biểu_Thanh_toán[[#This Row],[THANH TOÁN THEO LỊCH]]>0,Lịch_biểu_Thanh_toán[[#This Row],[SỐ DƯ ĐẦU]]-Lịch_biểu_Thanh_toán[[#This Row],[THANH TOÁN THEO LỊCH]],0)),"") ->  | G95: =IF(Lịch_biểu_Thanh_toán[[#This Row],[SỐ THANH TOÁN]]<>"",IF(Lịch_biểu_Thanh_toán[[#This Row],[THANH TOÁN THEO LỊCH]]+Lịch_biểu_Thanh_toán[[#This Row],[THANH TOÁN BỔ SUNG]]<=Lịch_biểu_Thanh_toán[[#This Row],[SỐ DƯ ĐẦU]],Lịch_biểu_Thanh_toán[[#This Row],[THANH TOÁN THEO LỊCH]]+Lịch_biểu_Thanh_toán[[#This Row],[THANH TOÁN BỔ SUNG]],Lịch_biểu_Thanh_toán[[#This Row],[SỐ DƯ ĐẦU]]),"") ->  | H95: =IF(Lịch_biểu_Thanh_toán[[#This Row],[SỐ THANH TOÁN]]<>"",Lịch_biểu_Thanh_toán[[#This Row],[TỔNG THANH TOÁN]]-Lịch_biểu_Thanh_toán[[#This Row],[LÃI]],"") ->  | I95: =IF(Lịch_biểu_Thanh_toán[[#This Row],[SỐ THANH TOÁN]]<>"",Lịch_biểu_Thanh_toán[[#This Row],[SỐ DƯ ĐẦU]]*(Lãi_Suất/Thanh_toán_Mỗi_Năm),"") ->  | J95: =IF(Lịch_biểu_Thanh_toán[[#This Row],[SỐ THANH TOÁN]]<>"",IF(Lịch_biểu_Thanh_toán[[#This Row],[THANH TOÁN THEO LỊCH]]+Lịch_biểu_Thanh_toán[[#This Row],[THANH TOÁN BỔ SUNG]]<=Lịch_biểu_Thanh_toán[[#This Row],[SỐ DƯ ĐẦU]],Lịch_biểu_Thanh_toán[[#This Row],[SỐ DƯ ĐẦU]]-Lịch_biểu_Thanh_toán[[#This Row],[GỐC]],0),"") ->  | K95: =IF(Lịch_biểu_Thanh_toán[[#This Row],[SỐ THANH TOÁN]]<>"",SUM(INDEX(Lịch_biểu_Thanh_toán[LÃI],1,1):Lịch_biểu_Thanh_toán[[#This Row],[LÃI]]),"") -> 
B96: =IF(Khoản_vay_Tốt,IF(ROW()-ROW(Lịch_biểu_Thanh_toán[[#Headers],[SỐ THANH TOÁN]])>Số_lần_Thanh_toán_theo_Lịch,"",ROW()-ROW(Lịch_biểu_Thanh_toán[[#Headers],[SỐ THANH TOÁN]])),"") ->  | C96: =IF(Lịch_biểu_Thanh_toán[[#This Row],[SỐ THANH TOÁN]]<>"",EOMONTH(Ngày_Bắt_đầu_Khoản_vay,ROW(Lịch_biểu_Thanh_toán[[#This Row],[SỐ THANH TOÁN]])-ROW(Lịch_biểu_Thanh_toán[[#Headers],[SỐ THANH TOÁN]])-2)+DAY(Ngày_Bắt_đầu_Khoản_vay),"") ->  | D96: =IF(Lịch_biểu_Thanh_toán[[#This Row],[SỐ THANH TOÁN]]<>"",IF(ROW()-ROW(Lịch_biểu_Thanh_toán[[#Headers],[SỐ DƯ ĐẦU]])=1,Số_tiền_Vay,INDEX(Lịch_biểu_Thanh_toán[SỐ DƯ CUỐI],ROW()-ROW(Lịch_biểu_Thanh_toán[[#Headers],[SỐ DƯ ĐẦU]])-1)),"") ->  | E96: =IF(Lịch_biểu_Thanh_toán[[#This Row],[SỐ THANH TOÁN]]<>"",Thanh_toán_theo_Lịch,"") ->  | F96: =IF(Lịch_biểu_Thanh_toán[[#This Row],[SỐ THANH TOÁN]]<>"",IF(Lịch_biểu_Thanh_toán[[#This Row],[THANH TOÁN THEO LỊCH]]+Thanh_Toán_Bổ_sung<Lịch_biểu_Thanh_toán[[#This Row],[SỐ DƯ ĐẦU]],Thanh_Toán_Bổ_sung,IF(Lịch_biểu_Thanh_toán[[#This Row],[SỐ DƯ ĐẦU]]-Lịch_biểu_Thanh_toán[[#This Row],[THANH TOÁN THEO LỊCH]]>0,Lịch_biểu_Thanh_toán[[#This Row],[SỐ DƯ ĐẦU]]-Lịch_biểu_Thanh_toán[[#This Row],[THANH TOÁN THEO LỊCH]],0)),"") ->  | G96: =IF(Lịch_biểu_Thanh_toán[[#This Row],[SỐ THANH TOÁN]]<>"",IF(Lịch_biểu_Thanh_toán[[#This Row],[THANH TOÁN THEO LỊCH]]+Lịch_biểu_Thanh_toán[[#This Row],[THANH TOÁN BỔ SUNG]]<=Lịch_biểu_Thanh_toán[[#This Row],[SỐ DƯ ĐẦU]],Lịch_biểu_Thanh_toán[[#This Row],[THANH TOÁN THEO LỊCH]]+Lịch_biểu_Thanh_toán[[#This Row],[THANH TOÁN BỔ SUNG]],Lịch_biểu_Thanh_toán[[#This Row],[SỐ DƯ ĐẦU]]),"") ->  | H96: =IF(Lịch_biểu_Thanh_toán[[#This Row],[SỐ THANH TOÁN]]<>"",Lịch_biểu_Thanh_toán[[#This Row],[TỔNG THANH TOÁN]]-Lịch_biểu_Thanh_toán[[#This Row],[LÃI]],"") ->  | I96: =IF(Lịch_biểu_Thanh_toán[[#This Row],[SỐ THANH TOÁN]]<>"",Lịch_biểu_Thanh_toán[[#This Row],[SỐ DƯ ĐẦU]]*(Lãi_Suất/Thanh_toán_Mỗi_Năm),"") ->  | J96: =IF(Lịch_biểu_Thanh_toán[[#This Row],[SỐ THANH TOÁN]]<>"",IF(Lịch_biểu_Thanh_toán[[#This Row],[THANH TOÁN THEO LỊCH]]+Lịch_biểu_Thanh_toán[[#This Row],[THANH TOÁN BỔ SUNG]]<=Lịch_biểu_Thanh_toán[[#This Row],[SỐ DƯ ĐẦU]],Lịch_biểu_Thanh_toán[[#This Row],[SỐ DƯ ĐẦU]]-Lịch_biểu_Thanh_toán[[#This Row],[GỐC]],0),"") ->  | K96: =IF(Lịch_biểu_Thanh_toán[[#This Row],[SỐ THANH TOÁN]]<>"",SUM(INDEX(Lịch_biểu_Thanh_toán[LÃI],1,1):Lịch_biểu_Thanh_toán[[#This Row],[LÃI]]),"") -> 
B97: =IF(Khoản_vay_Tốt,IF(ROW()-ROW(Lịch_biểu_Thanh_toán[[#Headers],[SỐ THANH TOÁN]])>Số_lần_Thanh_toán_theo_Lịch,"",ROW()-ROW(Lịch_biểu_Thanh_toán[[#Headers],[SỐ THANH TOÁN]])),"") ->  | C97: =IF(Lịch_biểu_Thanh_toán[[#This Row],[SỐ THANH TOÁN]]<>"",EOMONTH(Ngày_Bắt_đầu_Khoản_vay,ROW(Lịch_biểu_Thanh_toán[[#This Row],[SỐ THANH TOÁN]])-ROW(Lịch_biểu_Thanh_toán[[#Headers],[SỐ THANH TOÁN]])-2)+DAY(Ngày_Bắt_đầu_Khoản_vay),"") ->  | D97: =IF(Lịch_biểu_Thanh_toán[[#This Row],[SỐ THANH TOÁN]]<>"",IF(ROW()-ROW(Lịch_biểu_Thanh_toán[[#Headers],[SỐ DƯ ĐẦU]])=1,Số_tiền_Vay,INDEX(Lịch_biểu_Thanh_toán[SỐ DƯ CUỐI],ROW()-ROW(Lịch_biểu_Thanh_toán[[#Headers],[SỐ DƯ ĐẦU]])-1)),"") ->  | E97: =IF(Lịch_biểu_Thanh_toán[[#This Row],[SỐ THANH TOÁN]]<>"",Thanh_toán_theo_Lịch,"") ->  | F97: =IF(Lịch_biểu_Thanh_toán[[#This Row],[SỐ THANH TOÁN]]<>"",IF(Lịch_biểu_Thanh_toán[[#This Row],[THANH TOÁN THEO LỊCH]]+Thanh_Toán_Bổ_sung<Lịch_biểu_Thanh_toán[[#This Row],[SỐ DƯ ĐẦU]],Thanh_Toán_Bổ_sung,IF(Lịch_biểu_Thanh_toán[[#This Row],[SỐ DƯ ĐẦU]]-Lịch_biểu_Thanh_toán[[#This Row],[THANH TOÁN THEO LỊCH]]>0,Lịch_biểu_Thanh_toán[[#This Row],[SỐ DƯ ĐẦU]]-Lịch_biểu_Thanh_toán[[#This Row],[THANH TOÁN THEO LỊCH]],0)),"") ->  | G97: =IF(Lịch_biểu_Thanh_toán[[#This Row],[SỐ THANH TOÁN]]<>"",IF(Lịch_biểu_Thanh_toán[[#This Row],[THANH TOÁN THEO LỊCH]]+Lịch_biểu_Thanh_toán[[#This Row],[THANH TOÁN BỔ SUNG]]<=Lịch_biểu_Thanh_toán[[#This Row],[SỐ DƯ ĐẦU]],Lịch_biểu_Thanh_toán[[#This Row],[THANH TOÁN THEO LỊCH]]+Lịch_biểu_Thanh_toán[[#This Row],[THANH TOÁN BỔ SUNG]],Lịch_biểu_Thanh_toán[[#This Row],[SỐ DƯ ĐẦU]]),"") ->  | H97: =IF(Lịch_biểu_Thanh_toán[[#This Row],[SỐ THANH TOÁN]]<>"",Lịch_biểu_Thanh_toán[[#This Row],[TỔNG THANH TOÁN]]-Lịch_biểu_Thanh_toán[[#This Row],[LÃI]],"") ->  | I97: =IF(Lịch_biểu_Thanh_toán[[#This Row],[SỐ THANH TOÁN]]<>"",Lịch_biểu_Thanh_toán[[#This Row],[SỐ DƯ ĐẦU]]*(Lãi_Suất/Thanh_toán_Mỗi_Năm),"") ->  | J97: =IF(Lịch_biểu_Thanh_toán[[#This Row],[SỐ THANH TOÁN]]<>"",IF(Lịch_biểu_Thanh_toán[[#This Row],[THANH TOÁN THEO LỊCH]]+Lịch_biểu_Thanh_toán[[#This Row],[THANH TOÁN BỔ SUNG]]<=Lịch_biểu_Thanh_toán[[#This Row],[SỐ DƯ ĐẦU]],Lịch_biểu_Thanh_toán[[#This Row],[SỐ DƯ ĐẦU]]-Lịch_biểu_Thanh_toán[[#This Row],[GỐC]],0),"") ->  | K97: =IF(Lịch_biểu_Thanh_toán[[#This Row],[SỐ THANH TOÁN]]<>"",SUM(INDEX(Lịch_biểu_Thanh_toán[LÃI],1,1):Lịch_biểu_Thanh_toán[[#This Row],[LÃI]]),"") -> 
B98: =IF(Khoản_vay_Tốt,IF(ROW()-ROW(Lịch_biểu_Thanh_toán[[#Headers],[SỐ THANH TOÁN]])>Số_lần_Thanh_toán_theo_Lịch,"",ROW()-ROW(Lịch_biểu_Thanh_toán[[#Headers],[SỐ THANH TOÁN]])),"") ->  | C98: =IF(Lịch_biểu_Thanh_toán[[#This Row],[SỐ THANH TOÁN]]<>"",EOMONTH(Ngày_Bắt_đầu_Khoản_vay,ROW(Lịch_biểu_Thanh_toán[[#This Row],[SỐ THANH TOÁN]])-ROW(Lịch_biểu_Thanh_toán[[#Headers],[SỐ THANH TOÁN]])-2)+DAY(Ngày_Bắt_đầu_Khoản_vay),"") ->  | D98: =IF(Lịch_biểu_Thanh_toán[[#This Row],[SỐ THANH TOÁN]]<>"",IF(ROW()-ROW(Lịch_biểu_Thanh_toán[[#Headers],[SỐ DƯ ĐẦU]])=1,Số_tiền_Vay,INDEX(Lịch_biểu_Thanh_toán[SỐ DƯ CUỐI],ROW()-ROW(Lịch_biểu_Thanh_toán[[#Headers],[SỐ DƯ ĐẦU]])-1)),"") ->  | E98: =IF(Lịch_biểu_Thanh_toán[[#This Row],[SỐ THANH TOÁN]]<>"",Thanh_toán_theo_Lịch,"") ->  | F98: =IF(Lịch_biểu_Thanh_toán[[#This Row],[SỐ THANH TOÁN]]<>"",IF(Lịch_biểu_Thanh_toán[[#This Row],[THANH TOÁN THEO LỊCH]]+Thanh_Toán_Bổ_sung<Lịch_biểu_Thanh_toán[[#This Row],[SỐ DƯ ĐẦU]],Thanh_Toán_Bổ_sung,IF(Lịch_biểu_Thanh_toán[[#This Row],[SỐ DƯ ĐẦU]]-Lịch_biểu_Thanh_toán[[#This Row],[THANH TOÁN THEO LỊCH]]>0,Lịch_biểu_Thanh_toán[[#This Row],[SỐ DƯ ĐẦU]]-Lịch_biểu_Thanh_toán[[#This Row],[THANH TOÁN THEO LỊCH]],0)),"") ->  | G98: =IF(Lịch_biểu_Thanh_toán[[#This Row],[SỐ THANH TOÁN]]<>"",IF(Lịch_biểu_Thanh_toán[[#This Row],[THANH TOÁN THEO LỊCH]]+Lịch_biểu_Thanh_toán[[#This Row],[THANH TOÁN BỔ SUNG]]<=Lịch_biểu_Thanh_toán[[#This Row],[SỐ DƯ ĐẦU]],Lịch_biểu_Thanh_toán[[#This Row],[THANH TOÁN THEO LỊCH]]+Lịch_biểu_Thanh_toán[[#This Row],[THANH TOÁN BỔ SUNG]],Lịch_biểu_Thanh_toán[[#This Row],[SỐ DƯ ĐẦU]]),"") ->  | H98: =IF(Lịch_biểu_Thanh_toán[[#This Row],[SỐ THANH TOÁN]]<>"",Lịch_biểu_Thanh_toán[[#This Row],[TỔNG THANH TOÁN]]-Lịch_biểu_Thanh_toán[[#This Row],[LÃI]],"") ->  | I98: =IF(Lịch_biểu_Thanh_toán[[#This Row],[SỐ THANH TOÁN]]<>"",Lịch_biểu_Thanh_toán[[#This Row],[SỐ DƯ ĐẦU]]*(Lãi_Suất/Thanh_toán_Mỗi_Năm),"") ->  | J98: =IF(Lịch_biểu_Thanh_toán[[#This Row],[SỐ THANH TOÁN]]<>"",IF(Lịch_biểu_Thanh_toán[[#This Row],[THANH TOÁN THEO LỊCH]]+Lịch_biểu_Thanh_toán[[#This Row],[THANH TOÁN BỔ SUNG]]<=Lịch_biểu_Thanh_toán[[#This Row],[SỐ DƯ ĐẦU]],Lịch_biểu_Thanh_toán[[#This Row],[SỐ DƯ ĐẦU]]-Lịch_biểu_Thanh_toán[[#This Row],[GỐC]],0),"") ->  | K98: =IF(Lịch_biểu_Thanh_toán[[#This Row],[SỐ THANH TOÁN]]<>"",SUM(INDEX(Lịch_biểu_Thanh_toán[LÃI],1,1):Lịch_biểu_Thanh_toán[[#This Row],[LÃI]]),"") -> 
B99: =IF(Khoản_vay_Tốt,IF(ROW()-ROW(Lịch_biểu_Thanh_toán[[#Headers],[SỐ THANH TOÁN]])>Số_lần_Thanh_toán_theo_Lịch,"",ROW()-ROW(Lịch_biểu_Thanh_toán[[#Headers],[SỐ THANH TOÁN]])),"") ->  | C99: =IF(Lịch_biểu_Thanh_toán[[#This Row],[SỐ THANH TOÁN]]<>"",EOMONTH(Ngày_Bắt_đầu_Khoản_vay,ROW(Lịch_biểu_Thanh_toán[[#This Row],[SỐ THANH TOÁN]])-ROW(Lịch_biểu_Thanh_toán[[#Headers],[SỐ THANH TOÁN]])-2)+DAY(Ngày_Bắt_đầu_Khoản_vay),"") ->  | D99: =IF(Lịch_biểu_Thanh_toán[[#This Row],[SỐ THANH TOÁN]]<>"",IF(ROW()-ROW(Lịch_biểu_Thanh_toán[[#Headers],[SỐ DƯ ĐẦU]])=1,Số_tiền_Vay,INDEX(Lịch_biểu_Thanh_toán[SỐ DƯ CUỐI],ROW()-ROW(Lịch_biểu_Thanh_toán[[#Headers],[SỐ DƯ ĐẦU]])-1)),"") ->  | E99: =IF(Lịch_biểu_Thanh_toán[[#This Row],[SỐ THANH TOÁN]]<>"",Thanh_toán_theo_Lịch,"") ->  | F99: =IF(Lịch_biểu_Thanh_toán[[#This Row],[SỐ THANH TOÁN]]<>"",IF(Lịch_biểu_Thanh_toán[[#This Row],[THANH TOÁN THEO LỊCH]]+Thanh_Toán_Bổ_sung<Lịch_biểu_Thanh_toán[[#This Row],[SỐ DƯ ĐẦU]],Thanh_Toán_Bổ_sung,IF(Lịch_biểu_Thanh_toán[[#This Row],[SỐ DƯ ĐẦU]]-Lịch_biểu_Thanh_toán[[#This Row],[THANH TOÁN THEO LỊCH]]>0,Lịch_biểu_Thanh_toán[[#This Row],[SỐ DƯ ĐẦU]]-Lịch_biểu_Thanh_toán[[#This Row],[THANH TOÁN THEO LỊCH]],0)),"") ->  | G99: =IF(Lịch_biểu_Thanh_toán[[#This Row],[SỐ THANH TOÁN]]<>"",IF(Lịch_biểu_Thanh_toán[[#This Row],[THANH TOÁN THEO LỊCH]]+Lịch_biểu_Thanh_toán[[#This Row],[THANH TOÁN BỔ SUNG]]<=Lịch_biểu_Thanh_toán[[#This Row],[SỐ DƯ ĐẦU]],Lịch_biểu_Thanh_toán[[#This Row],[THANH TOÁN THEO LỊCH]]+Lịch_biểu_Thanh_toán[[#This Row],[THANH TOÁN BỔ SUNG]],Lịch_biểu_Thanh_toán[[#This Row],[SỐ DƯ ĐẦU]]),"") ->  | H99: =IF(Lịch_biểu_Thanh_toán[[#This Row],[SỐ THANH TOÁN]]<>"",Lịch_biểu_Thanh_toán[[#This Row],[TỔNG THANH TOÁN]]-Lịch_biểu_Thanh_toán[[#This Row],[LÃI]],"") ->  | I99: =IF(Lịch_biểu_Thanh_toán[[#This Row],[SỐ THANH TOÁN]]<>"",Lịch_biểu_Thanh_toán[[#This Row],[SỐ DƯ ĐẦU]]*(Lãi_Suất/Thanh_toán_Mỗi_Năm),"") ->  | J99: =IF(Lịch_biểu_Thanh_toán[[#This Row],[SỐ THANH TOÁN]]<>"",IF(Lịch_biểu_Thanh_toán[[#This Row],[THANH TOÁN THEO LỊCH]]+Lịch_biểu_Thanh_toán[[#This Row],[THANH TOÁN BỔ SUNG]]<=Lịch_biểu_Thanh_toán[[#This Row],[SỐ DƯ ĐẦU]],Lịch_biểu_Thanh_toán[[#This Row],[SỐ DƯ ĐẦU]]-Lịch_biểu_Thanh_toán[[#This Row],[GỐC]],0),"") ->  | K99: =IF(Lịch_biểu_Thanh_toán[[#This Row],[SỐ THANH TOÁN]]<>"",SUM(INDEX(Lịch_biểu_Thanh_toán[LÃI],1,1):Lịch_biểu_Thanh_toán[[#This Row],[LÃI]]),"") -> 
B100: =IF(Khoản_vay_Tốt,IF(ROW()-ROW(Lịch_biểu_Thanh_toán[[#Headers],[SỐ THANH TOÁN]])>Số_lần_Thanh_toán_theo_Lịch,"",ROW()-ROW(Lịch_biểu_Thanh_toán[[#Headers],[SỐ THANH TOÁN]])),"") ->  | C100: =IF(Lịch_biểu_Thanh_toán[[#This Row],[SỐ THANH TOÁN]]<>"",EOMONTH(Ngày_Bắt_đầu_Khoản_vay,ROW(Lịch_biểu_Thanh_toán[[#This Row],[SỐ THANH TOÁN]])-ROW(Lịch_biểu_Thanh_toán[[#Headers],[SỐ THANH TOÁN]])-2)+DAY(Ngày_Bắt_đầu_Khoản_vay),"") ->  | D100: =IF(Lịch_biểu_Thanh_toán[[#This Row],[SỐ THANH TOÁN]]<>"",IF(ROW()-ROW(Lịch_biểu_Thanh_toán[[#Headers],[SỐ DƯ ĐẦU]])=1,Số_tiền_Vay,INDEX(Lịch_biểu_Thanh_toán[SỐ DƯ CUỐI],ROW()-ROW(Lịch_biểu_Thanh_toán[[#Headers],[SỐ DƯ ĐẦU]])-1)),"") ->  | E100: =IF(Lịch_biểu_Thanh_toán[[#This Row],[SỐ THANH TOÁN]]<>"",Thanh_toán_theo_Lịch,"") ->  | F100: =IF(Lịch_biểu_Thanh_toán[[#This Row],[SỐ THANH TOÁN]]<>"",IF(Lịch_biểu_Thanh_toán[[#This Row],[THANH TOÁN THEO LỊCH]]+Thanh_Toán_Bổ_sung<Lịch_biểu_Thanh_toán[[#This Row],[SỐ DƯ ĐẦU]],Thanh_Toán_Bổ_sung,IF(Lịch_biểu_Thanh_toán[[#This Row],[SỐ DƯ ĐẦU]]-Lịch_biểu_Thanh_toán[[#This Row],[THANH TOÁN THEO LỊCH]]>0,Lịch_biểu_Thanh_toán[[#This Row],[SỐ DƯ ĐẦU]]-Lịch_biểu_Thanh_toán[[#This Row],[THANH TOÁN THEO LỊCH]],0)),"") ->  | G100: =IF(Lịch_biểu_Thanh_toán[[#This Row],[SỐ THANH TOÁN]]<>"",IF(Lịch_biểu_Thanh_toán[[#This Row],[THANH TOÁN THEO LỊCH]]+Lịch_biểu_Thanh_toán[[#This Row],[THANH TOÁN BỔ SUNG]]<=Lịch_biểu_Thanh_toán[[#This Row],[SỐ DƯ ĐẦU]],Lịch_biểu_Thanh_toán[[#This Row],[THANH TOÁN THEO LỊCH]]+Lịch_biểu_Thanh_toán[[#This Row],[THANH TOÁN BỔ SUNG]],Lịch_biểu_Thanh_toán[[#This Row],[SỐ DƯ ĐẦU]]),"") ->  | H100: =IF(Lịch_biểu_Thanh_toán[[#This Row],[SỐ THANH TOÁN]]<>"",Lịch_biểu_Thanh_toán[[#This Row],[TỔNG THANH TOÁN]]-Lịch_biểu_Thanh_toán[[#This Row],[LÃI]],"") ->  | I100: =IF(Lịch_biểu_Thanh_toán[[#This Row],[SỐ THANH TOÁN]]<>"",Lịch_biểu_Thanh_toán[[#This Row],[SỐ DƯ ĐẦU]]*(Lãi_Suất/Thanh_toán_Mỗi_Năm),"") ->  | J100: =IF(Lịch_biểu_Thanh_toán[[#This Row],[SỐ THANH TOÁN]]<>"",IF(Lịch_biểu_Thanh_toán[[#This Row],[THANH TOÁN THEO LỊCH]]+Lịch_biểu_Thanh_toán[[#This Row],[THANH TOÁN BỔ SUNG]]<=Lịch_biểu_Thanh_toán[[#This Row],[SỐ DƯ ĐẦU]],Lịch_biểu_Thanh_toán[[#This Row],[SỐ DƯ ĐẦU]]-Lịch_biểu_Thanh_toán[[#This Row],[GỐC]],0),"") ->  | K100: =IF(Lịch_biểu_Thanh_toán[[#This Row],[SỐ THANH TOÁN]]<>"",SUM(INDEX(Lịch_biểu_Thanh_toán[LÃI],1,1):Lịch_biểu_Thanh_toán[[#This Row],[LÃI]]),"") -> 
B101: =IF(Khoản_vay_Tốt,IF(ROW()-ROW(Lịch_biểu_Thanh_toán[[#Headers],[SỐ THANH TOÁN]])>Số_lần_Thanh_toán_theo_Lịch,"",ROW()-ROW(Lịch_biểu_Thanh_toán[[#Headers],[SỐ THANH TOÁN]])),"") ->  | C101: =IF(Lịch_biểu_Thanh_toán[[#This Row],[SỐ THANH TOÁN]]<>"",EOMONTH(Ngày_Bắt_đầu_Khoản_vay,ROW(Lịch_biểu_Thanh_toán[[#This Row],[SỐ THANH TOÁN]])-ROW(Lịch_biểu_Thanh_toán[[#Headers],[SỐ THANH TOÁN]])-2)+DAY(Ngày_Bắt_đầu_Khoản_vay),"") ->  | D101: =IF(Lịch_biểu_Thanh_toán[[#This Row],[SỐ THANH TOÁN]]<>"",IF(ROW()-ROW(Lịch_biểu_Thanh_toán[[#Headers],[SỐ DƯ ĐẦU]])=1,Số_tiền_Vay,INDEX(Lịch_biểu_Thanh_toán[SỐ DƯ CUỐI],ROW()-ROW(Lịch_biểu_Thanh_toán[[#Headers],[SỐ DƯ ĐẦU]])-1)),"") ->  | E101: =IF(Lịch_biểu_Thanh_toán[[#This Row],[SỐ THANH TOÁN]]<>"",Thanh_toán_theo_Lịch,"") ->  | F101: =IF(Lịch_biểu_Thanh_toán[[#This Row],[SỐ THANH TOÁN]]<>"",IF(Lịch_biểu_Thanh_toán[[#This Row],[THANH TOÁN THEO LỊCH]]+Thanh_Toán_Bổ_sung<Lịch_biểu_Thanh_toán[[#This Row],[SỐ DƯ ĐẦU]],Thanh_Toán_Bổ_sung,IF(Lịch_biểu_Thanh_toán[[#This Row],[SỐ DƯ ĐẦU]]-Lịch_biểu_Thanh_toán[[#This Row],[THANH TOÁN THEO LỊCH]]>0,Lịch_biểu_Thanh_toán[[#This Row],[SỐ DƯ ĐẦU]]-Lịch_biểu_Thanh_toán[[#This Row],[THANH TOÁN THEO LỊCH]],0)),"") ->  | G101: =IF(Lịch_biểu_Thanh_toán[[#This Row],[SỐ THANH TOÁN]]<>"",IF(Lịch_biểu_Thanh_toán[[#This Row],[THANH TOÁN THEO LỊCH]]+Lịch_biểu_Thanh_toán[[#This Row],[THANH TOÁN BỔ SUNG]]<=Lịch_biểu_Thanh_toán[[#This Row],[SỐ DƯ ĐẦU]],Lịch_biểu_Thanh_toán[[#This Row],[THANH TOÁN THEO LỊCH]]+Lịch_biểu_Thanh_toán[[#This Row],[THANH TOÁN BỔ SUNG]],Lịch_biểu_Thanh_toán[[#This Row],[SỐ DƯ ĐẦU]]),"") ->  | H101: =IF(Lịch_biểu_Thanh_toán[[#This Row],[SỐ THANH TOÁN]]<>"",Lịch_biểu_Thanh_toán[[#This Row],[TỔNG THANH TOÁN]]-Lịch_biểu_Thanh_toán[[#This Row],[LÃI]],"") ->  | I101: =IF(Lịch_biểu_Thanh_toán[[#This Row],[SỐ THANH TOÁN]]<>"",Lịch_biểu_Thanh_toán[[#This Row],[SỐ DƯ ĐẦU]]*(Lãi_Suất/Thanh_toán_Mỗi_Năm),"") ->  | J101: =IF(Lịch_biểu_Thanh_toán[[#This Row],[SỐ THANH TOÁN]]<>"",IF(Lịch_biểu_Thanh_toán[[#This Row],[THANH TOÁN THEO LỊCH]]+Lịch_biểu_Thanh_toán[[#This Row],[THANH TOÁN BỔ SUNG]]<=Lịch_biểu_Thanh_toán[[#This Row],[SỐ DƯ ĐẦU]],Lịch_biểu_Thanh_toán[[#This Row],[SỐ DƯ ĐẦU]]-Lịch_biểu_Thanh_toán[[#This Row],[GỐC]],0),"") ->  | K101: =IF(Lịch_biểu_Thanh_toán[[#This Row],[SỐ THANH TOÁN]]<>"",SUM(INDEX(Lịch_biểu_Thanh_toán[LÃI],1,1):Lịch_biểu_Thanh_toán[[#This Row],[LÃI]]),"") -> 
B102: =IF(Khoản_vay_Tốt,IF(ROW()-ROW(Lịch_biểu_Thanh_toán[[#Headers],[SỐ THANH TOÁN]])>Số_lần_Thanh_toán_theo_Lịch,"",ROW()-ROW(Lịch_biểu_Thanh_toán[[#Headers],[SỐ THANH TOÁN]])),"") ->  | C102: =IF(Lịch_biểu_Thanh_toán[[#This Row],[SỐ THANH TOÁN]]<>"",EOMONTH(Ngày_Bắt_đầu_Khoản_vay,ROW(Lịch_biểu_Thanh_toán[[#This Row],[SỐ THANH TOÁN]])-ROW(Lịch_biểu_Thanh_toán[[#Headers],[SỐ THANH TOÁN]])-2)+DAY(Ngày_Bắt_đầu_Khoản_vay),"") ->  | D102: =IF(Lịch_biểu_Thanh_toán[[#This Row],[SỐ THANH TOÁN]]<>"",IF(ROW()-ROW(Lịch_biểu_Thanh_toán[[#Headers],[SỐ DƯ ĐẦU]])=1,Số_tiền_Vay,INDEX(Lịch_biểu_Thanh_toán[SỐ DƯ CUỐI],ROW()-ROW(Lịch_biểu_Thanh_toán[[#Headers],[SỐ DƯ ĐẦU]])-1)),"") ->  | E102: =IF(Lịch_biểu_Thanh_toán[[#This Row],[SỐ THANH TOÁN]]<>"",Thanh_toán_theo_Lịch,"") ->  | F102: =IF(Lịch_biểu_Thanh_toán[[#This Row],[SỐ THANH TOÁN]]<>"",IF(Lịch_biểu_Thanh_toán[[#This Row],[THANH TOÁN THEO LỊCH]]+Thanh_Toán_Bổ_sung<Lịch_biểu_Thanh_toán[[#This Row],[SỐ DƯ ĐẦU]],Thanh_Toán_Bổ_sung,IF(Lịch_biểu_Thanh_toán[[#This Row],[SỐ DƯ ĐẦU]]-Lịch_biểu_Thanh_toán[[#This Row],[THANH TOÁN THEO LỊCH]]>0,Lịch_biểu_Thanh_toán[[#This Row],[SỐ DƯ ĐẦU]]-Lịch_biểu_Thanh_toán[[#This Row],[THANH TOÁN THEO LỊCH]],0)),"") ->  | G102: =IF(Lịch_biểu_Thanh_toán[[#This Row],[SỐ THANH TOÁN]]<>"",IF(Lịch_biểu_Thanh_toán[[#This Row],[THANH TOÁN THEO LỊCH]]+Lịch_biểu_Thanh_toán[[#This Row],[THANH TOÁN BỔ SUNG]]<=Lịch_biểu_Thanh_toán[[#This Row],[SỐ DƯ ĐẦU]],Lịch_biểu_Thanh_toán[[#This Row],[THANH TOÁN THEO LỊCH]]+Lịch_biểu_Thanh_toán[[#This Row],[THANH TOÁN BỔ SUNG]],Lịch_biểu_Thanh_toán[[#This Row],[SỐ DƯ ĐẦU]]),"") ->  | H102: =IF(Lịch_biểu_Thanh_toán[[#This Row],[SỐ THANH TOÁN]]<>"",Lịch_biểu_Thanh_toán[[#This Row],[TỔNG THANH TOÁN]]-Lịch_biểu_Thanh_toán[[#This Row],[LÃI]],"") ->  | I102: =IF(Lịch_biểu_Thanh_toán[[#This Row],[SỐ THANH TOÁN]]<>"",Lịch_biểu_Thanh_toán[[#This Row],[SỐ DƯ ĐẦU]]*(Lãi_Suất/Thanh_toán_Mỗi_Năm),"") ->  | J102: =IF(Lịch_biểu_Thanh_toán[[#This Row],[SỐ THANH TOÁN]]<>"",IF(Lịch_biểu_Thanh_toán[[#This Row],[THANH TOÁN THEO LỊCH]]+Lịch_biểu_Thanh_toán[[#This Row],[THANH TOÁN BỔ SUNG]]<=Lịch_biểu_Thanh_toán[[#This Row],[SỐ DƯ ĐẦU]],Lịch_biểu_Thanh_toán[[#This Row],[SỐ DƯ ĐẦU]]-Lịch_biểu_Thanh_toán[[#This Row],[GỐC]],0),"") ->  | K102: =IF(Lịch_biểu_Thanh_toán[[#This Row],[SỐ THANH TOÁN]]<>"",SUM(INDEX(Lịch_biểu_Thanh_toán[LÃI],1,1):Lịch_biểu_Thanh_toán[[#This Row],[LÃI]]),"") -> 
B103: =IF(Khoản_vay_Tốt,IF(ROW()-ROW(Lịch_biểu_Thanh_toán[[#Headers],[SỐ THANH TOÁN]])>Số_lần_Thanh_toán_theo_Lịch,"",ROW()-ROW(Lịch_biểu_Thanh_toán[[#Headers],[SỐ THANH TOÁN]])),"") ->  | C103: =IF(Lịch_biểu_Thanh_toán[[#This Row],[SỐ THANH TOÁN]]<>"",EOMONTH(Ngày_Bắt_đầu_Khoản_vay,ROW(Lịch_biểu_Thanh_toán[[#This Row],[SỐ THANH TOÁN]])-ROW(Lịch_biểu_Thanh_toán[[#Headers],[SỐ THANH TOÁN]])-2)+DAY(Ngày_Bắt_đầu_Khoản_vay),"") ->  | D103: =IF(Lịch_biểu_Thanh_toán[[#This Row],[SỐ THANH TOÁN]]<>"",IF(ROW()-ROW(Lịch_biểu_Thanh_toán[[#Headers],[SỐ DƯ ĐẦU]])=1,Số_tiền_Vay,INDEX(Lịch_biểu_Thanh_toán[SỐ DƯ CUỐI],ROW()-ROW(Lịch_biểu_Thanh_toán[[#Headers],[SỐ DƯ ĐẦU]])-1)),"") ->  | E103: =IF(Lịch_biểu_Thanh_toán[[#This Row],[SỐ THANH TOÁN]]<>"",Thanh_toán_theo_Lịch,"") ->  | F103: =IF(Lịch_biểu_Thanh_toán[[#This Row],[SỐ THANH TOÁN]]<>"",IF(Lịch_biểu_Thanh_toán[[#This Row],[THANH TOÁN THEO LỊCH]]+Thanh_Toán_Bổ_sung<Lịch_biểu_Thanh_toán[[#This Row],[SỐ DƯ ĐẦU]],Thanh_Toán_Bổ_sung,IF(Lịch_biểu_Thanh_toán[[#This Row],[SỐ DƯ ĐẦU]]-Lịch_biểu_Thanh_toán[[#This Row],[THANH TOÁN THEO LỊCH]]>0,Lịch_biểu_Thanh_toán[[#This Row],[SỐ DƯ ĐẦU]]-Lịch_biểu_Thanh_toán[[#This Row],[THANH TOÁN THEO LỊCH]],0)),"") ->  | G103: =IF(Lịch_biểu_Thanh_toán[[#This Row],[SỐ THANH TOÁN]]<>"",IF(Lịch_biểu_Thanh_toán[[#This Row],[THANH TOÁN THEO LỊCH]]+Lịch_biểu_Thanh_toán[[#This Row],[THANH TOÁN BỔ SUNG]]<=Lịch_biểu_Thanh_toán[[#This Row],[SỐ DƯ ĐẦU]],Lịch_biểu_Thanh_toán[[#This Row],[THANH TOÁN THEO LỊCH]]+Lịch_biểu_Thanh_toán[[#This Row],[THANH TOÁN BỔ SUNG]],Lịch_biểu_Thanh_toán[[#This Row],[SỐ DƯ ĐẦU]]),"") ->  | H103: =IF(Lịch_biểu_Thanh_toán[[#This Row],[SỐ THANH TOÁN]]<>"",Lịch_biểu_Thanh_toán[[#This Row],[TỔNG THANH TOÁN]]-Lịch_biểu_Thanh_toán[[#This Row],[LÃI]],"") ->  | I103: =IF(Lịch_biểu_Thanh_toán[[#This Row],[SỐ THANH TOÁN]]<>"",Lịch_biểu_Thanh_toán[[#This Row],[SỐ DƯ ĐẦU]]*(Lãi_Suất/Thanh_toán_Mỗi_Năm),"") ->  | J103: =IF(Lịch_biểu_Thanh_toán[[#This Row],[SỐ THANH TOÁN]]<>"",IF(Lịch_biểu_Thanh_toán[[#This Row],[THANH TOÁN THEO LỊCH]]+Lịch_biểu_Thanh_toán[[#This Row],[THANH TOÁN BỔ SUNG]]<=Lịch_biểu_Thanh_toán[[#This Row],[SỐ DƯ ĐẦU]],Lịch_biểu_Thanh_toán[[#This Row],[SỐ DƯ ĐẦU]]-Lịch_biểu_Thanh_toán[[#This Row],[GỐC]],0),"") ->  | K103: =IF(Lịch_biểu_Thanh_toán[[#This Row],[SỐ THANH TOÁN]]<>"",SUM(INDEX(Lịch_biểu_Thanh_toán[LÃI],1,1):Lịch_biểu_Thanh_toán[[#This Row],[LÃI]]),"") -> 
B104: =IF(Khoản_vay_Tốt,IF(ROW()-ROW(Lịch_biểu_Thanh_toán[[#Headers],[SỐ THANH TOÁN]])>Số_lần_Thanh_toán_theo_Lịch,"",ROW()-ROW(Lịch_biểu_Thanh_toán[[#Headers],[SỐ THANH TOÁN]])),"") ->  | C104: =IF(Lịch_biểu_Thanh_toán[[#This Row],[SỐ THANH TOÁN]]<>"",EOMONTH(Ngày_Bắt_đầu_Khoản_vay,ROW(Lịch_biểu_Thanh_toán[[#This Row],[SỐ THANH TOÁN]])-ROW(Lịch_biểu_Thanh_toán[[#Headers],[SỐ THANH TOÁN]])-2)+DAY(Ngày_Bắt_đầu_Khoản_vay),"") ->  | D104: =IF(Lịch_biểu_Thanh_toán[[#This Row],[SỐ THANH TOÁN]]<>"",IF(ROW()-ROW(Lịch_biểu_Thanh_toán[[#Headers],[SỐ DƯ ĐẦU]])=1,Số_tiền_Vay,INDEX(Lịch_biểu_Thanh_toán[SỐ DƯ CUỐI],ROW()-ROW(Lịch_biểu_Thanh_toán[[#Headers],[SỐ DƯ ĐẦU]])-1)),"") ->  | E104: =IF(Lịch_biểu_Thanh_toán[[#This Row],[SỐ THANH TOÁN]]<>"",Thanh_toán_theo_Lịch,"") ->  | F104: =IF(Lịch_biểu_Thanh_toán[[#This Row],[SỐ THANH TOÁN]]<>"",IF(Lịch_biểu_Thanh_toán[[#This Row],[THANH TOÁN THEO LỊCH]]+Thanh_Toán_Bổ_sung<Lịch_biểu_Thanh_toán[[#This Row],[SỐ DƯ ĐẦU]],Thanh_Toán_Bổ_sung,IF(Lịch_biểu_Thanh_toán[[#This Row],[SỐ DƯ ĐẦU]]-Lịch_biểu_Thanh_toán[[#This Row],[THANH TOÁN THEO LỊCH]]>0,Lịch_biểu_Thanh_toán[[#This Row],[SỐ DƯ ĐẦU]]-Lịch_biểu_Thanh_toán[[#This Row],[THANH TOÁN THEO LỊCH]],0)),"") ->  | G104: =IF(Lịch_biểu_Thanh_toán[[#This Row],[SỐ THANH TOÁN]]<>"",IF(Lịch_biểu_Thanh_toán[[#This Row],[THANH TOÁN THEO LỊCH]]+Lịch_biểu_Thanh_toán[[#This Row],[THANH TOÁN BỔ SUNG]]<=Lịch_biểu_Thanh_toán[[#This Row],[SỐ DƯ ĐẦU]],Lịch_biểu_Thanh_toán[[#This Row],[THANH TOÁN THEO LỊCH]]+Lịch_biểu_Thanh_toán[[#This Row],[THANH TOÁN BỔ SUNG]],Lịch_biểu_Thanh_toán[[#This Row],[SỐ DƯ ĐẦU]]),"") ->  | H104: =IF(Lịch_biểu_Thanh_toán[[#This Row],[SỐ THANH TOÁN]]<>"",Lịch_biểu_Thanh_toán[[#This Row],[TỔNG THANH TOÁN]]-Lịch_biểu_Thanh_toán[[#This Row],[LÃI]],"") ->  | I104: =IF(Lịch_biểu_Thanh_toán[[#This Row],[SỐ THANH TOÁN]]<>"",Lịch_biểu_Thanh_toán[[#This Row],[SỐ DƯ ĐẦU]]*(Lãi_Suất/Thanh_toán_Mỗi_Năm),"") ->  | J104: =IF(Lịch_biểu_Thanh_toán[[#This Row],[SỐ THANH TOÁN]]<>"",IF(Lịch_biểu_Thanh_toán[[#This Row],[THANH TOÁN THEO LỊCH]]+Lịch_biểu_Thanh_toán[[#This Row],[THANH TOÁN BỔ SUNG]]<=Lịch_biểu_Thanh_toán[[#This Row],[SỐ DƯ ĐẦU]],Lịch_biểu_Thanh_toán[[#This Row],[SỐ DƯ ĐẦU]]-Lịch_biểu_Thanh_toán[[#This Row],[GỐC]],0),"") ->  | K104: =IF(Lịch_biểu_Thanh_toán[[#This Row],[SỐ THANH TOÁN]]<>"",SUM(INDEX(Lịch_biểu_Thanh_toán[LÃI],1,1):Lịch_biểu_Thanh_toán[[#This Row],[LÃI]]),"") -> 
B105: =IF(Khoản_vay_Tốt,IF(ROW()-ROW(Lịch_biểu_Thanh_toán[[#Headers],[SỐ THANH TOÁN]])>Số_lần_Thanh_toán_theo_Lịch,"",ROW()-ROW(Lịch_biểu_Thanh_toán[[#Headers],[SỐ THANH TOÁN]])),"") ->  | C105: =IF(Lịch_biểu_Thanh_toán[[#This Row],[SỐ THANH TOÁN]]<>"",EOMONTH(Ngày_Bắt_đầu_Khoản_vay,ROW(Lịch_biểu_Thanh_toán[[#This Row],[SỐ THANH TOÁN]])-ROW(Lịch_biểu_Thanh_toán[[#Headers],[SỐ THANH TOÁN]])-2)+DAY(Ngày_Bắt_đầu_Khoản_vay),"") ->  | D105: =IF(Lịch_biểu_Thanh_toán[[#This Row],[SỐ THANH TOÁN]]<>"",IF(ROW()-ROW(Lịch_biểu_Thanh_toán[[#Headers],[SỐ DƯ ĐẦU]])=1,Số_tiền_Vay,INDEX(Lịch_biểu_Thanh_toán[SỐ DƯ CUỐI],ROW()-ROW(Lịch_biểu_Thanh_toán[[#Headers],[SỐ DƯ ĐẦU]])-1)),"") ->  | E105: =IF(Lịch_biểu_Thanh_toán[[#This Row],[SỐ THANH TOÁN]]<>"",Thanh_toán_theo_Lịch,"") ->  | F105: =IF(Lịch_biểu_Thanh_toán[[#This Row],[SỐ THANH TOÁN]]<>"",IF(Lịch_biểu_Thanh_toán[[#This Row],[THANH TOÁN THEO LỊCH]]+Thanh_Toán_Bổ_sung<Lịch_biểu_Thanh_toán[[#This Row],[SỐ DƯ ĐẦU]],Thanh_Toán_Bổ_sung,IF(Lịch_biểu_Thanh_toán[[#This Row],[SỐ DƯ ĐẦU]]-Lịch_biểu_Thanh_toán[[#This Row],[THANH TOÁN THEO LỊCH]]>0,Lịch_biểu_Thanh_toán[[#This Row],[SỐ DƯ ĐẦU]]-Lịch_biểu_Thanh_toán[[#This Row],[THANH TOÁN THEO LỊCH]],0)),"") ->  | G105: =IF(Lịch_biểu_Thanh_toán[[#This Row],[SỐ THANH TOÁN]]<>"",IF(Lịch_biểu_Thanh_toán[[#This Row],[THANH TOÁN THEO LỊCH]]+Lịch_biểu_Thanh_toán[[#This Row],[THANH TOÁN BỔ SUNG]]<=Lịch_biểu_Thanh_toán[[#This Row],[SỐ DƯ ĐẦU]],Lịch_biểu_Thanh_toán[[#This Row],[THANH TOÁN THEO LỊCH]]+Lịch_biểu_Thanh_toán[[#This Row],[THANH TOÁN BỔ SUNG]],Lịch_biểu_Thanh_toán[[#This Row],[SỐ DƯ ĐẦU]]),"") ->  | H105: =IF(Lịch_biểu_Thanh_toán[[#This Row],[SỐ THANH TOÁN]]<>"",Lịch_biểu_Thanh_toán[[#This Row],[TỔNG THANH TOÁN]]-Lịch_biểu_Thanh_toán[[#This Row],[LÃI]],"") ->  | I105: =IF(Lịch_biểu_Thanh_toán[[#This Row],[SỐ THANH TOÁN]]<>"",Lịch_biểu_Thanh_toán[[#This Row],[SỐ DƯ ĐẦU]]*(Lãi_Suất/Thanh_toán_Mỗi_Năm),"") ->  | J105: =IF(Lịch_biểu_Thanh_toán[[#This Row],[SỐ THANH TOÁN]]<>"",IF(Lịch_biểu_Thanh_toán[[#This Row],[THANH TOÁN THEO LỊCH]]+Lịch_biểu_Thanh_toán[[#This Row],[THANH TOÁN BỔ SUNG]]<=Lịch_biểu_Thanh_toán[[#This Row],[SỐ DƯ ĐẦU]],Lịch_biểu_Thanh_toán[[#This Row],[SỐ DƯ ĐẦU]]-Lịch_biểu_Thanh_toán[[#This Row],[GỐC]],0),"") ->  | K105: =IF(Lịch_biểu_Thanh_toán[[#This Row],[SỐ THANH TOÁN]]<>"",SUM(INDEX(Lịch_biểu_Thanh_toán[LÃI],1,1):Lịch_biểu_Thanh_toán[[#This Row],[LÃI]]),"") -> 
B106: =IF(Khoản_vay_Tốt,IF(ROW()-ROW(Lịch_biểu_Thanh_toán[[#Headers],[SỐ THANH TOÁN]])>Số_lần_Thanh_toán_theo_Lịch,"",ROW()-ROW(Lịch_biểu_Thanh_toán[[#Headers],[SỐ THANH TOÁN]])),"") ->  | C106: =IF(Lịch_biểu_Thanh_toán[[#This Row],[SỐ THANH TOÁN]]<>"",EOMONTH(Ngày_Bắt_đầu_Khoản_vay,ROW(Lịch_biểu_Thanh_toán[[#This Row],[SỐ THANH TOÁN]])-ROW(Lịch_biểu_Thanh_toán[[#Headers],[SỐ THANH TOÁN]])-2)+DAY(Ngày_Bắt_đầu_Khoản_vay),"") ->  | D106: =IF(Lịch_biểu_Thanh_toán[[#This Row],[SỐ THANH TOÁN]]<>"",IF(ROW()-ROW(Lịch_biểu_Thanh_toán[[#Headers],[SỐ DƯ ĐẦU]])=1,Số_tiền_Vay,INDEX(Lịch_biểu_Thanh_toán[SỐ DƯ CUỐI],ROW()-ROW(Lịch_biểu_Thanh_toán[[#Headers],[SỐ DƯ ĐẦU]])-1)),"") ->  | E106: =IF(Lịch_biểu_Thanh_toán[[#This Row],[SỐ THANH TOÁN]]<>"",Thanh_toán_theo_Lịch,"") ->  | F106: =IF(Lịch_biểu_Thanh_toán[[#This Row],[SỐ THANH TOÁN]]<>"",IF(Lịch_biểu_Thanh_toán[[#This Row],[THANH TOÁN THEO LỊCH]]+Thanh_Toán_Bổ_sung<Lịch_biểu_Thanh_toán[[#This Row],[SỐ DƯ ĐẦU]],Thanh_Toán_Bổ_sung,IF(Lịch_biểu_Thanh_toán[[#This Row],[SỐ DƯ ĐẦU]]-Lịch_biểu_Thanh_toán[[#This Row],[THANH TOÁN THEO LỊCH]]>0,Lịch_biểu_Thanh_toán[[#This Row],[SỐ DƯ ĐẦU]]-Lịch_biểu_Thanh_toán[[#This Row],[THANH TOÁN THEO LỊCH]],0)),"") ->  | G106: =IF(Lịch_biểu_Thanh_toán[[#This Row],[SỐ THANH TOÁN]]<>"",IF(Lịch_biểu_Thanh_toán[[#This Row],[THANH TOÁN THEO LỊCH]]+Lịch_biểu_Thanh_toán[[#This Row],[THANH TOÁN BỔ SUNG]]<=Lịch_biểu_Thanh_toán[[#This Row],[SỐ DƯ ĐẦU]],Lịch_biểu_Thanh_toán[[#This Row],[THANH TOÁN THEO LỊCH]]+Lịch_biểu_Thanh_toán[[#This Row],[THANH TOÁN BỔ SUNG]],Lịch_biểu_Thanh_toán[[#This Row],[SỐ DƯ ĐẦU]]),"") ->  | H106: =IF(Lịch_biểu_Thanh_toán[[#This Row],[SỐ THANH TOÁN]]<>"",Lịch_biểu_Thanh_toán[[#This Row],[TỔNG THANH TOÁN]]-Lịch_biểu_Thanh_toán[[#This Row],[LÃI]],"") ->  | I106: =IF(Lịch_biểu_Thanh_toán[[#This Row],[SỐ THANH TOÁN]]<>"",Lịch_biểu_Thanh_toán[[#This Row],[SỐ DƯ ĐẦU]]*(Lãi_Suất/Thanh_toán_Mỗi_Năm),"") ->  | J106: =IF(Lịch_biểu_Thanh_toán[[#This Row],[SỐ THANH TOÁN]]<>"",IF(Lịch_biểu_Thanh_toán[[#This Row],[THANH TOÁN THEO LỊCH]]+Lịch_biểu_Thanh_toán[[#This Row],[THANH TOÁN BỔ SUNG]]<=Lịch_biểu_Thanh_toán[[#This Row],[SỐ DƯ ĐẦU]],Lịch_biểu_Thanh_toán[[#This Row],[SỐ DƯ ĐẦU]]-Lịch_biểu_Thanh_toán[[#This Row],[GỐC]],0),"") ->  | K106: =IF(Lịch_biểu_Thanh_toán[[#This Row],[SỐ THANH TOÁN]]<>"",SUM(INDEX(Lịch_biểu_Thanh_toán[LÃI],1,1):Lịch_biểu_Thanh_toán[[#This Row],[LÃI]]),"") -> 
B107: =IF(Khoản_vay_Tốt,IF(ROW()-ROW(Lịch_biểu_Thanh_toán[[#Headers],[SỐ THANH TOÁN]])>Số_lần_Thanh_toán_theo_Lịch,"",ROW()-ROW(Lịch_biểu_Thanh_toán[[#Headers],[SỐ THANH TOÁN]])),"") ->  | C107: =IF(Lịch_biểu_Thanh_toán[[#This Row],[SỐ THANH TOÁN]]<>"",EOMONTH(Ngày_Bắt_đầu_Khoản_vay,ROW(Lịch_biểu_Thanh_toán[[#This Row],[SỐ THANH TOÁN]])-ROW(Lịch_biểu_Thanh_toán[[#Headers],[SỐ THANH TOÁN]])-2)+DAY(Ngày_Bắt_đầu_Khoản_vay),"") ->  | D107: =IF(Lịch_biểu_Thanh_toán[[#This Row],[SỐ THANH TOÁN]]<>"",IF(ROW()-ROW(Lịch_biểu_Thanh_toán[[#Headers],[SỐ DƯ ĐẦU]])=1,Số_tiền_Vay,INDEX(Lịch_biểu_Thanh_toán[SỐ DƯ CUỐI],ROW()-ROW(Lịch_biểu_Thanh_toán[[#Headers],[SỐ DƯ ĐẦU]])-1)),"") ->  | E107: =IF(Lịch_biểu_Thanh_toán[[#This Row],[SỐ THANH TOÁN]]<>"",Thanh_toán_theo_Lịch,"") ->  | F107: =IF(Lịch_biểu_Thanh_toán[[#This Row],[SỐ THANH TOÁN]]<>"",IF(Lịch_biểu_Thanh_toán[[#This Row],[THANH TOÁN THEO LỊCH]]+Thanh_Toán_Bổ_sung<Lịch_biểu_Thanh_toán[[#This Row],[SỐ DƯ ĐẦU]],Thanh_Toán_Bổ_sung,IF(Lịch_biểu_Thanh_toán[[#This Row],[SỐ DƯ ĐẦU]]-Lịch_biểu_Thanh_toán[[#This Row],[THANH TOÁN THEO LỊCH]]>0,Lịch_biểu_Thanh_toán[[#This Row],[SỐ DƯ ĐẦU]]-Lịch_biểu_Thanh_toán[[#This Row],[THANH TOÁN THEO LỊCH]],0)),"") ->  | G107: =IF(Lịch_biểu_Thanh_toán[[#This Row],[SỐ THANH TOÁN]]<>"",IF(Lịch_biểu_Thanh_toán[[#This Row],[THANH TOÁN THEO LỊCH]]+Lịch_biểu_Thanh_toán[[#This Row],[THANH TOÁN BỔ SUNG]]<=Lịch_biểu_Thanh_toán[[#This Row],[SỐ DƯ ĐẦU]],Lịch_biểu_Thanh_toán[[#This Row],[THANH TOÁN THEO LỊCH]]+Lịch_biểu_Thanh_toán[[#This Row],[THANH TOÁN BỔ SUNG]],Lịch_biểu_Thanh_toán[[#This Row],[SỐ DƯ ĐẦU]]),"") ->  | H107: =IF(Lịch_biểu_Thanh_toán[[#This Row],[SỐ THANH TOÁN]]<>"",Lịch_biểu_Thanh_toán[[#This Row],[TỔNG THANH TOÁN]]-Lịch_biểu_Thanh_toán[[#This Row],[LÃI]],"") ->  | I107: =IF(Lịch_biểu_Thanh_toán[[#This Row],[SỐ THANH TOÁN]]<>"",Lịch_biểu_Thanh_toán[[#This Row],[SỐ DƯ ĐẦU]]*(Lãi_Suất/Thanh_toán_Mỗi_Năm),"") ->  | J107: =IF(Lịch_biểu_Thanh_toán[[#This Row],[SỐ THANH TOÁN]]<>"",IF(Lịch_biểu_Thanh_toán[[#This Row],[THANH TOÁN THEO LỊCH]]+Lịch_biểu_Thanh_toán[[#This Row],[THANH TOÁN BỔ SUNG]]<=Lịch_biểu_Thanh_toán[[#This Row],[SỐ DƯ ĐẦU]],Lịch_biểu_Thanh_toán[[#This Row],[SỐ DƯ ĐẦU]]-Lịch_biểu_Thanh_toán[[#This Row],[GỐC]],0),"") ->  | K107: =IF(Lịch_biểu_Thanh_toán[[#This Row],[SỐ THANH TOÁN]]<>"",SUM(INDEX(Lịch_biểu_Thanh_toán[LÃI],1,1):Lịch_biểu_Thanh_toán[[#This Row],[LÃI]]),"") -> 
B108: =IF(Khoản_vay_Tốt,IF(ROW()-ROW(Lịch_biểu_Thanh_toán[[#Headers],[SỐ THANH TOÁN]])>Số_lần_Thanh_toán_theo_Lịch,"",ROW()-ROW(Lịch_biểu_Thanh_toán[[#Headers],[SỐ THANH TOÁN]])),"") ->  | C108: =IF(Lịch_biểu_Thanh_toán[[#This Row],[SỐ THANH TOÁN]]<>"",EOMONTH(Ngày_Bắt_đầu_Khoản_vay,ROW(Lịch_biểu_Thanh_toán[[#This Row],[SỐ THANH TOÁN]])-ROW(Lịch_biểu_Thanh_toán[[#Headers],[SỐ THANH TOÁN]])-2)+DAY(Ngày_Bắt_đầu_Khoản_vay),"") ->  | D108: =IF(Lịch_biểu_Thanh_toán[[#This Row],[SỐ THANH TOÁN]]<>"",IF(ROW()-ROW(Lịch_biểu_Thanh_toán[[#Headers],[SỐ DƯ ĐẦU]])=1,Số_tiền_Vay,INDEX(Lịch_biểu_Thanh_toán[SỐ DƯ CUỐI],ROW()-ROW(Lịch_biểu_Thanh_toán[[#Headers],[SỐ DƯ ĐẦU]])-1)),"") ->  | E108: =IF(Lịch_biểu_Thanh_toán[[#This Row],[SỐ THANH TOÁN]]<>"",Thanh_toán_theo_Lịch,"") ->  | F108: =IF(Lịch_biểu_Thanh_toán[[#This Row],[SỐ THANH TOÁN]]<>"",IF(Lịch_biểu_Thanh_toán[[#This Row],[THANH TOÁN THEO LỊCH]]+Thanh_Toán_Bổ_sung<Lịch_biểu_Thanh_toán[[#This Row],[SỐ DƯ ĐẦU]],Thanh_Toán_Bổ_sung,IF(Lịch_biểu_Thanh_toán[[#This Row],[SỐ DƯ ĐẦU]]-Lịch_biểu_Thanh_toán[[#This Row],[THANH TOÁN THEO LỊCH]]>0,Lịch_biểu_Thanh_toán[[#This Row],[SỐ DƯ ĐẦU]]-Lịch_biểu_Thanh_toán[[#This Row],[THANH TOÁN THEO LỊCH]],0)),"") ->  | G108: =IF(Lịch_biểu_Thanh_toán[[#This Row],[SỐ THANH TOÁN]]<>"",IF(Lịch_biểu_Thanh_toán[[#This Row],[THANH TOÁN THEO LỊCH]]+Lịch_biểu_Thanh_toán[[#This Row],[THANH TOÁN BỔ SUNG]]<=Lịch_biểu_Thanh_toán[[#This Row],[SỐ DƯ ĐẦU]],Lịch_biểu_Thanh_toán[[#This Row],[THANH TOÁN THEO LỊCH]]+Lịch_biểu_Thanh_toán[[#This Row],[THANH TOÁN BỔ SUNG]],Lịch_biểu_Thanh_toán[[#This Row],[SỐ DƯ ĐẦU]]),"") ->  | H108: =IF(Lịch_biểu_Thanh_toán[[#This Row],[SỐ THANH TOÁN]]<>"",Lịch_biểu_Thanh_toán[[#This Row],[TỔNG THANH TOÁN]]-Lịch_biểu_Thanh_toán[[#This Row],[LÃI]],"") ->  | I108: =IF(Lịch_biểu_Thanh_toán[[#This Row],[SỐ THANH TOÁN]]<>"",Lịch_biểu_Thanh_toán[[#This Row],[SỐ DƯ ĐẦU]]*(Lãi_Suất/Thanh_toán_Mỗi_Năm),"") ->  | J108: =IF(Lịch_biểu_Thanh_toán[[#This Row],[SỐ THANH TOÁN]]<>"",IF(Lịch_biểu_Thanh_toán[[#This Row],[THANH TOÁN THEO LỊCH]]+Lịch_biểu_Thanh_toán[[#This Row],[THANH TOÁN BỔ SUNG]]<=Lịch_biểu_Thanh_toán[[#This Row],[SỐ DƯ ĐẦU]],Lịch_biểu_Thanh_toán[[#This Row],[SỐ DƯ ĐẦU]]-Lịch_biểu_Thanh_toán[[#This Row],[GỐC]],0),"") ->  | K108: =IF(Lịch_biểu_Thanh_toán[[#This Row],[SỐ THANH TOÁN]]<>"",SUM(INDEX(Lịch_biểu_Thanh_toán[LÃI],1,1):Lịch_biểu_Thanh_toán[[#This Row],[LÃI]]),"") -> 
B109: =IF(Khoản_vay_Tốt,IF(ROW()-ROW(Lịch_biểu_Thanh_toán[[#Headers],[SỐ THANH TOÁN]])>Số_lần_Thanh_toán_theo_Lịch,"",ROW()-ROW(Lịch_biểu_Thanh_toán[[#Headers],[SỐ THANH TOÁN]])),"") ->  | C109: =IF(Lịch_biểu_Thanh_toán[[#This Row],[SỐ THANH TOÁN]]<>"",EOMONTH(Ngày_Bắt_đầu_Khoản_vay,ROW(Lịch_biểu_Thanh_toán[[#This Row],[SỐ THANH TOÁN]])-ROW(Lịch_biểu_Thanh_toán[[#Headers],[SỐ THANH TOÁN]])-2)+DAY(Ngày_Bắt_đầu_Khoản_vay),"") ->  | D109: =IF(Lịch_biểu_Thanh_toán[[#This Row],[SỐ THANH TOÁN]]<>"",IF(ROW()-ROW(Lịch_biểu_Thanh_toán[[#Headers],[SỐ DƯ ĐẦU]])=1,Số_tiền_Vay,INDEX(Lịch_biểu_Thanh_toán[SỐ DƯ CUỐI],ROW()-ROW(Lịch_biểu_Thanh_toán[[#Headers],[SỐ DƯ ĐẦU]])-1)),"") ->  | E109: =IF(Lịch_biểu_Thanh_toán[[#This Row],[SỐ THANH TOÁN]]<>"",Thanh_toán_theo_Lịch,"") ->  | F109: =IF(Lịch_biểu_Thanh_toán[[#This Row],[SỐ THANH TOÁN]]<>"",IF(Lịch_biểu_Thanh_toán[[#This Row],[THANH TOÁN THEO LỊCH]]+Thanh_Toán_Bổ_sung<Lịch_biểu_Thanh_toán[[#This Row],[SỐ DƯ ĐẦU]],Thanh_Toán_Bổ_sung,IF(Lịch_biểu_Thanh_toán[[#This Row],[SỐ DƯ ĐẦU]]-Lịch_biểu_Thanh_toán[[#This Row],[THANH TOÁN THEO LỊCH]]>0,Lịch_biểu_Thanh_toán[[#This Row],[SỐ DƯ ĐẦU]]-Lịch_biểu_Thanh_toán[[#This Row],[THANH TOÁN THEO LỊCH]],0)),"") ->  | G109: =IF(Lịch_biểu_Thanh_toán[[#This Row],[SỐ THANH TOÁN]]<>"",IF(Lịch_biểu_Thanh_toán[[#This Row],[THANH TOÁN THEO LỊCH]]+Lịch_biểu_Thanh_toán[[#This Row],[THANH TOÁN BỔ SUNG]]<=Lịch_biểu_Thanh_toán[[#This Row],[SỐ DƯ ĐẦU]],Lịch_biểu_Thanh_toán[[#This Row],[THANH TOÁN THEO LỊCH]]+Lịch_biểu_Thanh_toán[[#This Row],[THANH TOÁN BỔ SUNG]],Lịch_biểu_Thanh_toán[[#This Row],[SỐ DƯ ĐẦU]]),"") ->  | H109: =IF(Lịch_biểu_Thanh_toán[[#This Row],[SỐ THANH TOÁN]]<>"",Lịch_biểu_Thanh_toán[[#This Row],[TỔNG THANH TOÁN]]-Lịch_biểu_Thanh_toán[[#This Row],[LÃI]],"") ->  | I109: =IF(Lịch_biểu_Thanh_toán[[#This Row],[SỐ THANH TOÁN]]<>"",Lịch_biểu_Thanh_toán[[#This Row],[SỐ DƯ ĐẦU]]*(Lãi_Suất/Thanh_toán_Mỗi_Năm),"") ->  | J109: =IF(Lịch_biểu_Thanh_toán[[#This Row],[SỐ THANH TOÁN]]<>"",IF(Lịch_biểu_Thanh_toán[[#This Row],[THANH TOÁN THEO LỊCH]]+Lịch_biểu_Thanh_toán[[#This Row],[THANH TOÁN BỔ SUNG]]<=Lịch_biểu_Thanh_toán[[#This Row],[SỐ DƯ ĐẦU]],Lịch_biểu_Thanh_toán[[#This Row],[SỐ DƯ ĐẦU]]-Lịch_biểu_Thanh_toán[[#This Row],[GỐC]],0),"") ->  | K109: =IF(Lịch_biểu_Thanh_toán[[#This Row],[SỐ THANH TOÁN]]<>"",SUM(INDEX(Lịch_biểu_Thanh_toán[LÃI],1,1):Lịch_biểu_Thanh_toán[[#This Row],[LÃI]]),"") -> 
B110: =IF(Khoản_vay_Tốt,IF(ROW()-ROW(Lịch_biểu_Thanh_toán[[#Headers],[SỐ THANH TOÁN]])>Số_lần_Thanh_toán_theo_Lịch,"",ROW()-ROW(Lịch_biểu_Thanh_toán[[#Headers],[SỐ THANH TOÁN]])),"") ->  | C110: =IF(Lịch_biểu_Thanh_toán[[#This Row],[SỐ THANH TOÁN]]<>"",EOMONTH(Ngày_Bắt_đầu_Khoản_vay,ROW(Lịch_biểu_Thanh_toán[[#This Row],[SỐ THANH TOÁN]])-ROW(Lịch_biểu_Thanh_toán[[#Headers],[SỐ THANH TOÁN]])-2)+DAY(Ngày_Bắt_đầu_Khoản_vay),"") ->  | D110: =IF(Lịch_biểu_Thanh_toán[[#This Row],[SỐ THANH TOÁN]]<>"",IF(ROW()-ROW(Lịch_biểu_Thanh_toán[[#Headers],[SỐ DƯ ĐẦU]])=1,Số_tiền_Vay,INDEX(Lịch_biểu_Thanh_toán[SỐ DƯ CUỐI],ROW()-ROW(Lịch_biểu_Thanh_toán[[#Headers],[SỐ DƯ ĐẦU]])-1)),"") ->  | E110: =IF(Lịch_biểu_Thanh_toán[[#This Row],[SỐ THANH TOÁN]]<>"",Thanh_toán_theo_Lịch,"") ->  | F110: =IF(Lịch_biểu_Thanh_toán[[#This Row],[SỐ THANH TOÁN]]<>"",IF(Lịch_biểu_Thanh_toán[[#This Row],[THANH TOÁN THEO LỊCH]]+Thanh_Toán_Bổ_sung<Lịch_biểu_Thanh_toán[[#This Row],[SỐ DƯ ĐẦU]],Thanh_Toán_Bổ_sung,IF(Lịch_biểu_Thanh_toán[[#This Row],[SỐ DƯ ĐẦU]]-Lịch_biểu_Thanh_toán[[#This Row],[THANH TOÁN THEO LỊCH]]>0,Lịch_biểu_Thanh_toán[[#This Row],[SỐ DƯ ĐẦU]]-Lịch_biểu_Thanh_toán[[#This Row],[THANH TOÁN THEO LỊCH]],0)),"") ->  | G110: =IF(Lịch_biểu_Thanh_toán[[#This Row],[SỐ THANH TOÁN]]<>"",IF(Lịch_biểu_Thanh_toán[[#This Row],[THANH TOÁN THEO LỊCH]]+Lịch_biểu_Thanh_toán[[#This Row],[THANH TOÁN BỔ SUNG]]<=Lịch_biểu_Thanh_toán[[#This Row],[SỐ DƯ ĐẦU]],Lịch_biểu_Thanh_toán[[#This Row],[THANH TOÁN THEO LỊCH]]+Lịch_biểu_Thanh_toán[[#This Row],[THANH TOÁN BỔ SUNG]],Lịch_biểu_Thanh_toán[[#This Row],[SỐ DƯ ĐẦU]]),"") ->  | H110: =IF(Lịch_biểu_Thanh_toán[[#This Row],[SỐ THANH TOÁN]]<>"",Lịch_biểu_Thanh_toán[[#This Row],[TỔNG THANH TOÁN]]-Lịch_biểu_Thanh_toán[[#This Row],[LÃI]],"") ->  | I110: =IF(Lịch_biểu_Thanh_toán[[#This Row],[SỐ THANH TOÁN]]<>"",Lịch_biểu_Thanh_toán[[#This Row],[SỐ DƯ ĐẦU]]*(Lãi_Suất/Thanh_toán_Mỗi_Năm),"") ->  | J110: =IF(Lịch_biểu_Thanh_toán[[#This Row],[SỐ THANH TOÁN]]<>"",IF(Lịch_biểu_Thanh_toán[[#This Row],[THANH TOÁN THEO LỊCH]]+Lịch_biểu_Thanh_toán[[#This Row],[THANH TOÁN BỔ SUNG]]<=Lịch_biểu_Thanh_toán[[#This Row],[SỐ DƯ ĐẦU]],Lịch_biểu_Thanh_toán[[#This Row],[SỐ DƯ ĐẦU]]-Lịch_biểu_Thanh_toán[[#This Row],[GỐC]],0),"") ->  | K110: =IF(Lịch_biểu_Thanh_toán[[#This Row],[SỐ THANH TOÁN]]<>"",SUM(INDEX(Lịch_biểu_Thanh_toán[LÃI],1,1):Lịch_biểu_Thanh_toán[[#This Row],[LÃI]]),"") -> 
B111: =IF(Khoản_vay_Tốt,IF(ROW()-ROW(Lịch_biểu_Thanh_toán[[#Headers],[SỐ THANH TOÁN]])>Số_lần_Thanh_toán_theo_Lịch,"",ROW()-ROW(Lịch_biểu_Thanh_toán[[#Headers],[SỐ THANH TOÁN]])),"") ->  | C111: =IF(Lịch_biểu_Thanh_toán[[#This Row],[SỐ THANH TOÁN]]<>"",EOMONTH(Ngày_Bắt_đầu_Khoản_vay,ROW(Lịch_biểu_Thanh_toán[[#This Row],[SỐ THANH TOÁN]])-ROW(Lịch_biểu_Thanh_toán[[#Headers],[SỐ THANH TOÁN]])-2)+DAY(Ngày_Bắt_đầu_Khoản_vay),"") ->  | D111: =IF(Lịch_biểu_Thanh_toán[[#This Row],[SỐ THANH TOÁN]]<>"",IF(ROW()-ROW(Lịch_biểu_Thanh_toán[[#Headers],[SỐ DƯ ĐẦU]])=1,Số_tiền_Vay,INDEX(Lịch_biểu_Thanh_toán[SỐ DƯ CUỐI],ROW()-ROW(Lịch_biểu_Thanh_toán[[#Headers],[SỐ DƯ ĐẦU]])-1)),"") ->  | E111: =IF(Lịch_biểu_Thanh_toán[[#This Row],[SỐ THANH TOÁN]]<>"",Thanh_toán_theo_Lịch,"") ->  | F111: =IF(Lịch_biểu_Thanh_toán[[#This Row],[SỐ THANH TOÁN]]<>"",IF(Lịch_biểu_Thanh_toán[[#This Row],[THANH TOÁN THEO LỊCH]]+Thanh_Toán_Bổ_sung<Lịch_biểu_Thanh_toán[[#This Row],[SỐ DƯ ĐẦU]],Thanh_Toán_Bổ_sung,IF(Lịch_biểu_Thanh_toán[[#This Row],[SỐ DƯ ĐẦU]]-Lịch_biểu_Thanh_toán[[#This Row],[THANH TOÁN THEO LỊCH]]>0,Lịch_biểu_Thanh_toán[[#This Row],[SỐ DƯ ĐẦU]]-Lịch_biểu_Thanh_toán[[#This Row],[THANH TOÁN THEO LỊCH]],0)),"") ->  | G111: =IF(Lịch_biểu_Thanh_toán[[#This Row],[SỐ THANH TOÁN]]<>"",IF(Lịch_biểu_Thanh_toán[[#This Row],[THANH TOÁN THEO LỊCH]]+Lịch_biểu_Thanh_toán[[#This Row],[THANH TOÁN BỔ SUNG]]<=Lịch_biểu_Thanh_toán[[#This Row],[SỐ DƯ ĐẦU]],Lịch_biểu_Thanh_toán[[#This Row],[THANH TOÁN THEO LỊCH]]+Lịch_biểu_Thanh_toán[[#This Row],[THANH TOÁN BỔ SUNG]],Lịch_biểu_Thanh_toán[[#This Row],[SỐ DƯ ĐẦU]]),"") ->  | H111: =IF(Lịch_biểu_Thanh_toán[[#This Row],[SỐ THANH TOÁN]]<>"",Lịch_biểu_Thanh_toán[[#This Row],[TỔNG THANH TOÁN]]-Lịch_biểu_Thanh_toán[[#This Row],[LÃI]],"") ->  | I111: =IF(Lịch_biểu_Thanh_toán[[#This Row],[SỐ THANH TOÁN]]<>"",Lịch_biểu_Thanh_toán[[#This Row],[SỐ DƯ ĐẦU]]*(Lãi_Suất/Thanh_toán_Mỗi_Năm),"") ->  | J111: =IF(Lịch_biểu_Thanh_toán[[#This Row],[SỐ THANH TOÁN]]<>"",IF(Lịch_biểu_Thanh_toán[[#This Row],[THANH TOÁN THEO LỊCH]]+Lịch_biểu_Thanh_toán[[#This Row],[THANH TOÁN BỔ SUNG]]<=Lịch_biểu_Thanh_toán[[#This Row],[SỐ DƯ ĐẦU]],Lịch_biểu_Thanh_toán[[#This Row],[SỐ DƯ ĐẦU]]-Lịch_biểu_Thanh_toán[[#This Row],[GỐC]],0),"") ->  | K111: =IF(Lịch_biểu_Thanh_toán[[#This Row],[SỐ THANH TOÁN]]<>"",SUM(INDEX(Lịch_biểu_Thanh_toán[LÃI],1,1):Lịch_biểu_Thanh_toán[[#This Row],[LÃI]]),"") -> 
B112: =IF(Khoản_vay_Tốt,IF(ROW()-ROW(Lịch_biểu_Thanh_toán[[#Headers],[SỐ THANH TOÁN]])>Số_lần_Thanh_toán_theo_Lịch,"",ROW()-ROW(Lịch_biểu_Thanh_toán[[#Headers],[SỐ THANH TOÁN]])),"") ->  | C112: =IF(Lịch_biểu_Thanh_toán[[#This Row],[SỐ THANH TOÁN]]<>"",EOMONTH(Ngày_Bắt_đầu_Khoản_vay,ROW(Lịch_biểu_Thanh_toán[[#This Row],[SỐ THANH TOÁN]])-ROW(Lịch_biểu_Thanh_toán[[#Headers],[SỐ THANH TOÁN]])-2)+DAY(Ngày_Bắt_đầu_Khoản_vay),"") ->  | D112: =IF(Lịch_biểu_Thanh_toán[[#This Row],[SỐ THANH TOÁN]]<>"",IF(ROW()-ROW(Lịch_biểu_Thanh_toán[[#Headers],[SỐ DƯ ĐẦU]])=1,Số_tiền_Vay,INDEX(Lịch_biểu_Thanh_toán[SỐ DƯ CUỐI],ROW()-ROW(Lịch_biểu_Thanh_toán[[#Headers],[SỐ DƯ ĐẦU]])-1)),"") ->  | E112: =IF(Lịch_biểu_Thanh_toán[[#This Row],[SỐ THANH TOÁN]]<>"",Thanh_toán_theo_Lịch,"") ->  | F112: =IF(Lịch_biểu_Thanh_toán[[#This Row],[SỐ THANH TOÁN]]<>"",IF(Lịch_biểu_Thanh_toán[[#This Row],[THANH TOÁN THEO LỊCH]]+Thanh_Toán_Bổ_sung<Lịch_biểu_Thanh_toán[[#This Row],[SỐ DƯ ĐẦU]],Thanh_Toán_Bổ_sung,IF(Lịch_biểu_Thanh_toán[[#This Row],[SỐ DƯ ĐẦU]]-Lịch_biểu_Thanh_toán[[#This Row],[THANH TOÁN THEO LỊCH]]>0,Lịch_biểu_Thanh_toán[[#This Row],[SỐ DƯ ĐẦU]]-Lịch_biểu_Thanh_toán[[#This Row],[THANH TOÁN THEO LỊCH]],0)),"") ->  | G112: =IF(Lịch_biểu_Thanh_toán[[#This Row],[SỐ THANH TOÁN]]<>"",IF(Lịch_biểu_Thanh_toán[[#This Row],[THANH TOÁN THEO LỊCH]]+Lịch_biểu_Thanh_toán[[#This Row],[THANH TOÁN BỔ SUNG]]<=Lịch_biểu_Thanh_toán[[#This Row],[SỐ DƯ ĐẦU]],Lịch_biểu_Thanh_toán[[#This Row],[THANH TOÁN THEO LỊCH]]+Lịch_biểu_Thanh_toán[[#This Row],[THANH TOÁN BỔ SUNG]],Lịch_biểu_Thanh_toán[[#This Row],[SỐ DƯ ĐẦU]]),"") ->  | H112: =IF(Lịch_biểu_Thanh_toán[[#This Row],[SỐ THANH TOÁN]]<>"",Lịch_biểu_Thanh_toán[[#This Row],[TỔNG THANH TOÁN]]-Lịch_biểu_Thanh_toán[[#This Row],[LÃI]],"") ->  | I112: =IF(Lịch_biểu_Thanh_toán[[#This Row],[SỐ THANH TOÁN]]<>"",Lịch_biểu_Thanh_toán[[#This Row],[SỐ DƯ ĐẦU]]*(Lãi_Suất/Thanh_toán_Mỗi_Năm),"") ->  | J112: =IF(Lịch_biểu_Thanh_toán[[#This Row],[SỐ THANH TOÁN]]<>"",IF(Lịch_biểu_Thanh_toán[[#This Row],[THANH TOÁN THEO LỊCH]]+Lịch_biểu_Thanh_toán[[#This Row],[THANH TOÁN BỔ SUNG]]<=Lịch_biểu_Thanh_toán[[#This Row],[SỐ DƯ ĐẦU]],Lịch_biểu_Thanh_toán[[#This Row],[SỐ DƯ ĐẦU]]-Lịch_biểu_Thanh_toán[[#This Row],[GỐC]],0),"") ->  | K112: =IF(Lịch_biểu_Thanh_toán[[#This Row],[SỐ THANH TOÁN]]<>"",SUM(INDEX(Lịch_biểu_Thanh_toán[LÃI],1,1):Lịch_biểu_Thanh_toán[[#This Row],[LÃI]]),"") -> 
B113: =IF(Khoản_vay_Tốt,IF(ROW()-ROW(Lịch_biểu_Thanh_toán[[#Headers],[SỐ THANH TOÁN]])>Số_lần_Thanh_toán_theo_Lịch,"",ROW()-ROW(Lịch_biểu_Thanh_toán[[#Headers],[SỐ THANH TOÁN]])),"") ->  | C113: =IF(Lịch_biểu_Thanh_toán[[#This Row],[SỐ THANH TOÁN]]<>"",EOMONTH(Ngày_Bắt_đầu_Khoản_vay,ROW(Lịch_biểu_Thanh_toán[[#This Row],[SỐ THANH TOÁN]])-ROW(Lịch_biểu_Thanh_toán[[#Headers],[SỐ THANH TOÁN]])-2)+DAY(Ngày_Bắt_đầu_Khoản_vay),"") ->  | D113: =IF(Lịch_biểu_Thanh_toán[[#This Row],[SỐ THANH TOÁN]]<>"",IF(ROW()-ROW(Lịch_biểu_Thanh_toán[[#Headers],[SỐ DƯ ĐẦU]])=1,Số_tiền_Vay,INDEX(Lịch_biểu_Thanh_toán[SỐ DƯ CUỐI],ROW()-ROW(Lịch_biểu_Thanh_toán[[#Headers],[SỐ DƯ ĐẦU]])-1)),"") ->  | E113: =IF(Lịch_biểu_Thanh_toán[[#This Row],[SỐ THANH TOÁN]]<>"",Thanh_toán_theo_Lịch,"") ->  | F113: =IF(Lịch_biểu_Thanh_toán[[#This Row],[SỐ THANH TOÁN]]<>"",IF(Lịch_biểu_Thanh_toán[[#This Row],[THANH TOÁN THEO LỊCH]]+Thanh_Toán_Bổ_sung<Lịch_biểu_Thanh_toán[[#This Row],[SỐ DƯ ĐẦU]],Thanh_Toán_Bổ_sung,IF(Lịch_biểu_Thanh_toán[[#This Row],[SỐ DƯ ĐẦU]]-Lịch_biểu_Thanh_toán[[#This Row],[THANH TOÁN THEO LỊCH]]>0,Lịch_biểu_Thanh_toán[[#This Row],[SỐ DƯ ĐẦU]]-Lịch_biểu_Thanh_toán[[#This Row],[THANH TOÁN THEO LỊCH]],0)),"") ->  | G113: =IF(Lịch_biểu_Thanh_toán[[#This Row],[SỐ THANH TOÁN]]<>"",IF(Lịch_biểu_Thanh_toán[[#This Row],[THANH TOÁN THEO LỊCH]]+Lịch_biểu_Thanh_toán[[#This Row],[THANH TOÁN BỔ SUNG]]<=Lịch_biểu_Thanh_toán[[#This Row],[SỐ DƯ ĐẦU]],Lịch_biểu_Thanh_toán[[#This Row],[THANH TOÁN THEO LỊCH]]+Lịch_biểu_Thanh_toán[[#This Row],[THANH TOÁN BỔ SUNG]],Lịch_biểu_Thanh_toán[[#This Row],[SỐ DƯ ĐẦU]]),"") ->  | H113: =IF(Lịch_biểu_Thanh_toán[[#This Row],[SỐ THANH TOÁN]]<>"",Lịch_biểu_Thanh_toán[[#This Row],[TỔNG THANH TOÁN]]-Lịch_biểu_Thanh_toán[[#This Row],[LÃI]],"") ->  | I113: =IF(Lịch_biểu_Thanh_toán[[#This Row],[SỐ THANH TOÁN]]<>"",Lịch_biểu_Thanh_toán[[#This Row],[SỐ DƯ ĐẦU]]*(Lãi_Suất/Thanh_toán_Mỗi_Năm),"") ->  | J113: =IF(Lịch_biểu_Thanh_toán[[#This Row],[SỐ THANH TOÁN]]<>"",IF(Lịch_biểu_Thanh_toán[[#This Row],[THANH TOÁN THEO LỊCH]]+Lịch_biểu_Thanh_toán[[#This Row],[THANH TOÁN BỔ SUNG]]<=Lịch_biểu_Thanh_toán[[#This Row],[SỐ DƯ ĐẦU]],Lịch_biểu_Thanh_toán[[#This Row],[SỐ DƯ ĐẦU]]-Lịch_biểu_Thanh_toán[[#This Row],[GỐC]],0),"") ->  | K113: =IF(Lịch_biểu_Thanh_toán[[#This Row],[SỐ THANH TOÁN]]<>"",SUM(INDEX(Lịch_biểu_Thanh_toán[LÃI],1,1):Lịch_biểu_Thanh_toán[[#This Row],[LÃI]]),"") -> 
B114: =IF(Khoản_vay_Tốt,IF(ROW()-ROW(Lịch_biểu_Thanh_toán[[#Headers],[SỐ THANH TOÁN]])>Số_lần_Thanh_toán_theo_Lịch,"",ROW()-ROW(Lịch_biểu_Thanh_toán[[#Headers],[SỐ THANH TOÁN]])),"") ->  | C114: =IF(Lịch_biểu_Thanh_toán[[#This Row],[SỐ THANH TOÁN]]<>"",EOMONTH(Ngày_Bắt_đầu_Khoản_vay,ROW(Lịch_biểu_Thanh_toán[[#This Row],[SỐ THANH TOÁN]])-ROW(Lịch_biểu_Thanh_toán[[#Headers],[SỐ THANH TOÁN]])-2)+DAY(Ngày_Bắt_đầu_Khoản_vay),"") ->  | D114: =IF(Lịch_biểu_Thanh_toán[[#This Row],[SỐ THANH TOÁN]]<>"",IF(ROW()-ROW(Lịch_biểu_Thanh_toán[[#Headers],[SỐ DƯ ĐẦU]])=1,Số_tiền_Vay,INDEX(Lịch_biểu_Thanh_toán[SỐ DƯ CUỐI],ROW()-ROW(Lịch_biểu_Thanh_toán[[#Headers],[SỐ DƯ ĐẦU]])-1)),"") ->  | E114: =IF(Lịch_biểu_Thanh_toán[[#This Row],[SỐ THANH TOÁN]]<>"",Thanh_toán_theo_Lịch,"") ->  | F114: =IF(Lịch_biểu_Thanh_toán[[#This Row],[SỐ THANH TOÁN]]<>"",IF(Lịch_biểu_Thanh_toán[[#This Row],[THANH TOÁN THEO LỊCH]]+Thanh_Toán_Bổ_sung<Lịch_biểu_Thanh_toán[[#This Row],[SỐ DƯ ĐẦU]],Thanh_Toán_Bổ_sung,IF(Lịch_biểu_Thanh_toán[[#This Row],[SỐ DƯ ĐẦU]]-Lịch_biểu_Thanh_toán[[#This Row],[THANH TOÁN THEO LỊCH]]>0,Lịch_biểu_Thanh_toán[[#This Row],[SỐ DƯ ĐẦU]]-Lịch_biểu_Thanh_toán[[#This Row],[THANH TOÁN THEO LỊCH]],0)),"") ->  | G114: =IF(Lịch_biểu_Thanh_toán[[#This Row],[SỐ THANH TOÁN]]<>"",IF(Lịch_biểu_Thanh_toán[[#This Row],[THANH TOÁN THEO LỊCH]]+Lịch_biểu_Thanh_toán[[#This Row],[THANH TOÁN BỔ SUNG]]<=Lịch_biểu_Thanh_toán[[#This Row],[SỐ DƯ ĐẦU]],Lịch_biểu_Thanh_toán[[#This Row],[THANH TOÁN THEO LỊCH]]+Lịch_biểu_Thanh_toán[[#This Row],[THANH TOÁN BỔ SUNG]],Lịch_biểu_Thanh_toán[[#This Row],[SỐ DƯ ĐẦU]]),"") ->  | H114: =IF(Lịch_biểu_Thanh_toán[[#This Row],[SỐ THANH TOÁN]]<>"",Lịch_biểu_Thanh_toán[[#This Row],[TỔNG THANH TOÁN]]-Lịch_biểu_Thanh_toán[[#This Row],[LÃI]],"") ->  | I114: =IF(Lịch_biểu_Thanh_toán[[#This Row],[SỐ THANH TOÁN]]<>"",Lịch_biểu_Thanh_toán[[#This Row],[SỐ DƯ ĐẦU]]*(Lãi_Suất/Thanh_toán_Mỗi_Năm),"") ->  | J114: =IF(Lịch_biểu_Thanh_toán[[#This Row],[SỐ THANH TOÁN]]<>"",IF(Lịch_biểu_Thanh_toán[[#This Row],[THANH TOÁN THEO LỊCH]]+Lịch_biểu_Thanh_toán[[#This Row],[THANH TOÁN BỔ SUNG]]<=Lịch_biểu_Thanh_toán[[#This Row],[SỐ DƯ ĐẦU]],Lịch_biểu_Thanh_toán[[#This Row],[SỐ DƯ ĐẦU]]-Lịch_biểu_Thanh_toán[[#This Row],[GỐC]],0),"") ->  | K114: =IF(Lịch_biểu_Thanh_toán[[#This Row],[SỐ THANH TOÁN]]<>"",SUM(INDEX(Lịch_biểu_Thanh_toán[LÃI],1,1):Lịch_biểu_Thanh_toán[[#This Row],[LÃI]]),"") -> 
B115: =IF(Khoản_vay_Tốt,IF(ROW()-ROW(Lịch_biểu_Thanh_toán[[#Headers],[SỐ THANH TOÁN]])>Số_lần_Thanh_toán_theo_Lịch,"",ROW()-ROW(Lịch_biểu_Thanh_toán[[#Headers],[SỐ THANH TOÁN]])),"") ->  | C115: =IF(Lịch_biểu_Thanh_toán[[#This Row],[SỐ THANH TOÁN]]<>"",EOMONTH(Ngày_Bắt_đầu_Khoản_vay,ROW(Lịch_biểu_Thanh_toán[[#This Row],[SỐ THANH TOÁN]])-ROW(Lịch_biểu_Thanh_toán[[#Headers],[SỐ THANH TOÁN]])-2)+DAY(Ngày_Bắt_đầu_Khoản_vay),"") ->  | D115: =IF(Lịch_biểu_Thanh_toán[[#This Row],[SỐ THANH TOÁN]]<>"",IF(ROW()-ROW(Lịch_biểu_Thanh_toán[[#Headers],[SỐ DƯ ĐẦU]])=1,Số_tiền_Vay,INDEX(Lịch_biểu_Thanh_toán[SỐ DƯ CUỐI],ROW()-ROW(Lịch_biểu_Thanh_toán[[#Headers],[SỐ DƯ ĐẦU]])-1)),"") ->  | E115: =IF(Lịch_biểu_Thanh_toán[[#This Row],[SỐ THANH TOÁN]]<>"",Thanh_toán_theo_Lịch,"") ->  | F115: =IF(Lịch_biểu_Thanh_toán[[#This Row],[SỐ THANH TOÁN]]<>"",IF(Lịch_biểu_Thanh_toán[[#This Row],[THANH TOÁN THEO LỊCH]]+Thanh_Toán_Bổ_sung<Lịch_biểu_Thanh_toán[[#This Row],[SỐ DƯ ĐẦU]],Thanh_Toán_Bổ_sung,IF(Lịch_biểu_Thanh_toán[[#This Row],[SỐ DƯ ĐẦU]]-Lịch_biểu_Thanh_toán[[#This Row],[THANH TOÁN THEO LỊCH]]>0,Lịch_biểu_Thanh_toán[[#This Row],[SỐ DƯ ĐẦU]]-Lịch_biểu_Thanh_toán[[#This Row],[THANH TOÁN THEO LỊCH]],0)),"") ->  | G115: =IF(Lịch_biểu_Thanh_toán[[#This Row],[SỐ THANH TOÁN]]<>"",IF(Lịch_biểu_Thanh_toán[[#This Row],[THANH TOÁN THEO LỊCH]]+Lịch_biểu_Thanh_toán[[#This Row],[THANH TOÁN BỔ SUNG]]<=Lịch_biểu_Thanh_toán[[#This Row],[SỐ DƯ ĐẦU]],Lịch_biểu_Thanh_toán[[#This Row],[THANH TOÁN THEO LỊCH]]+Lịch_biểu_Thanh_toán[[#This Row],[THANH TOÁN BỔ SUNG]],Lịch_biểu_Thanh_toán[[#This Row],[SỐ DƯ ĐẦU]]),"") ->  | H115: =IF(Lịch_biểu_Thanh_toán[[#This Row],[SỐ THANH TOÁN]]<>"",Lịch_biểu_Thanh_toán[[#This Row],[TỔNG THANH TOÁN]]-Lịch_biểu_Thanh_toán[[#This Row],[LÃI]],"") ->  | I115: =IF(Lịch_biểu_Thanh_toán[[#This Row],[SỐ THANH TOÁN]]<>"",Lịch_biểu_Thanh_toán[[#This Row],[SỐ DƯ ĐẦU]]*(Lãi_Suất/Thanh_toán_Mỗi_Năm),"") ->  | J115: =IF(Lịch_biểu_Thanh_toán[[#This Row],[SỐ THANH TOÁN]]<>"",IF(Lịch_biểu_Thanh_toán[[#This Row],[THANH TOÁN THEO LỊCH]]+Lịch_biểu_Thanh_toán[[#This Row],[THANH TOÁN BỔ SUNG]]<=Lịch_biểu_Thanh_toán[[#This Row],[SỐ DƯ ĐẦU]],Lịch_biểu_Thanh_toán[[#This Row],[SỐ DƯ ĐẦU]]-Lịch_biểu_Thanh_toán[[#This Row],[GỐC]],0),"") ->  | K115: =IF(Lịch_biểu_Thanh_toán[[#This Row],[SỐ THANH TOÁN]]<>"",SUM(INDEX(Lịch_biểu_Thanh_toán[LÃI],1,1):Lịch_biểu_Thanh_toán[[#This Row],[LÃI]]),"") -> 
B116: =IF(Khoản_vay_Tốt,IF(ROW()-ROW(Lịch_biểu_Thanh_toán[[#Headers],[SỐ THANH TOÁN]])>Số_lần_Thanh_toán_theo_Lịch,"",ROW()-ROW(Lịch_biểu_Thanh_toán[[#Headers],[SỐ THANH TOÁN]])),"") ->  | C116: =IF(Lịch_biểu_Thanh_toán[[#This Row],[SỐ THANH TOÁN]]<>"",EOMONTH(Ngày_Bắt_đầu_Khoản_vay,ROW(Lịch_biểu_Thanh_toán[[#This Row],[SỐ THANH TOÁN]])-ROW(Lịch_biểu_Thanh_toán[[#Headers],[SỐ THANH TOÁN]])-2)+DAY(Ngày_Bắt_đầu_Khoản_vay),"") ->  | D116: =IF(Lịch_biểu_Thanh_toán[[#This Row],[SỐ THANH TOÁN]]<>"",IF(ROW()-ROW(Lịch_biểu_Thanh_toán[[#Headers],[SỐ DƯ ĐẦU]])=1,Số_tiền_Vay,INDEX(Lịch_biểu_Thanh_toán[SỐ DƯ CUỐI],ROW()-ROW(Lịch_biểu_Thanh_toán[[#Headers],[SỐ DƯ ĐẦU]])-1)),"") ->  | E116: =IF(Lịch_biểu_Thanh_toán[[#This Row],[SỐ THANH TOÁN]]<>"",Thanh_toán_theo_Lịch,"") ->  | F116: =IF(Lịch_biểu_Thanh_toán[[#This Row],[SỐ THANH TOÁN]]<>"",IF(Lịch_biểu_Thanh_toán[[#This Row],[THANH TOÁN THEO LỊCH]]+Thanh_Toán_Bổ_sung<Lịch_biểu_Thanh_toán[[#This Row],[SỐ DƯ ĐẦU]],Thanh_Toán_Bổ_sung,IF(Lịch_biểu_Thanh_toán[[#This Row],[SỐ DƯ ĐẦU]]-Lịch_biểu_Thanh_toán[[#This Row],[THANH TOÁN THEO LỊCH]]>0,Lịch_biểu_Thanh_toán[[#This Row],[SỐ DƯ ĐẦU]]-Lịch_biểu_Thanh_toán[[#This Row],[THANH TOÁN THEO LỊCH]],0)),"") ->  | G116: =IF(Lịch_biểu_Thanh_toán[[#This Row],[SỐ THANH TOÁN]]<>"",IF(Lịch_biểu_Thanh_toán[[#This Row],[THANH TOÁN THEO LỊCH]]+Lịch_biểu_Thanh_toán[[#This Row],[THANH TOÁN BỔ SUNG]]<=Lịch_biểu_Thanh_toán[[#This Row],[SỐ DƯ ĐẦU]],Lịch_biểu_Thanh_toán[[#This Row],[THANH TOÁN THEO LỊCH]]+Lịch_biểu_Thanh_toán[[#This Row],[THANH TOÁN BỔ SUNG]],Lịch_biểu_Thanh_toán[[#This Row],[SỐ DƯ ĐẦU]]),"") ->  | H116: =IF(Lịch_biểu_Thanh_toán[[#This Row],[SỐ THANH TOÁN]]<>"",Lịch_biểu_Thanh_toán[[#This Row],[TỔNG THANH TOÁN]]-Lịch_biểu_Thanh_toán[[#This Row],[LÃI]],"") ->  | I116: =IF(Lịch_biểu_Thanh_toán[[#This Row],[SỐ THANH TOÁN]]<>"",Lịch_biểu_Thanh_toán[[#This Row],[SỐ DƯ ĐẦU]]*(Lãi_Suất/Thanh_toán_Mỗi_Năm),"") ->  | J116: =IF(Lịch_biểu_Thanh_toán[[#This Row],[SỐ THANH TOÁN]]<>"",IF(Lịch_biểu_Thanh_toán[[#This Row],[THANH TOÁN THEO LỊCH]]+Lịch_biểu_Thanh_toán[[#This Row],[THANH TOÁN BỔ SUNG]]<=Lịch_biểu_Thanh_toán[[#This Row],[SỐ DƯ ĐẦU]],Lịch_biểu_Thanh_toán[[#This Row],[SỐ DƯ ĐẦU]]-Lịch_biểu_Thanh_toán[[#This Row],[GỐC]],0),"") ->  | K116: =IF(Lịch_biểu_Thanh_toán[[#This Row],[SỐ THANH TOÁN]]<>"",SUM(INDEX(Lịch_biểu_Thanh_toán[LÃI],1,1):Lịch_biểu_Thanh_toán[[#This Row],[LÃI]]),"") -> 
B117: =IF(Khoản_vay_Tốt,IF(ROW()-ROW(Lịch_biểu_Thanh_toán[[#Headers],[SỐ THANH TOÁN]])>Số_lần_Thanh_toán_theo_Lịch,"",ROW()-ROW(Lịch_biểu_Thanh_toán[[#Headers],[SỐ THANH TOÁN]])),"") ->  | C117: =IF(Lịch_biểu_Thanh_toán[[#This Row],[SỐ THANH TOÁN]]<>"",EOMONTH(Ngày_Bắt_đầu_Khoản_vay,ROW(Lịch_biểu_Thanh_toán[[#This Row],[SỐ THANH TOÁN]])-ROW(Lịch_biểu_Thanh_toán[[#Headers],[SỐ THANH TOÁN]])-2)+DAY(Ngày_Bắt_đầu_Khoản_vay),"") ->  | D117: =IF(Lịch_biểu_Thanh_toán[[#This Row],[SỐ THANH TOÁN]]<>"",IF(ROW()-ROW(Lịch_biểu_Thanh_toán[[#Headers],[SỐ DƯ ĐẦU]])=1,Số_tiền_Vay,INDEX(Lịch_biểu_Thanh_toán[SỐ DƯ CUỐI],ROW()-ROW(Lịch_biểu_Thanh_toán[[#Headers],[SỐ DƯ ĐẦU]])-1)),"") ->  | E117: =IF(Lịch_biểu_Thanh_toán[[#This Row],[SỐ THANH TOÁN]]<>"",Thanh_toán_theo_Lịch,"") ->  | F117: =IF(Lịch_biểu_Thanh_toán[[#This Row],[SỐ THANH TOÁN]]<>"",IF(Lịch_biểu_Thanh_toán[[#This Row],[THANH TOÁN THEO LỊCH]]+Thanh_Toán_Bổ_sung<Lịch_biểu_Thanh_toán[[#This Row],[SỐ DƯ ĐẦU]],Thanh_Toán_Bổ_sung,IF(Lịch_biểu_Thanh_toán[[#This Row],[SỐ DƯ ĐẦU]]-Lịch_biểu_Thanh_toán[[#This Row],[THANH TOÁN THEO LỊCH]]>0,Lịch_biểu_Thanh_toán[[#This Row],[SỐ DƯ ĐẦU]]-Lịch_biểu_Thanh_toán[[#This Row],[THANH TOÁN THEO LỊCH]],0)),"") ->  | G117: =IF(Lịch_biểu_Thanh_toán[[#This Row],[SỐ THANH TOÁN]]<>"",IF(Lịch_biểu_Thanh_toán[[#This Row],[THANH TOÁN THEO LỊCH]]+Lịch_biểu_Thanh_toán[[#This Row],[THANH TOÁN BỔ SUNG]]<=Lịch_biểu_Thanh_toán[[#This Row],[SỐ DƯ ĐẦU]],Lịch_biểu_Thanh_toán[[#This Row],[THANH TOÁN THEO LỊCH]]+Lịch_biểu_Thanh_toán[[#This Row],[THANH TOÁN BỔ SUNG]],Lịch_biểu_Thanh_toán[[#This Row],[SỐ DƯ ĐẦU]]),"") ->  | H117: =IF(Lịch_biểu_Thanh_toán[[#This Row],[SỐ THANH TOÁN]]<>"",Lịch_biểu_Thanh_toán[[#This Row],[TỔNG THANH TOÁN]]-Lịch_biểu_Thanh_toán[[#This Row],[LÃI]],"") ->  | I117: =IF(Lịch_biểu_Thanh_toán[[#This Row],[SỐ THANH TOÁN]]<>"",Lịch_biểu_Thanh_toán[[#This Row],[SỐ DƯ ĐẦU]]*(Lãi_Suất/Thanh_toán_Mỗi_Năm),"") ->  | J117: =IF(Lịch_biểu_Thanh_toán[[#This Row],[SỐ THANH TOÁN]]<>"",IF(Lịch_biểu_Thanh_toán[[#This Row],[THANH TOÁN THEO LỊCH]]+Lịch_biểu_Thanh_toán[[#This Row],[THANH TOÁN BỔ SUNG]]<=Lịch_biểu_Thanh_toán[[#This Row],[SỐ DƯ ĐẦU]],Lịch_biểu_Thanh_toán[[#This Row],[SỐ DƯ ĐẦU]]-Lịch_biểu_Thanh_toán[[#This Row],[GỐC]],0),"") ->  | K117: =IF(Lịch_biểu_Thanh_toán[[#This Row],[SỐ THANH TOÁN]]<>"",SUM(INDEX(Lịch_biểu_Thanh_toán[LÃI],1,1):Lịch_biểu_Thanh_toán[[#This Row],[LÃI]]),"") -> 
B118: =IF(Khoản_vay_Tốt,IF(ROW()-ROW(Lịch_biểu_Thanh_toán[[#Headers],[SỐ THANH TOÁN]])>Số_lần_Thanh_toán_theo_Lịch,"",ROW()-ROW(Lịch_biểu_Thanh_toán[[#Headers],[SỐ THANH TOÁN]])),"") ->  | C118: =IF(Lịch_biểu_Thanh_toán[[#This Row],[SỐ THANH TOÁN]]<>"",EOMONTH(Ngày_Bắt_đầu_Khoản_vay,ROW(Lịch_biểu_Thanh_toán[[#This Row],[SỐ THANH TOÁN]])-ROW(Lịch_biểu_Thanh_toán[[#Headers],[SỐ THANH TOÁN]])-2)+DAY(Ngày_Bắt_đầu_Khoản_vay),"") ->  | D118: =IF(Lịch_biểu_Thanh_toán[[#This Row],[SỐ THANH TOÁN]]<>"",IF(ROW()-ROW(Lịch_biểu_Thanh_toán[[#Headers],[SỐ DƯ ĐẦU]])=1,Số_tiền_Vay,INDEX(Lịch_biểu_Thanh_toán[SỐ DƯ CUỐI],ROW()-ROW(Lịch_biểu_Thanh_toán[[#Headers],[SỐ DƯ ĐẦU]])-1)),"") ->  | E118: =IF(Lịch_biểu_Thanh_toán[[#This Row],[SỐ THANH TOÁN]]<>"",Thanh_toán_theo_Lịch,"") ->  | F118: =IF(Lịch_biểu_Thanh_toán[[#This Row],[SỐ THANH TOÁN]]<>"",IF(Lịch_biểu_Thanh_toán[[#This Row],[THANH TOÁN THEO LỊCH]]+Thanh_Toán_Bổ_sung<Lịch_biểu_Thanh_toán[[#This Row],[SỐ DƯ ĐẦU]],Thanh_Toán_Bổ_sung,IF(Lịch_biểu_Thanh_toán[[#This Row],[SỐ DƯ ĐẦU]]-Lịch_biểu_Thanh_toán[[#This Row],[THANH TOÁN THEO LỊCH]]>0,Lịch_biểu_Thanh_toán[[#This Row],[SỐ DƯ ĐẦU]]-Lịch_biểu_Thanh_toán[[#This Row],[THANH TOÁN THEO LỊCH]],0)),"") ->  | G118: =IF(Lịch_biểu_Thanh_toán[[#This Row],[SỐ THANH TOÁN]]<>"",IF(Lịch_biểu_Thanh_toán[[#This Row],[THANH TOÁN THEO LỊCH]]+Lịch_biểu_Thanh_toán[[#This Row],[THANH TOÁN BỔ SUNG]]<=Lịch_biểu_Thanh_toán[[#This Row],[SỐ DƯ ĐẦU]],Lịch_biểu_Thanh_toán[[#This Row],[THANH TOÁN THEO LỊCH]]+Lịch_biểu_Thanh_toán[[#This Row],[THANH TOÁN BỔ SUNG]],Lịch_biểu_Thanh_toán[[#This Row],[SỐ DƯ ĐẦU]]),"") ->  | H118: =IF(Lịch_biểu_Thanh_toán[[#This Row],[SỐ THANH TOÁN]]<>"",Lịch_biểu_Thanh_toán[[#This Row],[TỔNG THANH TOÁN]]-Lịch_biểu_Thanh_toán[[#This Row],[LÃI]],"") ->  | I118: =IF(Lịch_biểu_Thanh_toán[[#This Row],[SỐ THANH TOÁN]]<>"",Lịch_biểu_Thanh_toán[[#This Row],[SỐ DƯ ĐẦU]]*(Lãi_Suất/Thanh_toán_Mỗi_Năm),"") ->  | J118: =IF(Lịch_biểu_Thanh_toán[[#This Row],[SỐ THANH TOÁN]]<>"",IF(Lịch_biểu_Thanh_toán[[#This Row],[THANH TOÁN THEO LỊCH]]+Lịch_biểu_Thanh_toán[[#This Row],[THANH TOÁN BỔ SUNG]]<=Lịch_biểu_Thanh_toán[[#This Row],[SỐ DƯ ĐẦU]],Lịch_biểu_Thanh_toán[[#This Row],[SỐ DƯ ĐẦU]]-Lịch_biểu_Thanh_toán[[#This Row],[GỐC]],0),"") ->  | K118: =IF(Lịch_biểu_Thanh_toán[[#This Row],[SỐ THANH TOÁN]]<>"",SUM(INDEX(Lịch_biểu_Thanh_toán[LÃI],1,1):Lịch_biểu_Thanh_toán[[#This Row],[LÃI]]),"") -> 
B119: =IF(Khoản_vay_Tốt,IF(ROW()-ROW(Lịch_biểu_Thanh_toán[[#Headers],[SỐ THANH TOÁN]])>Số_lần_Thanh_toán_theo_Lịch,"",ROW()-ROW(Lịch_biểu_Thanh_toán[[#Headers],[SỐ THANH TOÁN]])),"") ->  | C119: =IF(Lịch_biểu_Thanh_toán[[#This Row],[SỐ THANH TOÁN]]<>"",EOMONTH(Ngày_Bắt_đầu_Khoản_vay,ROW(Lịch_biểu_Thanh_toán[[#This Row],[SỐ THANH TOÁN]])-ROW(Lịch_biểu_Thanh_toán[[#Headers],[SỐ THANH TOÁN]])-2)+DAY(Ngày_Bắt_đầu_Khoản_vay),"") ->  | D119: =IF(Lịch_biểu_Thanh_toán[[#This Row],[SỐ THANH TOÁN]]<>"",IF(ROW()-ROW(Lịch_biểu_Thanh_toán[[#Headers],[SỐ DƯ ĐẦU]])=1,Số_tiền_Vay,INDEX(Lịch_biểu_Thanh_toán[SỐ DƯ CUỐI],ROW()-ROW(Lịch_biểu_Thanh_toán[[#Headers],[SỐ DƯ ĐẦU]])-1)),"") ->  | E119: =IF(Lịch_biểu_Thanh_toán[[#This Row],[SỐ THANH TOÁN]]<>"",Thanh_toán_theo_Lịch,"") ->  | F119: =IF(Lịch_biểu_Thanh_toán[[#This Row],[SỐ THANH TOÁN]]<>"",IF(Lịch_biểu_Thanh_toán[[#This Row],[THANH TOÁN THEO LỊCH]]+Thanh_Toán_Bổ_sung<Lịch_biểu_Thanh_toán[[#This Row],[SỐ DƯ ĐẦU]],Thanh_Toán_Bổ_sung,IF(Lịch_biểu_Thanh_toán[[#This Row],[SỐ DƯ ĐẦU]]-Lịch_biểu_Thanh_toán[[#This Row],[THANH TOÁN THEO LỊCH]]>0,Lịch_biểu_Thanh_toán[[#This Row],[SỐ DƯ ĐẦU]]-Lịch_biểu_Thanh_toán[[#This Row],[THANH TOÁN THEO LỊCH]],0)),"") ->  | G119: =IF(Lịch_biểu_Thanh_toán[[#This Row],[SỐ THANH TOÁN]]<>"",IF(Lịch_biểu_Thanh_toán[[#This Row],[THANH TOÁN THEO LỊCH]]+Lịch_biểu_Thanh_toán[[#This Row],[THANH TOÁN BỔ SUNG]]<=Lịch_biểu_Thanh_toán[[#This Row],[SỐ DƯ ĐẦU]],Lịch_biểu_Thanh_toán[[#This Row],[THANH TOÁN THEO LỊCH]]+Lịch_biểu_Thanh_toán[[#This Row],[THANH TOÁN BỔ SUNG]],Lịch_biểu_Thanh_toán[[#This Row],[SỐ DƯ ĐẦU]]),"") ->  | H119: =IF(Lịch_biểu_Thanh_toán[[#This Row],[SỐ THANH TOÁN]]<>"",Lịch_biểu_Thanh_toán[[#This Row],[TỔNG THANH TOÁN]]-Lịch_biểu_Thanh_toán[[#This Row],[LÃI]],"") ->  | I119: =IF(Lịch_biểu_Thanh_toán[[#This Row],[SỐ THANH TOÁN]]<>"",Lịch_biểu_Thanh_toán[[#This Row],[SỐ DƯ ĐẦU]]*(Lãi_Suất/Thanh_toán_Mỗi_Năm),"") ->  | J119: =IF(Lịch_biểu_Thanh_toán[[#This Row],[SỐ THANH TOÁN]]<>"",IF(Lịch_biểu_Thanh_toán[[#This Row],[THANH TOÁN THEO LỊCH]]+Lịch_biểu_Thanh_toán[[#This Row],[THANH TOÁN BỔ SUNG]]<=Lịch_biểu_Thanh_toán[[#This Row],[SỐ DƯ ĐẦU]],Lịch_biểu_Thanh_toán[[#This Row],[SỐ DƯ ĐẦU]]-Lịch_biểu_Thanh_toán[[#This Row],[GỐC]],0),"") ->  | K119: =IF(Lịch_biểu_Thanh_toán[[#This Row],[SỐ THANH TOÁN]]<>"",SUM(INDEX(Lịch_biểu_Thanh_toán[LÃI],1,1):Lịch_biểu_Thanh_toán[[#This Row],[LÃI]]),"") -> 
B120: =IF(Khoản_vay_Tốt,IF(ROW()-ROW(Lịch_biểu_Thanh_toán[[#Headers],[SỐ THANH TOÁN]])>Số_lần_Thanh_toán_theo_Lịch,"",ROW()-ROW(Lịch_biểu_Thanh_toán[[#Headers],[SỐ THANH TOÁN]])),"") ->  | C120: =IF(Lịch_biểu_Thanh_toán[[#This Row],[SỐ THANH TOÁN]]<>"",EOMONTH(Ngày_Bắt_đầu_Khoản_vay,ROW(Lịch_biểu_Thanh_toán[[#This Row],[SỐ THANH TOÁN]])-ROW(Lịch_biểu_Thanh_toán[[#Headers],[SỐ THANH TOÁN]])-2)+DAY(Ngày_Bắt_đầu_Khoản_vay),"") ->  | D120: =IF(Lịch_biểu_Thanh_toán[[#This Row],[SỐ THANH TOÁN]]<>"",IF(ROW()-ROW(Lịch_biểu_Thanh_toán[[#Headers],[SỐ DƯ ĐẦU]])=1,Số_tiền_Vay,INDEX(Lịch_biểu_Thanh_toán[SỐ DƯ CUỐI],ROW()-ROW(Lịch_biểu_Thanh_toán[[#Headers],[SỐ DƯ ĐẦU]])-1)),"") ->  | E120: =IF(Lịch_biểu_Thanh_toán[[#This Row],[SỐ THANH TOÁN]]<>"",Thanh_toán_theo_Lịch,"") ->  | F120: =IF(Lịch_biểu_Thanh_toán[[#This Row],[SỐ THANH TOÁN]]<>"",IF(Lịch_biểu_Thanh_toán[[#This Row],[THANH TOÁN THEO LỊCH]]+Thanh_Toán_Bổ_sung<Lịch_biểu_Thanh_toán[[#This Row],[SỐ DƯ ĐẦU]],Thanh_Toán_Bổ_sung,IF(Lịch_biểu_Thanh_toán[[#This Row],[SỐ DƯ ĐẦU]]-Lịch_biểu_Thanh_toán[[#This Row],[THANH TOÁN THEO LỊCH]]>0,Lịch_biểu_Thanh_toán[[#This Row],[SỐ DƯ ĐẦU]]-Lịch_biểu_Thanh_toán[[#This Row],[THANH TOÁN THEO LỊCH]],0)),"") ->  | G120: =IF(Lịch_biểu_Thanh_toán[[#This Row],[SỐ THANH TOÁN]]<>"",IF(Lịch_biểu_Thanh_toán[[#This Row],[THANH TOÁN THEO LỊCH]]+Lịch_biểu_Thanh_toán[[#This Row],[THANH TOÁN BỔ SUNG]]<=Lịch_biểu_Thanh_toán[[#This Row],[SỐ DƯ ĐẦU]],Lịch_biểu_Thanh_toán[[#This Row],[THANH TOÁN THEO LỊCH]]+Lịch_biểu_Thanh_toán[[#This Row],[THANH TOÁN BỔ SUNG]],Lịch_biểu_Thanh_toán[[#This Row],[SỐ DƯ ĐẦU]]),"") ->  | H120: =IF(Lịch_biểu_Thanh_toán[[#This Row],[SỐ THANH TOÁN]]<>"",Lịch_biểu_Thanh_toán[[#This Row],[TỔNG THANH TOÁN]]-Lịch_biểu_Thanh_toán[[#This Row],[LÃI]],"") ->  | I120: =IF(Lịch_biểu_Thanh_toán[[#This Row],[SỐ THANH TOÁN]]<>"",Lịch_biểu_Thanh_toán[[#This Row],[SỐ DƯ ĐẦU]]*(Lãi_Suất/Thanh_toán_Mỗi_Năm),"") ->  | J120: =IF(Lịch_biểu_Thanh_toán[[#This Row],[SỐ THANH TOÁN]]<>"",IF(Lịch_biểu_Thanh_toán[[#This Row],[THANH TOÁN THEO LỊCH]]+Lịch_biểu_Thanh_toán[[#This Row],[THANH TOÁN BỔ SUNG]]<=Lịch_biểu_Thanh_toán[[#This Row],[SỐ DƯ ĐẦU]],Lịch_biểu_Thanh_toán[[#This Row],[SỐ DƯ ĐẦU]]-Lịch_biểu_Thanh_toán[[#This Row],[GỐC]],0),"") ->  | K120: =IF(Lịch_biểu_Thanh_toán[[#This Row],[SỐ THANH TOÁN]]<>"",SUM(INDEX(Lịch_biểu_Thanh_toán[LÃI],1,1):Lịch_biểu_Thanh_toán[[#This Row],[LÃI]]),"") -> 
B121: =IF(Khoản_vay_Tốt,IF(ROW()-ROW(Lịch_biểu_Thanh_toán[[#Headers],[SỐ THANH TOÁN]])>Số_lần_Thanh_toán_theo_Lịch,"",ROW()-ROW(Lịch_biểu_Thanh_toán[[#Headers],[SỐ THANH TOÁN]])),"") ->  | C121: =IF(Lịch_biểu_Thanh_toán[[#This Row],[SỐ THANH TOÁN]]<>"",EOMONTH(Ngày_Bắt_đầu_Khoản_vay,ROW(Lịch_biểu_Thanh_toán[[#This Row],[SỐ THANH TOÁN]])-ROW(Lịch_biểu_Thanh_toán[[#Headers],[SỐ THANH TOÁN]])-2)+DAY(Ngày_Bắt_đầu_Khoản_vay),"") ->  | D121: =IF(Lịch_biểu_Thanh_toán[[#This Row],[SỐ THANH TOÁN]]<>"",IF(ROW()-ROW(Lịch_biểu_Thanh_toán[[#Headers],[SỐ DƯ ĐẦU]])=1,Số_tiền_Vay,INDEX(Lịch_biểu_Thanh_toán[SỐ DƯ CUỐI],ROW()-ROW(Lịch_biểu_Thanh_toán[[#Headers],[SỐ DƯ ĐẦU]])-1)),"") ->  | E121: =IF(Lịch_biểu_Thanh_toán[[#This Row],[SỐ THANH TOÁN]]<>"",Thanh_toán_theo_Lịch,"") ->  | F121: =IF(Lịch_biểu_Thanh_toán[[#This Row],[SỐ THANH TOÁN]]<>"",IF(Lịch_biểu_Thanh_toán[[#This Row],[THANH TOÁN THEO LỊCH]]+Thanh_Toán_Bổ_sung<Lịch_biểu_Thanh_toán[[#This Row],[SỐ DƯ ĐẦU]],Thanh_Toán_Bổ_sung,IF(Lịch_biểu_Thanh_toán[[#This Row],[SỐ DƯ ĐẦU]]-Lịch_biểu_Thanh_toán[[#This Row],[THANH TOÁN THEO LỊCH]]>0,Lịch_biểu_Thanh_toán[[#This Row],[SỐ DƯ ĐẦU]]-Lịch_biểu_Thanh_toán[[#This Row],[THANH TOÁN THEO LỊCH]],0)),"") ->  | G121: =IF(Lịch_biểu_Thanh_toán[[#This Row],[SỐ THANH TOÁN]]<>"",IF(Lịch_biểu_Thanh_toán[[#This Row],[THANH TOÁN THEO LỊCH]]+Lịch_biểu_Thanh_toán[[#This Row],[THANH TOÁN BỔ SUNG]]<=Lịch_biểu_Thanh_toán[[#This Row],[SỐ DƯ ĐẦU]],Lịch_biểu_Thanh_toán[[#This Row],[THANH TOÁN THEO LỊCH]]+Lịch_biểu_Thanh_toán[[#This Row],[THANH TOÁN BỔ SUNG]],Lịch_biểu_Thanh_toán[[#This Row],[SỐ DƯ ĐẦU]]),"") ->  | H121: =IF(Lịch_biểu_Thanh_toán[[#This Row],[SỐ THANH TOÁN]]<>"",Lịch_biểu_Thanh_toán[[#This Row],[TỔNG THANH TOÁN]]-Lịch_biểu_Thanh_toán[[#This Row],[LÃI]],"") ->  | I121: =IF(Lịch_biểu_Thanh_toán[[#This Row],[SỐ THANH TOÁN]]<>"",Lịch_biểu_Thanh_toán[[#This Row],[SỐ DƯ ĐẦU]]*(Lãi_Suất/Thanh_toán_Mỗi_Năm),"") ->  | J121: =IF(Lịch_biểu_Thanh_toán[[#This Row],[SỐ THANH TOÁN]]<>"",IF(Lịch_biểu_Thanh_toán[[#This Row],[THANH TOÁN THEO LỊCH]]+Lịch_biểu_Thanh_toán[[#This Row],[THANH TOÁN BỔ SUNG]]<=Lịch_biểu_Thanh_toán[[#This Row],[SỐ DƯ ĐẦU]],Lịch_biểu_Thanh_toán[[#This Row],[SỐ DƯ ĐẦU]]-Lịch_biểu_Thanh_toán[[#This Row],[GỐC]],0),"") ->  | K121: =IF(Lịch_biểu_Thanh_toán[[#This Row],[SỐ THANH TOÁN]]<>"",SUM(INDEX(Lịch_biểu_Thanh_toán[LÃI],1,1):Lịch_biểu_Thanh_toán[[#This Row],[LÃI]]),"") -> 
B122: =IF(Khoản_vay_Tốt,IF(ROW()-ROW(Lịch_biểu_Thanh_toán[[#Headers],[SỐ THANH TOÁN]])>Số_lần_Thanh_toán_theo_Lịch,"",ROW()-ROW(Lịch_biểu_Thanh_toán[[#Headers],[SỐ THANH TOÁN]])),"") ->  | C122: =IF(Lịch_biểu_Thanh_toán[[#This Row],[SỐ THANH TOÁN]]<>"",EOMONTH(Ngày_Bắt_đầu_Khoản_vay,ROW(Lịch_biểu_Thanh_toán[[#This Row],[SỐ THANH TOÁN]])-ROW(Lịch_biểu_Thanh_toán[[#Headers],[SỐ THANH TOÁN]])-2)+DAY(Ngày_Bắt_đầu_Khoản_vay),"") ->  | D122: =IF(Lịch_biểu_Thanh_toán[[#This Row],[SỐ THANH TOÁN]]<>"",IF(ROW()-ROW(Lịch_biểu_Thanh_toán[[#Headers],[SỐ DƯ ĐẦU]])=1,Số_tiền_Vay,INDEX(Lịch_biểu_Thanh_toán[SỐ DƯ CUỐI],ROW()-ROW(Lịch_biểu_Thanh_toán[[#Headers],[SỐ DƯ ĐẦU]])-1)),"") ->  | E122: =IF(Lịch_biểu_Thanh_toán[[#This Row],[SỐ THANH TOÁN]]<>"",Thanh_toán_theo_Lịch,"") ->  | F122: =IF(Lịch_biểu_Thanh_toán[[#This Row],[SỐ THANH TOÁN]]<>"",IF(Lịch_biểu_Thanh_toán[[#This Row],[THANH TOÁN THEO LỊCH]]+Thanh_Toán_Bổ_sung<Lịch_biểu_Thanh_toán[[#This Row],[SỐ DƯ ĐẦU]],Thanh_Toán_Bổ_sung,IF(Lịch_biểu_Thanh_toán[[#This Row],[SỐ DƯ ĐẦU]]-Lịch_biểu_Thanh_toán[[#This Row],[THANH TOÁN THEO LỊCH]]>0,Lịch_biểu_Thanh_toán[[#This Row],[SỐ DƯ ĐẦU]]-Lịch_biểu_Thanh_toán[[#This Row],[THANH TOÁN THEO LỊCH]],0)),"") ->  | G122: =IF(Lịch_biểu_Thanh_toán[[#This Row],[SỐ THANH TOÁN]]<>"",IF(Lịch_biểu_Thanh_toán[[#This Row],[THANH TOÁN THEO LỊCH]]+Lịch_biểu_Thanh_toán[[#This Row],[THANH TOÁN BỔ SUNG]]<=Lịch_biểu_Thanh_toán[[#This Row],[SỐ DƯ ĐẦU]],Lịch_biểu_Thanh_toán[[#This Row],[THANH TOÁN THEO LỊCH]]+Lịch_biểu_Thanh_toán[[#This Row],[THANH TOÁN BỔ SUNG]],Lịch_biểu_Thanh_toán[[#This Row],[SỐ DƯ ĐẦU]]),"") ->  | H122: =IF(Lịch_biểu_Thanh_toán[[#This Row],[SỐ THANH TOÁN]]<>"",Lịch_biểu_Thanh_toán[[#This Row],[TỔNG THANH TOÁN]]-Lịch_biểu_Thanh_toán[[#This Row],[LÃI]],"") ->  | I122: =IF(Lịch_biểu_Thanh_toán[[#This Row],[SỐ THANH TOÁN]]<>"",Lịch_biểu_Thanh_toán[[#This Row],[SỐ DƯ ĐẦU]]*(Lãi_Suất/Thanh_toán_Mỗi_Năm),"") ->  | J122: =IF(Lịch_biểu_Thanh_toán[[#This Row],[SỐ THANH TOÁN]]<>"",IF(Lịch_biểu_Thanh_toán[[#This Row],[THANH TOÁN THEO LỊCH]]+Lịch_biểu_Thanh_toán[[#This Row],[THANH TOÁN BỔ SUNG]]<=Lịch_biểu_Thanh_toán[[#This Row],[SỐ DƯ ĐẦU]],Lịch_biểu_Thanh_toán[[#This Row],[SỐ DƯ ĐẦU]]-Lịch_biểu_Thanh_toán[[#This Row],[GỐC]],0),"") ->  | K122: =IF(Lịch_biểu_Thanh_toán[[#This Row],[SỐ THANH TOÁN]]<>"",SUM(INDEX(Lịch_biểu_Thanh_toán[LÃI],1,1):Lịch_biểu_Thanh_toán[[#This Row],[LÃI]]),"") -> 
B123: =IF(Khoản_vay_Tốt,IF(ROW()-ROW(Lịch_biểu_Thanh_toán[[#Headers],[SỐ THANH TOÁN]])>Số_lần_Thanh_toán_theo_Lịch,"",ROW()-ROW(Lịch_biểu_Thanh_toán[[#Headers],[SỐ THANH TOÁN]])),"") ->  | C123: =IF(Lịch_biểu_Thanh_toán[[#This Row],[SỐ THANH TOÁN]]<>"",EOMONTH(Ngày_Bắt_đầu_Khoản_vay,ROW(Lịch_biểu_Thanh_toán[[#This Row],[SỐ THANH TOÁN]])-ROW(Lịch_biểu_Thanh_toán[[#Headers],[SỐ THANH TOÁN]])-2)+DAY(Ngày_Bắt_đầu_Khoản_vay),"") ->  | D123: =IF(Lịch_biểu_Thanh_toán[[#This Row],[SỐ THANH TOÁN]]<>"",IF(ROW()-ROW(Lịch_biểu_Thanh_toán[[#Headers],[SỐ DƯ ĐẦU]])=1,Số_tiền_Vay,INDEX(Lịch_biểu_Thanh_toán[SỐ DƯ CUỐI],ROW()-ROW(Lịch_biểu_Thanh_toán[[#Headers],[SỐ DƯ ĐẦU]])-1)),"") ->  | E123: =IF(Lịch_biểu_Thanh_toán[[#This Row],[SỐ THANH TOÁN]]<>"",Thanh_toán_theo_Lịch,"") ->  | F123: =IF(Lịch_biểu_Thanh_toán[[#This Row],[SỐ THANH TOÁN]]<>"",IF(Lịch_biểu_Thanh_toán[[#This Row],[THANH TOÁN THEO LỊCH]]+Thanh_Toán_Bổ_sung<Lịch_biểu_Thanh_toán[[#This Row],[SỐ DƯ ĐẦU]],Thanh_Toán_Bổ_sung,IF(Lịch_biểu_Thanh_toán[[#This Row],[SỐ DƯ ĐẦU]]-Lịch_biểu_Thanh_toán[[#This Row],[THANH TOÁN THEO LỊCH]]>0,Lịch_biểu_Thanh_toán[[#This Row],[SỐ DƯ ĐẦU]]-Lịch_biểu_Thanh_toán[[#This Row],[THANH TOÁN THEO LỊCH]],0)),"") ->  | G123: =IF(Lịch_biểu_Thanh_toán[[#This Row],[SỐ THANH TOÁN]]<>"",IF(Lịch_biểu_Thanh_toán[[#This Row],[THANH TOÁN THEO LỊCH]]+Lịch_biểu_Thanh_toán[[#This Row],[THANH TOÁN BỔ SUNG]]<=Lịch_biểu_Thanh_toán[[#This Row],[SỐ DƯ ĐẦU]],Lịch_biểu_Thanh_toán[[#This Row],[THANH TOÁN THEO LỊCH]]+Lịch_biểu_Thanh_toán[[#This Row],[THANH TOÁN BỔ SUNG]],Lịch_biểu_Thanh_toán[[#This Row],[SỐ DƯ ĐẦU]]),"") ->  | H123: =IF(Lịch_biểu_Thanh_toán[[#This Row],[SỐ THANH TOÁN]]<>"",Lịch_biểu_Thanh_toán[[#This Row],[TỔNG THANH TOÁN]]-Lịch_biểu_Thanh_toán[[#This Row],[LÃI]],"") ->  | I123: =IF(Lịch_biểu_Thanh_toán[[#This Row],[SỐ THANH TOÁN]]<>"",Lịch_biểu_Thanh_toán[[#This Row],[SỐ DƯ ĐẦU]]*(Lãi_Suất/Thanh_toán_Mỗi_Năm),"") ->  | J123: =IF(Lịch_biểu_Thanh_toán[[#This Row],[SỐ THANH TOÁN]]<>"",IF(Lịch_biểu_Thanh_toán[[#This Row],[THANH TOÁN THEO LỊCH]]+Lịch_biểu_Thanh_toán[[#This Row],[THANH TOÁN BỔ SUNG]]<=Lịch_biểu_Thanh_toán[[#This Row],[SỐ DƯ ĐẦU]],Lịch_biểu_Thanh_toán[[#This Row],[SỐ DƯ ĐẦU]]-Lịch_biểu_Thanh_toán[[#This Row],[GỐC]],0),"") ->  | K123: =IF(Lịch_biểu_Thanh_toán[[#This Row],[SỐ THANH TOÁN]]<>"",SUM(INDEX(Lịch_biểu_Thanh_toán[LÃI],1,1):Lịch_biểu_Thanh_toán[[#This Row],[LÃI]]),"") -> 
B124: =IF(Khoản_vay_Tốt,IF(ROW()-ROW(Lịch_biểu_Thanh_toán[[#Headers],[SỐ THANH TOÁN]])>Số_lần_Thanh_toán_theo_Lịch,"",ROW()-ROW(Lịch_biểu_Thanh_toán[[#Headers],[SỐ THANH TOÁN]])),"") ->  | C124: =IF(Lịch_biểu_Thanh_toán[[#This Row],[SỐ THANH TOÁN]]<>"",EOMONTH(Ngày_Bắt_đầu_Khoản_vay,ROW(Lịch_biểu_Thanh_toán[[#This Row],[SỐ THANH TOÁN]])-ROW(Lịch_biểu_Thanh_toán[[#Headers],[SỐ THANH TOÁN]])-2)+DAY(Ngày_Bắt_đầu_Khoản_vay),"") ->  | D124: =IF(Lịch_biểu_Thanh_toán[[#This Row],[SỐ THANH TOÁN]]<>"",IF(ROW()-ROW(Lịch_biểu_Thanh_toán[[#Headers],[SỐ DƯ ĐẦU]])=1,Số_tiền_Vay,INDEX(Lịch_biểu_Thanh_toán[SỐ DƯ CUỐI],ROW()-ROW(Lịch_biểu_Thanh_toán[[#Headers],[SỐ DƯ ĐẦU]])-1)),"") ->  | E124: =IF(Lịch_biểu_Thanh_toán[[#This Row],[SỐ THANH TOÁN]]<>"",Thanh_toán_theo_Lịch,"") ->  | F124: =IF(Lịch_biểu_Thanh_toán[[#This Row],[SỐ THANH TOÁN]]<>"",IF(Lịch_biểu_Thanh_toán[[#This Row],[THANH TOÁN THEO LỊCH]]+Thanh_Toán_Bổ_sung<Lịch_biểu_Thanh_toán[[#This Row],[SỐ DƯ ĐẦU]],Thanh_Toán_Bổ_sung,IF(Lịch_biểu_Thanh_toán[[#This Row],[SỐ DƯ ĐẦU]]-Lịch_biểu_Thanh_toán[[#This Row],[THANH TOÁN THEO LỊCH]]>0,Lịch_biểu_Thanh_toán[[#This Row],[SỐ DƯ ĐẦU]]-Lịch_biểu_Thanh_toán[[#This Row],[THANH TOÁN THEO LỊCH]],0)),"") ->  | G124: =IF(Lịch_biểu_Thanh_toán[[#This Row],[SỐ THANH TOÁN]]<>"",IF(Lịch_biểu_Thanh_toán[[#This Row],[THANH TOÁN THEO LỊCH]]+Lịch_biểu_Thanh_toán[[#This Row],[THANH TOÁN BỔ SUNG]]<=Lịch_biểu_Thanh_toán[[#This Row],[SỐ DƯ ĐẦU]],Lịch_biểu_Thanh_toán[[#This Row],[THANH TOÁN THEO LỊCH]]+Lịch_biểu_Thanh_toán[[#This Row],[THANH TOÁN BỔ SUNG]],Lịch_biểu_Thanh_toán[[#This Row],[SỐ DƯ ĐẦU]]),"") ->  | H124: =IF(Lịch_biểu_Thanh_toán[[#This Row],[SỐ THANH TOÁN]]<>"",Lịch_biểu_Thanh_toán[[#This Row],[TỔNG THANH TOÁN]]-Lịch_biểu_Thanh_toán[[#This Row],[LÃI]],"") ->  | I124: =IF(Lịch_biểu_Thanh_toán[[#This Row],[SỐ THANH TOÁN]]<>"",Lịch_biểu_Thanh_toán[[#This Row],[SỐ DƯ ĐẦU]]*(Lãi_Suất/Thanh_toán_Mỗi_Năm),"") ->  | J124: =IF(Lịch_biểu_Thanh_toán[[#This Row],[SỐ THANH TOÁN]]<>"",IF(Lịch_biểu_Thanh_toán[[#This Row],[THANH TOÁN THEO LỊCH]]+Lịch_biểu_Thanh_toán[[#This Row],[THANH TOÁN BỔ SUNG]]<=Lịch_biểu_Thanh_toán[[#This Row],[SỐ DƯ ĐẦU]],Lịch_biểu_Thanh_toán[[#This Row],[SỐ DƯ ĐẦU]]-Lịch_biểu_Thanh_toán[[#This Row],[GỐC]],0),"") ->  | K124: =IF(Lịch_biểu_Thanh_toán[[#This Row],[SỐ THANH TOÁN]]<>"",SUM(INDEX(Lịch_biểu_Thanh_toán[LÃI],1,1):Lịch_biểu_Thanh_toán[[#This Row],[LÃI]]),"") -> 
B125: =IF(Khoản_vay_Tốt,IF(ROW()-ROW(Lịch_biểu_Thanh_toán[[#Headers],[SỐ THANH TOÁN]])>Số_lần_Thanh_toán_theo_Lịch,"",ROW()-ROW(Lịch_biểu_Thanh_toán[[#Headers],[SỐ THANH TOÁN]])),"") ->  | C125: =IF(Lịch_biểu_Thanh_toán[[#This Row],[SỐ THANH TOÁN]]<>"",EOMONTH(Ngày_Bắt_đầu_Khoản_vay,ROW(Lịch_biểu_Thanh_toán[[#This Row],[SỐ THANH TOÁN]])-ROW(Lịch_biểu_Thanh_toán[[#Headers],[SỐ THANH TOÁN]])-2)+DAY(Ngày_Bắt_đầu_Khoản_vay),"") ->  | D125: =IF(Lịch_biểu_Thanh_toán[[#This Row],[SỐ THANH TOÁN]]<>"",IF(ROW()-ROW(Lịch_biểu_Thanh_toán[[#Headers],[SỐ DƯ ĐẦU]])=1,Số_tiền_Vay,INDEX(Lịch_biểu_Thanh_toán[SỐ DƯ CUỐI],ROW()-ROW(Lịch_biểu_Thanh_toán[[#Headers],[SỐ DƯ ĐẦU]])-1)),"") ->  | E125: =IF(Lịch_biểu_Thanh_toán[[#This Row],[SỐ THANH TOÁN]]<>"",Thanh_toán_theo_Lịch,"") ->  | F125: =IF(Lịch_biểu_Thanh_toán[[#This Row],[SỐ THANH TOÁN]]<>"",IF(Lịch_biểu_Thanh_toán[[#This Row],[THANH TOÁN THEO LỊCH]]+Thanh_Toán_Bổ_sung<Lịch_biểu_Thanh_toán[[#This Row],[SỐ DƯ ĐẦU]],Thanh_Toán_Bổ_sung,IF(Lịch_biểu_Thanh_toán[[#This Row],[SỐ DƯ ĐẦU]]-Lịch_biểu_Thanh_toán[[#This Row],[THANH TOÁN THEO LỊCH]]>0,Lịch_biểu_Thanh_toán[[#This Row],[SỐ DƯ ĐẦU]]-Lịch_biểu_Thanh_toán[[#This Row],[THANH TOÁN THEO LỊCH]],0)),"") ->  | G125: =IF(Lịch_biểu_Thanh_toán[[#This Row],[SỐ THANH TOÁN]]<>"",IF(Lịch_biểu_Thanh_toán[[#This Row],[THANH TOÁN THEO LỊCH]]+Lịch_biểu_Thanh_toán[[#This Row],[THANH TOÁN BỔ SUNG]]<=Lịch_biểu_Thanh_toán[[#This Row],[SỐ DƯ ĐẦU]],Lịch_biểu_Thanh_toán[[#This Row],[THANH TOÁN THEO LỊCH]]+Lịch_biểu_Thanh_toán[[#This Row],[THANH TOÁN BỔ SUNG]],Lịch_biểu_Thanh_toán[[#This Row],[SỐ DƯ ĐẦU]]),"") ->  | H125: =IF(Lịch_biểu_Thanh_toán[[#This Row],[SỐ THANH TOÁN]]<>"",Lịch_biểu_Thanh_toán[[#This Row],[TỔNG THANH TOÁN]]-Lịch_biểu_Thanh_toán[[#This Row],[LÃI]],"") ->  | I125: =IF(Lịch_biểu_Thanh_toán[[#This Row],[SỐ THANH TOÁN]]<>"",Lịch_biểu_Thanh_toán[[#This Row],[SỐ DƯ ĐẦU]]*(Lãi_Suất/Thanh_toán_Mỗi_Năm),"") ->  | J125: =IF(Lịch_biểu_Thanh_toán[[#This Row],[SỐ THANH TOÁN]]<>"",IF(Lịch_biểu_Thanh_toán[[#This Row],[THANH TOÁN THEO LỊCH]]+Lịch_biểu_Thanh_toán[[#This Row],[THANH TOÁN BỔ SUNG]]<=Lịch_biểu_Thanh_toán[[#This Row],[SỐ DƯ ĐẦU]],Lịch_biểu_Thanh_toán[[#This Row],[SỐ DƯ ĐẦU]]-Lịch_biểu_Thanh_toán[[#This Row],[GỐC]],0),"") ->  | K125: =IF(Lịch_biểu_Thanh_toán[[#This Row],[SỐ THANH TOÁN]]<>"",SUM(INDEX(Lịch_biểu_Thanh_toán[LÃI],1,1):Lịch_biểu_Thanh_toán[[#This Row],[LÃI]]),"") -> 
B126: =IF(Khoản_vay_Tốt,IF(ROW()-ROW(Lịch_biểu_Thanh_toán[[#Headers],[SỐ THANH TOÁN]])>Số_lần_Thanh_toán_theo_Lịch,"",ROW()-ROW(Lịch_biểu_Thanh_toán[[#Headers],[SỐ THANH TOÁN]])),"") ->  | C126: =IF(Lịch_biểu_Thanh_toán[[#This Row],[SỐ THANH TOÁN]]<>"",EOMONTH(Ngày_Bắt_đầu_Khoản_vay,ROW(Lịch_biểu_Thanh_toán[[#This Row],[SỐ THANH TOÁN]])-ROW(Lịch_biểu_Thanh_toán[[#Headers],[SỐ THANH TOÁN]])-2)+DAY(Ngày_Bắt_đầu_Khoản_vay),"") ->  | D126: =IF(Lịch_biểu_Thanh_toán[[#This Row],[SỐ THANH TOÁN]]<>"",IF(ROW()-ROW(Lịch_biểu_Thanh_toán[[#Headers],[SỐ DƯ ĐẦU]])=1,Số_tiền_Vay,INDEX(Lịch_biểu_Thanh_toán[SỐ DƯ CUỐI],ROW()-ROW(Lịch_biểu_Thanh_toán[[#Headers],[SỐ DƯ ĐẦU]])-1)),"") ->  | E126: =IF(Lịch_biểu_Thanh_toán[[#This Row],[SỐ THANH TOÁN]]<>"",Thanh_toán_theo_Lịch,"") ->  | F126: =IF(Lịch_biểu_Thanh_toán[[#This Row],[SỐ THANH TOÁN]]<>"",IF(Lịch_biểu_Thanh_toán[[#This Row],[THANH TOÁN THEO LỊCH]]+Thanh_Toán_Bổ_sung<Lịch_biểu_Thanh_toán[[#This Row],[SỐ DƯ ĐẦU]],Thanh_Toán_Bổ_sung,IF(Lịch_biểu_Thanh_toán[[#This Row],[SỐ DƯ ĐẦU]]-Lịch_biểu_Thanh_toán[[#This Row],[THANH TOÁN THEO LỊCH]]>0,Lịch_biểu_Thanh_toán[[#This Row],[SỐ DƯ ĐẦU]]-Lịch_biểu_Thanh_toán[[#This Row],[THANH TOÁN THEO LỊCH]],0)),"") ->  | G126: =IF(Lịch_biểu_Thanh_toán[[#This Row],[SỐ THANH TOÁN]]<>"",IF(Lịch_biểu_Thanh_toán[[#This Row],[THANH TOÁN THEO LỊCH]]+Lịch_biểu_Thanh_toán[[#This Row],[THANH TOÁN BỔ SUNG]]<=Lịch_biểu_Thanh_toán[[#This Row],[SỐ DƯ ĐẦU]],Lịch_biểu_Thanh_toán[[#This Row],[THANH TOÁN THEO LỊCH]]+Lịch_biểu_Thanh_toán[[#This Row],[THANH TOÁN BỔ SUNG]],Lịch_biểu_Thanh_toán[[#This Row],[SỐ DƯ ĐẦU]]),"") ->  | H126: =IF(Lịch_biểu_Thanh_toán[[#This Row],[SỐ THANH TOÁN]]<>"",Lịch_biểu_Thanh_toán[[#This Row],[TỔNG THANH TOÁN]]-Lịch_biểu_Thanh_toán[[#This Row],[LÃI]],"") ->  | I126: =IF(Lịch_biểu_Thanh_toán[[#This Row],[SỐ THANH TOÁN]]<>"",Lịch_biểu_Thanh_toán[[#This Row],[SỐ DƯ ĐẦU]]*(Lãi_Suất/Thanh_toán_Mỗi_Năm),"") ->  | J126: =IF(Lịch_biểu_Thanh_toán[[#This Row],[SỐ THANH TOÁN]]<>"",IF(Lịch_biểu_Thanh_toán[[#This Row],[THANH TOÁN THEO LỊCH]]+Lịch_biểu_Thanh_toán[[#This Row],[THANH TOÁN BỔ SUNG]]<=Lịch_biểu_Thanh_toán[[#This Row],[SỐ DƯ ĐẦU]],Lịch_biểu_Thanh_toán[[#This Row],[SỐ DƯ ĐẦU]]-Lịch_biểu_Thanh_toán[[#This Row],[GỐC]],0),"") ->  | K126: =IF(Lịch_biểu_Thanh_toán[[#This Row],[SỐ THANH TOÁN]]<>"",SUM(INDEX(Lịch_biểu_Thanh_toán[LÃI],1,1):Lịch_biểu_Thanh_toán[[#This Row],[LÃI]]),"") -> 
B127: =IF(Khoản_vay_Tốt,IF(ROW()-ROW(Lịch_biểu_Thanh_toán[[#Headers],[SỐ THANH TOÁN]])>Số_lần_Thanh_toán_theo_Lịch,"",ROW()-ROW(Lịch_biểu_Thanh_toán[[#Headers],[SỐ THANH TOÁN]])),"") ->  | C127: =IF(Lịch_biểu_Thanh_toán[[#This Row],[SỐ THANH TOÁN]]<>"",EOMONTH(Ngày_Bắt_đầu_Khoản_vay,ROW(Lịch_biểu_Thanh_toán[[#This Row],[SỐ THANH TOÁN]])-ROW(Lịch_biểu_Thanh_toán[[#Headers],[SỐ THANH TOÁN]])-2)+DAY(Ngày_Bắt_đầu_Khoản_vay),"") ->  | D127: =IF(Lịch_biểu_Thanh_toán[[#This Row],[SỐ THANH TOÁN]]<>"",IF(ROW()-ROW(Lịch_biểu_Thanh_toán[[#Headers],[SỐ DƯ ĐẦU]])=1,Số_tiền_Vay,INDEX(Lịch_biểu_Thanh_toán[SỐ DƯ CUỐI],ROW()-ROW(Lịch_biểu_Thanh_toán[[#Headers],[SỐ DƯ ĐẦU]])-1)),"") ->  | E127: =IF(Lịch_biểu_Thanh_toán[[#This Row],[SỐ THANH TOÁN]]<>"",Thanh_toán_theo_Lịch,"") ->  | F127: =IF(Lịch_biểu_Thanh_toán[[#This Row],[SỐ THANH TOÁN]]<>"",IF(Lịch_biểu_Thanh_toán[[#This Row],[THANH TOÁN THEO LỊCH]]+Thanh_Toán_Bổ_sung<Lịch_biểu_Thanh_toán[[#This Row],[SỐ DƯ ĐẦU]],Thanh_Toán_Bổ_sung,IF(Lịch_biểu_Thanh_toán[[#This Row],[SỐ DƯ ĐẦU]]-Lịch_biểu_Thanh_toán[[#This Row],[THANH TOÁN THEO LỊCH]]>0,Lịch_biểu_Thanh_toán[[#This Row],[SỐ DƯ ĐẦU]]-Lịch_biểu_Thanh_toán[[#This Row],[THANH TOÁN THEO LỊCH]],0)),"") ->  | G127: =IF(Lịch_biểu_Thanh_toán[[#This Row],[SỐ THANH TOÁN]]<>"",IF(Lịch_biểu_Thanh_toán[[#This Row],[THANH TOÁN THEO LỊCH]]+Lịch_biểu_Thanh_toán[[#This Row],[THANH TOÁN BỔ SUNG]]<=Lịch_biểu_Thanh_toán[[#This Row],[SỐ DƯ ĐẦU]],Lịch_biểu_Thanh_toán[[#This Row],[THANH TOÁN THEO LỊCH]]+Lịch_biểu_Thanh_toán[[#This Row],[THANH TOÁN BỔ SUNG]],Lịch_biểu_Thanh_toán[[#This Row],[SỐ DƯ ĐẦU]]),"") ->  | H127: =IF(Lịch_biểu_Thanh_toán[[#This Row],[SỐ THANH TOÁN]]<>"",Lịch_biểu_Thanh_toán[[#This Row],[TỔNG THANH TOÁN]]-Lịch_biểu_Thanh_toán[[#This Row],[LÃI]],"") ->  | I127: =IF(Lịch_biểu_Thanh_toán[[#This Row],[SỐ THANH TOÁN]]<>"",Lịch_biểu_Thanh_toán[[#This Row],[SỐ DƯ ĐẦU]]*(Lãi_Suất/Thanh_toán_Mỗi_Năm),"") ->  | J127: =IF(Lịch_biểu_Thanh_toán[[#This Row],[SỐ THANH TOÁN]]<>"",IF(Lịch_biểu_Thanh_toán[[#This Row],[THANH TOÁN THEO LỊCH]]+Lịch_biểu_Thanh_toán[[#This Row],[THANH TOÁN BỔ SUNG]]<=Lịch_biểu_Thanh_toán[[#This Row],[SỐ DƯ ĐẦU]],Lịch_biểu_Thanh_toán[[#This Row],[SỐ DƯ ĐẦU]]-Lịch_biểu_Thanh_toán[[#This Row],[GỐC]],0),"") ->  | K127: =IF(Lịch_biểu_Thanh_toán[[#This Row],[SỐ THANH TOÁN]]<>"",SUM(INDEX(Lịch_biểu_Thanh_toán[LÃI],1,1):Lịch_biểu_Thanh_toán[[#This Row],[LÃI]]),"") -> 
B128: =IF(Khoản_vay_Tốt,IF(ROW()-ROW(Lịch_biểu_Thanh_toán[[#Headers],[SỐ THANH TOÁN]])>Số_lần_Thanh_toán_theo_Lịch,"",ROW()-ROW(Lịch_biểu_Thanh_toán[[#Headers],[SỐ THANH TOÁN]])),"") ->  | C128: =IF(Lịch_biểu_Thanh_toán[[#This Row],[SỐ THANH TOÁN]]<>"",EOMONTH(Ngày_Bắt_đầu_Khoản_vay,ROW(Lịch_biểu_Thanh_toán[[#This Row],[SỐ THANH TOÁN]])-ROW(Lịch_biểu_Thanh_toán[[#Headers],[SỐ THANH TOÁN]])-2)+DAY(Ngày_Bắt_đầu_Khoản_vay),"") ->  | D128: =IF(Lịch_biểu_Thanh_toán[[#This Row],[SỐ THANH TOÁN]]<>"",IF(ROW()-ROW(Lịch_biểu_Thanh_toán[[#Headers],[SỐ DƯ ĐẦU]])=1,Số_tiền_Vay,INDEX(Lịch_biểu_Thanh_toán[SỐ DƯ CUỐI],ROW()-ROW(Lịch_biểu_Thanh_toán[[#Headers],[SỐ DƯ ĐẦU]])-1)),"") ->  | E128: =IF(Lịch_biểu_Thanh_toán[[#This Row],[SỐ THANH TOÁN]]<>"",Thanh_toán_theo_Lịch,"") ->  | F128: =IF(Lịch_biểu_Thanh_toán[[#This Row],[SỐ THANH TOÁN]]<>"",IF(Lịch_biểu_Thanh_toán[[#This Row],[THANH TOÁN THEO LỊCH]]+Thanh_Toán_Bổ_sung<Lịch_biểu_Thanh_toán[[#This Row],[SỐ DƯ ĐẦU]],Thanh_Toán_Bổ_sung,IF(Lịch_biểu_Thanh_toán[[#This Row],[SỐ DƯ ĐẦU]]-Lịch_biểu_Thanh_toán[[#This Row],[THANH TOÁN THEO LỊCH]]>0,Lịch_biểu_Thanh_toán[[#This Row],[SỐ DƯ ĐẦU]]-Lịch_biểu_Thanh_toán[[#This Row],[THANH TOÁN THEO LỊCH]],0)),"") ->  | G128: =IF(Lịch_biểu_Thanh_toán[[#This Row],[SỐ THANH TOÁN]]<>"",IF(Lịch_biểu_Thanh_toán[[#This Row],[THANH TOÁN THEO LỊCH]]+Lịch_biểu_Thanh_toán[[#This Row],[THANH TOÁN BỔ SUNG]]<=Lịch_biểu_Thanh_toán[[#This Row],[SỐ DƯ ĐẦU]],Lịch_biểu_Thanh_toán[[#This Row],[THANH TOÁN THEO LỊCH]]+Lịch_biểu_Thanh_toán[[#This Row],[THANH TOÁN BỔ SUNG]],Lịch_biểu_Thanh_toán[[#This Row],[SỐ DƯ ĐẦU]]),"") ->  | H128: =IF(Lịch_biểu_Thanh_toán[[#This Row],[SỐ THANH TOÁN]]<>"",Lịch_biểu_Thanh_toán[[#This Row],[TỔNG THANH TOÁN]]-Lịch_biểu_Thanh_toán[[#This Row],[LÃI]],"") ->  | I128: =IF(Lịch_biểu_Thanh_toán[[#This Row],[SỐ THANH TOÁN]]<>"",Lịch_biểu_Thanh_toán[[#This Row],[SỐ DƯ ĐẦU]]*(Lãi_Suất/Thanh_toán_Mỗi_Năm),"") ->  | J128: =IF(Lịch_biểu_Thanh_toán[[#This Row],[SỐ THANH TOÁN]]<>"",IF(Lịch_biểu_Thanh_toán[[#This Row],[THANH TOÁN THEO LỊCH]]+Lịch_biểu_Thanh_toán[[#This Row],[THANH TOÁN BỔ SUNG]]<=Lịch_biểu_Thanh_toán[[#This Row],[SỐ DƯ ĐẦU]],Lịch_biểu_Thanh_toán[[#This Row],[SỐ DƯ ĐẦU]]-Lịch_biểu_Thanh_toán[[#This Row],[GỐC]],0),"") ->  | K128: =IF(Lịch_biểu_Thanh_toán[[#This Row],[SỐ THANH TOÁN]]<>"",SUM(INDEX(Lịch_biểu_Thanh_toán[LÃI],1,1):Lịch_biểu_Thanh_toán[[#This Row],[LÃI]]),"") -> 
B129: =IF(Khoản_vay_Tốt,IF(ROW()-ROW(Lịch_biểu_Thanh_toán[[#Headers],[SỐ THANH TOÁN]])>Số_lần_Thanh_toán_theo_Lịch,"",ROW()-ROW(Lịch_biểu_Thanh_toán[[#Headers],[SỐ THANH TOÁN]])),"") ->  | C129: =IF(Lịch_biểu_Thanh_toán[[#This Row],[SỐ THANH TOÁN]]<>"",EOMONTH(Ngày_Bắt_đầu_Khoản_vay,ROW(Lịch_biểu_Thanh_toán[[#This Row],[SỐ THANH TOÁN]])-ROW(Lịch_biểu_Thanh_toán[[#Headers],[SỐ THANH TOÁN]])-2)+DAY(Ngày_Bắt_đầu_Khoản_vay),"") ->  | D129: =IF(Lịch_biểu_Thanh_toán[[#This Row],[SỐ THANH TOÁN]]<>"",IF(ROW()-ROW(Lịch_biểu_Thanh_toán[[#Headers],[SỐ DƯ ĐẦU]])=1,Số_tiền_Vay,INDEX(Lịch_biểu_Thanh_toán[SỐ DƯ CUỐI],ROW()-ROW(Lịch_biểu_Thanh_toán[[#Headers],[SỐ DƯ ĐẦU]])-1)),"") ->  | E129: =IF(Lịch_biểu_Thanh_toán[[#This Row],[SỐ THANH TOÁN]]<>"",Thanh_toán_theo_Lịch,"") ->  | F129: =IF(Lịch_biểu_Thanh_toán[[#This Row],[SỐ THANH TOÁN]]<>"",IF(Lịch_biểu_Thanh_toán[[#This Row],[THANH TOÁN THEO LỊCH]]+Thanh_Toán_Bổ_sung<Lịch_biểu_Thanh_toán[[#This Row],[SỐ DƯ ĐẦU]],Thanh_Toán_Bổ_sung,IF(Lịch_biểu_Thanh_toán[[#This Row],[SỐ DƯ ĐẦU]]-Lịch_biểu_Thanh_toán[[#This Row],[THANH TOÁN THEO LỊCH]]>0,Lịch_biểu_Thanh_toán[[#This Row],[SỐ DƯ ĐẦU]]-Lịch_biểu_Thanh_toán[[#This Row],[THANH TOÁN THEO LỊCH]],0)),"") ->  | G129: =IF(Lịch_biểu_Thanh_toán[[#This Row],[SỐ THANH TOÁN]]<>"",IF(Lịch_biểu_Thanh_toán[[#This Row],[THANH TOÁN THEO LỊCH]]+Lịch_biểu_Thanh_toán[[#This Row],[THANH TOÁN BỔ SUNG]]<=Lịch_biểu_Thanh_toán[[#This Row],[SỐ DƯ ĐẦU]],Lịch_biểu_Thanh_toán[[#This Row],[THANH TOÁN THEO LỊCH]]+Lịch_biểu_Thanh_toán[[#This Row],[THANH TOÁN BỔ SUNG]],Lịch_biểu_Thanh_toán[[#This Row],[SỐ DƯ ĐẦU]]),"") ->  | H129: =IF(Lịch_biểu_Thanh_toán[[#This Row],[SỐ THANH TOÁN]]<>"",Lịch_biểu_Thanh_toán[[#This Row],[TỔNG THANH TOÁN]]-Lịch_biểu_Thanh_toán[[#This Row],[LÃI]],"") ->  | I129: =IF(Lịch_biểu_Thanh_toán[[#This Row],[SỐ THANH TOÁN]]<>"",Lịch_biểu_Thanh_toán[[#This Row],[SỐ DƯ ĐẦU]]*(Lãi_Suất/Thanh_toán_Mỗi_Năm),"") ->  | J129: =IF(Lịch_biểu_Thanh_toán[[#This Row],[SỐ THANH TOÁN]]<>"",IF(Lịch_biểu_Thanh_toán[[#This Row],[THANH TOÁN THEO LỊCH]]+Lịch_biểu_Thanh_toán[[#This Row],[THANH TOÁN BỔ SUNG]]<=Lịch_biểu_Thanh_toán[[#This Row],[SỐ DƯ ĐẦU]],Lịch_biểu_Thanh_toán[[#This Row],[SỐ DƯ ĐẦU]]-Lịch_biểu_Thanh_toán[[#This Row],[GỐC]],0),"") ->  | K129: =IF(Lịch_biểu_Thanh_toán[[#This Row],[SỐ THANH TOÁN]]<>"",SUM(INDEX(Lịch_biểu_Thanh_toán[LÃI],1,1):Lịch_biểu_Thanh_toán[[#This Row],[LÃI]]),"") -> 
B130: =IF(Khoản_vay_Tốt,IF(ROW()-ROW(Lịch_biểu_Thanh_toán[[#Headers],[SỐ THANH TOÁN]])>Số_lần_Thanh_toán_theo_Lịch,"",ROW()-ROW(Lịch_biểu_Thanh_toán[[#Headers],[SỐ THANH TOÁN]])),"") ->  | C130: =IF(Lịch_biểu_Thanh_toán[[#This Row],[SỐ THANH TOÁN]]<>"",EOMONTH(Ngày_Bắt_đầu_Khoản_vay,ROW(Lịch_biểu_Thanh_toán[[#This Row],[SỐ THANH TOÁN]])-ROW(Lịch_biểu_Thanh_toán[[#Headers],[SỐ THANH TOÁN]])-2)+DAY(Ngày_Bắt_đầu_Khoản_vay),"") ->  | D130: =IF(Lịch_biểu_Thanh_toán[[#This Row],[SỐ THANH TOÁN]]<>"",IF(ROW()-ROW(Lịch_biểu_Thanh_toán[[#Headers],[SỐ DƯ ĐẦU]])=1,Số_tiền_Vay,INDEX(Lịch_biểu_Thanh_toán[SỐ DƯ CUỐI],ROW()-ROW(Lịch_biểu_Thanh_toán[[#Headers],[SỐ DƯ ĐẦU]])-1)),"") ->  | E130: =IF(Lịch_biểu_Thanh_toán[[#This Row],[SỐ THANH TOÁN]]<>"",Thanh_toán_theo_Lịch,"") ->  | F130: =IF(Lịch_biểu_Thanh_toán[[#This Row],[SỐ THANH TOÁN]]<>"",IF(Lịch_biểu_Thanh_toán[[#This Row],[THANH TOÁN THEO LỊCH]]+Thanh_Toán_Bổ_sung<Lịch_biểu_Thanh_toán[[#This Row],[SỐ DƯ ĐẦU]],Thanh_Toán_Bổ_sung,IF(Lịch_biểu_Thanh_toán[[#This Row],[SỐ DƯ ĐẦU]]-Lịch_biểu_Thanh_toán[[#This Row],[THANH TOÁN THEO LỊCH]]>0,Lịch_biểu_Thanh_toán[[#This Row],[SỐ DƯ ĐẦU]]-Lịch_biểu_Thanh_toán[[#This Row],[THANH TOÁN THEO LỊCH]],0)),"") ->  | G130: =IF(Lịch_biểu_Thanh_toán[[#This Row],[SỐ THANH TOÁN]]<>"",IF(Lịch_biểu_Thanh_toán[[#This Row],[THANH TOÁN THEO LỊCH]]+Lịch_biểu_Thanh_toán[[#This Row],[THANH TOÁN BỔ SUNG]]<=Lịch_biểu_Thanh_toán[[#This Row],[SỐ DƯ ĐẦU]],Lịch_biểu_Thanh_toán[[#This Row],[THANH TOÁN THEO LỊCH]]+Lịch_biểu_Thanh_toán[[#This Row],[THANH TOÁN BỔ SUNG]],Lịch_biểu_Thanh_toán[[#This Row],[SỐ DƯ ĐẦU]]),"") ->  | H130: =IF(Lịch_biểu_Thanh_toán[[#This Row],[SỐ THANH TOÁN]]<>"",Lịch_biểu_Thanh_toán[[#This Row],[TỔNG THANH TOÁN]]-Lịch_biểu_Thanh_toán[[#This Row],[LÃI]],"") ->  | I130: =IF(Lịch_biểu_Thanh_toán[[#This Row],[SỐ THANH TOÁN]]<>"",Lịch_biểu_Thanh_toán[[#This Row],[SỐ DƯ ĐẦU]]*(Lãi_Suất/Thanh_toán_Mỗi_Năm),"") ->  | J130: =IF(Lịch_biểu_Thanh_toán[[#This Row],[SỐ THANH TOÁN]]<>"",IF(Lịch_biểu_Thanh_toán[[#This Row],[THANH TOÁN THEO LỊCH]]+Lịch_biểu_Thanh_toán[[#This Row],[THANH TOÁN BỔ SUNG]]<=Lịch_biểu_Thanh_toán[[#This Row],[SỐ DƯ ĐẦU]],Lịch_biểu_Thanh_toán[[#This Row],[SỐ DƯ ĐẦU]]-Lịch_biểu_Thanh_toán[[#This Row],[GỐC]],0),"") ->  | K130: =IF(Lịch_biểu_Thanh_toán[[#This Row],[SỐ THANH TOÁN]]<>"",SUM(INDEX(Lịch_biểu_Thanh_toán[LÃI],1,1):Lịch_biểu_Thanh_toán[[#This Row],[LÃI]]),"") -> 
B131: =IF(Khoản_vay_Tốt,IF(ROW()-ROW(Lịch_biểu_Thanh_toán[[#Headers],[SỐ THANH TOÁN]])>Số_lần_Thanh_toán_theo_Lịch,"",ROW()-ROW(Lịch_biểu_Thanh_toán[[#Headers],[SỐ THANH TOÁN]])),"") ->  | C131: =IF(Lịch_biểu_Thanh_toán[[#This Row],[SỐ THANH TOÁN]]<>"",EOMONTH(Ngày_Bắt_đầu_Khoản_vay,ROW(Lịch_biểu_Thanh_toán[[#This Row],[SỐ THANH TOÁN]])-ROW(Lịch_biểu_Thanh_toán[[#Headers],[SỐ THANH TOÁN]])-2)+DAY(Ngày_Bắt_đầu_Khoản_vay),"") ->  | D131: =IF(Lịch_biểu_Thanh_toán[[#This Row],[SỐ THANH TOÁN]]<>"",IF(ROW()-ROW(Lịch_biểu_Thanh_toán[[#Headers],[SỐ DƯ ĐẦU]])=1,Số_tiền_Vay,INDEX(Lịch_biểu_Thanh_toán[SỐ DƯ CUỐI],ROW()-ROW(Lịch_biểu_Thanh_toán[[#Headers],[SỐ DƯ ĐẦU]])-1)),"") ->  | E131: =IF(Lịch_biểu_Thanh_toán[[#This Row],[SỐ THANH TOÁN]]<>"",Thanh_toán_theo_Lịch,"") ->  | F131: =IF(Lịch_biểu_Thanh_toán[[#This Row],[SỐ THANH TOÁN]]<>"",IF(Lịch_biểu_Thanh_toán[[#This Row],[THANH TOÁN THEO LỊCH]]+Thanh_Toán_Bổ_sung<Lịch_biểu_Thanh_toán[[#This Row],[SỐ DƯ ĐẦU]],Thanh_Toán_Bổ_sung,IF(Lịch_biểu_Thanh_toán[[#This Row],[SỐ DƯ ĐẦU]]-Lịch_biểu_Thanh_toán[[#This Row],[THANH TOÁN THEO LỊCH]]>0,Lịch_biểu_Thanh_toán[[#This Row],[SỐ DƯ ĐẦU]]-Lịch_biểu_Thanh_toán[[#This Row],[THANH TOÁN THEO LỊCH]],0)),"") ->  | G131: =IF(Lịch_biểu_Thanh_toán[[#This Row],[SỐ THANH TOÁN]]<>"",IF(Lịch_biểu_Thanh_toán[[#This Row],[THANH TOÁN THEO LỊCH]]+Lịch_biểu_Thanh_toán[[#This Row],[THANH TOÁN BỔ SUNG]]<=Lịch_biểu_Thanh_toán[[#This Row],[SỐ DƯ ĐẦU]],Lịch_biểu_Thanh_toán[[#This Row],[THANH TOÁN THEO LỊCH]]+Lịch_biểu_Thanh_toán[[#This Row],[THANH TOÁN BỔ SUNG]],Lịch_biểu_Thanh_toán[[#This Row],[SỐ DƯ ĐẦU]]),"") ->  | H131: =IF(Lịch_biểu_Thanh_toán[[#This Row],[SỐ THANH TOÁN]]<>"",Lịch_biểu_Thanh_toán[[#This Row],[TỔNG THANH TOÁN]]-Lịch_biểu_Thanh_toán[[#This Row],[LÃI]],"") ->  | I131: =IF(Lịch_biểu_Thanh_toán[[#This Row],[SỐ THANH TOÁN]]<>"",Lịch_biểu_Thanh_toán[[#This Row],[SỐ DƯ ĐẦU]]*(Lãi_Suất/Thanh_toán_Mỗi_Năm),"") ->  | J131: =IF(Lịch_biểu_Thanh_toán[[#This Row],[SỐ THANH TOÁN]]<>"",IF(Lịch_biểu_Thanh_toán[[#This Row],[THANH TOÁN THEO LỊCH]]+Lịch_biểu_Thanh_toán[[#This Row],[THANH TOÁN BỔ SUNG]]<=Lịch_biểu_Thanh_toán[[#This Row],[SỐ DƯ ĐẦU]],Lịch_biểu_Thanh_toán[[#This Row],[SỐ DƯ ĐẦU]]-Lịch_biểu_Thanh_toán[[#This Row],[GỐC]],0),"") ->  | K131: =IF(Lịch_biểu_Thanh_toán[[#This Row],[SỐ THANH TOÁN]]<>"",SUM(INDEX(Lịch_biểu_Thanh_toán[LÃI],1,1):Lịch_biểu_Thanh_toán[[#This Row],[LÃI]]),"") -> 
B132: =IF(Khoản_vay_Tốt,IF(ROW()-ROW(Lịch_biểu_Thanh_toán[[#Headers],[SỐ THANH TOÁN]])>Số_lần_Thanh_toán_theo_Lịch,"",ROW()-ROW(Lịch_biểu_Thanh_toán[[#Headers],[SỐ THANH TOÁN]])),"") ->  | C132: =IF(Lịch_biểu_Thanh_toán[[#This Row],[SỐ THANH TOÁN]]<>"",EOMONTH(Ngày_Bắt_đầu_Khoản_vay,ROW(Lịch_biểu_Thanh_toán[[#This Row],[SỐ THANH TOÁN]])-ROW(Lịch_biểu_Thanh_toán[[#Headers],[SỐ THANH TOÁN]])-2)+DAY(Ngày_Bắt_đầu_Khoản_vay),"") ->  | D132: =IF(Lịch_biểu_Thanh_toán[[#This Row],[SỐ THANH TOÁN]]<>"",IF(ROW()-ROW(Lịch_biểu_Thanh_toán[[#Headers],[SỐ DƯ ĐẦU]])=1,Số_tiền_Vay,INDEX(Lịch_biểu_Thanh_toán[SỐ DƯ CUỐI],ROW()-ROW(Lịch_biểu_Thanh_toán[[#Headers],[SỐ DƯ ĐẦU]])-1)),"") ->  | E132: =IF(Lịch_biểu_Thanh_toán[[#This Row],[SỐ THANH TOÁN]]<>"",Thanh_toán_theo_Lịch,"") ->  | F132: =IF(Lịch_biểu_Thanh_toán[[#This Row],[SỐ THANH TOÁN]]<>"",IF(Lịch_biểu_Thanh_toán[[#This Row],[THANH TOÁN THEO LỊCH]]+Thanh_Toán_Bổ_sung<Lịch_biểu_Thanh_toán[[#This Row],[SỐ DƯ ĐẦU]],Thanh_Toán_Bổ_sung,IF(Lịch_biểu_Thanh_toán[[#This Row],[SỐ DƯ ĐẦU]]-Lịch_biểu_Thanh_toán[[#This Row],[THANH TOÁN THEO LỊCH]]>0,Lịch_biểu_Thanh_toán[[#This Row],[SỐ DƯ ĐẦU]]-Lịch_biểu_Thanh_toán[[#This Row],[THANH TOÁN THEO LỊCH]],0)),"") ->  | G132: =IF(Lịch_biểu_Thanh_toán[[#This Row],[SỐ THANH TOÁN]]<>"",IF(Lịch_biểu_Thanh_toán[[#This Row],[THANH TOÁN THEO LỊCH]]+Lịch_biểu_Thanh_toán[[#This Row],[THANH TOÁN BỔ SUNG]]<=Lịch_biểu_Thanh_toán[[#This Row],[SỐ DƯ ĐẦU]],Lịch_biểu_Thanh_toán[[#This Row],[THANH TOÁN THEO LỊCH]]+Lịch_biểu_Thanh_toán[[#This Row],[THANH TOÁN BỔ SUNG]],Lịch_biểu_Thanh_toán[[#This Row],[SỐ DƯ ĐẦU]]),"") ->  | H132: =IF(Lịch_biểu_Thanh_toán[[#This Row],[SỐ THANH TOÁN]]<>"",Lịch_biểu_Thanh_toán[[#This Row],[TỔNG THANH TOÁN]]-Lịch_biểu_Thanh_toán[[#This Row],[LÃI]],"") ->  | I132: =IF(Lịch_biểu_Thanh_toán[[#This Row],[SỐ THANH TOÁN]]<>"",Lịch_biểu_Thanh_toán[[#This Row],[SỐ DƯ ĐẦU]]*(Lãi_Suất/Thanh_toán_Mỗi_Năm),"") ->  | J132: =IF(Lịch_biểu_Thanh_toán[[#This Row],[SỐ THANH TOÁN]]<>"",IF(Lịch_biểu_Thanh_toán[[#This Row],[THANH TOÁN THEO LỊCH]]+Lịch_biểu_Thanh_toán[[#This Row],[THANH TOÁN BỔ SUNG]]<=Lịch_biểu_Thanh_toán[[#This Row],[SỐ DƯ ĐẦU]],Lịch_biểu_Thanh_toán[[#This Row],[SỐ DƯ ĐẦU]]-Lịch_biểu_Thanh_toán[[#This Row],[GỐC]],0),"") ->  | K132: =IF(Lịch_biểu_Thanh_toán[[#This Row],[SỐ THANH TOÁN]]<>"",SUM(INDEX(Lịch_biểu_Thanh_toán[LÃI],1,1):Lịch_biểu_Thanh_toán[[#This Row],[LÃI]]),"") -> 
B133: =IF(Khoản_vay_Tốt,IF(ROW()-ROW(Lịch_biểu_Thanh_toán[[#Headers],[SỐ THANH TOÁN]])>Số_lần_Thanh_toán_theo_Lịch,"",ROW()-ROW(Lịch_biểu_Thanh_toán[[#Headers],[SỐ THANH TOÁN]])),"") ->  | C133: =IF(Lịch_biểu_Thanh_toán[[#This Row],[SỐ THANH TOÁN]]<>"",EOMONTH(Ngày_Bắt_đầu_Khoản_vay,ROW(Lịch_biểu_Thanh_toán[[#This Row],[SỐ THANH TOÁN]])-ROW(Lịch_biểu_Thanh_toán[[#Headers],[SỐ THANH TOÁN]])-2)+DAY(Ngày_Bắt_đầu_Khoản_vay),"") ->  | D133: =IF(Lịch_biểu_Thanh_toán[[#This Row],[SỐ THANH TOÁN]]<>"",IF(ROW()-ROW(Lịch_biểu_Thanh_toán[[#Headers],[SỐ DƯ ĐẦU]])=1,Số_tiền_Vay,INDEX(Lịch_biểu_Thanh_toán[SỐ DƯ CUỐI],ROW()-ROW(Lịch_biểu_Thanh_toán[[#Headers],[SỐ DƯ ĐẦU]])-1)),"") ->  | E133: =IF(Lịch_biểu_Thanh_toán[[#This Row],[SỐ THANH TOÁN]]<>"",Thanh_toán_theo_Lịch,"") ->  | F133: =IF(Lịch_biểu_Thanh_toán[[#This Row],[SỐ THANH TOÁN]]<>"",IF(Lịch_biểu_Thanh_toán[[#This Row],[THANH TOÁN THEO LỊCH]]+Thanh_Toán_Bổ_sung<Lịch_biểu_Thanh_toán[[#This Row],[SỐ DƯ ĐẦU]],Thanh_Toán_Bổ_sung,IF(Lịch_biểu_Thanh_toán[[#This Row],[SỐ DƯ ĐẦU]]-Lịch_biểu_Thanh_toán[[#This Row],[THANH TOÁN THEO LỊCH]]>0,Lịch_biểu_Thanh_toán[[#This Row],[SỐ DƯ ĐẦU]]-Lịch_biểu_Thanh_toán[[#This Row],[THANH TOÁN THEO LỊCH]],0)),"") ->  | G133: =IF(Lịch_biểu_Thanh_toán[[#This Row],[SỐ THANH TOÁN]]<>"",IF(Lịch_biểu_Thanh_toán[[#This Row],[THANH TOÁN THEO LỊCH]]+Lịch_biểu_Thanh_toán[[#This Row],[THANH TOÁN BỔ SUNG]]<=Lịch_biểu_Thanh_toán[[#This Row],[SỐ DƯ ĐẦU]],Lịch_biểu_Thanh_toán[[#This Row],[THANH TOÁN THEO LỊCH]]+Lịch_biểu_Thanh_toán[[#This Row],[THANH TOÁN BỔ SUNG]],Lịch_biểu_Thanh_toán[[#This Row],[SỐ DƯ ĐẦU]]),"") ->  | H133: =IF(Lịch_biểu_Thanh_toán[[#This Row],[SỐ THANH TOÁN]]<>"",Lịch_biểu_Thanh_toán[[#This Row],[TỔNG THANH TOÁN]]-Lịch_biểu_Thanh_toán[[#This Row],[LÃI]],"") ->  | I133: =IF(Lịch_biểu_Thanh_toán[[#This Row],[SỐ THANH TOÁN]]<>"",Lịch_biểu_Thanh_toán[[#This Row],[SỐ DƯ ĐẦU]]*(Lãi_Suất/Thanh_toán_Mỗi_Năm),"") ->  | J133: =IF(Lịch_biểu_Thanh_toán[[#This Row],[SỐ THANH TOÁN]]<>"",IF(Lịch_biểu_Thanh_toán[[#This Row],[THANH TOÁN THEO LỊCH]]+Lịch_biểu_Thanh_toán[[#This Row],[THANH TOÁN BỔ SUNG]]<=Lịch_biểu_Thanh_toán[[#This Row],[SỐ DƯ ĐẦU]],Lịch_biểu_Thanh_toán[[#This Row],[SỐ DƯ ĐẦU]]-Lịch_biểu_Thanh_toán[[#This Row],[GỐC]],0),"") ->  | K133: =IF(Lịch_biểu_Thanh_toán[[#This Row],[SỐ THANH TOÁN]]<>"",SUM(INDEX(Lịch_biểu_Thanh_toán[LÃI],1,1):Lịch_biểu_Thanh_toán[[#This Row],[LÃI]]),"") -> 
B134: =IF(Khoản_vay_Tốt,IF(ROW()-ROW(Lịch_biểu_Thanh_toán[[#Headers],[SỐ THANH TOÁN]])>Số_lần_Thanh_toán_theo_Lịch,"",ROW()-ROW(Lịch_biểu_Thanh_toán[[#Headers],[SỐ THANH TOÁN]])),"") ->  | C134: =IF(Lịch_biểu_Thanh_toán[[#This Row],[SỐ THANH TOÁN]]<>"",EOMONTH(Ngày_Bắt_đầu_Khoản_vay,ROW(Lịch_biểu_Thanh_toán[[#This Row],[SỐ THANH TOÁN]])-ROW(Lịch_biểu_Thanh_toán[[#Headers],[SỐ THANH TOÁN]])-2)+DAY(Ngày_Bắt_đầu_Khoản_vay),"") ->  | D134: =IF(Lịch_biểu_Thanh_toán[[#This Row],[SỐ THANH TOÁN]]<>"",IF(ROW()-ROW(Lịch_biểu_Thanh_toán[[#Headers],[SỐ DƯ ĐẦU]])=1,Số_tiền_Vay,INDEX(Lịch_biểu_Thanh_toán[SỐ DƯ CUỐI],ROW()-ROW(Lịch_biểu_Thanh_toán[[#Headers],[SỐ DƯ ĐẦU]])-1)),"") ->  | E134: =IF(Lịch_biểu_Thanh_toán[[#This Row],[SỐ THANH TOÁN]]<>"",Thanh_toán_theo_Lịch,"") ->  | F134: =IF(Lịch_biểu_Thanh_toán[[#This Row],[SỐ THANH TOÁN]]<>"",IF(Lịch_biểu_Thanh_toán[[#This Row],[THANH TOÁN THEO LỊCH]]+Thanh_Toán_Bổ_sung<Lịch_biểu_Thanh_toán[[#This Row],[SỐ DƯ ĐẦU]],Thanh_Toán_Bổ_sung,IF(Lịch_biểu_Thanh_toán[[#This Row],[SỐ DƯ ĐẦU]]-Lịch_biểu_Thanh_toán[[#This Row],[THANH TOÁN THEO LỊCH]]>0,Lịch_biểu_Thanh_toán[[#This Row],[SỐ DƯ ĐẦU]]-Lịch_biểu_Thanh_toán[[#This Row],[THANH TOÁN THEO LỊCH]],0)),"") ->  | G134: =IF(Lịch_biểu_Thanh_toán[[#This Row],[SỐ THANH TOÁN]]<>"",IF(Lịch_biểu_Thanh_toán[[#This Row],[THANH TOÁN THEO LỊCH]]+Lịch_biểu_Thanh_toán[[#This Row],[THANH TOÁN BỔ SUNG]]<=Lịch_biểu_Thanh_toán[[#This Row],[SỐ DƯ ĐẦU]],Lịch_biểu_Thanh_toán[[#This Row],[THANH TOÁN THEO LỊCH]]+Lịch_biểu_Thanh_toán[[#This Row],[THANH TOÁN BỔ SUNG]],Lịch_biểu_Thanh_toán[[#This Row],[SỐ DƯ ĐẦU]]),"") ->  | H134: =IF(Lịch_biểu_Thanh_toán[[#This Row],[SỐ THANH TOÁN]]<>"",Lịch_biểu_Thanh_toán[[#This Row],[TỔNG THANH TOÁN]]-Lịch_biểu_Thanh_toán[[#This Row],[LÃI]],"") ->  | I134: =IF(Lịch_biểu_Thanh_toán[[#This Row],[SỐ THANH TOÁN]]<>"",Lịch_biểu_Thanh_toán[[#This Row],[SỐ DƯ ĐẦU]]*(Lãi_Suất/Thanh_toán_Mỗi_Năm),"") ->  | J134: =IF(Lịch_biểu_Thanh_toán[[#This Row],[SỐ THANH TOÁN]]<>"",IF(Lịch_biểu_Thanh_toán[[#This Row],[THANH TOÁN THEO LỊCH]]+Lịch_biểu_Thanh_toán[[#This Row],[THANH TOÁN BỔ SUNG]]<=Lịch_biểu_Thanh_toán[[#This Row],[SỐ DƯ ĐẦU]],Lịch_biểu_Thanh_toán[[#This Row],[SỐ DƯ ĐẦU]]-Lịch_biểu_Thanh_toán[[#This Row],[GỐC]],0),"") ->  | K134: =IF(Lịch_biểu_Thanh_toán[[#This Row],[SỐ THANH TOÁN]]<>"",SUM(INDEX(Lịch_biểu_Thanh_toán[LÃI],1,1):Lịch_biểu_Thanh_toán[[#This Row],[LÃI]]),"") -> 
B135: =IF(Khoản_vay_Tốt,IF(ROW()-ROW(Lịch_biểu_Thanh_toán[[#Headers],[SỐ THANH TOÁN]])>Số_lần_Thanh_toán_theo_Lịch,"",ROW()-ROW(Lịch_biểu_Thanh_toán[[#Headers],[SỐ THANH TOÁN]])),"") ->  | C135: =IF(Lịch_biểu_Thanh_toán[[#This Row],[SỐ THANH TOÁN]]<>"",EOMONTH(Ngày_Bắt_đầu_Khoản_vay,ROW(Lịch_biểu_Thanh_toán[[#This Row],[SỐ THANH TOÁN]])-ROW(Lịch_biểu_Thanh_toán[[#Headers],[SỐ THANH TOÁN]])-2)+DAY(Ngày_Bắt_đầu_Khoản_vay),"") ->  | D135: =IF(Lịch_biểu_Thanh_toán[[#This Row],[SỐ THANH TOÁN]]<>"",IF(ROW()-ROW(Lịch_biểu_Thanh_toán[[#Headers],[SỐ DƯ ĐẦU]])=1,Số_tiền_Vay,INDEX(Lịch_biểu_Thanh_toán[SỐ DƯ CUỐI],ROW()-ROW(Lịch_biểu_Thanh_toán[[#Headers],[SỐ DƯ ĐẦU]])-1)),"") ->  | E135: =IF(Lịch_biểu_Thanh_toán[[#This Row],[SỐ THANH TOÁN]]<>"",Thanh_toán_theo_Lịch,"") ->  | F135: =IF(Lịch_biểu_Thanh_toán[[#This Row],[SỐ THANH TOÁN]]<>"",IF(Lịch_biểu_Thanh_toán[[#This Row],[THANH TOÁN THEO LỊCH]]+Thanh_Toán_Bổ_sung<Lịch_biểu_Thanh_toán[[#This Row],[SỐ DƯ ĐẦU]],Thanh_Toán_Bổ_sung,IF(Lịch_biểu_Thanh_toán[[#This Row],[SỐ DƯ ĐẦU]]-Lịch_biểu_Thanh_toán[[#This Row],[THANH TOÁN THEO LỊCH]]>0,Lịch_biểu_Thanh_toán[[#This Row],[SỐ DƯ ĐẦU]]-Lịch_biểu_Thanh_toán[[#This Row],[THANH TOÁN THEO LỊCH]],0)),"") ->  | G135: =IF(Lịch_biểu_Thanh_toán[[#This Row],[SỐ THANH TOÁN]]<>"",IF(Lịch_biểu_Thanh_toán[[#This Row],[THANH TOÁN THEO LỊCH]]+Lịch_biểu_Thanh_toán[[#This Row],[THANH TOÁN BỔ SUNG]]<=Lịch_biểu_Thanh_toán[[#This Row],[SỐ DƯ ĐẦU]],Lịch_biểu_Thanh_toán[[#This Row],[THANH TOÁN THEO LỊCH]]+Lịch_biểu_Thanh_toán[[#This Row],[THANH TOÁN BỔ SUNG]],Lịch_biểu_Thanh_toán[[#This Row],[SỐ DƯ ĐẦU]]),"") ->  | H135: =IF(Lịch_biểu_Thanh_toán[[#This Row],[SỐ THANH TOÁN]]<>"",Lịch_biểu_Thanh_toán[[#This Row],[TỔNG THANH TOÁN]]-Lịch_biểu_Thanh_toán[[#This Row],[LÃI]],"") ->  | I135: =IF(Lịch_biểu_Thanh_toán[[#This Row],[SỐ THANH TOÁN]]<>"",Lịch_biểu_Thanh_toán[[#This Row],[SỐ DƯ ĐẦU]]*(Lãi_Suất/Thanh_toán_Mỗi_Năm),"") ->  | J135: =IF(Lịch_biểu_Thanh_toán[[#This Row],[SỐ THANH TOÁN]]<>"",IF(Lịch_biểu_Thanh_toán[[#This Row],[THANH TOÁN THEO LỊCH]]+Lịch_biểu_Thanh_toán[[#This Row],[THANH TOÁN BỔ SUNG]]<=Lịch_biểu_Thanh_toán[[#This Row],[SỐ DƯ ĐẦU]],Lịch_biểu_Thanh_toán[[#This Row],[SỐ DƯ ĐẦU]]-Lịch_biểu_Thanh_toán[[#This Row],[GỐC]],0),"") ->  | K135: =IF(Lịch_biểu_Thanh_toán[[#This Row],[SỐ THANH TOÁN]]<>"",SUM(INDEX(Lịch_biểu_Thanh_toán[LÃI],1,1):Lịch_biểu_Thanh_toán[[#This Row],[LÃI]]),"") -> 
